{"text_format":"1","workbook":"xlsx","n_sheets":9,"sheets":["Rammebetingelser","Teknologiliste","PrisFaktorer","SETUP","Sheet1","FAQ_TL","LHT-noter","OUTPUT-OLD","OUTPUT"],"not_rendered":{"charts":0,"images":6,"macros":1,"external_links":2,"defined_names":36,"comments":1,"pivot_tables":0},"unopened":[],"bounds":{"document_bytes":16777216,"sheet_cells":100000,"rows_first":2000,"rows_last":500,"rows_between":2000,"halvings":0,"cell_chars":16384,"cell_head_chars":4096},"cells_cut":0,"cells_raw":0,"read":"whole","date_system":"1900"}

{"sheet":"Rammebetingelser","index":0,"n_rows":19,"n_cols":16,"rows_kept":19,"cut":false,"hidden":false,"merged":[[14,1,14,15]]}
[null,"RB_1","RB_2","RB_3","RB_4","RB_5","RB_6","RB_7","RB_8","RB_9","RB_10","RB_11","RB_12","RB_13","RB_14","RB_15"]
[null,"Lokalitet","Geografi","Recipient","Kapacitet (samlet anlæg, PE)","Flow (l/s)","Løftehøjde (modtryk, m/Vs)"]
[1,"Land","105","Sårbar recipient","< 15.000","< 30","< 3"]
[2,"By","100","Normal recipient","15.000 - 50.000","30 - 150","3 - 10"]
[3,"City","95","Robust recipient","50.000 - 200.000","150 - 600","10 - 20"]
[4,"Indre city","90",null,"> 200.000","600 - 1000","20 - 30"]
[5,null,"85",null,null,"> 1000","> 30 "]
[6]
[7]
[8]
[9]
[10]
[null,{"$f":"COUNTA(B3:B12)","v":4},{"$f":"COUNTA(C3:C12)","v":5},3,4,5,5,0,0,0,0,0,0,0,0,0]
[null,{"$f":"COUNTA(B3:B12)","v":4},{"$f":"COUNTA(C3:C12)","v":5},{"$f":"COUNTA(D3:D12)","v":3},4,5,5]
[null,"Tabellen er ændret! Tryk på knappen og opdatér TL-arket"]
[null,"Antal kombinationer",null,{"$f":"B14*C14*D14*E14*F14*G14","v":6000}]
[]
[]
[null,null,false]

{"sheet":"Teknologiliste","index":1,"n_rows":132,"n_cols":75,"rows_kept":132,"cut":false,"hidden":false,"merged":[[0,45,3,74],[2,40,2,41],[2,42,2,43],[2,16,2,17],[2,18,2,19],[2,34,2,35],[2,36,2,37],[2,38,2,39],[1,34,1,35],[1,36,1,37],[1,38,1,39],[1,40,1,41],[1,42,1,43],[1,30,1,31],[1,32,1,33],[2,20,2,21],[1,1,2,7],[1,8,2,12],[1,14,1,15],[1,16,1,17],[1,18,1,19],[2,14,2,15],[1,13,2,13],[2,32,2,33],[1,20,1,21],[1,22,1,23],[1,24,1,25],[1,26,1,27],[1,28,1,29],[2,22,2,23],[2,24,2,25],[2,26,2,27],[2,28,2,29],[2,30,2,31]]}
[null,null,null,null,null,null,null,null,null,null,null,null,"XXX",null,0,0,1,1,0,0,1,1,0,0,1,1,0,0,1,1,0,0,1,1,0,0,1,1,0,0,1,1,0,0,"XXX","Ikke ret i orange celler - de skal egentlig holdes skjult"]
[null,"Teknologier",null,null,null,null,null,null,"Basis-priser",null,null,null,null,"Arbejds-\nkolonne","RB_1",null,"RB_2",null,"RB_3",null,"RB_4",null,"RB_5",null,"RB_6",null,"RB_7",null,"RB_8",null,"RB_9",null,"RB_10",null,"RB_11",null,"RB_12",null,"RB_13",null,"RB_14",null,"RB_15"]
[null,null,null,null,null,null,null,null,null,null,null,null,null,null,"Lokalitet",null,"Geografi",null,"Recipient",null,"Kapacitet (samlet anlæg, PE)",null,"Flow (l/s)",null,"Løftehøjde (modtryk, m/Vs)"]
["Farve","Hovedfunktion","Sort","Teknologigruppe","Teknologi","Levetid (år)","Kilde_lev","Tek-niveau","Anlæg (kr)","Kilde_anl","Drift (kr/år)","Vlh (kr/år)","Enhed","Bemærkning","min","max","min","max","min","max","min","max","min","max","min","max","min","max","min","max","min","max","min","max","min","max","min","max","min","max","min","max","min","max"]
[0,"Transportanlæg",null,"Ledninger","PP, Ø200 mm - Ø500 mm ",75,"Polka","STD",561.45000000000005,"Molio",null,3.3066666666666666,"lbm","45.11.15,  dybde 3 m",null,null,null,null,null,null,null,null,null,null,null,null,null,null,null,null,null,null,null,null,null,null,null,null,null,null,null,null,null,null,null,0,0,0,0,0,0,0,0,0,0,0,0,0,0,0,0,0,0,0,0,0,0,0,0,0,0,0,0,0,0]
[0,"Transportanlæg",null,"Ledninger","PP, ≤ Ø200 mm ",75,"Polka","STD",180,"Molio",null,3.3066666666666666,"lbm","Drift og vedligehold er indsat på denne teknologi for alle ledninger",null,null,null,null,null,null,null,null,null,null,null,null,null,null,null,null,null,null,null,null,null,null,null,null,null,null,null,null,null,null,null,0,0,0,0,0,0,0,0,0,0,0,0,0,0,0,0,0,0,0,0,0,0,0,0,0,0,0,0,0,0]
[0,"Transportanlæg",null,"Ledninger","PP, Ø500 mm - Ø800 mm",75,"Polka","STD",1395.02,"Molio",null,3.3066666666666666,"lbm","45.25.23 dybde 3 m",null,null,null,null,null,null,null,null,null,null,null,null,null,null,null,null,null,null,null,null,null,null,null,null,null,null,null,null,null,null,null,0,0,0,0,0,0,0,0,0,0,0,0,0,0,0,0,0,0,0,0,0,0,0,0,0,0,0,0,0,0]
[0,"Transportanlæg",null,"Ledninger","PP, Ø800 mm - Ø1000 mm",75,"Polka","STD",2321,"Molio",null,3.3066666666666666,"lbm","45.45.25 dybde 3 m",null,null,null,null,null,null,null,null,null,null,null,null,null,null,null,null,null,null,null,null,null,null,null,null,null,null,null,null,null,null,null,0,0,0,0,0,0,0,0,0,0,0,0,0,0,0,0,0,0,0,0,0,0,0,0,0,0,0,0,0,0]
[0,"Transportanlæg",null,"Ledninger","PE, ≤ Ø200 mm, PN 4 - PN 6",75,"Polka","STD",470,"Erfaringstal",null,3.3066666666666666,"lbm","ESR tjekker",null,null,null,null,null,null,null,null,null,null,null,null,null,null,null,null,null,null,null,null,null,null,null,null,null,null,null,null,null,null,null,0,0,0,0,0,0,0,0,0,0,0,0,0,0,0,0,0,0,0,0,0,0,0,0,0,0,0,0,0,0]
[0,"Transportanlæg",null,"Ledninger","PE, ≤ Ø200 mm, PN 8 - PN 10",75,"Polka","STD",530,"Erfaringstal",null,3.3066666666666666,"lbm","ESR tjekker",null,null,null,null,null,null,null,null,null,null,null,null,null,null,null,null,null,null,null,null,null,null,null,null,null,null,null,null,null,null,null,0,0,0,0,0,0,0,0,0,0,0,0,0,0,0,0,0,0,0,0,0,0,0,0,0,0,0,0,0,0]
[0,"Transportanlæg",null,"Ledninger","PE, Ø200 mm - Ø500 mm, PN 4 - PN 6",75,"Polka","STD",1010,"Erfaringstal",null,3.3066666666666666,"lbm","ESR tjekker",null,null,null,null,null,null,null,null,null,null,null,null,null,null,null,null,null,null,null,null,null,null,null,null,null,null,null,null,null,null,null,0,0,0,0,0,0,0,0,0,0,0,0,0,0,0,0,0,0,0,0,0,0,0,0,0,0,0,0,0,0]
[0,"Transportanlæg",null,"Ledninger","PE, Ø200 mm - Ø500 mm, PN 8 - PN 10",75,"Polka","STD",1350,"Erfaringstal",null,3.3066666666666666,"lbm","ESR tjekker",null,null,null,null,null,null,null,null,null,null,null,null,null,null,null,null,null,null,null,null,null,null,null,null,null,null,null,null,null,null,null,0,0,0,0,0,0,0,0,0,0,0,0,0,0,0,0,0,0,0,0,0,0,0,0,0,0,0,0,0,0]
[0,"Transportanlæg",null,"Ledninger","PE, Ø500 mm - Ø800 mm, PN 4 - PN 6",75,"Polka","STD",3000,"Erfaringstal",null,3.3066666666666666,"lbm","ESR tjekker",null,null,null,null,null,null,null,null,null,null,null,null,null,null,null,null,null,null,null,null,null,null,null,null,null,null,null,null,null,null,null,0,0,0,0,0,0,0,0,0,0,0,0,0,0,0,0,0,0,0,0,0,0,0,0,0,0,0,0,0,0]
[0,"Transportanlæg",null,"Ledninger","PE, Ø500 mm - Ø800 mm, PN 8 - PN 10",75,"Polka","STD",4000,"Erfaringstal",null,3.3066666666666666,"lbm","ESR tjekker",null,null,null,null,null,null,null,null,null,null,null,null,null,null,null,null,null,null,null,null,null,null,null,null,null,null,null,null,null,null,null,0,0,0,0,0,0,0,0,0,0,0,0,0,0,0,0,0,0,0,0,0,0,0,0,0,0,0,0,0,0]
[0,"Transportanlæg",null,"Ledninger","PE, Ø800 mm - Ø1000 mm, PN 4 - PN 6",75,"Polka","STD",4000,"Erfaringstal",null,3.3066666666666666,"lbm","ESR tjekker",null,null,null,null,null,null,null,null,null,null,null,null,null,null,null,null,null,null,null,null,null,null,null,null,null,null,null,null,null,null,null,0,0,0,0,0,0,0,0,0,0,0,0,0,0,0,0,0,0,0,0,0,0,0,0,0,0,0,0,0,0]
[0,"Transportanlæg",null,"Ledninger","PE, Ø800 mm - Ø1000 mm, PN 8 - PN 10",75,"Polka","STD",5500,"Erfaringstal",null,3.3066666666666666,"lbm","ESR tjekker",null,null,null,null,null,null,null,null,null,null,null,null,null,null,null,null,null,null,null,null,null,null,null,null,null,null,null,null,null,null,null,0,0,0,0,0,0,0,0,0,0,0,0,0,0,0,0,0,0,0,0,0,0,0,0,0,0,0,0,0,0]
[0,"Transportanlæg",null,"Ledninger","PE, Ø1000 mm - Ø1200 mm, PN 4 - PN 6",75,"Polka","STD",5500,"Erfaringstal",null,3.3066666666666666,"lbm","ESR tjekker",null,null,null,null,null,null,null,null,null,null,null,null,null,null,null,null,null,null,null,null,null,null,null,null,null,null,null,null,null,null,null,0,0,0,0,0,0,0,0,0,0,0,0,0,0,0,0,0,0,0,0,0,0,0,0,0,0,0,0,0,0]
[0,"Transportanlæg",null,"Ledninger","PE, Ø1000 mm - Ø1200 mm, PN 8 - PN 10",75,"Polka","STD",8500,"Erfaringstal",null,3.3066666666666666,"lbm","ESR tjekker",null,null,null,null,null,null,null,null,null,null,null,null,null,null,null,null,null,null,null,null,null,null,null,null,null,null,null,null,null,null,null,0,0,0,0,0,0,0,0,0,0,0,0,0,0,0,0,0,0,0,0,0,0,0,0,0,0,0,0,0,0]
[0,"Transportanlæg",null,"Ledninger","PE, Ø1200 mm - Ø1600 mm,  PN 4 - PN 6",75,"Polka","STD",8000,"Erfaringstal",null,3.3066666666666666,"lbm","ESR tjekker",null,null,null,null,null,null,null,null,null,null,null,null,null,null,null,null,null,null,null,null,null,null,null,null,null,null,null,null,null,null,null,0,0,0,0,0,0,0,0,0,0,0,0,0,0,0,0,0,0,0,0,0,0,0,0,0,0,0,0,0,0]
[0,"Transportanlæg",null,"Ledninger","PE, Ø1200 mm - Ø1600 mm,  PN 8 - PN 10",75,"Polka","STD",11500,"Erfaringstal",null,3.3066666666666666,"lbm","ESR tjekker",null,null,null,null,null,null,null,null,null,null,null,null,null,null,null,null,null,null,null,null,null,null,null,null,null,null,null,null,null,null,null,0,0,0,0,0,0,0,0,0,0,0,0,0,0,0,0,0,0,0,0,0,0,0,0,0,0,0,0,0,0]
[0,"Transportanlæg",null,"Ledninger","PE, > Ø1600 mm",75,"Polka","STD",12000,"Erfaringstal",null,3.3066666666666666,"lbm","ESR tjekker",null,null,null,null,null,null,null,null,null,null,null,null,null,null,null,null,null,null,null,null,null,null,null,null,null,null,null,null,null,null,null,0,0,0,0,0,0,0,0,0,0,0,0,0,0,0,0,0,0,0,0,0,0,0,0,0,0,0,0,0,0]
[0,"Transportanlæg",null,"Ledninger","Beton, ≤ Ø200 mm ",75,"Polka","STD",300,"Erfaringstal",null,3.3066666666666666,"lbm","ESR tjekker",null,null,null,null,null,null,null,null,null,null,null,null,null,null,null,null,null,null,null,null,null,null,null,null,null,null,null,null,null,null,null,0,0,0,0,0,0,0,0,0,0,0,0,0,0,0,0,0,0,0,0,0,0,0,0,0,0,0,0,0,0]
[0,"Transportanlæg",null,"Ledninger","Beton, Ø200 mm - Ø500 mm ",75,"Polka","STD",704,"Molio",null,3.3066666666666666,"lbm","(475,04+751,04+885,6)/3   *Baseret på 43.71 - 1 meters dybde",null,null,null,null,null,null,null,null,null,null,null,null,null,null,null,null,null,null,null,null,null,null,null,null,null,null,null,null,null,null,null,0,0,0,0,0,0,0,0,0,0,0,0,0,0,0,0,0,0,0,0,0,0,0,0,0,0,0,0,0,0]
[0,"Transportanlæg",null,"Ledninger","Beton, Ø500 mm - Ø800 mm",75,"Polka","STD",1774,"Molio",null,3.3066666666666666,"lbm","(885,6+1553,28+2019,94+2515,28)/4",null,null,null,null,null,null,null,null,null,null,null,null,null,null,null,null,null,null,null,null,null,null,null,null,null,null,null,null,null,null,null,0,0,0,0,0,0,0,0,0,0,0,0,0,0,0,0,0,0,0,0,0,0,0,0,0,0,0,0,0,0]
[0,"Transportanlæg",null,"Ledninger","Beton, Ø800 mm - Ø1000 mm",75,"Polka","STD",3202,"Molio",null,3.3066666666666666,"lbm","Gns af 43.71,29+30+31",null,null,null,null,null,null,null,null,null,null,null,null,null,null,null,null,null,null,null,null,null,null,null,null,null,null,null,null,null,null,null,0,0,0,0,0,0,0,0,0,0,0,0,0,0,0,0,0,0,0,0,0,0,0,0,0,0,0,0,0,0]
[0,"Transportanlæg",null,"Ledninger","Beton, Ø1000 mm - Ø1200 mm",75,"Polka","STD",4426,"Molio",null,3.3066666666666666,"lbm","Gns af 43.71,31+32",null,null,null,null,null,null,null,null,null,null,null,null,null,null,null,null,null,null,null,null,null,null,null,null,null,null,null,null,null,null,null,0,0,0,0,0,0,0,0,0,0,0,0,0,0,0,0,0,0,0,0,0,0,0,0,0,0,0,0,0,0]
[0,"Transportanlæg",null,"Ledninger","Beton, Ø1200 mm - Ø1600 mm",75,"Polka","STD",6486,"Molio",null,3.3066666666666666,"lbm","Gns af 43.71,32+33+34",null,null,null,null,null,null,null,null,null,null,null,null,null,null,null,null,null,null,null,null,null,null,null,null,null,null,null,null,null,null,null,0,0,0,0,0,0,0,0,0,0,0,0,0,0,0,0,0,0,0,0,0,0,0,0,0,0,0,0,0,0]
[0,"Transportanlæg",null,"Ledninger","PVC, ≤ Ø200 mm ",75,"Polka","STD",229,"Molio",null,3.3066666666666666,"lbm","Gns af 44.41,01+02+03",null,null,null,null,null,null,null,null,null,null,null,null,null,null,null,null,null,null,null,null,null,null,null,null,null,null,null,null,null,null,null,0,0,0,0,0,0,0,0,0,0,0,0,0,0,0,0,0,0,0,0,0,0,0,0,0,0,0,0,0,0]
[0,"Transportanlæg",null,"Ledninger","PVC, Ø200 mm - Ø500 mm ",75,"Polka","STD",1136,"Molio",null,3.3066666666666666,"lbm","Gns af 44.41,04+05+06",null,null,null,null,null,null,null,null,null,null,null,null,null,null,null,null,null,null,null,null,null,null,null,null,null,null,null,null,null,null,null,0,0,0,0,0,0,0,0,0,0,0,0,0,0,0,0,0,0,0,0,0,0,0,0,0,0,0,0,0,0]
[0,"Transportanlæg",null,"Ledninger","Grenrør, < Ø200 mm",75,"Polka","STD",500,"Erfaringstal",null,3.3066666666666666,"lbm","ÅK-pris /ESR",null,null,null,null,null,null,null,null,null,null,null,null,null,null,null,null,null,null,null,null,null,null,null,null,null,null,null,null,null,null,null,0,0,0,0,0,0,0,0,0,0,0,0,0,0,0,0,0,0,0,0,0,0,0,0,0,0,0,0,0,0]
[0,"Transportanlæg",null,"Ledninger","Anboringer, Ø200-Ø500 mm",75,"Polka","STD",600,"Erfaringstal",null,3.3066666666666666,"lbm","ÅK-pris /ESR",null,null,null,null,null,null,null,null,null,null,null,null,null,null,null,null,null,null,null,null,null,null,null,null,null,null,null,null,null,null,null,0,0,0,0,0,0,0,0,0,0,0,0,0,0,0,0,0,0,0,0,0,0,0,0,0,0,0,0,0,0]
[1,"Transportanlæg",null,"Ledningsgrav","1 m dybde, 0,50 m jordrende",75,"Polka","STD",76.25,"Molio",null,null,"lbm","ABPE",null,null,null,null,null,null,null,null,null,null,null,null,null,null,null,null,null,null,null,null,null,null,null,null,null,null,null,null,null,null,null,0,0,0,0,0,0,0,0,0,0,0,0,0,0,0,0,0,0,0,0,0,0,0,0,0,0,0,0,0,0]
[1,"Transportanlæg",null,"Ledningsgrav","1 m dybde, 1,00 m jordrende",75,"Polka","STD",112.21,"Molio",null,null,"lbm","ABPE",null,null,null,null,null,null,null,null,null,null,null,null,null,null,null,null,null,null,null,null,null,null,null,null,null,null,null,null,null,null,null,0,0,0,0,0,0,0,0,0,0,0,0,0,0,0,0,0,0,0,0,0,0,0,0,0,0,0,0,0,0]
[1,"Transportanlæg",null,"Ledningsgrav","1 m dybde, 1,50 m jordrende",75,"Polka","STD",146.41999999999999,"Molio",null,null,"lbm","ABPE",null,null,null,null,null,null,null,null,null,null,null,null,null,null,null,null,null,null,null,null,null,null,null,null,null,null,null,null,null,null,null,0,0,0,0,0,0,0,0,0,0,0,0,0,0,0,0,0,0,0,0,0,0,0,0,0,0,0,0,0,0]
[1,"Transportanlæg",null,"Ledningsgrav","1 m dybde, 2,00 m jordrende",75,"Polka","STD",181.39,"Molio",null,null,"lbm","ABPE",null,null,null,null,null,null,null,null,null,null,null,null,null,null,null,null,null,null,null,null,null,null,null,null,null,null,null,null,null,null,null,0,0,0,0,0,0,0,0,0,0,0,0,0,0,0,0,0,0,0,0,0,0,0,0,0,0,0,0,0,0]
[1,"Transportanlæg",null,"Ledningsgrav","2 m dybde, 0,50 m jordrende",75,"Polka","STD",206.11,"Molio",null,null,"lbm","ABPE",null,null,null,null,null,null,null,null,null,null,null,null,null,null,null,null,null,null,null,null,null,null,null,null,null,null,null,null,null,null,null,0,0,0,0,0,0,0,0,0,0,0,0,0,0,0,0,0,0,0,0,0,0,0,0,0,0,0,0,0,0]
[1,"Transportanlæg",null,"Ledningsgrav","2 m dybde, 1,00 m jordrende",75,"Polka","STD",270.97000000000003,"Molio",null,null,"lbm","ABPE",null,null,null,null,null,null,null,null,null,null,null,null,null,null,null,null,null,null,null,null,null,null,null,null,null,null,null,null,null,null,null,0,0,0,0,0,0,0,0,0,0,0,0,0,0,0,0,0,0,0,0,0,0,0,0,0,0,0,0,0,0]
[1,"Transportanlæg",null,"Ledningsgrav","2 m dybde, 1,50 m jordrende",75,"Polka","STD",335.1,"Molio",null,null,"lbm","ABPE",null,null,null,null,null,null,null,null,null,null,null,null,null,null,null,null,null,null,null,null,null,null,null,null,null,null,null,null,null,null,null,0,0,0,0,0,0,0,0,0,0,0,0,0,0,0,0,0,0,0,0,0,0,0,0,0,0,0,0,0,0]
[1,"Transportanlæg",null,"Ledningsgrav","2 m dybde, 2,00 m jordrende",75,"Polka","STD",398.66,"Molio",null,null,"lbm","ABPE",null,null,null,null,null,null,null,null,null,null,null,null,null,null,null,null,null,null,null,null,null,null,null,null,null,null,null,null,null,null,null,0,0,0,0,0,0,0,0,0,0,0,0,0,0,0,0,0,0,0,0,0,0,0,0,0,0,0,0,0,0]
[1,"Transportanlæg",null,"Ledningsgrav","3 m dybde, 0,50 m jordrende",75,"Polka","STD",379.87,"Molio",null,null,"lbm","ABPE",null,null,null,null,null,null,null,null,null,null,null,null,null,null,null,null,null,null,null,null,null,null,null,null,null,null,null,null,null,null,null,0,0,0,0,0,0,0,0,0,0,0,0,0,0,0,0,0,0,0,0,0,0,0,0,0,0,0,0,0,0]
[1,"Transportanlæg",null,"Ledningsgrav","3 m dybde, 1,00 m jordrende",75,"Polka","STD",469.9,"Molio",null,null,"lbm","ABPE",null,null,null,null,null,null,null,null,null,null,null,null,null,null,null,null,null,null,null,null,null,null,null,null,null,null,null,null,null,null,null,0,0,0,0,0,0,0,0,0,0,0,0,0,0,0,0,0,0,0,0,0,0,0,0,0,0,0,0,0,0]
[1,"Transportanlæg",null,"Ledningsgrav","3 m dybde, 1,50 m jordrende",75,"Polka","STD",559.35,"Molio",null,null,"lbm","ABPE",null,null,null,null,null,null,null,null,null,null,null,null,null,null,null,null,null,null,null,null,null,null,null,null,null,null,null,null,null,null,null,0,0,0,0,0,0,0,0,0,0,0,0,0,0,0,0,0,0,0,0,0,0,0,0,0,0,0,0,0,0]
[1,"Transportanlæg",null,"Ledningsgrav","3 m dybde, 2,00 m jordrende",75,"Polka","STD",647.11,"Molio",null,null,"lbm","ABPE",null,null,null,null,null,null,null,null,null,null,null,null,null,null,null,null,null,null,null,null,null,null,null,null,null,null,null,null,null,null,null,0,0,0,0,0,0,0,0,0,0,0,0,0,0,0,0,0,0,0,0,0,0,0,0,0,0,0,0,0,0]
[1,"Transportanlæg",null,"Ledningsgrav","4 m dybde, 1,00 m jordrende",75,"Polka","STD",742.87,"Molio",null,null,"lbm","ABPE",null,null,null,null,null,null,null,null,null,null,null,null,null,null,null,null,null,null,null,null,null,null,null,null,null,null,null,null,null,null,null,0,0,0,0,0,0,0,0,0,0,0,0,0,0,0,0,0,0,0,0,0,0,0,0,0,0,0,0,0,0]
[1,"Transportanlæg",null,"Ledningsgrav","4 m dybde, 1,50 m jordrende",75,"Polka","STD",860.61,"Molio",null,null,"lbm","ABPE",null,null,null,null,null,null,null,null,null,null,null,null,null,null,null,null,null,null,null,null,null,null,null,null,null,null,null,null,null,null,null,0,0,0,0,0,0,0,0,0,0,0,0,0,0,0,0,0,0,0,0,0,0,0,0,0,0,0,0,0,0]
[1,"Transportanlæg",null,"Ledningsgrav","4 m dybde, 2,00 m jordrende",75,"Polka","STD",977.64,"Molio",null,null,"lbm","ABPE",null,null,null,null,null,null,null,null,null,null,null,null,null,null,null,null,null,null,null,null,null,null,null,null,null,null,null,null,null,null,null,0,0,0,0,0,0,0,0,0,0,0,0,0,0,0,0,0,0,0,0,0,0,0,0,0,0,0,0,0,0]
[1,"Transportanlæg",null,"Ledningsgrav","5 m dybde, 1,00 m jordrende",75,"Polka","STD",1043.52,"Molio",null,null,"lbm","ABPE",null,null,null,null,null,null,null,null,null,null,null,null,null,null,null,null,null,null,null,null,null,null,null,null,null,null,null,null,null,null,null,0,0,0,0,0,0,0,0,0,0,0,0,0,0,0,0,0,0,0,0,0,0,0,0,0,0,0,0,0,0]
[1,"Transportanlæg",null,"Ledningsgrav","5 m dybde, 1,50 m jordrende",75,"Polka","STD",1186.07,"Molio",null,null,"lbm","ABPE",null,null,null,null,null,null,null,null,null,null,null,null,null,null,null,null,null,null,null,null,null,null,null,null,null,null,null,null,null,null,null,0,0,0,0,0,0,0,0,0,0,0,0,0,0,0,0,0,0,0,0,0,0,0,0,0,0,0,0,0,0]
[1,"Transportanlæg",null,"Ledningsgrav","5 m dybde, 2,00 m jordrende",75,"Polka","STD",1327.47,"Molio",null,null,"lbm","ABPE",null,null,null,null,null,null,null,null,null,null,null,null,null,null,null,null,null,null,null,null,null,null,null,null,null,null,null,null,null,null,null,0,0,0,0,0,0,0,0,0,0,0,0,0,0,0,0,0,0,0,0,0,0,0,0,0,0,0,0,0,0]
[1,"Transportanlæg",null,"Ledningsgrav","6 m dybde, 1,00 m jordrende",75,"Polka","STD",1282.67,"Molio",null,null,"lbm","ABPE",null,null,null,null,null,null,null,null,null,null,null,null,null,null,null,null,null,null,null,null,null,null,null,null,null,null,null,null,null,null,null,0,0,0,0,0,0,0,0,0,0,0,0,0,0,0,0,0,0,0,0,0,0,0,0,0,0,0,0,0,0]
[1,"Transportanlæg",null,"Ledningsgrav","6 m dybde, 1,50 m jordrende",75,"Polka","STD",1435.64,"Molio",null,null,"lbm","ABPE",null,null,null,null,null,null,null,null,null,null,null,null,null,null,null,null,null,null,null,null,null,null,null,null,null,null,null,null,null,null,null,0,0,0,0,0,0,0,0,0,0,0,0,0,0,0,0,0,0,0,0,0,0,0,0,0,0,0,0,0,0]
[1,"Transportanlæg",null,"Ledningsgrav","6 m dybde, 2,00 m jordrende",75,"Polka","STD",1588.52,"Molio",null,null,"lbm","ABPE",null,null,null,null,null,null,null,null,null,null,null,null,null,null,null,null,null,null,null,null,null,null,null,null,null,null,null,null,null,null,null,0,0,0,0,0,0,0,0,0,0,0,0,0,0,0,0,0,0,0,0,0,0,0,0,0,0,0,0,0,0]
[0,"Transportanlæg",null,"Underboringer","Mikrotunnellering, Ø400-Ø800",75,"Erfaringstal","STD",18500,"Erfaringstal",null,null,"lbm","Østergård /ESR",null,null,null,null,null,null,null,null,null,null,null,null,null,null,null,null,null,null,null,null,null,null,null,null,null,null,null,null,null,null,null,0,0,0,0,0,0,0,0,0,0,0,0,0,0,0,0,0,0,0,0,0,0,0,0,0,0,0,0,0,0]
[0,"Transportanlæg",null,"Underboringer","Mikrotunnellering, Ø800-Ø1000",75,"Erfaringstal","STD",23500,"Erfaringstal",null,null,"lbm","Østergård /ESR",null,null,null,null,null,null,null,null,null,null,null,null,null,null,null,null,null,null,null,null,null,null,null,null,null,null,null,null,null,null,null,0,0,0,0,0,0,0,0,0,0,0,0,0,0,0,0,0,0,0,0,0,0,0,0,0,0,0,0,0,0]
[0,"Transportanlæg",null,"Underboringer","Mikrotunnellering, Ø1000-Ø1600",75,"Erfaringstal","STD",35500,"Erfaringstal",null,null,"lbm","Østergård /ESR",null,null,null,null,null,null,null,null,null,null,null,null,null,null,null,null,null,null,null,null,null,null,null,null,null,null,null,null,null,null,null,0,0,0,0,0,0,0,0,0,0,0,0,0,0,0,0,0,0,0,0,0,0,0,0,0,0,0,0,0,0]
[0,"Transportanlæg",null,"Underboringer","Pilotrørsmetode, ≤ Ø200 mm ",75,"Erfaringstal","STD",3000,"Erfaringstal",null,null,"lbm","Østergård /ESR",null,null,null,null,null,null,null,null,null,null,null,null,null,null,null,null,null,null,null,null,null,null,null,null,null,null,null,null,null,null,null,0,0,0,0,0,0,0,0,0,0,0,0,0,0,0,0,0,0,0,0,0,0,0,0,0,0,0,0,0,0]
[0,"Transportanlæg",null,"Underboringer","Pilotrørsmetode, Ø200 mm - Ø500 mm",75,"Erfaringstal","STD",6000,"Erfaringstal",null,null,"lbm","Østergård /ESR",null,null,null,null,null,null,null,null,null,null,null,null,null,null,null,null,null,null,null,null,null,null,null,null,null,null,null,null,null,null,null,0,0,0,0,0,0,0,0,0,0,0,0,0,0,0,0,0,0,0,0,0,0,0,0,0,0,0,0,0,0]
[0,"Transportanlæg",null,"Underboringer","Pilotrørsmetode, Ø500 mm - Ø800 mm",75,"Erfaringstal","STD",10000,"Erfaringstal",null,null,"lbm","Østergård /ESR",null,null,null,null,null,null,null,null,null,null,null,null,null,null,null,null,null,null,null,null,null,null,null,null,null,null,null,null,null,null,null,0,0,0,0,0,0,0,0,0,0,0,0,0,0,0,0,0,0,0,0,0,0,0,0,0,0,0,0,0,0]
[0,"Transportanlæg",null,"Underboringer","Styrbar boring, ≤ Ø200 mm ",75,"Erfaringstal","STD",1300,"Erfaringstal",null,null,"lbm","Østergård /ESR",null,null,null,null,null,null,null,null,null,null,null,null,null,null,null,null,null,null,null,null,null,null,null,null,null,null,null,null,null,null,null,0,0,0,0,0,0,0,0,0,0,0,0,0,0,0,0,0,0,0,0,0,0,0,0,0,0,0,0,0,0]
[0,"Transportanlæg",null,"Underboringer","Styrbar boring, Ø200 mm - Ø500 mm",75,"Erfaringstal","STD",2600,"Erfaringstal",null,null,"lbm","Østergård /ESR",null,null,null,null,null,null,null,null,null,null,null,null,null,null,null,null,null,null,null,null,null,null,null,null,null,null,null,null,null,null,null,0,0,0,0,0,0,0,0,0,0,0,0,0,0,0,0,0,0,0,0,0,0,0,0,0,0,0,0,0,0]
[0,"Transportanlæg",null,"Underboringer","Styrbar boring,  Ø500 mm - Ø600 mm",75,"Erfaringstal","STD",5100,"Erfaringstal",null,null,"lbm","Østergård /ESR",null,null,null,null,null,null,null,null,null,null,null,null,null,null,null,null,null,null,null,null,null,null,null,null,null,null,null,null,null,null,null,0,0,0,0,0,0,0,0,0,0,0,0,0,0,0,0,0,0,0,0,0,0,0,0,0,0,0,0,0,0]
[1,"Transportanlæg",null,"Brønde","Rense og inspektionsbrønd, plast Ø315 mm - Ø425 mm, dybde 1-3 m",75,"Polka","STD",6933,"Erfaringstal",null,90.666666666666671,"stk","46.30.01-04 + 1500kr gravearbejde",null,null,null,null,null,null,null,null,null,null,null,null,null,null,null,null,null,null,null,null,null,null,null,null,null,null,null,null,null,null,null,0,0,0,0,0,0,0,0,0,0,0,0,0,0,0,0,0,0,0,0,0,0,0,0,0,0,0,0,0,0]
[1,"Transportanlæg",null,"Brønde","Rense og inspektionsbrønd, plast Ø315 mm - Ø425 mm, dybde 3-7 m",75,"Polka","STD",20149,"Erfaringstal",null,90.666666666666671,"stk","46.30,06-10 + 12000kr gravearbejde",null,null,null,null,null,null,null,null,null,null,null,null,null,null,null,null,null,null,null,null,null,null,null,null,null,null,null,null,null,null,null,0,0,0,0,0,0,0,0,0,0,0,0,0,0,0,0,0,0,0,0,0,0,0,0,0,0,0,0,0,0]
[1,"Transportanlæg",null,"Brønde","Rense og inspektionsbrønd, plast Ø600 mm - Ø800 mm dybde 1-3 m",75,"Polka","STD",9000,"Erfaringstal",null,140,"stk","46.48,01",null,null,null,null,null,null,null,null,null,null,null,null,null,null,null,null,null,null,null,null,null,null,null,null,null,null,null,null,null,null,null,0,0,0,0,0,0,0,0,0,0,0,0,0,0,0,0,0,0,0,0,0,0,0,0,0,0,0,0,0,0]
[1,"Transportanlæg",null,"Brønde","Rense og inspektionsbrønd, plast Ø600 mm - Ø800 mm, dybde 3-7 m",75,"Polka","STD",23000,"Erfaringstal",null,140,"stk","46.48",null,null,null,null,null,null,null,null,null,null,null,null,null,null,null,null,null,null,null,null,null,null,null,null,null,null,null,null,null,null,null,0,0,0,0,0,0,0,0,0,0,0,0,0,0,0,0,0,0,0,0,0,0,0,0,0,0,0,0,0,0]
[1,"Transportanlæg",null,"Brønde","Rense og inspektionsbrønd, plast Ø1000 mm,  dybde 1-3 m",75,"Polka","STD",14500,"Erfaringstal",null,281.33333333333331,"stk","Drift og vedligehold for > 1000 mm - Udgangspunkt i beton + tillæg for plast",null,null,null,null,null,null,null,null,null,null,null,null,null,null,null,null,null,null,null,null,null,null,null,null,null,null,null,null,null,null,null,0,0,0,0,0,0,0,0,0,0,0,0,0,0,0,0,0,0,0,0,0,0,0,0,0,0,0,0,0,0]
[1,"Transportanlæg",null,"Brønde","Rense og inspektionsbrønd, plast Ø1000 mm,  dybde 3-7 m",75,"Polka","STD",32000,"Erfaringstal",null,278.94693333333333,"stk","Udgangspunkt i beton + tillæg for plast",null,null,null,null,null,null,null,null,null,null,null,null,null,null,null,null,null,null,null,null,null,null,null,null,null,null,null,null,null,null,null,0,0,0,0,0,0,0,0,0,0,0,0,0,0,0,0,0,0,0,0,0,0,0,0,0,0,0,0,0,0]
[1,"Transportanlæg",null,"Brønde","Rense og inspektionsbrønd, beton Ø1000 mm,  dybde 1-3 m",75,"Polka","STD",12884,"Molio",null,120,"stk","46.04 i MOLIO",null,null,null,null,null,null,null,null,null,null,null,null,null,null,null,null,null,null,null,null,null,null,null,null,null,null,null,null,null,null,null,0,0,0,0,0,0,0,0,0,0,0,0,0,0,0,0,0,0,0,0,0,0,0,0,0,0,0,0,0,0]
[1,"Transportanlæg",null,"Brønde","Rense og inspektionsbrønd, beton Ø1000 mm,  dybde 3-7 m",75,"Polka","STD",27708,"Molio",null,120,"stk","46.04,09",null,null,null,null,null,null,null,null,null,null,null,null,null,null,null,null,null,null,null,null,null,null,null,null,null,null,null,null,null,null,null,0,0,0,0,0,0,0,0,0,0,0,0,0,0,0,0,0,0,0,0,0,0,0,0,0,0,0,0,0,0]
[1,"Transportanlæg",null,"Brønde","Nedgangsbrønd, beton Ø1250 mm - 1500 mm, dybde 1-3 m",75,"Polka","STD",18557,"Molio",null,120,"stk","46.06,01-05",null,null,null,null,null,null,null,null,null,null,null,null,null,null,null,null,null,null,null,null,null,null,null,null,null,null,null,null,null,null,null,0,0,0,0,0,0,0,0,0,0,0,0,0,0,0,0,0,0,0,0,0,0,0,0,0,0,0,0,0,0]
[1,"Transportanlæg",null,"Brønde","Nedgangsbrønd, beton Ø1250 mm - 1500 mm, dybde 3-7 m",75,"Polka","STD",40759,"Molio",null,120,"stk","46.06,09",null,null,null,null,null,null,null,null,null,null,null,null,null,null,null,null,null,null,null,null,null,null,null,null,null,null,null,null,null,null,null,0,0,0,0,0,0,0,0,0,0,0,0,0,0,0,0,0,0,0,0,0,0,0,0,0,0,0,0,0,0]
[0,"Transportanlæg",null,"Renovering/no-dig","TV-inspektion, nye ledninger",75,"Erfaringstal","STD",22,"Molio",null,null,"lbm","45.91,01",null,null,null,null,null,null,null,null,null,null,null,null,null,null,null,null,null,null,null,null,null,null,null,null,null,null,null,null,null,null,null,0,0,0,0,0,0,0,0,0,0,0,0,0,0,0,0,0,0,0,0,0,0,0,0,0,0,0,0,0,0]
[0,"Transportanlæg",null,"Renovering/no-dig","TV-inspektion, gamle ledninger",20,"Erfaringstal","STD",27,"Molio",null,null,"lbm","45.,91,02",null,null,null,null,null,null,null,null,null,null,null,null,null,null,null,null,null,null,null,null,null,null,null,null,null,null,null,null,null,null,null,0,0,0,0,0,0,0,0,0,0,0,0,0,0,0,0,0,0,0,0,0,0,0,0,0,0,0,0,0,0]
[0,"Transportanlæg",null,"Renovering/no-dig","TV-inspektion, brøndrapporter",20,"Erfaringstal","STD",220,"Erfaringstal",null,null,"stk","MIJ /ESR",null,null,null,null,null,null,null,null,null,null,null,null,null,null,null,null,null,null,null,null,null,null,null,null,null,null,null,null,null,null,null,0,0,0,0,0,0,0,0,0,0,0,0,0,0,0,0,0,0,0,0,0,0,0,0,0,0,0,0,0,0]
[0,"Transportanlæg",null,"Renovering/no-dig","Relining, ≤ Ø200 mm ",50,"Polka","STD",1600,"Erfaringstal",null,3.3066666666666666,"lbm","Danboring /ESR",null,null,null,null,null,null,null,null,null,null,null,null,null,null,null,null,null,null,null,null,null,null,null,null,null,null,null,null,null,null,null,0,0,0,0,0,0,0,0,0,0,0,0,0,0,0,0,0,0,0,0,0,0,0,0,0,0,0,0,0,0]
[0,"Transportanlæg",null,"Renovering/no-dig","Relining, Ø200 mm - Ø500 mm ",50,"Polka","STD",2200,"Erfaringstal",null,3.3066666666666666,"lbm","Danboring /ESR",null,null,null,null,null,null,null,null,null,null,null,null,null,null,null,null,null,null,null,null,null,null,null,null,null,null,null,null,null,null,null,0,0,0,0,0,0,0,0,0,0,0,0,0,0,0,0,0,0,0,0,0,0,0,0,0,0,0,0,0,0]
[0,"Transportanlæg",null,"Renovering/no-dig","Relining, Ø500 mm - Ø800 mm",50,"Polka","STD",2600,"Erfaringstal",null,3.3066666666666666,"lbm","Danboring /ESR",null,null,null,null,null,null,null,null,null,null,null,null,null,null,null,null,null,null,null,null,null,null,null,null,null,null,null,null,null,null,null,0,0,0,0,0,0,0,0,0,0,0,0,0,0,0,0,0,0,0,0,0,0,0,0,0,0,0,0,0,0]
[0,"Transportanlæg",null,"Renovering/no-dig","Relining, Ø800 mm - Ø1000 mm",50,"Polka","STD",6000,"Erfaringstal",null,3.3066666666666666,"lbm","Danboring /ESR",null,null,null,null,null,null,null,null,null,null,null,null,null,null,null,null,null,null,null,null,null,null,null,null,null,null,null,null,null,null,null,0,0,0,0,0,0,0,0,0,0,0,0,0,0,0,0,0,0,0,0,0,0,0,0,0,0,0,0,0,0]
[0,"Transportanlæg",null,"Renovering/no-dig","Relining, Ø1000 mm - Ø1200 mm",50,"Polka","STD",7800,"Erfaringstal",null,3.3066666666666666,"lbm","Danboring /ESR",null,null,null,null,null,null,null,null,null,null,null,null,null,null,null,null,null,null,null,null,null,null,null,null,null,null,null,null,null,null,null,0,0,0,0,0,0,0,0,0,0,0,0,0,0,0,0,0,0,0,0,0,0,0,0,0,0,0,0,0,0]
[0,"Transportanlæg",null,"Renovering/no-dig","Relining, Ø1200 mm - Ø1600 mm",50,"Polka","STD",11000,"Erfaringstal",null,3.3066666666666666,"lbm","Danboring /ESR",null,null,null,null,null,null,null,null,null,null,null,null,null,null,null,null,null,null,null,null,null,null,null,null,null,null,null,null,null,null,null,0,0,0,0,0,0,0,0,0,0,0,0,0,0,0,0,0,0,0,0,0,0,0,0,0,0,0,0,0,0]
[0,"Transportanlæg",null,"Renovering/no-dig","Relining, > Ø1600 mm",50,"Polka","STD",16000,"Erfaringstal",null,3.3066666666666666,"lbm","Danboring /ESR",null,null,null,null,null,null,null,null,null,null,null,null,null,null,null,null,null,null,null,null,null,null,null,null,null,null,null,null,null,null,null,0,0,0,0,0,0,0,0,0,0,0,0,0,0,0,0,0,0,0,0,0,0,0,0,0,0,0,0,0,0]
[0,"Transportanlæg",null,"Renovering/no-dig","Rørsprængning, ≤ Ø200 mm ",75,"Erfaringstal","STD",1200,"Erfaringstal",null,3.3066666666666666,"lbm","Danboring /ESR",null,null,null,null,null,null,null,null,null,null,null,null,null,null,null,null,null,null,null,null,null,null,null,null,null,null,null,null,null,null,null,0,0,0,0,0,0,0,0,0,0,0,0,0,0,0,0,0,0,0,0,0,0,0,0,0,0,0,0,0,0]
[0,"Transportanlæg",null,"Renovering/no-dig","Rørsprængning,, Ø200 mm - Ø500 mm ",75,"Erfaringstal","STD",1400,"Erfaringstal",null,3.3066666666666666,"lbm","Danboring /ESR",null,null,null,null,null,null,null,null,null,null,null,null,null,null,null,null,null,null,null,null,null,null,null,null,null,null,null,null,null,null,null,0,0,0,0,0,0,0,0,0,0,0,0,0,0,0,0,0,0,0,0,0,0,0,0,0,0,0,0,0,0]
[0,"Transportanlæg",null,"Renovering/no-dig","Tætning af brønde, Ø800 - Ø1000 mm",50,"Erfaringstal","STD",2000,"Erfaringstal",null,null,"stk","Årsleff /ESR",null,null,null,null,null,null,null,null,null,null,null,null,null,null,null,null,null,null,null,null,null,null,null,null,null,null,null,null,null,null,null,0,0,0,0,0,0,0,0,0,0,0,0,0,0,0,0,0,0,0,0,0,0,0,0,0,0,0,0,0,0]
[0,"Transportanlæg",null,"Renovering/no-dig","Tætning af brønde, Ø1250 - Ø1500 mm",50,"Erfaringstal","STD",2200,"Erfaringstal",null,null,"stk","Årsleff /ESR",null,null,null,null,null,null,null,null,null,null,null,null,null,null,null,null,null,null,null,null,null,null,null,null,null,null,null,null,null,null,null,0,0,0,0,0,0,0,0,0,0,0,0,0,0,0,0,0,0,0,0,0,0,0,0,0,0,0,0,0,0]
[0,"Transportanlæg",null,"Renovering/no-dig","Foring af brønde, Ø315 - Ø600 mm",50,"Polka","STD",2500,"Erfaringstal",null,null,"stk","Årsleff /ESR",null,null,null,null,null,null,null,null,null,null,null,null,null,null,null,null,null,null,null,null,null,null,null,null,null,null,null,null,null,null,null,0,0,0,0,0,0,0,0,0,0,0,0,0,0,0,0,0,0,0,0,0,0,0,0,0,0,0,0,0,0]
[0,"Transportanlæg",null,"Renovering/no-dig","Foring af brønde, Ø800 - Ø1000 mm",50,"Polka","STD",3500,"Erfaringstal",null,null,"stk","Årsleff /ESR",null,null,null,null,null,null,null,null,null,null,null,null,null,null,null,null,null,null,null,null,null,null,null,null,null,null,null,null,null,null,null,0,0,0,0,0,0,0,0,0,0,0,0,0,0,0,0,0,0,0,0,0,0,0,0,0,0,0,0,0,0]
[0,"Transportanlæg",null,"Renovering/no-dig","Foring af brønde, Ø1250 - Ø1500 mm",50,"Polka","STD",5000,"Erfaringstal",null,null,"stk","Årsleff /ESR",null,null,null,null,null,null,null,null,null,null,null,null,null,null,null,null,null,null,null,null,null,null,null,null,null,null,null,null,null,null,null,0,0,0,0,0,0,0,0,0,0,0,0,0,0,0,0,0,0,0,0,0,0,0,0,0,0,0,0,0,0]
[1,"Transportanlæg",null,"Pumpestationer","Præfabrikeret pumpestation, \nQ = 5 l/s, < 3 mVS",50,"Erfaringstal","STD",110000,"Erfaringstal",8700,1540,"stk",null,null,null,null,null,null,null,null,null,"< 30","< 30","< 3","< 3",null,null,null,null,null,null,null,null,null,null,null,null,null,null,null,null,null,null,null,0,0,0,0,0,0,0,0,0,0,0,0,0,0,0,0,0,0,0,0,0,0,0,0,0,0,0,0,0,0]
[1,"Transportanlæg",null,"Pumpestationer","Præfabrikeret pumpestation, \nQ = 5 - 50 l/s, < 3 mVS",50,"Erfaringstal","STD",150000,"Erfaringstal",10450,2190,"stk",null,null,null,null,null,null,null,null,null,"< 30","30 - 150","< 3","< 3",null,null,null,null,null,null,null,null,null,null,null,null,null,null,null,null,null,null,null,0,0,0,0,0,0,0,0,0,0,0,0,0,0,0,0,0,0,0,0,0,0,0,0,0,0,0,0,0,0]
[1,"Transportanlæg",null,"Pumpestationer","Præfabrikeret pumpestation, \nQ = 50 - 100 l/s, < 3 mVS",50,"Erfaringstal","STD",200000,"Erfaringstal",18500,3320,"stk",null,null,null,null,null,null,null,null,null,"< 30","30 - 150","< 3","< 3",null,null,null,null,null,null,null,null,null,null,null,null,null,null,null,null,null,null,null,0,0,0,0,0,0,0,0,0,0,0,0,0,0,0,0,0,0,0,0,0,0,0,0,0,0,0,0,0,0]
[1,"Transportanlæg",null,"Pumpestationer","Præfabrikeret pumpestation, \nQ = 5 l/s, 3 - 10 mVS",50,"Erfaringstal","STD",120000,"Erfaringstal",11100,1740,"stk",null,null,null,null,null,null,null,null,null,"< 30","< 30","3 - 10","3 - 10",null,null,null,null,null,null,null,null,null,null,null,null,null,null,null,null,null,null,null,0,0,0,0,0,0,0,0,0,0,0,0,0,0,0,0,0,0,0,0,0,0,0,0,0,0,0,0,0,0]
[1,"Transportanlæg",null,"Pumpestationer","Præfabrikeret pumpestation, \nQ = 5 - 50 l/s, 3 - 10 mVS",50,"Erfaringstal","STD",200000,"Erfaringstal",18450,2790,"stk",null,null,null,null,null,null,null,null,null,"< 30","30 - 150","3 - 10","3 - 10",null,null,null,null,null,null,null,null,null,null,null,null,null,null,null,null,null,null,null,0,0,0,0,0,0,0,0,0,0,0,0,0,0,0,0,0,0,0,0,0,0,0,0,0,0,0,0,0,0]
[1,"Transportanlæg",null,"Pumpestationer","Præfabrikeret pumpestation, \nQ = 50 - 100 l/s, 3 - 10 mVS",50,"Erfaringstal","STD",250000,"Erfaringstal",25500,4020,"stk",null,null,null,null,null,null,null,null,null,"< 30","30 - 150","3 - 10","3 - 10",null,null,null,null,null,null,null,null,null,null,null,null,null,null,null,null,null,null,null,0,0,0,0,0,0,0,0,0,0,0,0,0,0,0,0,0,0,0,0,0,0,0,0,0,0,0,0,0,0]
[1,"Transportanlæg",null,"Pumpestationer","Præfabrikeret pumpestation, \nQ = 5 l/s, 10 - 20 mVS",50,"Erfaringstal","STD",130000,"Erfaringstal",20100,1940,"stk","On/off pumper, ikke VLT styret",null,null,null,null,null,null,null,null,"< 30","< 30","10 - 20","10 - 20",null,null,null,null,null,null,null,null,null,null,null,null,null,null,null,null,null,null,null,0,0,0,0,0,0,0,0,0,0,0,0,0,0,0,0,0,0,0,0,0,0,0,0,0,0,0,0,0,0]
[1,"Transportanlæg",null,"Pumpestationer","Præfabrikeret pumpestation, \nQ = 5 - 50 l/s, 10 - 20 mVS",50,"Erfaringstal","STD",250000,"Erfaringstal",32450,3590,"stk","Snak med MRN/FINN - hvordan får vi løftehøjde afspejlet? ",null,null,null,null,null,null,null,null,"< 30","30 - 150","10 - 20","10 - 20",null,null,null,null,null,null,null,null,null,null,null,null,null,null,null,null,null,null,null,0,0,0,0,0,0,0,0,0,0,0,0,0,0,0,0,0,0,0,0,0,0,0,0,0,0,0,0,0,0]
[1,"Transportanlæg",null,"Pumpestationer","Præfabrikeret pumpestation, \nQ = 50 - 100 l/s, 10 - 20 mVS",50,"Erfaringstal","STD",350000,"Erfaringstal",33500,4520,"stk","Efter snak med MRN: udpensl til løftehøjde også - 9 teknologier",null,null,null,null,null,null,null,null,"< 30","30 - 150","10 - 20","10 - 20",null,null,null,null,null,null,null,null,null,null,null,null,null,null,null,null,null,null,null,0,0,0,0,0,0,0,0,0,0,0,0,0,0,0,0,0,0,0,0,0,0,0,0,0,0,0,0,0,0]
[0,"Transportanlæg",null,"Bygværk til rensning","Unisep olie-/benzinudskiller 3 l/s",30,"Erfaringstal","STD",24514,"Molio",7800,null,"stk","Finder i renseanlæg anlæg + drift + vedligehold",null,null,null,null,null,null,null,null,null,null,null,null,null,null,null,null,null,null,null,null,null,null,null,null,null,null,null,null,null,null,null,0,0,0,0,0,0,0,0,0,0,0,0,0,0,0,0,0,0,0,0,0,0,0,0,0,0,0,0,0,0]
[0,"Transportanlæg",null,"Bygværk til rensning","Unisep olie-/benzinudskiller 6 l/s",30,"Erfaringstal","STD",27245,"Molio",7800,null,"stk","Finder i renseanlæg anlæg + drift + vedligehold",null,null,null,null,null,null,null,null,null,null,null,null,null,null,null,null,null,null,null,null,null,null,null,null,null,null,null,null,null,null,null,0,0,0,0,0,0,0,0,0,0,0,0,0,0,0,0,0,0,0,0,0,0,0,0,0,0,0,0,0,0]
[0,"Transportanlæg",null,"Bygværk til rensning","Unisep koalescensudskiller 6 l/s",30,"Erfaringstal","STD",40527,"Molio",7800,null,"stk","Finder i renseanlæg anlæg + drift + vedligehold",null,null,null,null,null,null,null,null,null,null,null,null,null,null,null,null,null,null,null,null,null,null,null,null,null,null,null,null,null,null,null,0,0,0,0,0,0,0,0,0,0,0,0,0,0,0,0,0,0,0,0,0,0,0,0,0,0,0,0,0,0]
[0,"Transportanlæg",null,"Bygværk til rensning","Unisep koalescensudskiller 15 l/s",30,"Erfaringstal","STD",57421,"Molio",7800,null,"stk","Finder i renseanlæg anlæg + drift + vedligehold",null,null,null,null,null,null,null,null,null,null,null,null,null,null,null,null,null,null,null,null,null,null,null,null,null,null,null,null,null,null,null,0,0,0,0,0,0,0,0,0,0,0,0,0,0,0,0,0,0,0,0,0,0,0,0,0,0,0,0,0,0]
[0,"Transportanlæg",null,"Bygværk til rensning","Unisep koalescensudskiller 30 l/s",30,"Erfaringstal","STD",85677,"Molio",7800,null,"stk","Finder i renseanlæg anlæg + drift + vedligehold",null,null,null,null,null,null,null,null,null,null,null,null,null,null,null,null,null,null,null,null,null,null,null,null,null,null,null,null,null,null,null,0,0,0,0,0,0,0,0,0,0,0,0,0,0,0,0,0,0,0,0,0,0,0,0,0,0,0,0,0,0]
[0,"Transportanlæg",null,"Bygværk til rensning","Unisep lameludskiller 20/35 l/s",30,"Erfaringstal","STD",139490,"Molio",7800,null,"stk","Finder i renseanlæg anlæg + drift + vedligehold",null,null,null,null,null,null,null,null,null,null,null,null,null,null,null,null,null,null,null,null,null,null,null,null,null,null,null,null,null,null,null,0,0,0,0,0,0,0,0,0,0,0,0,0,0,0,0,0,0,0,0,0,0,0,0,0,0,0,0,0,0]
[0,"Transportanlæg",null,"Bygværk til rensning","Unisep lameludskiller 25/50 l/s",30,"Erfaringstal","STD",202408,"Molio",7800,null,"stk","Finder i renseanlæg anlæg + drift + vedligehold",null,null,null,null,null,null,null,null,null,null,null,null,null,null,null,null,null,null,null,null,null,null,null,null,null,null,null,null,null,null,null,0,0,0,0,0,0,0,0,0,0,0,0,0,0,0,0,0,0,0,0,0,0,0,0,0,0,0,0,0,0]
[1,"Transportanlæg",null,"Styring af strømme","Flowregulatorer",75,"Erfaringstal","STD",20000,"Erfaringstal",1050,null,"stk","ESR tjekker",null,null,null,null,null,null,null,null,"< 30","< 30",null,null,null,null,null,null,null,null,null,null,null,null,null,null,null,null,null,null,null,null,null,0,0,0,0,0,0,0,0,0,0,0,0,0,0,0,0,0,0,0,0,0,0,0,0,0,0,0,0,0,0]
[1,"Transportanlæg",null,"Styring af strømme","Kontraklapper, højtvandslukke, Ø100 mm - Ø300 mm",30,"Erfaringstal","STD",5000,"Erfaringstal",700,133.33333333333334,"stk","ESR tjekker anlæg + drift + vedligehold",null,null,null,null,null,null,null,null,null,null,null,null,null,null,null,null,null,null,null,null,null,null,null,null,null,null,null,null,null,null,null,0,0,0,0,0,0,0,0,0,0,0,0,0,0,0,0,0,0,0,0,0,0,0,0,0,0,0,0,0,0]
[1,"Transportanlæg",null,"Styring af strømme","Kontraklapper, højtvandslukke, Ø400 mm - Ø800 mm",30,"Erfaringstal","STD",23000,"Erfaringstal",1400,333.33333333333331,"stk","ESR tjekker anlæg + drift + vedligehold",null,null,null,null,null,null,null,null,null,null,null,null,null,null,null,null,null,null,null,null,null,null,null,null,null,null,null,null,null,null,null,0,0,0,0,0,0,0,0,0,0,0,0,0,0,0,0,0,0,0,0,0,0,0,0,0,0,0,0,0,0]
[1,"Transportanlæg",null,"Styring af strømme","Kontraklapper, højtvandslukke, Ø800 mm - Ø1200 mm",30,"Erfaringstal","STD",38000,"Erfaringstal",1050,533.33333333333337,"stk","ESR tjekker anlæg + drift + vedligehold",null,null,null,null,null,null,null,null,null,null,null,null,null,null,null,null,null,null,null,null,null,null,null,null,null,null,null,null,null,null,null,0,0,0,0,0,0,0,0,0,0,0,0,0,0,0,0,0,0,0,0,0,0,0,0,0,0,0,0,0,0]
[1,"Transportanlæg",null,"Styring af strømme","Afspæringsventiler, Ø100 mm",30,"Erfaringstal","STD",1100,"Erfaringstal",350,null,"stk","Check Renseanlæg og specialanlæg. Hører de til her?",null,null,null,null,null,null,null,null,null,null,null,null,null,null,null,null,null,null,null,null,null,null,null,null,null,null,null,null,null,null,null,0,0,0,0,0,0,0,0,0,0,0,0,0,0,0,0,0,0,0,0,0,0,0,0,0,0,0,0,0,0]
[1,"Transportanlæg",null,"Styring af strømme","Afspæringsventiler, Ø200 mm",30,"Erfaringstal","STD",1500,"Erfaringstal",350,null,"stk","Check Renseanlæg og specialanlæg. Hører de til her?",null,null,null,null,null,null,null,null,null,null,null,null,null,null,null,null,null,null,null,null,null,null,null,null,null,null,null,null,null,null,null,0,0,0,0,0,0,0,0,0,0,0,0,0,0,0,0,0,0,0,0,0,0,0,0,0,0,0,0,0,0]
[1,"Transportanlæg",null,"Styring af strømme","Afspæringsventiler, Ø300 mm",30,"Erfaringstal","STD",2200,"Erfaringstal",350,null,"stk","Check Renseanlæg og specialanlæg. Hører de til her?",null,null,null,null,null,null,null,null,null,null,null,null,null,null,null,null,null,null,null,null,null,null,null,null,null,null,null,null,null,null,null,0,0,0,0,0,0,0,0,0,0,0,0,0,0,0,0,0,0,0,0,0,0,0,0,0,0,0,0,0,0]
[0,"Transportanlæg",null,"Diverse","Rottesikring 150-160 mm, vendbart spjæld",10,"Erfaringstal","STD",1920,"Molio",350,null,"stk","MOLIO 46.54.02 - ESR tjekker drift/vedligehold",null,null,null,null,null,null,null,null,"< 30","< 30",null,null,null,null,null,null,null,null,null,null,null,null,null,null,null,null,null,null,null,null,null,0,0,0,0,0,0,0,0,0,0,0,0,0,0,0,0,0,0,0,0,0,0,0,0,0,0,0,0,0,0]
[0,"Transportanlæg",null,"Diverse","Afpropning med rottestopprop",30,"Erfaringstal","STD",7000,"Erfaringstal",null,null,"stk","ÅK /ESR",null,null,null,null,null,null,null,null,"< 30","30 - 150",null,null,null,null,null,null,null,null,null,null,null,null,null,null,null,null,null,null,null,null,null,0,0,0,0,0,0,0,0,0,0,0,0,0,0,0,0,0,0,0,0,0,0,0,0,0,0,0,0,0,0]
[0,"Transportanlæg",null,"Diverse","Afpropning med partliner",30,"Erfaringstal","STD",30000,"Erfaringstal",null,null,"stk","ÅK /ESR",null,null,null,null,null,null,null,null,"< 30","30 - 150",null,null,null,null,null,null,null,null,null,null,null,null,null,null,null,null,null,null,null,null,null,0,0,0,0,0,0,0,0,0,0,0,0,0,0,0,0,0,0,0,0,0,0,0,0,0,0,0,0,0,0]
[0,null,null,null,null,null,null,null,null,null,null,null,null,null,null,null,null,null,null,null,null,null,null,null,null,null,null,null,null,null,null,null,null,null,null,null,null,null,null,null,null,null,null,null,null,0,0,0,0,0,0,0,0,0,0,0,0,0,0,0,0,0,0,0,0,0,0,0,0,0,0,0,0,0,0]
[0,null,null,null,null,null,null,null,null,null,null,null,null,null,null,null,null,null,null,null,null,null,null,null,null,null,null,null,null,null,null,null,null,null,null,null,null,null,null,null,null,null,null,null,null,0,0,0,0,0,0,0,0,0,0,0,0,0,0,0,0,0,0,0,0,0,0,0,0,0,0,0,0,0,0]
[0,null,null,null,null,null,null,null,null,null,null,null,null,null,null,null,null,null,null,null,null,null,null,null,null,null,null,null,null,null,null,null,null,null,null,null,null,null,null,null,null,null,null,null,null,0,0,0,0,0,0,0,0,0,0,0,0,0,0,0,0,0,0,0,0,0,0,0,0,0,0,0,0,0,0]
[0,null,null,null,null,null,null,null,null,null,null,null,null,null,null,null,null,null,null,null,null,null,null,null,null,null,null,null,null,null,null,null,null,null,null,null,null,null,null,null,null,null,null,null,null,0,0,0,0,0,0,0,0,0,0,0,0,0,0,0,0,0,0,0,0,0,0,0,0,0,0,0,0,0,0]
[0,null,null,null,null,null,null,null,null,null,null,null,null,null,null,null,null,null,null,null,null,null,null,null,null,null,null,null,null,null,null,null,null,null,null,null,null,null,null,null,null,null,null,null,null,0,0,0,0,0,0,0,0,0,0,0,0,0,0,0,0,0,0,0,0,0,0,0,0,0,0,0,0,0,0]
[0,null,null,null,null,null,null,null,null,null,null,null,null,null,null,null,null,null,null,null,null,null,null,null,null,null,null,null,null,null,null,null,null,null,null,null,null,null,null,null,null,null,null,null,null,0,0,0,0,0,0,0,0,0,0,0,0,0,0,0,0,0,0,0,0,0,0,0,0,0,0,0,0,0,0]
[0,null,null,null,null,null,null,null,null,null,null,null,null,null,null,null,null,null,null,null,null,null,null,null,null,null,null,null,null,null,null,null,null,null,null,null,null,null,null,null,null,null,null,null,null,0,0,0,0,0,0,0,0,0,0,0,0,0,0,0,0,0,0,0,0,0,0,0,0,0,0,0,0,0,0]
[0,null,null,null,null,null,null,null,null,null,null,null,null,null,null,null,null,null,null,null,null,null,null,null,null,null,null,null,null,null,null,null,null,null,null,null,null,null,null,null,null,null,null,null,null,0,0,0,0,0,0,0,0,0,0,0,0,0,0,0,0,0,0,0,0,0,0,0,0,0,0,0,0,0,0]
[0,null,null,null,null,null,null,null,null,null,null,null,null,null,null,null,null,null,null,null,null,null,null,null,null,null,null,null,null,null,null,null,null,null,null,null,null,null,null,null,null,null,null,null,null,0,0,0,0,0,0,0,0,0,0,0,0,0,0,0,0,0,0,0,0,0,0,0,0,0,0,0,0,0,0]
[0,null,null,null,null,null,null,null,null,null,null,null,null,null,null,null,null,null,null,null,null,null,null,null,null,null,null,null,null,null,null,null,null,null,null,null,null,null,null,null,null,null,null,null,null,0,0,0,0,0,0,0,0,0,0,0,0,0,0,0,0,0,0,0,0,0,0,0,0,0,0,0,0,0,0]
[0,null,null,null,null,null,null,null,null,null,null,null,null,null,null,null,null,null,null,null,null,null,null,null,null,null,null,null,null,null,null,null,null,null,null,null,null,null,null,null,null,null,null,null,null,0,0,0,0,0,0,0,0,0,0,0,0,0,0,0,0,0,0,0,0,0,0,0,0,0,0,0,0,0,0]
[0,null,null,null,null,null,null,null,null,null,null,null,null,null,null,null,null,null,null,null,null,null,null,null,null,null,null,null,null,null,null,null,null,null,null,null,null,null,null,null,null,null,null,null,null,0,0,0,0,0,0,0,0,0,0,0,0,0,0,0,0,0,0,0,0,0,0,0,0,0,0,0,0,0,0]
[0,null,null,null,null,null,null,null,null,null,null,null,null,null,null,null,null,null,null,null,null,null,null,null,null,null,null,null,null,null,null,null,null,null,null,null,null,null,null,null,null,null,null,null,null,0,0,0,0,0,0,0,0,0,0,0,0,0,0,0,0,0,0,0,0,0,0,0,0,0,0,0,0,0,0]
[0,null,null,null,null,null,null,null,null,null,null,null,null,null,null,null,null,null,null,null,null,null,null,null,null,null,null,null,null,null,null,null,null,null,null,null,null,null,null,null,null,null,null,null,null,0,0,0,0,0,0,0,0,0,0,0,0,0,0,0,0,0,0,0,0,0,0,0,0,0,0,0,0,0,0]
[0,null,null,null,null,null,null,null,null,null,null,null,null,null,null,null,null,null,null,null,null,null,null,null,null,null,null,null,null,null,null,null,null,null,null,null,null,null,null,null,null,null,null,null,null,0,0,0,0,0,0,0,0,0,0,0,0,0,0,0,0,0,0,0,0,0,0,0,0,0,0,0,0,0,0]
[0,null,null,null,null,null,null,null,null,null,null,null,null,null,null,null,null,null,null,null,null,null,null,null,null,null,null,null,null,null,null,null,null,null,null,null,null,null,null,null,null,null,null,null,null,0,0,0,0,0,0,0,0,0,0,0,0,0,0,0,0,0,0,0,0,0,0,0,0,0,0,0,0,0,0]
[0,null,null,null,null,null,null,null,null,null,null,null,null,null,null,null,null,null,null,null,null,null,null,null,null,null,null,null,null,null,null,null,null,null,null,null,null,null,null,null,null,null,null,null,null,0,0,0,0,0,0,0,0,0,0,0,0,0,0,0,0,0,0,0,0,0,0,0,0,0,0,0,0,0,0]
[0,null,null,null,null,null,null,null,null,null,null,null,null,null,null,null,null,null,null,null,null,null,null,null,null,null,null,null,null,null,null,null,null,null,null,null,null,null,null,null,null,null,null,null,null,0,0,0,0,0,0,0,0,0,0,0,0,0,0,0,0,0,0,0,0,0,0,0,0,0,0,0,0,0,0]

{"sheet":"PrisFaktorer","index":2,"n_rows":660,"n_cols":140,"rows_kept":660,"cut":false,"hidden":false,"merged":[[420,1,429,1],[430,1,439,1],[330,1,339,1],[340,1,349,1],[350,1,359,1],[360,1,369,1],[370,1,379,1],[380,1,389,1],[390,1,399,1],[400,1,409,1],[410,1,419,1],[6,45,6,47],[7,45,7,47],[8,45,8,47],[6,27,6,29],[6,30,6,32],[6,33,6,35],[6,36,6,38],[6,39,6,41],[7,36,7,38],[7,39,7,41],[8,36,8,38],[8,39,8,41],[6,42,6,44],[8,42,8,44],[8,27,8,29],[7,27,7,29],[7,33,7,35],[7,42,7,44],[7,30,7,32],[7,18,7,20],[7,15,7,17],[7,6,7,8],[7,9,7,11],[7,12,7,14],[8,33,8,35],[8,30,8,32],[8,0,9,0],[8,1,9,1],[8,2,9,2],[6,0,7,2],[6,21,6,23],[6,12,6,14],[6,3,6,5],[6,6,6,8],[6,9,6,11],[6,15,6,17],[6,24,6,26],[8,21,8,23],[8,24,8,26],[8,3,8,5],[8,6,8,8],[8,9,8,11],[8,12,8,14],[6,18,6,20],[7,3,7,5],[7,21,7,23],[7,24,7,26],[8,15,8,17],[8,18,8,20],[470,1,479,1],[480,1,489,1],[460,0,659,0],[460,1,469,1],[10,0,169,0],[170,0,459,0],[170,1,179,1],[180,1,189,1],[450,1,459,1],[10,1,19,1],[20,1,29,1],[30,1,39,1],[650,1,659,1],[210,1,219,1],[110,1,119,1],[490,1,499,1],[70,1,79,1],[40,1,49,1],[50,1,59,1],[60,1,69,1],[220,1,229,1],[440,1,449,1],[80,1,89,1],[90,1,99,1],[100,1,109,1],[190,1,199,1],[160,1,169,1],[200,1,209,1],[130,1,139,1],[140,1,149,1],[150,1,159,1],[120,1,129,1],[230,1,239,1],[240,1,249,1],[250,1,259,1],[260,1,269,1],[270,1,279,1],[280,1,289,1],[290,1,299,1],[300,1,309,1],[310,1,319,1],[320,1,329,1],[630,1,639,1],[640,1,649,1],[500,1,509,1],[510,1,519,1],[520,1,529,1],[530,1,539,1],[590,1,599,1],[540,1,549,1],[550,1,559,1],[560,1,569,1],[570,1,579,1],[580,1,589,1],[620,1,629,1],[600,1,609,1],[610,1,619,1],[7,64,7,66],[7,67,7,69],[7,70,7,72],[7,73,7,75],[7,76,7,78],[7,49,7,51],[7,52,7,54],[7,55,7,57],[7,58,7,60],[7,61,7,63],[7,119,7,121],[7,122,7,124],[7,95,7,97],[7,98,7,100],[7,101,7,103],[7,104,7,106],[7,107,7,109],[7,79,7,81],[7,82,7,84],[7,85,7,87],[7,88,7,90],[7,91,7,93],[0,95,5,139],[8,95,8,97],[8,98,8,100],[8,101,8,103],[8,104,8,106],[8,107,8,109],[8,110,8,112],[8,113,8,115],[8,116,8,118],[8,119,8,121],[8,122,8,124],[8,125,8,127],[8,128,8,130],[8,131,8,133],[8,134,8,136],[8,137,8,139],[7,125,7,127],[7,128,7,130],[7,131,7,133],[7,134,7,136],[7,137,7,139],[7,110,7,112],[7,113,7,115],[7,116,7,118]]}
[null,null,null,null,null,null,null,null,null,null,null,null,null,null,null,null,null,null,null,null,null,null,null,null,null,null,null,null,null,null,null,null,null,null,null,null,null,null,null,null,null,null,null,null,null,null,null,null,null,null,null,null,null,null,null,null,null,null,null,null,null,null,null,null,null,null,null,null,null,null,null,null,null,null,null,null,null,null,null,null,null,null,null,null,null,null,null,null,null,null,null,null,null,null,null,0]
[]
[]
[]
[]
[]
["Vurdering af\npris-faktorer",null,null,"Rammebetingelse 1",null,null,"Rammebetingelse 2",null,null,"Rammebetingelse 3",null,null,"Rammebetingelse 4",null,null,"Rammebetingelse 5",null,null,"Rammebetingelse 6",null,null,"Rammebetingelse 7",null,null,"Rammebetingelse 8",null,null,"Rammebetingelse 9",null,null,"Rammebetingelse 10",null,null,"Rammebetingelse 11",null,null,"Rammebetingelse 12",null,null,"Rammebetingelse 13",null,null,"Rammebetingelse 14",null,null,"Rammebetingelse 15",null,null,null,null,null,null,null,null,null,null,null,null,null,null,null,null,null,null,null,null,null,null,null,null,null,null,null,null,null,null,null,null,null,null,null,null,null,null,null,null,null,null,null,null,null,null,null,null,null,0,11,20,0,20,20,0,11,20,0,20,20,0,20,11,0,20,20,0,20,20,0,20,20,0,20,20,0,20,20,0,20,20,0,20,20,0,20,20,0,20,20,0,20,20]
[null,null,null,"Lokalitet",null,null,"Geografi",null,null,"Recipient",null,null,"Kapacitet (samlet anlæg, PE)",null,null,"Flow (l/s)",null,null,"Løftehøjde (modtryk, m/Vs)",null,null,null,null,null,null,null,null,null,null,null,null,null,null,null,null,null,null,null,null,null,null,null,null,null,null,null,null,null,null,"RB1",null,null,"RB2",null,null,"RB3",null,null,"RB4",null,null,"RB5",null,null,"RB6",null,null,"RB7",null,null,"RB8",null,null,"RB9",null,null,"RB10",null,null,"RB11",null,null,"RB12",null,null,"RB13",null,null,"RB14",null,null,"RB15",null,null,null,0,null,null,0,null,null,0,null,null,0,null,null,0,null,null,0,null,null,0,null,null,0,null,null,0,null,null,0,null,null,0,null,null,0,null,null,0,null,null,0,null,null,0]
["Hoved-\nfunktion","Teknologi-\ngruppe","Nr","Faktorer",null,null,"Faktorer",null,null,"Faktorer",null,null,"Faktorer",null,null,"Faktorer",null,null,"Faktorer",null,null,"Faktorer",null,null,"Faktorer",null,null,"Faktorer",null,null,"Faktorer",null,null,"Faktorer",null,null,"Faktorer",null,null,"Faktorer",null,null,"Faktorer",null,null,"Faktorer",null,null,null,null,null,null,null,null,null,null,null,null,null,null,null,null,null,null,null,null,null,null,null,null,null,null,null,null,null,null,null,null,null,null,null,null,null,null,null,null,null,null,null,null,null,null,null,null,null,"00",null,null,"00",null,null,"00",null,null,"00",null,null,"00",null,null,"00",null,null,"00",null,null,"00",null,null,"00",null,null,"00",null,null,"00",null,null,"00",null,null,"00",null,null,"00",null,null,"00"]
[null,null,null,"Interval/kategori","Anlæg","Drift","Interval/kategori","Anlæg","Drift","Interval/kategori","Anlæg","Drift","Interval/kategori","Anlæg","Drift","Interval/kategori","Anlæg","Drift","Interval/kategori","Anlæg","Drift","Interval/kategori","Anlæg","Drift","Interval/kategori","Anlæg","Drift","Interval/kategori","Anlæg","Drift","Interval/kategori","Anlæg","Drift","Interval/kategori","Anlæg","Drift","Interval/kategori","Anlæg","Drift","Interval/kategori","Anlæg","Drift","Interval/kategori","Anlæg","Drift","Interval/kategori","Anlæg","Drift",null,1,2,3,4,5,6,7,8,9,10,11,12,13,14,15,16,17,18,19,20,21,22,23,24,25,26,27,28,29,30,31,32,33,34,35,36,37,38,39,40,41,42,43,44,45,null,0,10,22,0,22,22,0,10,22,0,22,22,0,22,10,0,22,22,0,22,22,0,22,22,0,22,22,0,22,22,0,22,22,0,22,22,0,22,22,0,22,22,0,22,22]
["Transportanlæg","Ledninger",null,"Land",0.85,1,105,1.05,1,"Vandløb",1,1,"< 15.000",1,1,"< 30",1,1,"< 3",1,1,null,null,null,null,null,null,null,null,null,null,null,null,null,null,null,null,null,null,null,null,null,null,null,null,null,null,null,null,null,null,null,null,null,null,null,null,null,null,null,null,null,null,null,null,null,null,null,null,null,null,null,null,null,null,null,null,null,null,null,null,null,null,null,null,null,null,null,null,null,null,null,null,null,null,"00","10","12","00","22","20","00","20","20","00","20","20","00","20","20","00","20","20","00","00","00","00","00","00","00","00","00","00","00","00","00","00","00","00","00","00","00","00","00","00","00","00","00","00","00"]
[null,null,null,"By",1,1,100,1,1,"Sø",1,1,"15.000 - 50.000",1,1,"30 - 150",1,1,"3 - 10",1,1,null,null,null,null,null,null,null,null,null,null,null,null,null,null,null,null,null,null,null,null,null,null,null,null,null,null,null,null,null,null,null,null,null,null,null,null,null,null,null,null,null,null,null,null,null,null,null,null,null,null,null,null,null,null,null,null,null,null,null,null,null,null,null,null,null,null,null,null,null,null,null,null,null,null,"00","10","12","00","20","20","00","20","20","00","20","20","00","20","20","00","20","20","00","00","00","00","00","00","00","00","00","00","00","00","00","00","00","00","00","00","00","00","00","00","00","00","00","00","00"]
[null,null,null,"City",1.1499999999999999,1,95,0.95,1,"Hav",1,1,"50.000 - 200.000",1,1,"150 - 600",1,1,"10 - 20",1,1,null,null,null,null,null,null,null,null,null,null,null,null,null,null,null,null,null,null,null,null,null,null,null,null,null,null,null,null,null,null,null,null,null,null,null,null,null,null,null,null,null,null,null,null,null,null,null,null,null,null,null,null,null,null,null,null,null,null,null,null,null,null,null,null,null,null,null,null,null,null,null,null,null,null,"00","10","12","00","22","20","00","20","20","00","20","20","00","20","20","00","20","20","00","00","00","00","00","00","00","00","00","00","00","00","00","00","00","00","00","00","00","00","00","00","00","00","00","00","00"]
[null,null,null,"Indre city",1.3,1,90,0.9,1,null,null,null,"> 200.000",1,1,"600 - 1000",1,1,"20 - 30",1,1,null,null,null,null,null,null,null,null,null,null,null,null,null,null,null,null,null,null,null,null,null,null,null,null,null,null,null,null,null,null,null,null,null,null,null,null,null,null,null,null,null,null,null,null,null,null,null,null,null,null,null,null,null,null,null,null,null,null,null,null,null,null,null,null,null,null,null,null,null,null,null,null,null,null,"00","10","12","00","22","20","00","00","00","00","20","20","00","20","20","00","20","20","00","00","00","00","00","00","00","00","00","00","00","00","00","00","00","00","00","00","00","00","00","00","00","00","00","00","00"]
[null,null,null,null,null,null,85,0.85,1,null,null,null,null,null,null,"> 1000",1,1,"> 30 ",1,1,null,null,null,null,null,null,null,null,null,null,null,null,null,null,null,null,null,null,null,null,null,null,null,null,null,null,null,null,null,null,null,null,null,null,null,null,null,null,null,null,null,null,null,null,null,null,null,null,null,null,null,null,null,null,null,null,null,null,null,null,null,null,null,null,null,null,null,null,null,null,null,null,null,null,"00","00","00","00","22","20","00","00","00","00","00","00","00","20","20","00","20","20","00","00","00","00","00","00","00","00","00","00","00","00","00","00","00","00","00","00","00","00","00","00","00","00","00","00","00"]
[null,null,null,null,null,null,null,null,null,null,null,null,null,null,null,null,null,null,null,null,null,null,null,null,null,null,null,null,null,null,null,null,null,null,null,null,null,null,null,null,null,null,null,null,null,null,null,null,null,null,null,null,null,null,null,null,null,null,null,null,null,null,null,null,null,null,null,null,null,null,null,null,null,null,null,null,null,null,null,null,null,null,null,null,null,null,null,null,null,null,null,null,null,null,null,"00","00","00","00","00","00","00","00","00","00","00","00","00","00","00","00","00","00","00","00","00","00","00","00","00","00","00","00","00","00","00","00","00","00","00","00","00","00","00","00","00","00","00","00","00"]
[null,null,null,null,null,null,null,null,null,null,null,null,null,null,null,null,null,null,null,null,null,null,null,null,null,null,null,null,null,null,null,null,null,null,null,null,null,null,null,null,null,null,null,null,null,null,null,null,null,null,null,null,null,null,null,null,null,null,null,null,null,null,null,null,null,null,null,null,null,null,null,null,null,null,null,null,null,null,null,null,null,null,null,null,null,null,null,null,null,null,null,null,null,null,null,"00","00","00","00","00","00","00","00","00","00","00","00","00","00","00","00","00","00","00","00","00","00","00","00","00","00","00","00","00","00","00","00","00","00","00","00","00","00","00","00","00","00","00","00","00"]
[null,null,null,null,null,null,null,null,null,null,null,null,null,null,null,null,null,null,null,null,null,null,null,null,null,null,null,null,null,null,null,null,null,null,null,null,null,null,null,null,null,null,null,null,null,null,null,null,null,null,null,null,null,null,null,null,null,null,null,null,null,null,null,null,null,null,null,null,null,null,null,null,null,null,null,null,null,null,null,null,null,null,null,null,null,null,null,null,null,null,null,null,null,null,null,"00","00","00","00","00","00","00","00","00","00","00","00","00","00","00","00","00","00","00","00","00","00","00","00","00","00","00","00","00","00","00","00","00","00","00","00","00","00","00","00","00","00","00","00","00"]
[null,null,null,null,null,null,null,null,null,null,null,null,null,null,null,null,null,null,null,null,null,null,null,null,null,null,null,null,null,null,null,null,null,null,null,null,null,null,null,null,null,null,null,null,null,null,null,null,null,null,null,null,null,null,null,null,null,null,null,null,null,null,null,null,null,null,null,null,null,null,null,null,null,null,null,null,null,null,null,null,null,null,null,null,null,null,null,null,null,null,null,null,null,null,null,"00","00","00","00","00","00","00","00","00","00","00","00","00","00","00","00","00","00","00","00","00","00","00","00","00","00","00","00","00","00","00","00","00","00","00","00","00","00","00","00","00","00","00","00","00"]
[null,null,null,null,null,null,null,null,null,null,null,null,null,null,null,null,null,null,null,null,null,null,null,null,null,null,null,null,null,null,null,null,null,null,null,null,null,null,null,null,null,null,null,null,null,null,null,null,null,null,null,null,null,null,null,null,null,null,null,null,null,null,null,null,null,null,null,null,null,null,null,null,null,null,null,null,null,null,null,null,null,null,null,null,null,null,null,null,null,null,null,null,null,null,null,"00","00","00","00","00","00","00","00","00","00","00","00","00","00","00","00","00","00","00","00","00","00","00","00","00","00","00","00","00","00","00","00","00","00","00","00","00","00","00","00","00","00","00","00","00"]
[null,"Ledningsgrav",null,"Land",0.6,1,105,1.05,1,"Vandløb",1,1,"< 15.000",1,1,"< 30",1,1,"< 3",1,1,null,null,null,null,null,null,null,null,null,null,null,null,null,null,null,null,null,null,null,null,null,null,null,null,null,null,null,null,null,"X","X",null,null,null,null,null,null,null,null,null,null,null,null,null,null,null,null,null,null,null,null,null,null,null,null,null,null,null,null,null,null,null,null,null,null,null,null,null,null,null,null,null,null,null,"00","10","20","00","10","20","00","20","20","00","20","20","00","20","20","00","20","20","00","00","00","00","00","00","00","00","00","00","00","00","00","00","00","00","00","00","00","00","00","00","00","00","00","00","00"]
[null,null,null,"By",1,1,100,1,1,"Sø",1,1,"15.000 - 50.000",1,1,"30 - 150",1,1,"3 - 10",1,1,null,null,null,null,null,null,null,null,null,null,null,null,null,null,null,null,null,null,null,null,null,null,null,null,null,null,null,null,null,"X","X",null,null,null,null,null,null,null,null,null,null,null,null,null,null,null,null,null,null,null,null,null,null,null,null,null,null,null,null,null,null,null,null,null,null,null,null,null,null,null,null,null,null,null,"00","10","20","00","10","20","00","20","20","00","20","20","00","20","20","00","20","20","00","00","00","00","00","00","00","00","00","00","00","00","00","00","00","00","00","00","00","00","00","00","00","00","00","00","00"]
[null,null,null,"City",2,1,95,0.95,1,"Hav",1,1,"50.000 - 200.000",1,1,"150 - 600",1,1,"10 - 20",1,1,null,null,null,null,null,null,null,null,null,null,null,null,null,null,null,null,null,null,null,null,null,null,null,null,null,null,null,null,null,"X","X",null,null,null,null,null,null,null,null,null,null,null,null,null,null,null,null,null,null,null,null,null,null,null,null,null,null,null,null,null,null,null,null,null,null,null,null,null,null,null,null,null,null,null,"00","10","20","00","10","20","00","20","20","00","20","20","00","20","20","00","20","20","00","00","00","00","00","00","00","00","00","00","00","00","00","00","00","00","00","00","00","00","00","00","00","00","00","00","00"]
[null,null,null,"Indre city",3,1,90,0.9,1,null,null,null,"> 200.000",1,1,"600 - 1000",1,1,"20 - 30",1,1,null,null,null,null,null,null,null,null,null,null,null,null,null,null,null,null,null,null,null,null,null,null,null,null,null,null,null,null,null,null,null,null,null,null,null,null,null,null,null,null,null,null,null,null,null,null,null,null,null,null,null,null,null,null,null,null,null,null,null,null,null,null,null,null,null,null,null,null,null,null,null,null,null,null,"00","10","20","00","10","20","00","00","00","00","20","20","00","20","20","00","20","20","00","00","00","00","00","00","00","00","00","00","00","00","00","00","00","00","00","00","00","00","00","00","00","00","00","00","00"]
[null,null,null,null,null,null,85,0.85,1,null,null,null,null,null,null,"> 1000",1,1,"> 30 ",1,1,null,null,null,null,null,null,null,null,null,null,null,null,null,null,null,null,null,null,null,null,null,null,null,null,null,null,null,null,null,null,null,null,null,null,null,null,null,null,null,null,null,null,null,null,null,null,null,null,null,null,null,null,null,null,null,null,null,null,null,null,null,null,null,null,null,null,null,null,null,null,null,null,null,null,"00","00","00","00","10","20","00","00","00","00","00","00","00","20","20","00","20","20","00","00","00","00","00","00","00","00","00","00","00","00","00","00","00","00","00","00","00","00","00","00","00","00","00","00","00"]
[null,null,null,null,null,null,null,null,null,null,null,null,null,null,null,null,null,null,null,null,null,null,null,null,null,null,null,null,null,null,null,null,null,null,null,null,null,null,null,null,null,null,null,null,null,null,null,null,null,null,null,null,null,null,null,null,null,null,null,null,null,null,null,null,null,null,null,null,null,null,null,null,null,null,null,null,null,null,null,null,null,null,null,null,null,null,null,null,null,null,null,null,null,null,null,"00","00","00","00","00","00","00","00","00","00","00","00","00","00","00","00","00","00","00","00","00","00","00","00","00","00","00","00","00","00","00","00","00","00","00","00","00","00","00","00","00","00","00","00","00"]
[null,null,null,null,null,null,null,null,null,null,null,null,null,null,null,null,null,null,null,null,null,null,null,null,null,null,null,null,null,null,null,null,null,null,null,null,null,null,null,null,null,null,null,null,null,null,null,null,null,null,null,null,null,null,null,null,null,null,null,null,null,null,null,null,null,null,null,null,null,null,null,null,null,null,null,null,null,null,null,null,null,null,null,null,null,null,null,null,null,null,null,null,null,null,null,"00","00","00","00","00","00","00","00","00","00","00","00","00","00","00","00","00","00","00","00","00","00","00","00","00","00","00","00","00","00","00","00","00","00","00","00","00","00","00","00","00","00","00","00","00"]
[null,null,null,null,null,null,null,null,null,null,null,null,null,null,null,null,null,null,null,null,null,null,null,null,null,null,null,null,null,null,null,null,null,null,null,null,null,null,null,null,null,null,null,null,null,null,null,null,null,null,null,null,null,null,null,null,null,null,null,null,null,null,null,null,null,null,null,null,null,null,null,null,null,null,null,null,null,null,null,null,null,null,null,null,null,null,null,null,null,null,null,null,null,null,null,"00","00","00","00","00","00","00","00","00","00","00","00","00","00","00","00","00","00","00","00","00","00","00","00","00","00","00","00","00","00","00","00","00","00","00","00","00","00","00","00","00","00","00","00","00"]
[null,null,null,null,null,null,null,null,null,null,null,null,null,null,null,null,null,null,null,null,null,null,null,null,null,null,null,null,null,null,null,null,null,null,null,null,null,null,null,null,null,null,null,null,null,null,null,null,null,null,null,null,null,null,null,null,null,null,null,null,null,null,null,null,null,null,null,null,null,null,null,null,null,null,null,null,null,null,null,null,null,null,null,null,null,null,null,null,null,null,null,null,null,null,null,"00","00","00","00","00","00","00","00","00","00","00","00","00","00","00","00","00","00","00","00","00","00","00","00","00","00","00","00","00","00","00","00","00","00","00","00","00","00","00","00","00","00","00","00","00"]
[null,null,null,null,null,null,null,null,null,null,null,null,null,null,null,null,null,null,null,null,null,null,null,null,null,null,null,null,null,null,null,null,null,null,null,null,null,null,null,null,null,null,null,null,null,null,null,null,null,null,null,null,null,null,null,null,null,null,null,null,null,null,null,null,null,null,null,null,null,null,null,null,null,null,null,null,null,null,null,null,null,null,null,null,null,null,null,null,null,null,null,null,null,null,null,"00","00","00","00","00","00","00","00","00","00","00","00","00","00","00","00","00","00","00","00","00","00","00","00","00","00","00","00","00","00","00","00","00","00","00","00","00","00","00","00","00","00","00","00","00"]
[null,"Underboringer",null,"Land",0.7,1,105,1.05,1,"Vandløb",1,1,"< 15.000",1,1,"< 30",1,1,"< 3",1,1,null,null,null,null,null,null,null,null,null,null,null,null,null,null,null,null,null,null,null,null,null,null,null,null,null,null,null,null,null,null,null,null,null,null,null,null,null,null,null,null,null,null,null,null,null,null,null,null,null,null,null,null,null,null,null,null,null,null,null,null,null,null,null,null,null,null,null,null,null,null,null,null,null,null,"00","10","20","00","10","20","00","20","20","00","20","20","00","20","20","00","20","20","00","00","00","00","00","00","00","00","00","00","00","00","00","00","00","00","00","00","00","00","00","00","00","00","00","00","00"]
[null,null,null,"By",1,1,100,1,1,"Sø",1,1,"15.000 - 50.000",1,1,"30 - 150",1,1,"3 - 10",1,1,null,null,null,null,null,null,null,null,null,null,null,null,null,null,null,null,null,null,null,null,null,null,null,null,null,null,null,null,null,null,null,null,null,null,null,null,null,null,null,null,null,null,null,null,null,null,null,null,null,null,null,null,null,null,null,null,null,null,null,null,null,null,null,null,null,null,null,null,null,null,null,null,null,null,"00","10","20","00","10","20","00","20","20","00","20","20","00","20","20","00","20","20","00","00","00","00","00","00","00","00","00","00","00","00","00","00","00","00","00","00","00","00","00","00","00","00","00","00","00"]
[null,null,null,"City",1.3,1,95,0.95,1,"Hav",1,1,"50.000 - 200.000",1,1,"150 - 600",1,1,"10 - 20",1,1,null,null,null,null,null,null,null,null,null,null,null,null,null,null,null,null,null,null,null,null,null,null,null,null,null,null,null,null,null,null,null,null,null,null,null,null,null,null,null,null,null,null,null,null,null,null,null,null,null,null,null,null,null,null,null,null,null,null,null,null,null,null,null,null,null,null,null,null,null,null,null,null,null,null,"00","10","20","00","10","20","00","20","20","00","20","20","00","20","20","00","20","20","00","00","00","00","00","00","00","00","00","00","00","00","00","00","00","00","00","00","00","00","00","00","00","00","00","00","00"]
[null,null,null,"Indre city",2,1,90,0.9,1,null,null,null,"> 200.000",1,1,"600 - 1000",1,1,"20 - 30",1,1,null,null,null,null,null,null,null,null,null,null,null,null,null,null,null,null,null,null,null,null,null,null,null,null,null,null,null,null,null,null,null,null,null,null,null,null,null,null,null,null,null,null,null,null,null,null,null,null,null,null,null,null,null,null,null,null,null,null,null,null,null,null,null,null,null,null,null,null,null,null,null,null,null,null,"00","10","20","00","10","20","00","00","00","00","20","20","00","20","20","00","20","20","00","00","00","00","00","00","00","00","00","00","00","00","00","00","00","00","00","00","00","00","00","00","00","00","00","00","00"]
[null,null,null,null,null,null,85,0.85,1,null,null,null,null,null,null,"> 1000",1,1,"> 30 ",1,1,null,null,null,null,null,null,null,null,null,null,null,null,null,null,null,null,null,null,null,null,null,null,null,null,null,null,null,null,null,null,null,null,null,null,null,null,null,null,null,null,null,null,null,null,null,null,null,null,null,null,null,null,null,null,null,null,null,null,null,null,null,null,null,null,null,null,null,null,null,null,null,null,null,null,"00","00","00","00","10","20","00","00","00","00","00","00","00","20","20","00","20","20","00","00","00","00","00","00","00","00","00","00","00","00","00","00","00","00","00","00","00","00","00","00","00","00","00","00","00"]
[null,null,null,null,null,null,null,null,null,null,null,null,null,null,null,null,null,null,null,null,null,null,null,null,null,null,null,null,null,null,null,null,null,null,null,null,null,null,null,null,null,null,null,null,null,null,null,null,null,null,null,null,null,null,null,null,null,null,null,null,null,null,null,null,null,null,null,null,null,null,null,null,null,null,null,null,null,null,null,null,null,null,null,null,null,null,null,null,null,null,null,null,null,null,null,"00","00","00","00","00","00","00","00","00","00","00","00","00","00","00","00","00","00","00","00","00","00","00","00","00","00","00","00","00","00","00","00","00","00","00","00","00","00","00","00","00","00","00","00","00"]
[null,null,null,null,null,null,null,null,null,null,null,null,null,null,null,null,null,null,null,null,null,null,null,null,null,null,null,null,null,null,null,null,null,null,null,null,null,null,null,null,null,null,null,null,null,null,null,null,null,null,null,null,null,null,null,null,null,null,null,null,null,null,null,null,null,null,null,null,null,null,null,null,null,null,null,null,null,null,null,null,null,null,null,null,null,null,null,null,null,null,null,null,null,null,null,"00","00","00","00","00","00","00","00","00","00","00","00","00","00","00","00","00","00","00","00","00","00","00","00","00","00","00","00","00","00","00","00","00","00","00","00","00","00","00","00","00","00","00","00","00"]
[null,null,null,null,null,null,null,null,null,null,null,null,null,null,null,null,null,null,null,null,null,null,null,null,null,null,null,null,null,null,null,null,null,null,null,null,null,null,null,null,null,null,null,null,null,null,null,null,null,null,null,null,null,null,null,null,null,null,null,null,null,null,null,null,null,null,null,null,null,null,null,null,null,null,null,null,null,null,null,null,null,null,null,null,null,null,null,null,null,null,null,null,null,null,null,"00","00","00","00","00","00","00","00","00","00","00","00","00","00","00","00","00","00","00","00","00","00","00","00","00","00","00","00","00","00","00","00","00","00","00","00","00","00","00","00","00","00","00","00","00"]
[null,null,null,null,null,null,null,null,null,null,null,null,null,null,null,null,null,null,null,null,null,null,null,null,null,null,null,null,null,null,null,null,null,null,null,null,null,null,null,null,null,null,null,null,null,null,null,null,null,null,null,null,null,null,null,null,null,null,null,null,null,null,null,null,null,null,null,null,null,null,null,null,null,null,null,null,null,null,null,null,null,null,null,null,null,null,null,null,null,null,null,null,null,null,null,"00","00","00","00","00","00","00","00","00","00","00","00","00","00","00","00","00","00","00","00","00","00","00","00","00","00","00","00","00","00","00","00","00","00","00","00","00","00","00","00","00","00","00","00","00"]
[null,null,null,null,null,null,null,null,null,null,null,null,null,null,null,null,null,null,null,null,null,null,null,null,null,null,null,null,null,null,null,null,null,null,null,null,null,null,null,null,null,null,null,null,null,null,null,null,null,null,null,null,null,null,null,null,null,null,null,null,null,null,null,null,null,null,null,null,null,null,null,null,null,null,null,null,null,null,null,null,null,null,null,null,null,null,null,null,null,null,null,null,null,null,null,"00","00","00","00","00","00","00","00","00","00","00","00","00","00","00","00","00","00","00","00","00","00","00","00","00","00","00","00","00","00","00","00","00","00","00","00","00","00","00","00","00","00","00","00","00"]
[null,"Brønde",null,"Land",0.6,1,105,1.05,1,"Vandløb",1,1,"< 15.000",1,1,"< 30",1,1,"< 3",1,1,null,null,null,null,null,null,null,null,null,null,null,null,null,null,null,null,null,null,null,null,null,null,null,null,null,null,null,null,null,null,null,null,null,null,null,null,null,null,null,null,null,null,null,null,null,null,null,null,null,null,null,null,null,null,null,null,null,null,null,null,null,null,null,null,null,null,null,null,null,null,null,null,null,null,"00","10","20","00","10","20","00","20","20","00","20","20","00","20","20","00","20","20","00","00","00","00","00","00","00","00","00","00","00","00","00","00","00","00","00","00","00","00","00","00","00","00","00","00","00"]
[null,null,null,"By",1,1,100,1,1,"Sø",1,1,"15.000 - 50.000",1,1,"30 - 150",1,1,"3 - 10",1,1,null,null,null,null,null,null,null,null,null,null,null,null,null,null,null,null,null,null,null,null,null,null,null,null,null,null,null,null,null,null,null,null,null,null,null,null,null,null,null,null,null,null,null,null,null,null,null,null,null,null,null,null,null,null,null,null,null,null,null,null,null,null,null,null,null,null,null,null,null,null,null,null,null,null,"00","10","20","00","10","20","00","20","20","00","20","20","00","20","20","00","20","20","00","00","00","00","00","00","00","00","00","00","00","00","00","00","00","00","00","00","00","00","00","00","00","00","00","00","00"]
[null,null,null,"City",2,1,95,0.95,1,"Hav",1,1,"50.000 - 200.000",1,1,"150 - 600",1,1,"10 - 20",1,1,null,null,null,null,null,null,null,null,null,null,null,null,null,null,null,null,null,null,null,null,null,null,null,null,null,null,null,null,null,null,null,null,null,null,null,null,null,null,null,null,null,null,null,null,null,null,null,null,null,null,null,null,null,null,null,null,null,null,null,null,null,null,null,null,null,null,null,null,null,null,null,null,null,null,"00","10","20","00","10","20","00","20","20","00","20","20","00","20","20","00","20","20","00","00","00","00","00","00","00","00","00","00","00","00","00","00","00","00","00","00","00","00","00","00","00","00","00","00","00"]
[null,null,null,"Indre city",3,1,90,0.9,1,null,null,null,"> 200.000",1,1,"600 - 1000",1,1,"20 - 30",1,1,null,null,null,null,null,null,null,null,null,null,null,null,null,null,null,null,null,null,null,null,null,null,null,null,null,null,null,null,null,null,null,null,null,null,null,null,null,null,null,null,null,null,null,null,null,null,null,null,null,null,null,null,null,null,null,null,null,null,null,null,null,null,null,null,null,null,null,null,null,null,null,null,null,null,"00","10","20","00","10","20","00","00","00","00","20","20","00","20","20","00","20","20","00","00","00","00","00","00","00","00","00","00","00","00","00","00","00","00","00","00","00","00","00","00","00","00","00","00","00"]
[null,null,null,null,null,null,85,0.85,1,null,null,null,null,null,null,"> 1000",1,1,"> 30 ",1,1,null,null,null,null,null,null,null,null,null,null,null,null,null,null,null,null,null,null,null,null,null,null,null,null,null,null,null,null,null,null,null,null,null,null,null,null,null,null,null,null,null,null,null,null,null,null,null,null,null,null,null,null,null,null,null,null,null,null,null,null,null,null,null,null,null,null,null,null,null,null,null,null,null,null,"00","00","00","00","10","20","00","00","00","00","00","00","00","20","20","00","20","20","00","00","00","00","00","00","00","00","00","00","00","00","00","00","00","00","00","00","00","00","00","00","00","00","00","00","00"]
[null,null,null,null,null,null,null,null,null,null,null,null,null,null,null,null,null,null,null,null,null,null,null,null,null,null,null,null,null,null,null,null,null,null,null,null,null,null,null,null,null,null,null,null,null,null,null,null,null,null,null,null,null,null,null,null,null,null,null,null,null,null,null,null,null,null,null,null,null,null,null,null,null,null,null,null,null,null,null,null,null,null,null,null,null,null,null,null,null,null,null,null,null,null,null,"00","00","00","00","00","00","00","00","00","00","00","00","00","00","00","00","00","00","00","00","00","00","00","00","00","00","00","00","00","00","00","00","00","00","00","00","00","00","00","00","00","00","00","00","00"]
[null,null,null,null,null,null,null,null,null,null,null,null,null,null,null,null,null,null,null,null,null,null,null,null,null,null,null,null,null,null,null,null,null,null,null,null,null,null,null,null,null,null,null,null,null,null,null,null,null,null,null,null,null,null,null,null,null,null,null,null,null,null,null,null,null,null,null,null,null,null,null,null,null,null,null,null,null,null,null,null,null,null,null,null,null,null,null,null,null,null,null,null,null,null,null,"00","00","00","00","00","00","00","00","00","00","00","00","00","00","00","00","00","00","00","00","00","00","00","00","00","00","00","00","00","00","00","00","00","00","00","00","00","00","00","00","00","00","00","00","00"]
[null,null,null,null,null,null,null,null,null,null,null,null,null,null,null,null,null,null,null,null,null,null,null,null,null,null,null,null,null,null,null,null,null,null,null,null,null,null,null,null,null,null,null,null,null,null,null,null,null,null,null,null,null,null,null,null,null,null,null,null,null,null,null,null,null,null,null,null,null,null,null,null,null,null,null,null,null,null,null,null,null,null,null,null,null,null,null,null,null,null,null,null,null,null,null,"00","00","00","00","00","00","00","00","00","00","00","00","00","00","00","00","00","00","00","00","00","00","00","00","00","00","00","00","00","00","00","00","00","00","00","00","00","00","00","00","00","00","00","00","00"]
[null,null,null,null,null,null,null,null,null,null,null,null,null,null,null,null,null,null,null,null,null,null,null,null,null,null,null,null,null,null,null,null,null,null,null,null,null,null,null,null,null,null,null,null,null,null,null,null,null,null,null,null,null,null,null,null,null,null,null,null,null,null,null,null,null,null,null,null,null,null,null,null,null,null,null,null,null,null,null,null,null,null,null,null,null,null,null,null,null,null,null,null,null,null,null,"00","00","00","00","00","00","00","00","00","00","00","00","00","00","00","00","00","00","00","00","00","00","00","00","00","00","00","00","00","00","00","00","00","00","00","00","00","00","00","00","00","00","00","00","00"]
[null,null,null,null,null,null,null,null,null,null,null,null,null,null,null,null,null,null,null,null,null,null,null,null,null,null,null,null,null,null,null,null,null,null,null,null,null,null,null,null,null,null,null,null,null,null,null,null,null,null,null,null,null,null,null,null,null,null,null,null,null,null,null,null,null,null,null,null,null,null,null,null,null,null,null,null,null,null,null,null,null,null,null,null,null,null,null,null,null,null,null,null,null,null,null,"00","00","00","00","00","00","00","00","00","00","00","00","00","00","00","00","00","00","00","00","00","00","00","00","00","00","00","00","00","00","00","00","00","00","00","00","00","00","00","00","00","00","00","00","00"]
[null,"Renovering/no-dig",null,"Land",0.85,1,105,1.05,1,"Vandløb",1,1,"< 15.000",1,1,"< 30",1,1,"< 3",1,1,null,null,null,null,null,null,null,null,null,null,null,null,null,null,null,null,null,null,null,null,null,null,null,null,null,null,null,null,null,null,null,null,null,null,null,null,null,null,null,null,null,null,null,null,null,null,null,null,null,null,null,null,null,null,null,null,null,null,null,null,null,null,null,null,null,null,null,null,null,null,null,null,null,null,"00","10","20","00","10","20","00","20","20","00","20","20","00","20","20","00","20","20","00","00","00","00","00","00","00","00","00","00","00","00","00","00","00","00","00","00","00","00","00","00","00","00","00","00","00"]
[null,null,null,"By",1,1,100,1,1,"Sø",1,1,"15.000 - 50.000",1,1,"30 - 150",1,1,"3 - 10",1,1,null,null,null,null,null,null,null,null,null,null,null,null,null,null,null,null,null,null,null,null,null,null,null,null,null,null,null,null,null,null,null,null,null,null,null,null,null,null,null,null,null,null,null,null,null,null,null,null,null,null,null,null,null,null,null,null,null,null,null,null,null,null,null,null,null,null,null,null,null,null,null,null,null,null,"00","10","20","00","10","20","00","20","20","00","20","20","00","20","20","00","20","20","00","00","00","00","00","00","00","00","00","00","00","00","00","00","00","00","00","00","00","00","00","00","00","00","00","00","00"]
[null,null,null,"City",1.1499999999999999,1,95,0.95,1,"Hav",1,1,"50.000 - 200.000",1,1,"150 - 600",1,1,"10 - 20",1,1,null,null,null,null,null,null,null,null,null,null,null,null,null,null,null,null,null,null,null,null,null,null,null,null,null,null,null,null,null,null,null,null,null,null,null,null,null,null,null,null,null,null,null,null,null,null,null,null,null,null,null,null,null,null,null,null,null,null,null,null,null,null,null,null,null,null,null,null,null,null,null,null,null,null,"00","10","20","00","10","20","00","20","20","00","20","20","00","20","20","00","20","20","00","00","00","00","00","00","00","00","00","00","00","00","00","00","00","00","00","00","00","00","00","00","00","00","00","00","00"]
[null,null,null,"Indre city",1.5,1,90,0.9,1,null,null,null,"> 200.000",1,1,"600 - 1000",1,1,"20 - 30",1,1,null,null,null,null,null,null,null,null,null,null,null,null,null,null,null,null,null,null,null,null,null,null,null,null,null,null,null,null,null,null,null,null,null,null,null,null,null,null,null,null,null,null,null,null,null,null,null,null,null,null,null,null,null,null,null,null,null,null,null,null,null,null,null,null,null,null,null,null,null,null,null,null,null,null,"00","10","20","00","10","20","00","00","00","00","20","20","00","20","20","00","20","20","00","00","00","00","00","00","00","00","00","00","00","00","00","00","00","00","00","00","00","00","00","00","00","00","00","00","00"]
[null,null,null,null,null,null,85,0.85,1,null,null,null,null,null,null,"> 1000",1,1,"> 30 ",1,1,null,null,null,null,null,null,null,null,null,null,null,null,null,null,null,null,null,null,null,null,null,null,null,null,null,null,null,null,null,null,null,null,null,null,null,null,null,null,null,null,null,null,null,null,null,null,null,null,null,null,null,null,null,null,null,null,null,null,null,null,null,null,null,null,null,null,null,null,null,null,null,null,null,null,"00","00","00","00","10","20","00","00","00","00","00","00","00","20","20","00","20","20","00","00","00","00","00","00","00","00","00","00","00","00","00","00","00","00","00","00","00","00","00","00","00","00","00","00","00"]
[null,null,null,null,null,null,null,null,null,null,null,null,null,null,null,null,null,null,null,null,null,null,null,null,null,null,null,null,null,null,null,null,null,null,null,null,null,null,null,null,null,null,null,null,null,null,null,null,null,null,null,null,null,null,null,null,null,null,null,null,null,null,null,null,null,null,null,null,null,null,null,null,null,null,null,null,null,null,null,null,null,null,null,null,null,null,null,null,null,null,null,null,null,null,null,"00","00","00","00","00","00","00","00","00","00","00","00","00","00","00","00","00","00","00","00","00","00","00","00","00","00","00","00","00","00","00","00","00","00","00","00","00","00","00","00","00","00","00","00","00"]
[null,null,null,null,null,null,null,null,null,null,null,null,null,null,null,null,null,null,null,null,null,null,null,null,null,null,null,null,null,null,null,null,null,null,null,null,null,null,null,null,null,null,null,null,null,null,null,null,null,null,null,null,null,null,null,null,null,null,null,null,null,null,null,null,null,null,null,null,null,null,null,null,null,null,null,null,null,null,null,null,null,null,null,null,null,null,null,null,null,null,null,null,null,null,null,"00","00","00","00","00","00","00","00","00","00","00","00","00","00","00","00","00","00","00","00","00","00","00","00","00","00","00","00","00","00","00","00","00","00","00","00","00","00","00","00","00","00","00","00","00"]
[null,null,null,null,null,null,null,null,null,null,null,null,null,null,null,null,null,null,null,null,null,null,null,null,null,null,null,null,null,null,null,null,null,null,null,null,null,null,null,null,null,null,null,null,null,null,null,null,null,null,null,null,null,null,null,null,null,null,null,null,null,null,null,null,null,null,null,null,null,null,null,null,null,null,null,null,null,null,null,null,null,null,null,null,null,null,null,null,null,null,null,null,null,null,null,"00","00","00","00","00","00","00","00","00","00","00","00","00","00","00","00","00","00","00","00","00","00","00","00","00","00","00","00","00","00","00","00","00","00","00","00","00","00","00","00","00","00","00","00","00"]
[null,null,null,null,null,null,null,null,null,null,null,null,null,null,null,null,null,null,null,null,null,null,null,null,null,null,null,null,null,null,null,null,null,null,null,null,null,null,null,null,null,null,null,null,null,null,null,null,null,null,null,null,null,null,null,null,null,null,null,null,null,null,null,null,null,null,null,null,null,null,null,null,null,null,null,null,null,null,null,null,null,null,null,null,null,null,null,null,null,null,null,null,null,null,null,"00","00","00","00","00","00","00","00","00","00","00","00","00","00","00","00","00","00","00","00","00","00","00","00","00","00","00","00","00","00","00","00","00","00","00","00","00","00","00","00","00","00","00","00","00"]
[null,null,null,null,null,null,null,null,null,null,null,null,null,null,null,null,null,null,null,null,null,null,null,null,null,null,null,null,null,null,null,null,null,null,null,null,null,null,null,null,null,null,null,null,null,null,null,null,null,null,null,null,null,null,null,null,null,null,null,null,null,null,null,null,null,null,null,null,null,null,null,null,null,null,null,null,null,null,null,null,null,null,null,null,null,null,null,null,null,null,null,null,null,null,null,"00","00","00","00","00","00","00","00","00","00","00","00","00","00","00","00","00","00","00","00","00","00","00","00","00","00","00","00","00","00","00","00","00","00","00","00","00","00","00","00","00","00","00","00","00"]
[null,"Pumpestationer",null,"Land",0.9,0.9,105,1.05,1.05,"Vandløb",1,1,"< 15.000",1,1,"< 30",1,1,"< 3",1,1,null,null,null,null,null,null,null,null,null,null,null,null,null,null,null,null,null,null,null,null,null,null,null,null,null,null,null,null,null,null,null,null,null,null,null,null,null,null,null,null,null,null,null,null,null,null,null,null,null,null,null,null,null,null,null,null,null,null,null,null,null,null,null,null,null,null,null,null,null,null,null,null,null,null,"00","10","10","00","10","10","00","20","20","00","20","20","00","20","20","00","20","20","00","00","00","00","00","00","00","00","00","00","00","00","00","00","00","00","00","00","00","00","00","00","00","00","00","00","00"]
[null,null,null,"By",1,1,100,1,1,"Sø",1,1,"15.000 - 50.000",1,1,"30 - 150",1,1,"3 - 10",1,1,null,null,null,null,null,null,null,null,null,null,null,null,null,null,null,null,null,null,null,null,null,null,null,null,null,null,null,null,null,null,null,null,null,null,null,null,null,null,null,null,null,null,null,null,null,null,null,null,null,null,null,null,null,null,null,null,null,null,null,null,null,null,null,null,null,null,null,null,null,null,null,null,null,null,"00","10","10","00","10","10","00","20","20","00","20","20","00","20","20","00","20","20","00","00","00","00","00","00","00","00","00","00","00","00","00","00","00","00","00","00","00","00","00","00","00","00","00","00","00"]
[null,null,null,"City",1.2,1.2,95,0.95,0.95,"Hav",1,1,"50.000 - 200.000",1,1,"150 - 600",1,1,"10 - 20",1,1,null,null,null,null,null,null,null,null,null,null,null,null,null,null,null,null,null,null,null,null,null,null,null,null,null,null,null,null,null,null,null,null,null,null,null,null,null,null,null,null,null,null,null,null,null,null,null,null,null,null,null,null,null,null,null,null,null,null,null,null,null,null,null,null,null,null,null,null,null,null,null,null,null,null,"00","10","10","00","10","10","00","20","20","00","20","20","00","20","20","00","20","20","00","00","00","00","00","00","00","00","00","00","00","00","00","00","00","00","00","00","00","00","00","00","00","00","00","00","00"]
[null,null,null,"Indre city",1.6,1.6,90,0.9,0.9,null,null,null,"> 200.000",1,1,"600 - 1000",1,1,"20 - 30",1,1,null,null,null,null,null,null,null,null,null,null,null,null,null,null,null,null,null,null,null,null,null,null,null,null,null,null,null,null,null,null,null,null,null,null,null,null,null,null,null,null,null,null,null,null,null,null,null,null,null,null,null,null,null,null,null,null,null,null,null,null,null,null,null,null,null,null,null,null,null,null,null,null,null,null,"00","10","10","00","10","10","00","00","00","00","20","20","00","20","20","00","20","20","00","00","00","00","00","00","00","00","00","00","00","00","00","00","00","00","00","00","00","00","00","00","00","00","00","00","00"]
[null,null,null,null,null,null,85,0.85,0.85,null,null,null,null,null,null,"> 1000",1,1,"> 30 ",1,1,null,null,null,null,null,null,null,null,null,null,null,null,null,null,null,null,null,null,null,null,null,null,null,null,null,null,null,null,null,null,null,null,null,null,null,null,null,null,null,null,null,null,null,null,null,null,null,null,null,null,null,null,null,null,null,null,null,null,null,null,null,null,null,null,null,null,null,null,null,null,null,null,null,null,"00","00","00","00","10","10","00","00","00","00","00","00","00","20","20","00","20","20","00","00","00","00","00","00","00","00","00","00","00","00","00","00","00","00","00","00","00","00","00","00","00","00","00","00","00"]
[null,null,null,null,null,null,null,null,null,null,null,null,null,null,null,null,null,null,null,null,null,null,null,null,null,null,null,null,null,null,null,null,null,null,null,null,null,null,null,null,null,null,null,null,null,null,null,null,null,null,null,null,null,null,null,null,null,null,null,null,null,null,null,null,null,null,null,null,null,null,null,null,null,null,null,null,null,null,null,null,null,null,null,null,null,null,null,null,null,null,null,null,null,null,null,"00","00","00","00","00","00","00","00","00","00","00","00","00","00","00","00","00","00","00","00","00","00","00","00","00","00","00","00","00","00","00","00","00","00","00","00","00","00","00","00","00","00","00","00","00"]
[null,null,null,null,null,null,null,null,null,null,null,null,null,null,null,null,null,null,null,null,null,null,null,null,null,null,null,null,null,null,null,null,null,null,null,null,null,null,null,null,null,null,null,null,null,null,null,null,null,null,null,null,null,null,null,null,null,null,null,null,null,null,null,null,null,null,null,null,null,null,null,null,null,null,null,null,null,null,null,null,null,null,null,null,null,null,null,null,null,null,null,null,null,null,null,"00","00","00","00","00","00","00","00","00","00","00","00","00","00","00","00","00","00","00","00","00","00","00","00","00","00","00","00","00","00","00","00","00","00","00","00","00","00","00","00","00","00","00","00","00"]
[null,null,null,null,null,null,null,null,null,null,null,null,null,null,null,null,null,null,null,null,null,null,null,null,null,null,null,null,null,null,null,null,null,null,null,null,null,null,null,null,null,null,null,null,null,null,null,null,null,null,null,null,null,null,null,null,null,null,null,null,null,null,null,null,null,null,null,null,null,null,null,null,null,null,null,null,null,null,null,null,null,null,null,null,null,null,null,null,null,null,null,null,null,null,null,"00","00","00","00","00","00","00","00","00","00","00","00","00","00","00","00","00","00","00","00","00","00","00","00","00","00","00","00","00","00","00","00","00","00","00","00","00","00","00","00","00","00","00","00","00"]
[null,null,null,null,null,null,null,null,null,null,null,null,null,null,null,null,null,null,null,null,null,null,null,null,null,null,null,null,null,null,null,null,null,null,null,null,null,null,null,null,null,null,null,null,null,null,null,null,null,null,null,null,null,null,null,null,null,null,null,null,null,null,null,null,null,null,null,null,null,null,null,null,null,null,null,null,null,null,null,null,null,null,null,null,null,null,null,null,null,null,null,null,null,null,null,"00","00","00","00","00","00","00","00","00","00","00","00","00","00","00","00","00","00","00","00","00","00","00","00","00","00","00","00","00","00","00","00","00","00","00","00","00","00","00","00","00","00","00","00","00"]
[null,null,null,null,null,null,null,null,null,null,null,null,null,null,null,null,null,null,null,null,null,null,null,null,null,null,null,null,null,null,null,null,null,null,null,null,null,null,null,null,null,null,null,null,null,null,null,null,null,null,null,null,null,null,null,null,null,null,null,null,null,null,null,null,null,null,null,null,null,null,null,null,null,null,null,null,null,null,null,null,null,null,null,null,null,null,null,null,null,null,null,null,null,null,null,"00","00","00","00","00","00","00","00","00","00","00","00","00","00","00","00","00","00","00","00","00","00","00","00","00","00","00","00","00","00","00","00","00","00","00","00","00","00","00","00","00","00","00","00","00"]
[null,"Bygværk til rensning",null,"Land",1,1,105,1.05,1.05,"Vandløb",1,1,"< 15.000",1,1,"< 30",1,1,"< 3",1,1,null,null,null,null,null,null,null,null,null,null,null,null,null,null,null,null,null,null,null,null,null,null,null,null,null,null,null,null,null,null,null,null,null,null,null,null,null,null,null,null,null,null,null,null,null,null,null,null,null,null,null,null,null,null,null,null,null,null,null,null,null,null,null,null,null,null,null,null,null,null,null,null,null,null,"00","10","10","00","10","10","00","20","20","00","20","20","00","20","20","00","20","20","00","00","00","00","00","00","00","00","00","00","00","00","00","00","00","00","00","00","00","00","00","00","00","00","00","00","00"]
[null,null,null,"By",1,1,100,1,1,"Sø",1,1,"15.000 - 50.000",1,1,"30 - 150",1,1,"3 - 10",1,1,null,null,null,null,null,null,null,null,null,null,null,null,null,null,null,null,null,null,null,null,null,null,null,null,null,null,null,null,null,null,null,null,null,null,null,null,null,null,null,null,null,null,null,null,null,null,null,null,null,null,null,null,null,null,null,null,null,null,null,null,null,null,null,null,null,null,null,null,null,null,null,null,null,null,"00","10","10","00","10","10","00","20","20","00","20","20","00","20","20","00","20","20","00","00","00","00","00","00","00","00","00","00","00","00","00","00","00","00","00","00","00","00","00","00","00","00","00","00","00"]
[null,null,null,"City",1.3,1.02,95,0.95,0.95,"Hav",1,1,"50.000 - 200.000",1,1,"150 - 600",1,1,"10 - 20",1,1,null,null,null,null,null,null,null,null,null,null,null,null,null,null,null,null,null,null,null,null,null,null,null,null,null,null,null,null,null,null,null,null,null,null,null,null,null,null,null,null,null,null,null,null,null,null,null,null,null,null,null,null,null,null,null,null,null,null,null,null,null,null,null,null,null,null,null,null,null,null,null,null,null,null,"00","10","10","00","10","10","00","20","20","00","20","20","00","20","20","00","20","20","00","00","00","00","00","00","00","00","00","00","00","00","00","00","00","00","00","00","00","00","00","00","00","00","00","00","00"]
[null,null,null,"Indre city",1.5,1.05,90,0.9,0.9,null,null,null,"> 200.000",1,1,"600 - 1000",1,1,"20 - 30",1,1,null,null,null,null,null,null,null,null,null,null,null,null,null,null,null,null,null,null,null,null,null,null,null,null,null,null,null,null,null,null,null,null,null,null,null,null,null,null,null,null,null,null,null,null,null,null,null,null,null,null,null,null,null,null,null,null,null,null,null,null,null,null,null,null,null,null,null,null,null,null,null,null,null,null,"00","10","10","00","10","10","00","00","00","00","20","20","00","20","20","00","20","20","00","00","00","00","00","00","00","00","00","00","00","00","00","00","00","00","00","00","00","00","00","00","00","00","00","00","00"]
[null,null,null,null,null,null,85,0.85,0.85,null,null,null,null,null,null,"> 1000",1,1,"> 30 ",1,1,null,null,null,null,null,null,null,null,null,null,null,null,null,null,null,null,null,null,null,null,null,null,null,null,null,null,null,null,null,null,null,null,null,null,null,null,null,null,null,null,null,null,null,null,null,null,null,null,null,null,null,null,null,null,null,null,null,null,null,null,null,null,null,null,null,null,null,null,null,null,null,null,null,null,"00","00","00","00","10","10","00","00","00","00","00","00","00","20","20","00","20","20","00","00","00","00","00","00","00","00","00","00","00","00","00","00","00","00","00","00","00","00","00","00","00","00","00","00","00"]
[null,null,null,null,null,null,null,null,null,null,null,null,null,null,null,null,null,null,null,null,null,null,null,null,null,null,null,null,null,null,null,null,null,null,null,null,null,null,null,null,null,null,null,null,null,null,null,null,null,null,null,null,null,null,null,null,null,null,null,null,null,null,null,null,null,null,null,null,null,null,null,null,null,null,null,null,null,null,null,null,null,null,null,null,null,null,null,null,null,null,null,null,null,null,null,"00","00","00","00","00","00","00","00","00","00","00","00","00","00","00","00","00","00","00","00","00","00","00","00","00","00","00","00","00","00","00","00","00","00","00","00","00","00","00","00","00","00","00","00","00"]
[null,null,null,null,null,null,null,null,null,null,null,null,null,null,null,null,null,null,null,null,null,null,null,null,null,null,null,null,null,null,null,null,null,null,null,null,null,null,null,null,null,null,null,null,null,null,null,null,null,null,null,null,null,null,null,null,null,null,null,null,null,null,null,null,null,null,null,null,null,null,null,null,null,null,null,null,null,null,null,null,null,null,null,null,null,null,null,null,null,null,null,null,null,null,null,"00","00","00","00","00","00","00","00","00","00","00","00","00","00","00","00","00","00","00","00","00","00","00","00","00","00","00","00","00","00","00","00","00","00","00","00","00","00","00","00","00","00","00","00","00"]
[null,null,null,null,null,null,null,null,null,null,null,null,null,null,null,null,null,null,null,null,null,null,null,null,null,null,null,null,null,null,null,null,null,null,null,null,null,null,null,null,null,null,null,null,null,null,null,null,null,null,null,null,null,null,null,null,null,null,null,null,null,null,null,null,null,null,null,null,null,null,null,null,null,null,null,null,null,null,null,null,null,null,null,null,null,null,null,null,null,null,null,null,null,null,null,"00","00","00","00","00","00","00","00","00","00","00","00","00","00","00","00","00","00","00","00","00","00","00","00","00","00","00","00","00","00","00","00","00","00","00","00","00","00","00","00","00","00","00","00","00"]
[null,null,null,null,null,null,null,null,null,null,null,null,null,null,null,null,null,null,null,null,null,null,null,null,null,null,null,null,null,null,null,null,null,null,null,null,null,null,null,null,null,null,null,null,null,null,null,null,null,null,null,null,null,null,null,null,null,null,null,null,null,null,null,null,null,null,null,null,null,null,null,null,null,null,null,null,null,null,null,null,null,null,null,null,null,null,null,null,null,null,null,null,null,null,null,"00","00","00","00","00","00","00","00","00","00","00","00","00","00","00","00","00","00","00","00","00","00","00","00","00","00","00","00","00","00","00","00","00","00","00","00","00","00","00","00","00","00","00","00","00"]
[null,null,null,null,null,null,null,null,null,null,null,null,null,null,null,null,null,null,null,null,null,null,null,null,null,null,null,null,null,null,null,null,null,null,null,null,null,null,null,null,null,null,null,null,null,null,null,null,null,null,null,null,null,null,null,null,null,null,null,null,null,null,null,null,null,null,null,null,null,null,null,null,null,null,null,null,null,null,null,null,null,null,null,null,null,null,null,null,null,null,null,null,null,null,null,"00","00","00","00","00","00","00","00","00","00","00","00","00","00","00","00","00","00","00","00","00","00","00","00","00","00","00","00","00","00","00","00","00","00","00","00","00","00","00","00","00","00","00","00","00"]
[null,"Styring af strømme",null,"Land",0.9,0.9,105,1.05,1.05,"Vandløb",1,1,"< 15.000",1,1,"< 30",1,1,"< 3",1,1,null,null,null,null,null,null,null,null,null,null,null,null,null,null,null,null,null,null,null,null,null,null,null,null,null,null,null,null,null,null,null,null,null,null,null,null,null,null,null,null,null,null,null,null,null,null,null,null,null,null,null,null,null,null,null,null,null,null,null,null,null,null,null,null,null,null,null,null,null,null,null,null,null,null,"00","10","10","00","10","10","00","20","20","00","20","20","00","20","20","00","20","20","00","00","00","00","00","00","00","00","00","00","00","00","00","00","00","00","00","00","00","00","00","00","00","00","00","00","00"]
[null,null,null,"By",1,1,100,1,1,"Sø",1,1,"15.000 - 50.000",1,1,"30 - 150",1,1,"3 - 10",1,1,null,null,null,null,null,null,null,null,null,null,null,null,null,null,null,null,null,null,null,null,null,null,null,null,null,null,null,null,null,null,null,null,null,null,null,null,null,null,null,null,null,null,null,null,null,null,null,null,null,null,null,null,null,null,null,null,null,null,null,null,null,null,null,null,null,null,null,null,null,null,null,null,null,null,"00","10","10","00","10","10","00","20","20","00","20","20","00","20","20","00","20","20","00","00","00","00","00","00","00","00","00","00","00","00","00","00","00","00","00","00","00","00","00","00","00","00","00","00","00"]
[null,null,null,"City",1.2,1.2,95,0.95,0.95,"Hav",1,1,"50.000 - 200.000",1,1,"150 - 600",1,1,"10 - 20",1,1,null,null,null,null,null,null,null,null,null,null,null,null,null,null,null,null,null,null,null,null,null,null,null,null,null,null,null,null,null,null,null,null,null,null,null,null,null,null,null,null,null,null,null,null,null,null,null,null,null,null,null,null,null,null,null,null,null,null,null,null,null,null,null,null,null,null,null,null,null,null,null,null,null,null,"00","10","10","00","10","10","00","20","20","00","20","20","00","20","20","00","20","20","00","00","00","00","00","00","00","00","00","00","00","00","00","00","00","00","00","00","00","00","00","00","00","00","00","00","00"]
[null,null,null,"Indre city",1.6,1.6,90,0.9,0.9,null,null,null,"> 200.000",1,1,"600 - 1000",1,1,"20 - 30",1,1,null,null,null,null,null,null,null,null,null,null,null,null,null,null,null,null,null,null,null,null,null,null,null,null,null,null,null,null,null,null,null,null,null,null,null,null,null,null,null,null,null,null,null,null,null,null,null,null,null,null,null,null,null,null,null,null,null,null,null,null,null,null,null,null,null,null,null,null,null,null,null,null,null,null,"00","10","10","00","10","10","00","00","00","00","20","20","00","20","20","00","20","20","00","00","00","00","00","00","00","00","00","00","00","00","00","00","00","00","00","00","00","00","00","00","00","00","00","00","00"]
[null,null,null,null,null,null,85,0.85,0.85,null,null,null,null,null,null,"> 1000",1,1,"> 30 ",1,1,null,null,null,null,null,null,null,null,null,null,null,null,null,null,null,null,null,null,null,null,null,null,null,null,null,null,null,null,null,null,null,null,null,null,null,null,null,null,null,null,null,null,null,null,null,null,null,null,null,null,null,null,null,null,null,null,null,null,null,null,null,null,null,null,null,null,null,null,null,null,null,null,null,null,"00","00","00","00","10","10","00","00","00","00","00","00","00","20","20","00","20","20","00","00","00","00","00","00","00","00","00","00","00","00","00","00","00","00","00","00","00","00","00","00","00","00","00","00","00"]
[null,null,null,null,null,null,null,null,null,null,null,null,null,null,null,null,null,null,null,null,null,null,null,null,null,null,null,null,null,null,null,null,null,null,null,null,null,null,null,null,null,null,null,null,null,null,null,null,null,null,null,null,null,null,null,null,null,null,null,null,null,null,null,null,null,null,null,null,null,null,null,null,null,null,null,null,null,null,null,null,null,null,null,null,null,null,null,null,null,null,null,null,null,null,null,"00","00","00","00","00","00","00","00","00","00","00","00","00","00","00","00","00","00","00","00","00","00","00","00","00","00","00","00","00","00","00","00","00","00","00","00","00","00","00","00","00","00","00","00","00"]
[null,null,null,null,null,null,null,null,null,null,null,null,null,null,null,null,null,null,null,null,null,null,null,null,null,null,null,null,null,null,null,null,null,null,null,null,null,null,null,null,null,null,null,null,null,null,null,null,null,null,null,null,null,null,null,null,null,null,null,null,null,null,null,null,null,null,null,null,null,null,null,null,null,null,null,null,null,null,null,null,null,null,null,null,null,null,null,null,null,null,null,null,null,null,null,"00","00","00","00","00","00","00","00","00","00","00","00","00","00","00","00","00","00","00","00","00","00","00","00","00","00","00","00","00","00","00","00","00","00","00","00","00","00","00","00","00","00","00","00","00"]
[null,null,null,null,null,null,null,null,null,null,null,null,null,null,null,null,null,null,null,null,null,null,null,null,null,null,null,null,null,null,null,null,null,null,null,null,null,null,null,null,null,null,null,null,null,null,null,null,null,null,null,null,null,null,null,null,null,null,null,null,null,null,null,null,null,null,null,null,null,null,null,null,null,null,null,null,null,null,null,null,null,null,null,null,null,null,null,null,null,null,null,null,null,null,null,"00","00","00","00","00","00","00","00","00","00","00","00","00","00","00","00","00","00","00","00","00","00","00","00","00","00","00","00","00","00","00","00","00","00","00","00","00","00","00","00","00","00","00","00","00"]
[null,null,null,null,null,null,null,null,null,null,null,null,null,null,null,null,null,null,null,null,null,null,null,null,null,null,null,null,null,null,null,null,null,null,null,null,null,null,null,null,null,null,null,null,null,null,null,null,null,null,null,null,null,null,null,null,null,null,null,null,null,null,null,null,null,null,null,null,null,null,null,null,null,null,null,null,null,null,null,null,null,null,null,null,null,null,null,null,null,null,null,null,null,null,null,"00","00","00","00","00","00","00","00","00","00","00","00","00","00","00","00","00","00","00","00","00","00","00","00","00","00","00","00","00","00","00","00","00","00","00","00","00","00","00","00","00","00","00","00","00"]
[null,null,null,null,null,null,null,null,null,null,null,null,null,null,null,null,null,null,null,null,null,null,null,null,null,null,null,null,null,null,null,null,null,null,null,null,null,null,null,null,null,null,null,null,null,null,null,null,null,null,null,null,null,null,null,null,null,null,null,null,null,null,null,null,null,null,null,null,null,null,null,null,null,null,null,null,null,null,null,null,null,null,null,null,null,null,null,null,null,null,null,null,null,null,null,"00","00","00","00","00","00","00","00","00","00","00","00","00","00","00","00","00","00","00","00","00","00","00","00","00","00","00","00","00","00","00","00","00","00","00","00","00","00","00","00","00","00","00","00","00"]
[null,"Diverse",null,"Land",1,1,105,1.05,1.05,"Vandløb",1,1,"< 15.000",1,1,"< 30",1,1,"< 3",1,1,null,null,null,null,null,null,null,null,null,null,null,null,null,null,null,null,null,null,null,null,null,null,null,null,null,null,null,null,null,null,null,null,null,null,null,null,null,null,null,null,null,null,null,null,null,null,null,null,null,null,null,null,null,null,null,null,null,null,null,null,null,null,null,null,null,null,null,null,null,null,null,null,null,null,"00","10","10","00","10","10","00","20","20","00","20","20","00","20","20","00","20","20","00","00","00","00","00","00","00","00","00","00","00","00","00","00","00","00","00","00","00","00","00","00","00","00","00","00","00"]
[null,null,null,"By",1,1,100,1,1,"Sø",1,1,"15.000 - 50.000",1,1,"30 - 150",1,1,"3 - 10",1,1,null,null,null,null,null,null,null,null,null,null,null,null,null,null,null,null,null,null,null,null,null,null,null,null,null,null,null,null,null,null,null,null,null,null,null,null,null,null,null,null,null,null,null,null,null,null,null,null,null,null,null,null,null,null,null,null,null,null,null,null,null,null,null,null,null,null,null,null,null,null,null,null,null,null,"00","10","10","00","10","10","00","20","20","00","20","20","00","20","20","00","20","20","00","00","00","00","00","00","00","00","00","00","00","00","00","00","00","00","00","00","00","00","00","00","00","00","00","00","00"]
[null,null,null,"City",1.2,1.2,95,0.95,0.95,"Hav",1,1,"50.000 - 200.000",1,1,"150 - 600",1,1,"10 - 20",1,1,null,null,null,null,null,null,null,null,null,null,null,null,null,null,null,null,null,null,null,null,null,null,null,null,null,null,null,null,null,null,null,null,null,null,null,null,null,null,null,null,null,null,null,null,null,null,null,null,null,null,null,null,null,null,null,null,null,null,null,null,null,null,null,null,null,null,null,null,null,null,null,null,null,null,"00","10","10","00","10","10","00","20","20","00","20","20","00","20","20","00","20","20","00","00","00","00","00","00","00","00","00","00","00","00","00","00","00","00","00","00","00","00","00","00","00","00","00","00","00"]
[null,null,null,"Indre city",1.6,1.6,90,0.9,0.9,null,null,null,"> 200.000",1,1,"600 - 1000",1,1,"20 - 30",1,1,null,null,null,null,null,null,null,null,null,null,null,null,null,null,null,null,null,null,null,null,null,null,null,null,null,null,null,null,null,null,null,null,null,null,null,null,null,null,null,null,null,null,null,null,null,null,null,null,null,null,null,null,null,null,null,null,null,null,null,null,null,null,null,null,null,null,null,null,null,null,null,null,null,null,"00","10","10","00","10","10","00","00","00","00","20","20","00","20","20","00","20","20","00","00","00","00","00","00","00","00","00","00","00","00","00","00","00","00","00","00","00","00","00","00","00","00","00","00","00"]
[null,null,null,null,null,null,85,0.85,0.85,null,null,null,null,null,null,"> 1000",1,1,"> 30 ",1,1,null,null,null,null,null,null,null,null,null,null,null,null,null,null,null,null,null,null,null,null,null,null,null,null,null,null,null,null,null,null,null,null,null,null,null,null,null,null,null,null,null,null,null,null,null,null,null,null,null,null,null,null,null,null,null,null,null,null,null,null,null,null,null,null,null,null,null,null,null,null,null,null,null,null,"00","00","00","00","10","10","00","00","00","00","00","00","00","20","20","00","20","20","00","00","00","00","00","00","00","00","00","00","00","00","00","00","00","00","00","00","00","00","00","00","00","00","00","00","00"]
[null,null,null,null,null,null,null,null,null,null,null,null,null,null,null,null,null,null,null,null,null,null,null,null,null,null,null,null,null,null,null,null,null,null,null,null,null,null,null,null,null,null,null,null,null,null,null,null,null,null,null,null,null,null,null,null,null,null,null,null,null,null,null,null,null,null,null,null,null,null,null,null,null,null,null,null,null,null,null,null,null,null,null,null,null,null,null,null,null,null,null,null,null,null,null,"00","00","00","00","00","00","00","00","00","00","00","00","00","00","00","00","00","00","00","00","00","00","00","00","00","00","00","00","00","00","00","00","00","00","00","00","00","00","00","00","00","00","00","00","00"]
[null,null,null,null,null,null,null,null,null,null,null,null,null,null,null,null,null,null,null,null,null,null,null,null,null,null,null,null,null,null,null,null,null,null,null,null,null,null,null,null,null,null,null,null,null,null,null,null,null,null,null,null,null,null,null,null,null,null,null,null,null,null,null,null,null,null,null,null,null,null,null,null,null,null,null,null,null,null,null,null,null,null,null,null,null,null,null,null,null,null,null,null,null,null,null,"00","00","00","00","00","00","00","00","00","00","00","00","00","00","00","00","00","00","00","00","00","00","00","00","00","00","00","00","00","00","00","00","00","00","00","00","00","00","00","00","00","00","00","00","00"]
[null,null,null,null,null,null,null,null,null,null,null,null,null,null,null,null,null,null,null,null,null,null,null,null,null,null,null,null,null,null,null,null,null,null,null,null,null,null,null,null,null,null,null,null,null,null,null,null,null,null,null,null,null,null,null,null,null,null,null,null,null,null,null,null,null,null,null,null,null,null,null,null,null,null,null,null,null,null,null,null,null,null,null,null,null,null,null,null,null,null,null,null,null,null,null,"00","00","00","00","00","00","00","00","00","00","00","00","00","00","00","00","00","00","00","00","00","00","00","00","00","00","00","00","00","00","00","00","00","00","00","00","00","00","00","00","00","00","00","00","00"]
[null,null,null,null,null,null,null,null,null,null,null,null,null,null,null,null,null,null,null,null,null,null,null,null,null,null,null,null,null,null,null,null,null,null,null,null,null,null,null,null,null,null,null,null,null,null,null,null,null,null,null,null,null,null,null,null,null,null,null,null,null,null,null,null,null,null,null,null,null,null,null,null,null,null,null,null,null,null,null,null,null,null,null,null,null,null,null,null,null,null,null,null,null,null,null,"00","00","00","00","00","00","00","00","00","00","00","00","00","00","00","00","00","00","00","00","00","00","00","00","00","00","00","00","00","00","00","00","00","00","00","00","00","00","00","00","00","00","00","00","00"]
[null,null,null,null,null,null,null,null,null,null,null,null,null,null,null,null,null,null,null,null,null,null,null,null,null,null,null,null,null,null,null,null,null,null,null,null,null,null,null,null,null,null,null,null,null,null,null,null,null,null,null,null,null,null,null,null,null,null,null,null,null,null,null,null,null,null,null,null,null,null,null,null,null,null,null,null,null,null,null,null,null,null,null,null,null,null,null,null,null,null,null,null,null,null,null,"00","00","00","00","00","00","00","00","00","00","00","00","00","00","00","00","00","00","00","00","00","00","00","00","00","00","00","00","00","00","00","00","00","00","00","00","00","00","00","00","00","00","00","00","00"]
[null,null,null,null,null,null,null,null,null,null,null,null,null,null,null,null,null,null,null,null,null,null,null,null,null,null,null,null,null,null,null,null,null,null,null,null,null,null,null,null,null,null,null,null,null,null,null,null,null,null,null,null,null,null,null,null,null,null,null,null,null,null,null,null,null,null,null,null,null,null,null,null,null,null,null,null,null,null,null,null,null,null,null,null,null,null,null,null,null,null,null,null,null,null,null,"00","00","00","00","00","00","00","00","00","00","00","00","00","00","00","00","00","00","00","00","00","00","00","00","00","00","00","00","00","00","00","00","00","00","00","00","00","00","00","00","00","00","00","00","00"]
[null,null,null,null,null,null,null,null,null,null,null,null,null,null,null,null,null,null,null,null,null,null,null,null,null,null,null,null,null,null,null,null,null,null,null,null,null,null,null,null,null,null,null,null,null,null,null,null,null,null,null,null,null,null,null,null,null,null,null,null,null,null,null,null,null,null,null,null,null,null,null,null,null,null,null,null,null,null,null,null,null,null,null,null,null,null,null,null,null,null,null,null,null,null,null,"00","00","00","00","00","00","00","00","00","00","00","00","00","00","00","00","00","00","00","00","00","00","00","00","00","00","00","00","00","00","00","00","00","00","00","00","00","00","00","00","00","00","00","00","00"]
[null,null,null,null,null,null,null,null,null,null,null,null,null,null,null,null,null,null,null,null,null,null,null,null,null,null,null,null,null,null,null,null,null,null,null,null,null,null,null,null,null,null,null,null,null,null,null,null,null,null,null,null,null,null,null,null,null,null,null,null,null,null,null,null,null,null,null,null,null,null,null,null,null,null,null,null,null,null,null,null,null,null,null,null,null,null,null,null,null,null,null,null,null,null,null,"00","00","00","00","00","00","00","00","00","00","00","00","00","00","00","00","00","00","00","00","00","00","00","00","00","00","00","00","00","00","00","00","00","00","00","00","00","00","00","00","00","00","00","00","00"]
[null,null,null,null,null,null,null,null,null,null,null,null,null,null,null,null,null,null,null,null,null,null,null,null,null,null,null,null,null,null,null,null,null,null,null,null,null,null,null,null,null,null,null,null,null,null,null,null,null,null,null,null,null,null,null,null,null,null,null,null,null,null,null,null,null,null,null,null,null,null,null,null,null,null,null,null,null,null,null,null,null,null,null,null,null,null,null,null,null,null,null,null,null,null,null,"00","00","00","00","00","00","00","00","00","00","00","00","00","00","00","00","00","00","00","00","00","00","00","00","00","00","00","00","00","00","00","00","00","00","00","00","00","00","00","00","00","00","00","00","00"]
[null,null,null,null,null,null,null,null,null,null,null,null,null,null,null,null,null,null,null,null,null,null,null,null,null,null,null,null,null,null,null,null,null,null,null,null,null,null,null,null,null,null,null,null,null,null,null,null,null,null,null,null,null,null,null,null,null,null,null,null,null,null,null,null,null,null,null,null,null,null,null,null,null,null,null,null,null,null,null,null,null,null,null,null,null,null,null,null,null,null,null,null,null,null,null,"00","00","00","00","00","00","00","00","00","00","00","00","00","00","00","00","00","00","00","00","00","00","00","00","00","00","00","00","00","00","00","00","00","00","00","00","00","00","00","00","00","00","00","00","00"]
[null,null,null,null,null,null,null,null,null,null,null,null,null,null,null,null,null,null,null,null,null,null,null,null,null,null,null,null,null,null,null,null,null,null,null,null,null,null,null,null,null,null,null,null,null,null,null,null,null,null,null,null,null,null,null,null,null,null,null,null,null,null,null,null,null,null,null,null,null,null,null,null,null,null,null,null,null,null,null,null,null,null,null,null,null,null,null,null,null,null,null,null,null,null,null,"00","00","00","00","00","00","00","00","00","00","00","00","00","00","00","00","00","00","00","00","00","00","00","00","00","00","00","00","00","00","00","00","00","00","00","00","00","00","00","00","00","00","00","00","00"]
[null,null,null,null,null,null,null,null,null,null,null,null,null,null,null,null,null,null,null,null,null,null,null,null,null,null,null,null,null,null,null,null,null,null,null,null,null,null,null,null,null,null,null,null,null,null,null,null,null,null,null,null,null,null,null,null,null,null,null,null,null,null,null,null,null,null,null,null,null,null,null,null,null,null,null,null,null,null,null,null,null,null,null,null,null,null,null,null,null,null,null,null,null,null,null,"00","00","00","00","00","00","00","00","00","00","00","00","00","00","00","00","00","00","00","00","00","00","00","00","00","00","00","00","00","00","00","00","00","00","00","00","00","00","00","00","00","00","00","00","00"]
[null,null,null,null,null,null,null,null,null,null,null,null,null,null,null,null,null,null,null,null,null,null,null,null,null,null,null,null,null,null,null,null,null,null,null,null,null,null,null,null,null,null,null,null,null,null,null,null,null,null,null,null,null,null,null,null,null,null,null,null,null,null,null,null,null,null,null,null,null,null,null,null,null,null,null,null,null,null,null,null,null,null,null,null,null,null,null,null,null,null,null,null,null,null,null,"00","00","00","00","00","00","00","00","00","00","00","00","00","00","00","00","00","00","00","00","00","00","00","00","00","00","00","00","00","00","00","00","00","00","00","00","00","00","00","00","00","00","00","00","00"]
[null,null,null,null,null,null,null,null,null,null,null,null,null,null,null,null,null,null,null,null,null,null,null,null,null,null,null,null,null,null,null,null,null,null,null,null,null,null,null,null,null,null,null,null,null,null,null,null,null,null,null,null,null,null,null,null,null,null,null,null,null,null,null,null,null,null,null,null,null,null,null,null,null,null,null,null,null,null,null,null,null,null,null,null,null,null,null,null,null,null,null,null,null,null,null,"00","00","00","00","00","00","00","00","00","00","00","00","00","00","00","00","00","00","00","00","00","00","00","00","00","00","00","00","00","00","00","00","00","00","00","00","00","00","00","00","00","00","00","00","00"]
[null,null,null,null,null,null,null,null,null,null,null,null,null,null,null,null,null,null,null,null,null,null,null,null,null,null,null,null,null,null,null,null,null,null,null,null,null,null,null,null,null,null,null,null,null,null,null,null,null,null,null,null,null,null,null,null,null,null,null,null,null,null,null,null,null,null,null,null,null,null,null,null,null,null,null,null,null,null,null,null,null,null,null,null,null,null,null,null,null,null,null,null,null,null,null,"00","00","00","00","00","00","00","00","00","00","00","00","00","00","00","00","00","00","00","00","00","00","00","00","00","00","00","00","00","00","00","00","00","00","00","00","00","00","00","00","00","00","00","00","00"]
[null,null,null,null,null,null,null,null,null,null,null,null,null,null,null,null,null,null,null,null,null,null,null,null,null,null,null,null,null,null,null,null,null,null,null,null,null,null,null,null,null,null,null,null,null,null,null,null,null,null,null,null,null,null,null,null,null,null,null,null,null,null,null,null,null,null,null,null,null,null,null,null,null,null,null,null,null,null,null,null,null,null,null,null,null,null,null,null,null,null,null,null,null,null,null,"00","00","00","00","00","00","00","00","00","00","00","00","00","00","00","00","00","00","00","00","00","00","00","00","00","00","00","00","00","00","00","00","00","00","00","00","00","00","00","00","00","00","00","00","00"]
[null,null,null,null,null,null,null,null,null,null,null,null,null,null,null,null,null,null,null,null,null,null,null,null,null,null,null,null,null,null,null,null,null,null,null,null,null,null,null,null,null,null,null,null,null,null,null,null,null,null,null,null,null,null,null,null,null,null,null,null,null,null,null,null,null,null,null,null,null,null,null,null,null,null,null,null,null,null,null,null,null,null,null,null,null,null,null,null,null,null,null,null,null,null,null,"00","00","00","00","00","00","00","00","00","00","00","00","00","00","00","00","00","00","00","00","00","00","00","00","00","00","00","00","00","00","00","00","00","00","00","00","00","00","00","00","00","00","00","00","00"]
[null,null,null,null,null,null,null,null,null,null,null,null,null,null,null,null,null,null,null,null,null,null,null,null,null,null,null,null,null,null,null,null,null,null,null,null,null,null,null,null,null,null,null,null,null,null,null,null,null,null,null,null,null,null,null,null,null,null,null,null,null,null,null,null,null,null,null,null,null,null,null,null,null,null,null,null,null,null,null,null,null,null,null,null,null,null,null,null,null,null,null,null,null,null,null,"00","00","00","00","00","00","00","00","00","00","00","00","00","00","00","00","00","00","00","00","00","00","00","00","00","00","00","00","00","00","00","00","00","00","00","00","00","00","00","00","00","00","00","00","00"]
[null,null,null,null,null,null,null,null,null,null,null,null,null,null,null,null,null,null,null,null,null,null,null,null,null,null,null,null,null,null,null,null,null,null,null,null,null,null,null,null,null,null,null,null,null,null,null,null,null,null,null,null,null,null,null,null,null,null,null,null,null,null,null,null,null,null,null,null,null,null,null,null,null,null,null,null,null,null,null,null,null,null,null,null,null,null,null,null,null,null,null,null,null,null,null,"00","00","00","00","00","00","00","00","00","00","00","00","00","00","00","00","00","00","00","00","00","00","00","00","00","00","00","00","00","00","00","00","00","00","00","00","00","00","00","00","00","00","00","00","00"]
[null,null,null,null,null,null,null,null,null,null,null,null,null,null,null,null,null,null,null,null,null,null,null,null,null,null,null,null,null,null,null,null,null,null,null,null,null,null,null,null,null,null,null,null,null,null,null,null,null,null,null,null,null,null,null,null,null,null,null,null,null,null,null,null,null,null,null,null,null,null,null,null,null,null,null,null,null,null,null,null,null,null,null,null,null,null,null,null,null,null,null,null,null,null,null,"00","00","00","00","00","00","00","00","00","00","00","00","00","00","00","00","00","00","00","00","00","00","00","00","00","00","00","00","00","00","00","00","00","00","00","00","00","00","00","00","00","00","00","00","00"]
[null,null,null,null,null,null,null,null,null,null,null,null,null,null,null,null,null,null,null,null,null,null,null,null,null,null,null,null,null,null,null,null,null,null,null,null,null,null,null,null,null,null,null,null,null,null,null,null,null,null,null,null,null,null,null,null,null,null,null,null,null,null,null,null,null,null,null,null,null,null,null,null,null,null,null,null,null,null,null,null,null,null,null,null,null,null,null,null,null,null,null,null,null,null,null,"00","00","00","00","00","00","00","00","00","00","00","00","00","00","00","00","00","00","00","00","00","00","00","00","00","00","00","00","00","00","00","00","00","00","00","00","00","00","00","00","00","00","00","00","00"]
[null,null,null,null,null,null,null,null,null,null,null,null,null,null,null,null,null,null,null,null,null,null,null,null,null,null,null,null,null,null,null,null,null,null,null,null,null,null,null,null,null,null,null,null,null,null,null,null,null,null,null,null,null,null,null,null,null,null,null,null,null,null,null,null,null,null,null,null,null,null,null,null,null,null,null,null,null,null,null,null,null,null,null,null,null,null,null,null,null,null,null,null,null,null,null,"00","00","00","00","00","00","00","00","00","00","00","00","00","00","00","00","00","00","00","00","00","00","00","00","00","00","00","00","00","00","00","00","00","00","00","00","00","00","00","00","00","00","00","00","00"]
[null,null,null,null,null,null,null,null,null,null,null,null,null,null,null,null,null,null,null,null,null,null,null,null,null,null,null,null,null,null,null,null,null,null,null,null,null,null,null,null,null,null,null,null,null,null,null,null,null,null,null,null,null,null,null,null,null,null,null,null,null,null,null,null,null,null,null,null,null,null,null,null,null,null,null,null,null,null,null,null,null,null,null,null,null,null,null,null,null,null,null,null,null,null,null,"00","00","00","00","00","00","00","00","00","00","00","00","00","00","00","00","00","00","00","00","00","00","00","00","00","00","00","00","00","00","00","00","00","00","00","00","00","00","00","00","00","00","00","00","00"]
[null,null,null,null,null,null,null,null,null,null,null,null,null,null,null,null,null,null,null,null,null,null,null,null,null,null,null,null,null,null,null,null,null,null,null,null,null,null,null,null,null,null,null,null,null,null,null,null,null,null,null,null,null,null,null,null,null,null,null,null,null,null,null,null,null,null,null,null,null,null,null,null,null,null,null,null,null,null,null,null,null,null,null,null,null,null,null,null,null,null,null,null,null,null,null,"00","00","00","00","00","00","00","00","00","00","00","00","00","00","00","00","00","00","00","00","00","00","00","00","00","00","00","00","00","00","00","00","00","00","00","00","00","00","00","00","00","00","00","00","00"]
[null,null,null,null,null,null,null,null,null,null,null,null,null,null,null,null,null,null,null,null,null,null,null,null,null,null,null,null,null,null,null,null,null,null,null,null,null,null,null,null,null,null,null,null,null,null,null,null,null,null,null,null,null,null,null,null,null,null,null,null,null,null,null,null,null,null,null,null,null,null,null,null,null,null,null,null,null,null,null,null,null,null,null,null,null,null,null,null,null,null,null,null,null,null,null,"00","00","00","00","00","00","00","00","00","00","00","00","00","00","00","00","00","00","00","00","00","00","00","00","00","00","00","00","00","00","00","00","00","00","00","00","00","00","00","00","00","00","00","00","00"]
[null,null,null,null,null,null,null,null,null,null,null,null,null,null,null,null,null,null,null,null,null,null,null,null,null,null,null,null,null,null,null,null,null,null,null,null,null,null,null,null,null,null,null,null,null,null,null,null,null,null,null,null,null,null,null,null,null,null,null,null,null,null,null,null,null,null,null,null,null,null,null,null,null,null,null,null,null,null,null,null,null,null,null,null,null,null,null,null,null,null,null,null,null,null,null,"00","00","00","00","00","00","00","00","00","00","00","00","00","00","00","00","00","00","00","00","00","00","00","00","00","00","00","00","00","00","00","00","00","00","00","00","00","00","00","00","00","00","00","00","00"]
[null,null,null,null,null,null,null,null,null,null,null,null,null,null,null,null,null,null,null,null,null,null,null,null,null,null,null,null,null,null,null,null,null,null,null,null,null,null,null,null,null,null,null,null,null,null,null,null,null,null,null,null,null,null,null,null,null,null,null,null,null,null,null,null,null,null,null,null,null,null,null,null,null,null,null,null,null,null,null,null,null,null,null,null,null,null,null,null,null,null,null,null,null,null,null,"00","00","00","00","00","00","00","00","00","00","00","00","00","00","00","00","00","00","00","00","00","00","00","00","00","00","00","00","00","00","00","00","00","00","00","00","00","00","00","00","00","00","00","00","00"]
[null,null,null,null,null,null,null,null,null,null,null,null,null,null,null,null,null,null,null,null,null,null,null,null,null,null,null,null,null,null,null,null,null,null,null,null,null,null,null,null,null,null,null,null,null,null,null,null,null,null,null,null,null,null,null,null,null,null,null,null,null,null,null,null,null,null,null,null,null,null,null,null,null,null,null,null,null,null,null,null,null,null,null,null,null,null,null,null,null,null,null,null,null,null,null,"00","00","00","00","00","00","00","00","00","00","00","00","00","00","00","00","00","00","00","00","00","00","00","00","00","00","00","00","00","00","00","00","00","00","00","00","00","00","00","00","00","00","00","00","00"]
[null,null,null,null,null,null,null,null,null,null,null,null,null,null,null,null,null,null,null,null,null,null,null,null,null,null,null,null,null,null,null,null,null,null,null,null,null,null,null,null,null,null,null,null,null,null,null,null,null,null,null,null,null,null,null,null,null,null,null,null,null,null,null,null,null,null,null,null,null,null,null,null,null,null,null,null,null,null,null,null,null,null,null,null,null,null,null,null,null,null,null,null,null,null,null,"00","00","00","00","00","00","00","00","00","00","00","00","00","00","00","00","00","00","00","00","00","00","00","00","00","00","00","00","00","00","00","00","00","00","00","00","00","00","00","00","00","00","00","00","00"]
[null,null,null,null,null,null,null,null,null,null,null,null,null,null,null,null,null,null,null,null,null,null,null,null,null,null,null,null,null,null,null,null,null,null,null,null,null,null,null,null,null,null,null,null,null,null,null,null,null,null,null,null,null,null,null,null,null,null,null,null,null,null,null,null,null,null,null,null,null,null,null,null,null,null,null,null,null,null,null,null,null,null,null,null,null,null,null,null,null,null,null,null,null,null,null,"00","00","00","00","00","00","00","00","00","00","00","00","00","00","00","00","00","00","00","00","00","00","00","00","00","00","00","00","00","00","00","00","00","00","00","00","00","00","00","00","00","00","00","00","00"]
[null,null,null,null,null,null,null,null,null,null,null,null,null,null,null,null,null,null,null,null,null,null,null,null,null,null,null,null,null,null,null,null,null,null,null,null,null,null,null,null,null,null,null,null,null,null,null,null,null,null,null,null,null,null,null,null,null,null,null,null,null,null,null,null,null,null,null,null,null,null,null,null,null,null,null,null,null,null,null,null,null,null,null,null,null,null,null,null,null,null,null,null,null,null,null,"00","00","00","00","00","00","00","00","00","00","00","00","00","00","00","00","00","00","00","00","00","00","00","00","00","00","00","00","00","00","00","00","00","00","00","00","00","00","00","00","00","00","00","00","00"]
[null,null,null,null,null,null,null,null,null,null,null,null,null,null,null,null,null,null,null,null,null,null,null,null,null,null,null,null,null,null,null,null,null,null,null,null,null,null,null,null,null,null,null,null,null,null,null,null,null,null,null,null,null,null,null,null,null,null,null,null,null,null,null,null,null,null,null,null,null,null,null,null,null,null,null,null,null,null,null,null,null,null,null,null,null,null,null,null,null,null,null,null,null,null,null,"00","00","00","00","00","00","00","00","00","00","00","00","00","00","00","00","00","00","00","00","00","00","00","00","00","00","00","00","00","00","00","00","00","00","00","00","00","00","00","00","00","00","00","00","00"]
[null,null,null,null,null,null,null,null,null,null,null,null,null,null,null,null,null,null,null,null,null,null,null,null,null,null,null,null,null,null,null,null,null,null,null,null,null,null,null,null,null,null,null,null,null,null,null,null,null,null,null,null,null,null,null,null,null,null,null,null,null,null,null,null,null,null,null,null,null,null,null,null,null,null,null,null,null,null,null,null,null,null,null,null,null,null,null,null,null,null,null,null,null,null,null,"00","00","00","00","00","00","00","00","00","00","00","00","00","00","00","00","00","00","00","00","00","00","00","00","00","00","00","00","00","00","00","00","00","00","00","00","00","00","00","00","00","00","00","00","00"]
[null,null,null,null,null,null,null,null,null,null,null,null,null,null,null,null,null,null,null,null,null,null,null,null,null,null,null,null,null,null,null,null,null,null,null,null,null,null,null,null,null,null,null,null,null,null,null,null,null,null,null,null,null,null,null,null,null,null,null,null,null,null,null,null,null,null,null,null,null,null,null,null,null,null,null,null,null,null,null,null,null,null,null,null,null,null,null,null,null,null,null,null,null,null,null,"00","00","00","00","00","00","00","00","00","00","00","00","00","00","00","00","00","00","00","00","00","00","00","00","00","00","00","00","00","00","00","00","00","00","00","00","00","00","00","00","00","00","00","00","00"]
[null,null,null,null,null,null,null,null,null,null,null,null,null,null,null,null,null,null,null,null,null,null,null,null,null,null,null,null,null,null,null,null,null,null,null,null,null,null,null,null,null,null,null,null,null,null,null,null,null,null,null,null,null,null,null,null,null,null,null,null,null,null,null,null,null,null,null,null,null,null,null,null,null,null,null,null,null,null,null,null,null,null,null,null,null,null,null,null,null,null,null,null,null,null,null,"00","00","00","00","00","00","00","00","00","00","00","00","00","00","00","00","00","00","00","00","00","00","00","00","00","00","00","00","00","00","00","00","00","00","00","00","00","00","00","00","00","00","00","00","00"]
[null,null,null,null,null,null,null,null,null,null,null,null,null,null,null,null,null,null,null,null,null,null,null,null,null,null,null,null,null,null,null,null,null,null,null,null,null,null,null,null,null,null,null,null,null,null,null,null,null,null,null,null,null,null,null,null,null,null,null,null,null,null,null,null,null,null,null,null,null,null,null,null,null,null,null,null,null,null,null,null,null,null,null,null,null,null,null,null,null,null,null,null,null,null,null,"00","00","00","00","00","00","00","00","00","00","00","00","00","00","00","00","00","00","00","00","00","00","00","00","00","00","00","00","00","00","00","00","00","00","00","00","00","00","00","00","00","00","00","00","00"]
[null,null,null,null,null,null,null,null,null,null,null,null,null,null,null,null,null,null,null,null,null,null,null,null,null,null,null,null,null,null,null,null,null,null,null,null,null,null,null,null,null,null,null,null,null,null,null,null,null,null,null,null,null,null,null,null,null,null,null,null,null,null,null,null,null,null,null,null,null,null,null,null,null,null,null,null,null,null,null,null,null,null,null,null,null,null,null,null,null,null,null,null,null,null,null,"00","00","00","00","00","00","00","00","00","00","00","00","00","00","00","00","00","00","00","00","00","00","00","00","00","00","00","00","00","00","00","00","00","00","00","00","00","00","00","00","00","00","00","00","00"]
[null,null,null,null,null,null,null,null,null,null,null,null,null,null,null,null,null,null,null,null,null,null,null,null,null,null,null,null,null,null,null,null,null,null,null,null,null,null,null,null,null,null,null,null,null,null,null,null,null,null,null,null,null,null,null,null,null,null,null,null,null,null,null,null,null,null,null,null,null,null,null,null,null,null,null,null,null,null,null,null,null,null,null,null,null,null,null,null,null,null,null,null,null,null,null,"00","00","00","00","00","00","00","00","00","00","00","00","00","00","00","00","00","00","00","00","00","00","00","00","00","00","00","00","00","00","00","00","00","00","00","00","00","00","00","00","00","00","00","00","00"]
[null,null,null,null,null,null,null,null,null,null,null,null,null,null,null,null,null,null,null,null,null,null,null,null,null,null,null,null,null,null,null,null,null,null,null,null,null,null,null,null,null,null,null,null,null,null,null,null,null,null,null,null,null,null,null,null,null,null,null,null,null,null,null,null,null,null,null,null,null,null,null,null,null,null,null,null,null,null,null,null,null,null,null,null,null,null,null,null,null,null,null,null,null,null,null,"00","00","00","00","00","00","00","00","00","00","00","00","00","00","00","00","00","00","00","00","00","00","00","00","00","00","00","00","00","00","00","00","00","00","00","00","00","00","00","00","00","00","00","00","00"]
[null,null,null,null,null,null,null,null,null,null,null,null,null,null,null,null,null,null,null,null,null,null,null,null,null,null,null,null,null,null,null,null,null,null,null,null,null,null,null,null,null,null,null,null,null,null,null,null,null,null,null,null,null,null,null,null,null,null,null,null,null,null,null,null,null,null,null,null,null,null,null,null,null,null,null,null,null,null,null,null,null,null,null,null,null,null,null,null,null,null,null,null,null,null,null,"00","00","00","00","00","00","00","00","00","00","00","00","00","00","00","00","00","00","00","00","00","00","00","00","00","00","00","00","00","00","00","00","00","00","00","00","00","00","00","00","00","00","00","00","00"]
[null,null,null,null,null,null,null,null,null,null,null,null,null,null,null,null,null,null,null,null,null,null,null,null,null,null,null,null,null,null,null,null,null,null,null,null,null,null,null,null,null,null,null,null,null,null,null,null,null,null,null,null,null,null,null,null,null,null,null,null,null,null,null,null,null,null,null,null,null,null,null,null,null,null,null,null,null,null,null,null,null,null,null,null,null,null,null,null,null,null,null,null,null,null,null,"00","00","00","00","00","00","00","00","00","00","00","00","00","00","00","00","00","00","00","00","00","00","00","00","00","00","00","00","00","00","00","00","00","00","00","00","00","00","00","00","00","00","00","00","00"]
[null,null,null,null,null,null,null,null,null,null,null,null,null,null,null,null,null,null,null,null,null,null,null,null,null,null,null,null,null,null,null,null,null,null,null,null,null,null,null,null,null,null,null,null,null,null,null,null,null,null,null,null,null,null,null,null,null,null,null,null,null,null,null,null,null,null,null,null,null,null,null,null,null,null,null,null,null,null,null,null,null,null,null,null,null,null,null,null,null,null,null,null,null,null,null,"00","00","00","00","00","00","00","00","00","00","00","00","00","00","00","00","00","00","00","00","00","00","00","00","00","00","00","00","00","00","00","00","00","00","00","00","00","00","00","00","00","00","00","00","00"]
[null,null,null,null,null,null,null,null,null,null,null,null,null,null,null,null,null,null,null,null,null,null,null,null,null,null,null,null,null,null,null,null,null,null,null,null,null,null,null,null,null,null,null,null,null,null,null,null,null,null,null,null,null,null,null,null,null,null,null,null,null,null,null,null,null,null,null,null,null,null,null,null,null,null,null,null,null,null,null,null,null,null,null,null,null,null,null,null,null,null,null,null,null,null,null,"00","00","00","00","00","00","00","00","00","00","00","00","00","00","00","00","00","00","00","00","00","00","00","00","00","00","00","00","00","00","00","00","00","00","00","00","00","00","00","00","00","00","00","00","00"]
[null,null,null,null,null,null,null,null,null,null,null,null,null,null,null,null,null,null,null,null,null,null,null,null,null,null,null,null,null,null,null,null,null,null,null,null,null,null,null,null,null,null,null,null,null,null,null,null,null,null,null,null,null,null,null,null,null,null,null,null,null,null,null,null,null,null,null,null,null,null,null,null,null,null,null,null,null,null,null,null,null,null,null,null,null,null,null,null,null,null,null,null,null,null,null,"00","00","00","00","00","00","00","00","00","00","00","00","00","00","00","00","00","00","00","00","00","00","00","00","00","00","00","00","00","00","00","00","00","00","00","00","00","00","00","00","00","00","00","00","00"]
[null,null,null,null,null,null,null,null,null,null,null,null,null,null,null,null,null,null,null,null,null,null,null,null,null,null,null,null,null,null,null,null,null,null,null,null,null,null,null,null,null,null,null,null,null,null,null,null,null,null,null,null,null,null,null,null,null,null,null,null,null,null,null,null,null,null,null,null,null,null,null,null,null,null,null,null,null,null,null,null,null,null,null,null,null,null,null,null,null,null,null,null,null,null,null,"00","00","00","00","00","00","00","00","00","00","00","00","00","00","00","00","00","00","00","00","00","00","00","00","00","00","00","00","00","00","00","00","00","00","00","00","00","00","00","00","00","00","00","00","00"]
[null,null,null,null,null,null,null,null,null,null,null,null,null,null,null,null,null,null,null,null,null,null,null,null,null,null,null,null,null,null,null,null,null,null,null,null,null,null,null,null,null,null,null,null,null,null,null,null,null,null,null,null,null,null,null,null,null,null,null,null,null,null,null,null,null,null,null,null,null,null,null,null,null,null,null,null,null,null,null,null,null,null,null,null,null,null,null,null,null,null,null,null,null,null,null,"00","00","00","00","00","00","00","00","00","00","00","00","00","00","00","00","00","00","00","00","00","00","00","00","00","00","00","00","00","00","00","00","00","00","00","00","00","00","00","00","00","00","00","00","00"]
[null,null,null,null,null,null,null,null,null,null,null,null,null,null,null,null,null,null,null,null,null,null,null,null,null,null,null,null,null,null,null,null,null,null,null,null,null,null,null,null,null,null,null,null,null,null,null,null,null,null,null,null,null,null,null,null,null,null,null,null,null,null,null,null,null,null,null,null,null,null,null,null,null,null,null,null,null,null,null,null,null,null,null,null,null,null,null,null,null,null,null,null,null,null,null,"00","00","00","00","00","00","00","00","00","00","00","00","00","00","00","00","00","00","00","00","00","00","00","00","00","00","00","00","00","00","00","00","00","00","00","00","00","00","00","00","00","00","00","00","00"]
[null,null,null,null,null,null,null,null,null,null,null,null,null,null,null,null,null,null,null,null,null,null,null,null,null,null,null,null,null,null,null,null,null,null,null,null,null,null,null,null,null,null,null,null,null,null,null,null,null,null,null,null,null,null,null,null,null,null,null,null,null,null,null,null,null,null,null,null,null,null,null,null,null,null,null,null,null,null,null,null,null,null,null,null,null,null,null,null,null,null,null,null,null,null,null,"00","00","00","00","00","00","00","00","00","00","00","00","00","00","00","00","00","00","00","00","00","00","00","00","00","00","00","00","00","00","00","00","00","00","00","00","00","00","00","00","00","00","00","00","00"]
[null,null,null,null,null,null,null,null,null,null,null,null,null,null,null,null,null,null,null,null,null,null,null,null,null,null,null,null,null,null,null,null,null,null,null,null,null,null,null,null,null,null,null,null,null,null,null,null,null,null,null,null,null,null,null,null,null,null,null,null,null,null,null,null,null,null,null,null,null,null,null,null,null,null,null,null,null,null,null,null,null,null,null,null,null,null,null,null,null,null,null,null,null,null,null,"00","00","00","00","00","00","00","00","00","00","00","00","00","00","00","00","00","00","00","00","00","00","00","00","00","00","00","00","00","00","00","00","00","00","00","00","00","00","00","00","00","00","00","00","00"]
[null,null,null,null,null,null,null,null,null,null,null,null,null,null,null,null,null,null,null,null,null,null,null,null,null,null,null,null,null,null,null,null,null,null,null,null,null,null,null,null,null,null,null,null,null,null,null,null,null,null,null,null,null,null,null,null,null,null,null,null,null,null,null,null,null,null,null,null,null,null,null,null,null,null,null,null,null,null,null,null,null,null,null,null,null,null,null,null,null,null,null,null,null,null,null,"00","00","00","00","00","00","00","00","00","00","00","00","00","00","00","00","00","00","00","00","00","00","00","00","00","00","00","00","00","00","00","00","00","00","00","00","00","00","00","00","00","00","00","00","00"]
[null,null,null,null,null,null,null,null,null,null,null,null,null,null,null,null,null,null,null,null,null,null,null,null,null,null,null,null,null,null,null,null,null,null,null,null,null,null,null,null,null,null,null,null,null,null,null,null,null,null,null,null,null,null,null,null,null,null,null,null,null,null,null,null,null,null,null,null,null,null,null,null,null,null,null,null,null,null,null,null,null,null,null,null,null,null,null,null,null,null,null,null,null,null,null,"00","00","00","00","00","00","00","00","00","00","00","00","00","00","00","00","00","00","00","00","00","00","00","00","00","00","00","00","00","00","00","00","00","00","00","00","00","00","00","00","00","00","00","00","00"]
[null,null,null,null,null,null,null,null,null,null,null,null,null,null,null,null,null,null,null,null,null,null,null,null,null,null,null,null,null,null,null,null,null,null,null,null,null,null,null,null,null,null,null,null,null,null,null,null,null,null,null,null,null,null,null,null,null,null,null,null,null,null,null,null,null,null,null,null,null,null,null,null,null,null,null,null,null,null,null,null,null,null,null,null,null,null,null,null,null,null,null,null,null,null,null,"00","00","00","00","00","00","00","00","00","00","00","00","00","00","00","00","00","00","00","00","00","00","00","00","00","00","00","00","00","00","00","00","00","00","00","00","00","00","00","00","00","00","00","00","00"]
[null,null,null,null,null,null,null,null,null,null,null,null,null,null,null,null,null,null,null,null,null,null,null,null,null,null,null,null,null,null,null,null,null,null,null,null,null,null,null,null,null,null,null,null,null,null,null,null,null,null,null,null,null,null,null,null,null,null,null,null,null,null,null,null,null,null,null,null,null,null,null,null,null,null,null,null,null,null,null,null,null,null,null,null,null,null,null,null,null,null,null,null,null,null,null,"00","00","00","00","00","00","00","00","00","00","00","00","00","00","00","00","00","00","00","00","00","00","00","00","00","00","00","00","00","00","00","00","00","00","00","00","00","00","00","00","00","00","00","00","00"]
[null,null,null,null,null,null,null,null,null,null,null,null,null,null,null,null,null,null,null,null,null,null,null,null,null,null,null,null,null,null,null,null,null,null,null,null,null,null,null,null,null,null,null,null,null,null,null,null,null,null,null,null,null,null,null,null,null,null,null,null,null,null,null,null,null,null,null,null,null,null,null,null,null,null,null,null,null,null,null,null,null,null,null,null,null,null,null,null,null,null,null,null,null,null,null,"00","00","00","00","00","00","00","00","00","00","00","00","00","00","00","00","00","00","00","00","00","00","00","00","00","00","00","00","00","00","00","00","00","00","00","00","00","00","00","00","00","00","00","00","00"]
[null,null,null,null,null,null,null,null,null,null,null,null,null,null,null,null,null,null,null,null,null,null,null,null,null,null,null,null,null,null,null,null,null,null,null,null,null,null,null,null,null,null,null,null,null,null,null,null,null,null,null,null,null,null,null,null,null,null,null,null,null,null,null,null,null,null,null,null,null,null,null,null,null,null,null,null,null,null,null,null,null,null,null,null,null,null,null,null,null,null,null,null,null,null,null,"00","00","00","00","00","00","00","00","00","00","00","00","00","00","00","00","00","00","00","00","00","00","00","00","00","00","00","00","00","00","00","00","00","00","00","00","00","00","00","00","00","00","00","00","00"]
[null,null,null,null,null,null,null,null,null,null,null,null,null,null,null,null,null,null,null,null,null,null,null,null,null,null,null,null,null,null,null,null,null,null,null,null,null,null,null,null,null,null,null,null,null,null,null,null,null,null,null,null,null,null,null,null,null,null,null,null,null,null,null,null,null,null,null,null,null,null,null,null,null,null,null,null,null,null,null,null,null,null,null,null,null,null,null,null,null,null,null,null,null,null,null,"00","00","00","00","00","00","00","00","00","00","00","00","00","00","00","00","00","00","00","00","00","00","00","00","00","00","00","00","00","00","00","00","00","00","00","00","00","00","00","00","00","00","00","00","00"]
[null,null,null,null,null,null,null,null,null,null,null,null,null,null,null,null,null,null,null,null,null,null,null,null,null,null,null,null,null,null,null,null,null,null,null,null,null,null,null,null,null,null,null,null,null,null,null,null,null,null,null,null,null,null,null,null,null,null,null,null,null,null,null,null,null,null,null,null,null,null,null,null,null,null,null,null,null,null,null,null,null,null,null,null,null,null,null,null,null,null,null,null,null,null,null,"00","00","00","00","00","00","00","00","00","00","00","00","00","00","00","00","00","00","00","00","00","00","00","00","00","00","00","00","00","00","00","00","00","00","00","00","00","00","00","00","00","00","00","00","00"]
[null,null,null,null,null,null,null,null,null,null,null,null,null,null,null,null,null,null,null,null,null,null,null,null,null,null,null,null,null,null,null,null,null,null,null,null,null,null,null,null,null,null,null,null,null,null,null,null,null,null,null,null,null,null,null,null,null,null,null,null,null,null,null,null,null,null,null,null,null,null,null,null,null,null,null,null,null,null,null,null,null,null,null,null,null,null,null,null,null,null,null,null,null,null,null,"00","00","00","00","00","00","00","00","00","00","00","00","00","00","00","00","00","00","00","00","00","00","00","00","00","00","00","00","00","00","00","00","00","00","00","00","00","00","00","00","00","00","00","00","00"]
[null,null,null,null,null,null,null,null,null,null,null,null,null,null,null,null,null,null,null,null,null,null,null,null,null,null,null,null,null,null,null,null,null,null,null,null,null,null,null,null,null,null,null,null,null,null,null,null,null,null,null,null,null,null,null,null,null,null,null,null,null,null,null,null,null,null,null,null,null,null,null,null,null,null,null,null,null,null,null,null,null,null,null,null,null,null,null,null,null,null,null,null,null,null,null,"00","00","00","00","00","00","00","00","00","00","00","00","00","00","00","00","00","00","00","00","00","00","00","00","00","00","00","00","00","00","00","00","00","00","00","00","00","00","00","00","00","00","00","00","00"]
[null,null,null,null,null,null,null,null,null,null,null,null,null,null,null,null,null,null,null,null,null,null,null,null,null,null,null,null,null,null,null,null,null,null,null,null,null,null,null,null,null,null,null,null,null,null,null,null,null,null,null,null,null,null,null,null,null,null,null,null,null,null,null,null,null,null,null,null,null,null,null,null,null,null,null,null,null,null,null,null,null,null,null,null,null,null,null,null,null,null,null,null,null,null,null,"00","00","00","00","00","00","00","00","00","00","00","00","00","00","00","00","00","00","00","00","00","00","00","00","00","00","00","00","00","00","00","00","00","00","00","00","00","00","00","00","00","00","00","00","00"]
[null,null,null,null,null,null,null,null,null,null,null,null,null,null,null,null,null,null,null,null,null,null,null,null,null,null,null,null,null,null,null,null,null,null,null,null,null,null,null,null,null,null,null,null,null,null,null,null,null,null,null,null,null,null,null,null,null,null,null,null,null,null,null,null,null,null,null,null,null,null,null,null,null,null,null,null,null,null,null,null,null,null,null,null,null,null,null,null,null,null,null,null,null,null,null,"00","00","00","00","00","00","00","00","00","00","00","00","00","00","00","00","00","00","00","00","00","00","00","00","00","00","00","00","00","00","00","00","00","00","00","00","00","00","00","00","00","00","00","00","00"]
[null,null,null,null,null,null,null,null,null,null,null,null,null,null,null,null,null,null,null,null,null,null,null,null,null,null,null,null,null,null,null,null,null,null,null,null,null,null,null,null,null,null,null,null,null,null,null,null,null,null,null,null,null,null,null,null,null,null,null,null,null,null,null,null,null,null,null,null,null,null,null,null,null,null,null,null,null,null,null,null,null,null,null,null,null,null,null,null,null,null,null,null,null,null,null,"00","00","00","00","00","00","00","00","00","00","00","00","00","00","00","00","00","00","00","00","00","00","00","00","00","00","00","00","00","00","00","00","00","00","00","00","00","00","00","00","00","00","00","00","00"]
[null,null,null,null,null,null,null,null,null,null,null,null,null,null,null,null,null,null,null,null,null,null,null,null,null,null,null,null,null,null,null,null,null,null,null,null,null,null,null,null,null,null,null,null,null,null,null,null,null,null,null,null,null,null,null,null,null,null,null,null,null,null,null,null,null,null,null,null,null,null,null,null,null,null,null,null,null,null,null,null,null,null,null,null,null,null,null,null,null,null,null,null,null,null,null,"00","00","00","00","00","00","00","00","00","00","00","00","00","00","00","00","00","00","00","00","00","00","00","00","00","00","00","00","00","00","00","00","00","00","00","00","00","00","00","00","00","00","00","00","00"]
[null,null,null,null,null,null,null,null,null,null,null,null,null,null,null,null,null,null,null,null,null,null,null,null,null,null,null,null,null,null,null,null,null,null,null,null,null,null,null,null,null,null,null,null,null,null,null,null,null,null,null,null,null,null,null,null,null,null,null,null,null,null,null,null,null,null,null,null,null,null,null,null,null,null,null,null,null,null,null,null,null,null,null,null,null,null,null,null,null,null,null,null,null,null,null,"00","00","00","00","00","00","00","00","00","00","00","00","00","00","00","00","00","00","00","00","00","00","00","00","00","00","00","00","00","00","00","00","00","00","00","00","00","00","00","00","00","00","00","00","00"]
[null,null,null,null,null,null,null,null,null,null,null,null,null,null,null,null,null,null,null,null,null,null,null,null,null,null,null,null,null,null,null,null,null,null,null,null,null,null,null,null,null,null,null,null,null,null,null,null,null,null,null,null,null,null,null,null,null,null,null,null,null,null,null,null,null,null,null,null,null,null,null,null,null,null,null,null,null,null,null,null,null,null,null,null,null,null,null,null,null,null,null,null,null,null,null,"00","00","00","00","00","00","00","00","00","00","00","00","00","00","00","00","00","00","00","00","00","00","00","00","00","00","00","00","00","00","00","00","00","00","00","00","00","00","00","00","00","00","00","00","00"]
[null,null,null,null,null,null,null,null,null,null,null,null,null,null,null,null,null,null,null,null,null,null,null,null,null,null,null,null,null,null,null,null,null,null,null,null,null,null,null,null,null,null,null,null,null,null,null,null,null,null,null,null,null,null,null,null,null,null,null,null,null,null,null,null,null,null,null,null,null,null,null,null,null,null,null,null,null,null,null,null,null,null,null,null,null,null,null,null,null,null,null,null,null,null,null,"00","00","00","00","00","00","00","00","00","00","00","00","00","00","00","00","00","00","00","00","00","00","00","00","00","00","00","00","00","00","00","00","00","00","00","00","00","00","00","00","00","00","00","00","00"]
[null,null,null,null,null,null,null,null,null,null,null,null,null,null,null,null,null,null,null,null,null,null,null,null,null,null,null,null,null,null,null,null,null,null,null,null,null,null,null,null,null,null,null,null,null,null,null,null,null,null,null,null,null,null,null,null,null,null,null,null,null,null,null,null,null,null,null,null,null,null,null,null,null,null,null,null,null,null,null,null,null,null,null,null,null,null,null,null,null,null,null,null,null,null,null,"00","00","00","00","00","00","00","00","00","00","00","00","00","00","00","00","00","00","00","00","00","00","00","00","00","00","00","00","00","00","00","00","00","00","00","00","00","00","00","00","00","00","00","00","00"]
[null,null,null,null,null,null,null,null,null,null,null,null,null,null,null,null,null,null,null,null,null,null,null,null,null,null,null,null,null,null,null,null,null,null,null,null,null,null,null,null,null,null,null,null,null,null,null,null,null,null,null,null,null,null,null,null,null,null,null,null,null,null,null,null,null,null,null,null,null,null,null,null,null,null,null,null,null,null,null,null,null,null,null,null,null,null,null,null,null,null,null,null,null,null,null,"00","00","00","00","00","00","00","00","00","00","00","00","00","00","00","00","00","00","00","00","00","00","00","00","00","00","00","00","00","00","00","00","00","00","00","00","00","00","00","00","00","00","00","00","00"]
[null,null,null,null,null,null,null,null,null,null,null,null,null,null,null,null,null,null,null,null,null,null,null,null,null,null,null,null,null,null,null,null,null,null,null,null,null,null,null,null,null,null,null,null,null,null,null,null,null,null,null,null,null,null,null,null,null,null,null,null,null,null,null,null,null,null,null,null,null,null,null,null,null,null,null,null,null,null,null,null,null,null,null,null,null,null,null,null,null,null,null,null,null,null,null,"00","00","00","00","00","00","00","00","00","00","00","00","00","00","00","00","00","00","00","00","00","00","00","00","00","00","00","00","00","00","00","00","00","00","00","00","00","00","00","00","00","00","00","00","00"]
[null,null,null,null,null,null,null,null,null,null,null,null,null,null,null,null,null,null,null,null,null,null,null,null,null,null,null,null,null,null,null,null,null,null,null,null,null,null,null,null,null,null,null,null,null,null,null,null,null,null,null,null,null,null,null,null,null,null,null,null,null,null,null,null,null,null,null,null,null,null,null,null,null,null,null,null,null,null,null,null,null,null,null,null,null,null,null,null,null,null,null,null,null,null,null,"00","00","00","00","00","00","00","00","00","00","00","00","00","00","00","00","00","00","00","00","00","00","00","00","00","00","00","00","00","00","00","00","00","00","00","00","00","00","00","00","00","00","00","00","00"]
[null,null,null,null,null,null,null,null,null,null,null,null,null,null,null,null,null,null,null,null,null,null,null,null,null,null,null,null,null,null,null,null,null,null,null,null,null,null,null,null,null,null,null,null,null,null,null,null,null,null,null,null,null,null,null,null,null,null,null,null,null,null,null,null,null,null,null,null,null,null,null,null,null,null,null,null,null,null,null,null,null,null,null,null,null,null,null,null,null,null,null,null,null,null,null,"00","00","00","00","00","00","00","00","00","00","00","00","00","00","00","00","00","00","00","00","00","00","00","00","00","00","00","00","00","00","00","00","00","00","00","00","00","00","00","00","00","00","00","00","00"]
[null,null,null,null,null,null,null,null,null,null,null,null,null,null,null,null,null,null,null,null,null,null,null,null,null,null,null,null,null,null,null,null,null,null,null,null,null,null,null,null,null,null,null,null,null,null,null,null,null,null,null,null,null,null,null,null,null,null,null,null,null,null,null,null,null,null,null,null,null,null,null,null,null,null,null,null,null,null,null,null,null,null,null,null,null,null,null,null,null,null,null,null,null,null,null,"00","00","00","00","00","00","00","00","00","00","00","00","00","00","00","00","00","00","00","00","00","00","00","00","00","00","00","00","00","00","00","00","00","00","00","00","00","00","00","00","00","00","00","00","00"]
[null,null,null,null,null,null,null,null,null,null,null,null,null,null,null,null,null,null,null,null,null,null,null,null,null,null,null,null,null,null,null,null,null,null,null,null,null,null,null,null,null,null,null,null,null,null,null,null,null,null,null,null,null,null,null,null,null,null,null,null,null,null,null,null,null,null,null,null,null,null,null,null,null,null,null,null,null,null,null,null,null,null,null,null,null,null,null,null,null,null,null,null,null,null,null,"00","00","00","00","00","00","00","00","00","00","00","00","00","00","00","00","00","00","00","00","00","00","00","00","00","00","00","00","00","00","00","00","00","00","00","00","00","00","00","00","00","00","00","00","00"]
[null,null,null,null,null,null,null,null,null,null,null,null,null,null,null,null,null,null,null,null,null,null,null,null,null,null,null,null,null,null,null,null,null,null,null,null,null,null,null,null,null,null,null,null,null,null,null,null,null,null,null,null,null,null,null,null,null,null,null,null,null,null,null,null,null,null,null,null,null,null,null,null,null,null,null,null,null,null,null,null,null,null,null,null,null,null,null,null,null,null,null,null,null,null,null,"00","00","00","00","00","00","00","00","00","00","00","00","00","00","00","00","00","00","00","00","00","00","00","00","00","00","00","00","00","00","00","00","00","00","00","00","00","00","00","00","00","00","00","00","00"]
[null,null,null,null,null,null,null,null,null,null,null,null,null,null,null,null,null,null,null,null,null,null,null,null,null,null,null,null,null,null,null,null,null,null,null,null,null,null,null,null,null,null,null,null,null,null,null,null,null,null,null,null,null,null,null,null,null,null,null,null,null,null,null,null,null,null,null,null,null,null,null,null,null,null,null,null,null,null,null,null,null,null,null,null,null,null,null,null,null,null,null,null,null,null,null,"00","00","00","00","00","00","00","00","00","00","00","00","00","00","00","00","00","00","00","00","00","00","00","00","00","00","00","00","00","00","00","00","00","00","00","00","00","00","00","00","00","00","00","00","00"]
["Renseanlæg",null,null,null,null,null,null,null,null,null,null,null,null,null,null,null,null,null,null,null,null,null,null,null,null,null,null,null,null,null,null,null,null,null,null,null,null,null,null,null,null,null,null,null,null,null,null,null,null,null,null,null,null,null,null,null,null,null,null,null,null,null,null,null,null,null,null,null,null,null,null,null,null,null,null,null,null,null,null,null,null,null,null,null,null,null,null,null,null,null,null,null,null,null,null,"00","21","21","00","21","21","00","21","21","00","21","21","00","21","21","00","21","21","00","00","00","00","00","00","00","00","00","00","00","00","00","00","00","00","00","00","00","00","00","00","00","00","00","00","00"]
[null,null,null,null,null,null,null,null,null,null,null,null,null,null,null,null,null,null,null,null,null,null,null,null,null,null,null,null,null,null,null,null,null,null,null,null,null,null,null,null,null,null,null,null,null,null,null,null,null,null,null,null,null,null,null,null,null,null,null,null,null,null,null,null,null,null,null,null,null,null,null,null,null,null,null,null,null,null,null,null,null,null,null,null,null,null,null,null,null,null,null,null,null,null,null,"00","21","21","00","21","21","00","21","21","00","21","21","00","21","21","00","21","21","00","00","00","00","00","00","00","00","00","00","00","00","00","00","00","00","00","00","00","00","00","00","00","00","00","00","00"]
[null,null,null,null,null,null,null,null,null,null,null,null,null,null,null,null,null,null,null,null,null,null,null,null,null,null,null,null,null,null,null,null,null,null,null,null,null,null,null,null,null,null,null,null,null,null,null,null,null,null,null,null,null,null,null,null,null,null,null,null,null,null,null,null,null,null,null,null,null,null,null,null,null,null,null,null,null,null,null,null,null,null,null,null,null,null,null,null,null,null,null,null,null,null,null,"00","21","21","00","21","21","00","21","21","00","21","21","00","21","21","00","21","21","00","00","00","00","00","00","00","00","00","00","00","00","00","00","00","00","00","00","00","00","00","00","00","00","00","00","00"]
[null,null,null,null,null,null,null,null,null,null,null,null,null,null,null,null,null,null,null,null,null,null,null,null,null,null,null,null,null,null,null,null,null,null,null,null,null,null,null,null,null,null,null,null,null,null,null,null,null,null,null,null,null,null,null,null,null,null,null,null,null,null,null,null,null,null,null,null,null,null,null,null,null,null,null,null,null,null,null,null,null,null,null,null,null,null,null,null,null,null,null,null,null,null,null,"00","21","21","00","21","21","00","00","00","00","21","21","00","21","21","00","21","21","00","00","00","00","00","00","00","00","00","00","00","00","00","00","00","00","00","00","00","00","00","00","00","00","00","00","00"]
[null,null,null,null,null,null,null,null,null,null,null,null,null,null,null,null,null,null,null,null,null,null,null,null,null,null,null,null,null,null,null,null,null,null,null,null,null,null,null,null,null,null,null,null,null,null,null,null,null,null,null,null,null,null,null,null,null,null,null,null,null,null,null,null,null,null,null,null,null,null,null,null,null,null,null,null,null,null,null,null,null,null,null,null,null,null,null,null,null,null,null,null,null,null,null,"00","00","00","00","21","21","00","00","00","00","00","00","00","21","21","00","21","21","00","00","00","00","00","00","00","00","00","00","00","00","00","00","00","00","00","00","00","00","00","00","00","00","00","00","00"]
[null,null,null,null,null,null,null,null,null,null,null,null,null,null,null,null,null,null,null,null,null,null,null,null,null,null,null,null,null,null,null,null,null,null,null,null,null,null,null,null,null,null,null,null,null,null,null,null,null,null,null,null,null,null,null,null,null,null,null,null,null,null,null,null,null,null,null,null,null,null,null,null,null,null,null,null,null,null,null,null,null,null,null,null,null,null,null,null,null,null,null,null,null,null,null,"00","00","00","00","00","00","00","00","00","00","00","00","00","00","00","00","00","00","00","00","00","00","00","00","00","00","00","00","00","00","00","00","00","00","00","00","00","00","00","00","00","00","00","00","00"]
[null,null,null,null,null,null,null,null,null,null,null,null,null,null,null,null,null,null,null,null,null,null,null,null,null,null,null,null,null,null,null,null,null,null,null,null,null,null,null,null,null,null,null,null,null,null,null,null,null,null,null,null,null,null,null,null,null,null,null,null,null,null,null,null,null,null,null,null,null,null,null,null,null,null,null,null,null,null,null,null,null,null,null,null,null,null,null,null,null,null,null,null,null,null,null,"00","00","00","00","00","00","00","00","00","00","00","00","00","00","00","00","00","00","00","00","00","00","00","00","00","00","00","00","00","00","00","00","00","00","00","00","00","00","00","00","00","00","00","00","00"]
[null,null,null,null,null,null,null,null,null,null,null,null,null,null,null,null,null,null,null,null,null,null,null,null,null,null,null,null,null,null,null,null,null,null,null,null,null,null,null,null,null,null,null,null,null,null,null,null,null,null,null,null,null,null,null,null,null,null,null,null,null,null,null,null,null,null,null,null,null,null,null,null,null,null,null,null,null,null,null,null,null,null,null,null,null,null,null,null,null,null,null,null,null,null,null,"00","00","00","00","00","00","00","00","00","00","00","00","00","00","00","00","00","00","00","00","00","00","00","00","00","00","00","00","00","00","00","00","00","00","00","00","00","00","00","00","00","00","00","00","00"]
[null,null,null,null,null,null,null,null,null,null,null,null,null,null,null,null,null,null,null,null,null,null,null,null,null,null,null,null,null,null,null,null,null,null,null,null,null,null,null,null,null,null,null,null,null,null,null,null,null,null,null,null,null,null,null,null,null,null,null,null,null,null,null,null,null,null,null,null,null,null,null,null,null,null,null,null,null,null,null,null,null,null,null,null,null,null,null,null,null,null,null,null,null,null,null,"00","00","00","00","00","00","00","00","00","00","00","00","00","00","00","00","00","00","00","00","00","00","00","00","00","00","00","00","00","00","00","00","00","00","00","00","00","00","00","00","00","00","00","00","00"]
[null,null,null,null,null,null,null,null,null,null,null,null,null,null,null,null,null,null,null,null,null,null,null,null,null,null,null,null,null,null,null,null,null,null,null,null,null,null,null,null,null,null,null,null,null,null,null,null,null,null,null,null,null,null,null,null,null,null,null,null,null,null,null,null,null,null,null,null,null,null,null,null,null,null,null,null,null,null,null,null,null,null,null,null,null,null,null,null,null,null,null,null,null,null,null,"00","00","00","00","00","00","00","00","00","00","00","00","00","00","00","00","00","00","00","00","00","00","00","00","00","00","00","00","00","00","00","00","00","00","00","00","00","00","00","00","00","00","00","00","00"]
[null,null,null,null,null,null,null,null,null,null,null,null,null,null,null,null,null,null,null,null,null,null,null,null,null,null,null,null,null,null,null,null,null,null,null,null,null,null,null,null,null,null,null,null,null,null,null,null,null,null,null,null,null,null,null,null,null,null,null,null,null,null,null,null,null,null,null,null,null,null,null,null,null,null,null,null,null,null,null,null,null,null,null,null,null,null,null,null,null,null,null,null,null,null,null,"00","21","21","00","21","21","00","21","21","00","21","21","00","21","21","00","21","21","00","00","00","00","00","00","00","00","00","00","00","00","00","00","00","00","00","00","00","00","00","00","00","00","00","00","00"]
[null,null,null,null,null,null,null,null,null,null,null,null,null,null,null,null,null,null,null,null,null,null,null,null,null,null,null,null,null,null,null,null,null,null,null,null,null,null,null,null,null,null,null,null,null,null,null,null,null,null,null,null,null,null,null,null,null,null,null,null,null,null,null,null,null,null,null,null,null,null,null,null,null,null,null,null,null,null,null,null,null,null,null,null,null,null,null,null,null,null,null,null,null,null,null,"00","21","21","00","21","21","00","21","21","00","21","21","00","21","21","00","21","21","00","00","00","00","00","00","00","00","00","00","00","00","00","00","00","00","00","00","00","00","00","00","00","00","00","00","00"]
[null,null,null,null,null,null,null,null,null,null,null,null,null,null,null,null,null,null,null,null,null,null,null,null,null,null,null,null,null,null,null,null,null,null,null,null,null,null,null,null,null,null,null,null,null,null,null,null,null,null,null,null,null,null,null,null,null,null,null,null,null,null,null,null,null,null,null,null,null,null,null,null,null,null,null,null,null,null,null,null,null,null,null,null,null,null,null,null,null,null,null,null,null,null,null,"00","21","21","00","21","21","00","21","21","00","21","21","00","21","21","00","21","21","00","00","00","00","00","00","00","00","00","00","00","00","00","00","00","00","00","00","00","00","00","00","00","00","00","00","00"]
[null,null,null,null,null,null,null,null,null,null,null,null,null,null,null,null,null,null,null,null,null,null,null,null,null,null,null,null,null,null,null,null,null,null,null,null,null,null,null,null,null,null,null,null,null,null,null,null,null,null,null,null,null,null,null,null,null,null,null,null,null,null,null,null,null,null,null,null,null,null,null,null,null,null,null,null,null,null,null,null,null,null,null,null,null,null,null,null,null,null,null,null,null,null,null,"00","21","21","00","21","21","00","00","00","00","21","21","00","21","21","00","21","21","00","00","00","00","00","00","00","00","00","00","00","00","00","00","00","00","00","00","00","00","00","00","00","00","00","00","00"]
[null,null,null,null,null,null,null,null,null,null,null,null,null,null,null,null,null,null,null,null,null,null,null,null,null,null,null,null,null,null,null,null,null,null,null,null,null,null,null,null,null,null,null,null,null,null,null,null,null,null,null,null,null,null,null,null,null,null,null,null,null,null,null,null,null,null,null,null,null,null,null,null,null,null,null,null,null,null,null,null,null,null,null,null,null,null,null,null,null,null,null,null,null,null,null,"00","00","00","00","21","21","00","00","00","00","00","00","00","21","21","00","21","21","00","00","00","00","00","00","00","00","00","00","00","00","00","00","00","00","00","00","00","00","00","00","00","00","00","00","00"]
[null,null,null,null,null,null,null,null,null,null,null,null,null,null,null,null,null,null,null,null,null,null,null,null,null,null,null,null,null,null,null,null,null,null,null,null,null,null,null,null,null,null,null,null,null,null,null,null,null,null,null,null,null,null,null,null,null,null,null,null,null,null,null,null,null,null,null,null,null,null,null,null,null,null,null,null,null,null,null,null,null,null,null,null,null,null,null,null,null,null,null,null,null,null,null,"00","00","00","00","00","00","00","00","00","00","00","00","00","00","00","00","00","00","00","00","00","00","00","00","00","00","00","00","00","00","00","00","00","00","00","00","00","00","00","00","00","00","00","00","00"]
[null,null,null,null,null,null,null,null,null,null,null,null,null,null,null,null,null,null,null,null,null,null,null,null,null,null,null,null,null,null,null,null,null,null,null,null,null,null,null,null,null,null,null,null,null,null,null,null,null,null,null,null,null,null,null,null,null,null,null,null,null,null,null,null,null,null,null,null,null,null,null,null,null,null,null,null,null,null,null,null,null,null,null,null,null,null,null,null,null,null,null,null,null,null,null,"00","00","00","00","00","00","00","00","00","00","00","00","00","00","00","00","00","00","00","00","00","00","00","00","00","00","00","00","00","00","00","00","00","00","00","00","00","00","00","00","00","00","00","00","00"]
[null,null,null,null,null,null,null,null,null,null,null,null,null,null,null,null,null,null,null,null,null,null,null,null,null,null,null,null,null,null,null,null,null,null,null,null,null,null,null,null,null,null,null,null,null,null,null,null,null,null,null,null,null,null,null,null,null,null,null,null,null,null,null,null,null,null,null,null,null,null,null,null,null,null,null,null,null,null,null,null,null,null,null,null,null,null,null,null,null,null,null,null,null,null,null,"00","00","00","00","00","00","00","00","00","00","00","00","00","00","00","00","00","00","00","00","00","00","00","00","00","00","00","00","00","00","00","00","00","00","00","00","00","00","00","00","00","00","00","00","00"]
[null,null,null,null,null,null,null,null,null,null,null,null,null,null,null,null,null,null,null,null,null,null,null,null,null,null,null,null,null,null,null,null,null,null,null,null,null,null,null,null,null,null,null,null,null,null,null,null,null,null,null,null,null,null,null,null,null,null,null,null,null,null,null,null,null,null,null,null,null,null,null,null,null,null,null,null,null,null,null,null,null,null,null,null,null,null,null,null,null,null,null,null,null,null,null,"00","00","00","00","00","00","00","00","00","00","00","00","00","00","00","00","00","00","00","00","00","00","00","00","00","00","00","00","00","00","00","00","00","00","00","00","00","00","00","00","00","00","00","00","00"]
[null,null,null,null,null,null,null,null,null,null,null,null,null,null,null,null,null,null,null,null,null,null,null,null,null,null,null,null,null,null,null,null,null,null,null,null,null,null,null,null,null,null,null,null,null,null,null,null,null,null,null,null,null,null,null,null,null,null,null,null,null,null,null,null,null,null,null,null,null,null,null,null,null,null,null,null,null,null,null,null,null,null,null,null,null,null,null,null,null,null,null,null,null,null,null,"00","00","00","00","00","00","00","00","00","00","00","00","00","00","00","00","00","00","00","00","00","00","00","00","00","00","00","00","00","00","00","00","00","00","00","00","00","00","00","00","00","00","00","00","00"]
[null,null,null,null,null,null,null,null,null,null,null,null,null,null,null,null,null,null,null,null,null,null,null,null,null,null,null,null,null,null,null,null,null,null,null,null,null,null,null,null,null,null,null,null,null,null,null,null,null,null,null,null,null,null,null,null,null,null,null,null,null,null,null,null,null,null,null,null,null,null,null,null,null,null,null,null,null,null,null,null,null,null,null,null,null,null,null,null,null,null,null,null,null,null,null,"00","21","21","00","21","21","00","21","21","00","21","21","00","21","21","00","21","21","00","00","00","00","00","00","00","00","00","00","00","00","00","00","00","00","00","00","00","00","00","00","00","00","00","00","00"]
[null,null,null,null,null,null,null,null,null,null,null,null,null,null,null,null,null,null,null,null,null,null,null,null,null,null,null,null,null,null,null,null,null,null,null,null,null,null,null,null,null,null,null,null,null,null,null,null,null,null,null,null,null,null,null,null,null,null,null,null,null,null,null,null,null,null,null,null,null,null,null,null,null,null,null,null,null,null,null,null,null,null,null,null,null,null,null,null,null,null,null,null,null,null,null,"00","21","21","00","21","21","00","21","21","00","21","21","00","21","21","00","21","21","00","00","00","00","00","00","00","00","00","00","00","00","00","00","00","00","00","00","00","00","00","00","00","00","00","00","00"]
[null,null,null,null,null,null,null,null,null,null,null,null,null,null,null,null,null,null,null,null,null,null,null,null,null,null,null,null,null,null,null,null,null,null,null,null,null,null,null,null,null,null,null,null,null,null,null,null,null,null,null,null,null,null,null,null,null,null,null,null,null,null,null,null,null,null,null,null,null,null,null,null,null,null,null,null,null,null,null,null,null,null,null,null,null,null,null,null,null,null,null,null,null,null,null,"00","21","21","00","21","21","00","21","21","00","21","21","00","21","21","00","21","21","00","00","00","00","00","00","00","00","00","00","00","00","00","00","00","00","00","00","00","00","00","00","00","00","00","00","00"]
[null,null,null,null,null,null,null,null,null,null,null,null,null,null,null,null,null,null,null,null,null,null,null,null,null,null,null,null,null,null,null,null,null,null,null,null,null,null,null,null,null,null,null,null,null,null,null,null,null,null,null,null,null,null,null,null,null,null,null,null,null,null,null,null,null,null,null,null,null,null,null,null,null,null,null,null,null,null,null,null,null,null,null,null,null,null,null,null,null,null,null,null,null,null,null,"00","21","21","00","21","21","00","00","00","00","21","21","00","21","21","00","21","21","00","00","00","00","00","00","00","00","00","00","00","00","00","00","00","00","00","00","00","00","00","00","00","00","00","00","00"]
[null,null,null,null,null,null,null,null,null,null,null,null,null,null,null,null,null,null,null,null,null,null,null,null,null,null,null,null,null,null,null,null,null,null,null,null,null,null,null,null,null,null,null,null,null,null,null,null,null,null,null,null,null,null,null,null,null,null,null,null,null,null,null,null,null,null,null,null,null,null,null,null,null,null,null,null,null,null,null,null,null,null,null,null,null,null,null,null,null,null,null,null,null,null,null,"00","00","00","00","21","21","00","00","00","00","00","00","00","21","21","00","21","21","00","00","00","00","00","00","00","00","00","00","00","00","00","00","00","00","00","00","00","00","00","00","00","00","00","00","00"]
[null,null,null,null,null,null,null,null,null,null,null,null,null,null,null,null,null,null,null,null,null,null,null,null,null,null,null,null,null,null,null,null,null,null,null,null,null,null,null,null,null,null,null,null,null,null,null,null,null,null,null,null,null,null,null,null,null,null,null,null,null,null,null,null,null,null,null,null,null,null,null,null,null,null,null,null,null,null,null,null,null,null,null,null,null,null,null,null,null,null,null,null,null,null,null,"00","00","00","00","00","00","00","00","00","00","00","00","00","00","00","00","00","00","00","00","00","00","00","00","00","00","00","00","00","00","00","00","00","00","00","00","00","00","00","00","00","00","00","00","00"]
[null,null,null,null,null,null,null,null,null,null,null,null,null,null,null,null,null,null,null,null,null,null,null,null,null,null,null,null,null,null,null,null,null,null,null,null,null,null,null,null,null,null,null,null,null,null,null,null,null,null,null,null,null,null,null,null,null,null,null,null,null,null,null,null,null,null,null,null,null,null,null,null,null,null,null,null,null,null,null,null,null,null,null,null,null,null,null,null,null,null,null,null,null,null,null,"00","00","00","00","00","00","00","00","00","00","00","00","00","00","00","00","00","00","00","00","00","00","00","00","00","00","00","00","00","00","00","00","00","00","00","00","00","00","00","00","00","00","00","00","00"]
[null,null,null,null,null,null,null,null,null,null,null,null,null,null,null,null,null,null,null,null,null,null,null,null,null,null,null,null,null,null,null,null,null,null,null,null,null,null,null,null,null,null,null,null,null,null,null,null,null,null,null,null,null,null,null,null,null,null,null,null,null,null,null,null,null,null,null,null,null,null,null,null,null,null,null,null,null,null,null,null,null,null,null,null,null,null,null,null,null,null,null,null,null,null,null,"00","00","00","00","00","00","00","00","00","00","00","00","00","00","00","00","00","00","00","00","00","00","00","00","00","00","00","00","00","00","00","00","00","00","00","00","00","00","00","00","00","00","00","00","00"]
[null,null,null,null,null,null,null,null,null,null,null,null,null,null,null,null,null,null,null,null,null,null,null,null,null,null,null,null,null,null,null,null,null,null,null,null,null,null,null,null,null,null,null,null,null,null,null,null,null,null,null,null,null,null,null,null,null,null,null,null,null,null,null,null,null,null,null,null,null,null,null,null,null,null,null,null,null,null,null,null,null,null,null,null,null,null,null,null,null,null,null,null,null,null,null,"00","00","00","00","00","00","00","00","00","00","00","00","00","00","00","00","00","00","00","00","00","00","00","00","00","00","00","00","00","00","00","00","00","00","00","00","00","00","00","00","00","00","00","00","00"]
[null,null,null,null,null,null,null,null,null,null,null,null,null,null,null,null,null,null,null,null,null,null,null,null,null,null,null,null,null,null,null,null,null,null,null,null,null,null,null,null,null,null,null,null,null,null,null,null,null,null,null,null,null,null,null,null,null,null,null,null,null,null,null,null,null,null,null,null,null,null,null,null,null,null,null,null,null,null,null,null,null,null,null,null,null,null,null,null,null,null,null,null,null,null,null,"00","00","00","00","00","00","00","00","00","00","00","00","00","00","00","00","00","00","00","00","00","00","00","00","00","00","00","00","00","00","00","00","00","00","00","00","00","00","00","00","00","00","00","00","00"]
[null,null,null,null,null,null,null,null,null,null,null,null,null,null,null,null,null,null,null,null,null,null,null,null,null,null,null,null,null,null,null,null,null,null,null,null,null,null,null,null,null,null,null,null,null,null,null,null,null,null,null,null,null,null,null,null,null,null,null,null,null,null,null,null,null,null,null,null,null,null,null,null,null,null,null,null,null,null,null,null,null,null,null,null,null,null,null,null,null,null,null,null,null,null,null,"00","21","21","00","21","21","00","21","21","00","21","21","00","21","21","00","21","21","00","00","00","00","00","00","00","00","00","00","00","00","00","00","00","00","00","00","00","00","00","00","00","00","00","00","00"]
[null,null,null,null,null,null,null,null,null,null,null,null,null,null,null,null,null,null,null,null,null,null,null,null,null,null,null,null,null,null,null,null,null,null,null,null,null,null,null,null,null,null,null,null,null,null,null,null,null,null,null,null,null,null,null,null,null,null,null,null,null,null,null,null,null,null,null,null,null,null,null,null,null,null,null,null,null,null,null,null,null,null,null,null,null,null,null,null,null,null,null,null,null,null,null,"00","21","21","00","21","21","00","21","21","00","21","21","00","21","21","00","21","21","00","00","00","00","00","00","00","00","00","00","00","00","00","00","00","00","00","00","00","00","00","00","00","00","00","00","00"]
[null,null,null,null,null,null,null,null,null,null,null,null,null,null,null,null,null,null,null,null,null,null,null,null,null,null,null,null,null,null,null,null,null,null,null,null,null,null,null,null,null,null,null,null,null,null,null,null,null,null,null,null,null,null,null,null,null,null,null,null,null,null,null,null,null,null,null,null,null,null,null,null,null,null,null,null,null,null,null,null,null,null,null,null,null,null,null,null,null,null,null,null,null,null,null,"00","21","21","00","21","21","00","21","21","00","21","21","00","21","21","00","21","21","00","00","00","00","00","00","00","00","00","00","00","00","00","00","00","00","00","00","00","00","00","00","00","00","00","00","00"]
[null,null,null,null,null,null,null,null,null,null,null,null,null,null,null,null,null,null,null,null,null,null,null,null,null,null,null,null,null,null,null,null,null,null,null,null,null,null,null,null,null,null,null,null,null,null,null,null,null,null,null,null,null,null,null,null,null,null,null,null,null,null,null,null,null,null,null,null,null,null,null,null,null,null,null,null,null,null,null,null,null,null,null,null,null,null,null,null,null,null,null,null,null,null,null,"00","21","21","00","21","21","00","00","00","00","21","21","00","21","21","00","21","21","00","00","00","00","00","00","00","00","00","00","00","00","00","00","00","00","00","00","00","00","00","00","00","00","00","00","00"]
[null,null,null,null,null,null,null,null,null,null,null,null,null,null,null,null,null,null,null,null,null,null,null,null,null,null,null,null,null,null,null,null,null,null,null,null,null,null,null,null,null,null,null,null,null,null,null,null,null,null,null,null,null,null,null,null,null,null,null,null,null,null,null,null,null,null,null,null,null,null,null,null,null,null,null,null,null,null,null,null,null,null,null,null,null,null,null,null,null,null,null,null,null,null,null,"00","00","00","00","21","21","00","00","00","00","00","00","00","21","21","00","21","21","00","00","00","00","00","00","00","00","00","00","00","00","00","00","00","00","00","00","00","00","00","00","00","00","00","00","00"]
[null,null,null,null,null,null,null,null,null,null,null,null,null,null,null,null,null,null,null,null,null,null,null,null,null,null,null,null,null,null,null,null,null,null,null,null,null,null,null,null,null,null,null,null,null,null,null,null,null,null,null,null,null,null,null,null,null,null,null,null,null,null,null,null,null,null,null,null,null,null,null,null,null,null,null,null,null,null,null,null,null,null,null,null,null,null,null,null,null,null,null,null,null,null,null,"00","00","00","00","00","00","00","00","00","00","00","00","00","00","00","00","00","00","00","00","00","00","00","00","00","00","00","00","00","00","00","00","00","00","00","00","00","00","00","00","00","00","00","00","00"]
[null,null,null,null,null,null,null,null,null,null,null,null,null,null,null,null,null,null,null,null,null,null,null,null,null,null,null,null,null,null,null,null,null,null,null,null,null,null,null,null,null,null,null,null,null,null,null,null,null,null,null,null,null,null,null,null,null,null,null,null,null,null,null,null,null,null,null,null,null,null,null,null,null,null,null,null,null,null,null,null,null,null,null,null,null,null,null,null,null,null,null,null,null,null,null,"00","00","00","00","00","00","00","00","00","00","00","00","00","00","00","00","00","00","00","00","00","00","00","00","00","00","00","00","00","00","00","00","00","00","00","00","00","00","00","00","00","00","00","00","00"]
[null,null,null,null,null,null,null,null,null,null,null,null,null,null,null,null,null,null,null,null,null,null,null,null,null,null,null,null,null,null,null,null,null,null,null,null,null,null,null,null,null,null,null,null,null,null,null,null,null,null,null,null,null,null,null,null,null,null,null,null,null,null,null,null,null,null,null,null,null,null,null,null,null,null,null,null,null,null,null,null,null,null,null,null,null,null,null,null,null,null,null,null,null,null,null,"00","00","00","00","00","00","00","00","00","00","00","00","00","00","00","00","00","00","00","00","00","00","00","00","00","00","00","00","00","00","00","00","00","00","00","00","00","00","00","00","00","00","00","00","00"]
[null,null,null,null,null,null,null,null,null,null,null,null,null,null,null,null,null,null,null,null,null,null,null,null,null,null,null,null,null,null,null,null,null,null,null,null,null,null,null,null,null,null,null,null,null,null,null,null,null,null,null,null,null,null,null,null,null,null,null,null,null,null,null,null,null,null,null,null,null,null,null,null,null,null,null,null,null,null,null,null,null,null,null,null,null,null,null,null,null,null,null,null,null,null,null,"00","00","00","00","00","00","00","00","00","00","00","00","00","00","00","00","00","00","00","00","00","00","00","00","00","00","00","00","00","00","00","00","00","00","00","00","00","00","00","00","00","00","00","00","00"]
[null,null,null,null,null,null,null,null,null,null,null,null,null,null,null,null,null,null,null,null,null,null,null,null,null,null,null,null,null,null,null,null,null,null,null,null,null,null,null,null,null,null,null,null,null,null,null,null,null,null,null,null,null,null,null,null,null,null,null,null,null,null,null,null,null,null,null,null,null,null,null,null,null,null,null,null,null,null,null,null,null,null,null,null,null,null,null,null,null,null,null,null,null,null,null,"00","00","00","00","00","00","00","00","00","00","00","00","00","00","00","00","00","00","00","00","00","00","00","00","00","00","00","00","00","00","00","00","00","00","00","00","00","00","00","00","00","00","00","00","00"]
[null,null,null,null,null,null,null,null,null,null,null,null,null,null,null,null,null,null,null,null,null,null,null,null,null,null,null,null,null,null,null,null,null,null,null,null,null,null,null,null,null,null,null,null,null,null,null,null,null,null,null,null,null,null,null,null,null,null,null,null,null,null,null,null,null,null,null,null,null,null,null,null,null,null,null,null,null,null,null,null,null,null,null,null,null,null,null,null,null,null,null,null,null,null,null,"00","21","21","00","21","21","00","21","21","00","21","21","00","21","21","00","21","21","00","00","00","00","00","00","00","00","00","00","00","00","00","00","00","00","00","00","00","00","00","00","00","00","00","00","00"]
[null,null,null,null,null,null,null,null,null,null,null,null,null,null,null,null,null,null,null,null,null,null,null,null,null,null,null,null,null,null,null,null,null,null,null,null,null,null,null,null,null,null,null,null,null,null,null,null,null,null,null,null,null,null,null,null,null,null,null,null,null,null,null,null,null,null,null,null,null,null,null,null,null,null,null,null,null,null,null,null,null,null,null,null,null,null,null,null,null,null,null,null,null,null,null,"00","21","21","00","21","21","00","21","21","00","21","21","00","21","21","00","21","21","00","00","00","00","00","00","00","00","00","00","00","00","00","00","00","00","00","00","00","00","00","00","00","00","00","00","00"]
[null,null,null,null,null,null,null,null,null,null,null,null,null,null,null,null,null,null,null,null,null,null,null,null,null,null,null,null,null,null,null,null,null,null,null,null,null,null,null,null,null,null,null,null,null,null,null,null,null,null,null,null,null,null,null,null,null,null,null,null,null,null,null,null,null,null,null,null,null,null,null,null,null,null,null,null,null,null,null,null,null,null,null,null,null,null,null,null,null,null,null,null,null,null,null,"00","21","21","00","21","21","00","21","21","00","21","21","00","21","21","00","21","21","00","00","00","00","00","00","00","00","00","00","00","00","00","00","00","00","00","00","00","00","00","00","00","00","00","00","00"]
[null,null,null,null,null,null,null,null,null,null,null,null,null,null,null,null,null,null,null,null,null,null,null,null,null,null,null,null,null,null,null,null,null,null,null,null,null,null,null,null,null,null,null,null,null,null,null,null,null,null,null,null,null,null,null,null,null,null,null,null,null,null,null,null,null,null,null,null,null,null,null,null,null,null,null,null,null,null,null,null,null,null,null,null,null,null,null,null,null,null,null,null,null,null,null,"00","21","21","00","21","21","00","00","00","00","21","21","00","21","21","00","21","21","00","00","00","00","00","00","00","00","00","00","00","00","00","00","00","00","00","00","00","00","00","00","00","00","00","00","00"]
[null,null,null,null,null,null,null,null,null,null,null,null,null,null,null,null,null,null,null,null,null,null,null,null,null,null,null,null,null,null,null,null,null,null,null,null,null,null,null,null,null,null,null,null,null,null,null,null,null,null,null,null,null,null,null,null,null,null,null,null,null,null,null,null,null,null,null,null,null,null,null,null,null,null,null,null,null,null,null,null,null,null,null,null,null,null,null,null,null,null,null,null,null,null,null,"00","00","00","00","21","21","00","00","00","00","00","00","00","21","21","00","21","21","00","00","00","00","00","00","00","00","00","00","00","00","00","00","00","00","00","00","00","00","00","00","00","00","00","00","00"]
[null,null,null,null,null,null,null,null,null,null,null,null,null,null,null,null,null,null,null,null,null,null,null,null,null,null,null,null,null,null,null,null,null,null,null,null,null,null,null,null,null,null,null,null,null,null,null,null,null,null,null,null,null,null,null,null,null,null,null,null,null,null,null,null,null,null,null,null,null,null,null,null,null,null,null,null,null,null,null,null,null,null,null,null,null,null,null,null,null,null,null,null,null,null,null,"00","00","00","00","00","00","00","00","00","00","00","00","00","00","00","00","00","00","00","00","00","00","00","00","00","00","00","00","00","00","00","00","00","00","00","00","00","00","00","00","00","00","00","00","00"]
[null,null,null,null,null,null,null,null,null,null,null,null,null,null,null,null,null,null,null,null,null,null,null,null,null,null,null,null,null,null,null,null,null,null,null,null,null,null,null,null,null,null,null,null,null,null,null,null,null,null,null,null,null,null,null,null,null,null,null,null,null,null,null,null,null,null,null,null,null,null,null,null,null,null,null,null,null,null,null,null,null,null,null,null,null,null,null,null,null,null,null,null,null,null,null,"00","00","00","00","00","00","00","00","00","00","00","00","00","00","00","00","00","00","00","00","00","00","00","00","00","00","00","00","00","00","00","00","00","00","00","00","00","00","00","00","00","00","00","00","00"]
[null,null,null,null,null,null,null,null,null,null,null,null,null,null,null,null,null,null,null,null,null,null,null,null,null,null,null,null,null,null,null,null,null,null,null,null,null,null,null,null,null,null,null,null,null,null,null,null,null,null,null,null,null,null,null,null,null,null,null,null,null,null,null,null,null,null,null,null,null,null,null,null,null,null,null,null,null,null,null,null,null,null,null,null,null,null,null,null,null,null,null,null,null,null,null,"00","00","00","00","00","00","00","00","00","00","00","00","00","00","00","00","00","00","00","00","00","00","00","00","00","00","00","00","00","00","00","00","00","00","00","00","00","00","00","00","00","00","00","00","00"]
[null,null,null,null,null,null,null,null,null,null,null,null,null,null,null,null,null,null,null,null,null,null,null,null,null,null,null,null,null,null,null,null,null,null,null,null,null,null,null,null,null,null,null,null,null,null,null,null,null,null,null,null,null,null,null,null,null,null,null,null,null,null,null,null,null,null,null,null,null,null,null,null,null,null,null,null,null,null,null,null,null,null,null,null,null,null,null,null,null,null,null,null,null,null,null,"00","00","00","00","00","00","00","00","00","00","00","00","00","00","00","00","00","00","00","00","00","00","00","00","00","00","00","00","00","00","00","00","00","00","00","00","00","00","00","00","00","00","00","00","00"]
[null,null,null,null,null,null,null,null,null,null,null,null,null,null,null,null,null,null,null,null,null,null,null,null,null,null,null,null,null,null,null,null,null,null,null,null,null,null,null,null,null,null,null,null,null,null,null,null,null,null,null,null,null,null,null,null,null,null,null,null,null,null,null,null,null,null,null,null,null,null,null,null,null,null,null,null,null,null,null,null,null,null,null,null,null,null,null,null,null,null,null,null,null,null,null,"00","00","00","00","00","00","00","00","00","00","00","00","00","00","00","00","00","00","00","00","00","00","00","00","00","00","00","00","00","00","00","00","00","00","00","00","00","00","00","00","00","00","00","00","00"]
[null,null,null,null,null,null,null,null,null,null,null,null,null,null,null,null,null,null,null,null,null,null,null,null,null,null,null,null,null,null,null,null,null,null,null,null,null,null,null,null,null,null,null,null,null,null,null,null,null,null,null,null,null,null,null,null,null,null,null,null,null,null,null,null,null,null,null,null,null,null,null,null,null,null,null,null,null,null,null,null,null,null,null,null,null,null,null,null,null,null,null,null,null,null,null,"00","21","21","00","21","21","00","21","21","00","21","21","00","21","21","00","21","21","00","00","00","00","00","00","00","00","00","00","00","00","00","00","00","00","00","00","00","00","00","00","00","00","00","00","00"]
[null,null,null,null,null,null,null,null,null,null,null,null,null,null,null,null,null,null,null,null,null,null,null,null,null,null,null,null,null,null,null,null,null,null,null,null,null,null,null,null,null,null,null,null,null,null,null,null,null,null,null,null,null,null,null,null,null,null,null,null,null,null,null,null,null,null,null,null,null,null,null,null,null,null,null,null,null,null,null,null,null,null,null,null,null,null,null,null,null,null,null,null,null,null,null,"00","21","21","00","21","21","00","21","21","00","21","21","00","21","21","00","21","21","00","00","00","00","00","00","00","00","00","00","00","00","00","00","00","00","00","00","00","00","00","00","00","00","00","00","00"]
[null,null,null,null,null,null,null,null,null,null,null,null,null,null,null,null,null,null,null,null,null,null,null,null,null,null,null,null,null,null,null,null,null,null,null,null,null,null,null,null,null,null,null,null,null,null,null,null,null,null,null,null,null,null,null,null,null,null,null,null,null,null,null,null,null,null,null,null,null,null,null,null,null,null,null,null,null,null,null,null,null,null,null,null,null,null,null,null,null,null,null,null,null,null,null,"00","21","21","00","21","21","00","21","21","00","21","21","00","21","21","00","21","21","00","00","00","00","00","00","00","00","00","00","00","00","00","00","00","00","00","00","00","00","00","00","00","00","00","00","00"]
[null,null,null,null,null,null,null,null,null,null,null,null,null,null,null,null,null,null,null,null,null,null,null,null,null,null,null,null,null,null,null,null,null,null,null,null,null,null,null,null,null,null,null,null,null,null,null,null,null,null,null,null,null,null,null,null,null,null,null,null,null,null,null,null,null,null,null,null,null,null,null,null,null,null,null,null,null,null,null,null,null,null,null,null,null,null,null,null,null,null,null,null,null,null,null,"00","21","21","00","21","21","00","00","00","00","21","21","00","21","21","00","21","21","00","00","00","00","00","00","00","00","00","00","00","00","00","00","00","00","00","00","00","00","00","00","00","00","00","00","00"]
[null,null,null,null,null,null,null,null,null,null,null,null,null,null,null,null,null,null,null,null,null,null,null,null,null,null,null,null,null,null,null,null,null,null,null,null,null,null,null,null,null,null,null,null,null,null,null,null,null,null,null,null,null,null,null,null,null,null,null,null,null,null,null,null,null,null,null,null,null,null,null,null,null,null,null,null,null,null,null,null,null,null,null,null,null,null,null,null,null,null,null,null,null,null,null,"00","00","00","00","21","21","00","00","00","00","00","00","00","21","21","00","21","21","00","00","00","00","00","00","00","00","00","00","00","00","00","00","00","00","00","00","00","00","00","00","00","00","00","00","00"]
[null,null,null,null,null,null,null,null,null,null,null,null,null,null,null,null,null,null,null,null,null,null,null,null,null,null,null,null,null,null,null,null,null,null,null,null,null,null,null,null,null,null,null,null,null,null,null,null,null,null,null,null,null,null,null,null,null,null,null,null,null,null,null,null,null,null,null,null,null,null,null,null,null,null,null,null,null,null,null,null,null,null,null,null,null,null,null,null,null,null,null,null,null,null,null,"00","00","00","00","00","00","00","00","00","00","00","00","00","00","00","00","00","00","00","00","00","00","00","00","00","00","00","00","00","00","00","00","00","00","00","00","00","00","00","00","00","00","00","00","00"]
[null,null,null,null,null,null,null,null,null,null,null,null,null,null,null,null,null,null,null,null,null,null,null,null,null,null,null,null,null,null,null,null,null,null,null,null,null,null,null,null,null,null,null,null,null,null,null,null,null,null,null,null,null,null,null,null,null,null,null,null,null,null,null,null,null,null,null,null,null,null,null,null,null,null,null,null,null,null,null,null,null,null,null,null,null,null,null,null,null,null,null,null,null,null,null,"00","00","00","00","00","00","00","00","00","00","00","00","00","00","00","00","00","00","00","00","00","00","00","00","00","00","00","00","00","00","00","00","00","00","00","00","00","00","00","00","00","00","00","00","00"]
[null,null,null,null,null,null,null,null,null,null,null,null,null,null,null,null,null,null,null,null,null,null,null,null,null,null,null,null,null,null,null,null,null,null,null,null,null,null,null,null,null,null,null,null,null,null,null,null,null,null,null,null,null,null,null,null,null,null,null,null,null,null,null,null,null,null,null,null,null,null,null,null,null,null,null,null,null,null,null,null,null,null,null,null,null,null,null,null,null,null,null,null,null,null,null,"00","00","00","00","00","00","00","00","00","00","00","00","00","00","00","00","00","00","00","00","00","00","00","00","00","00","00","00","00","00","00","00","00","00","00","00","00","00","00","00","00","00","00","00","00"]
[null,null,null,null,null,null,null,null,null,null,null,null,null,null,null,null,null,null,null,null,null,null,null,null,null,null,null,null,null,null,null,null,null,null,null,null,null,null,null,null,null,null,null,null,null,null,null,null,null,null,null,null,null,null,null,null,null,null,null,null,null,null,null,null,null,null,null,null,null,null,null,null,null,null,null,null,null,null,null,null,null,null,null,null,null,null,null,null,null,null,null,null,null,null,null,"00","00","00","00","00","00","00","00","00","00","00","00","00","00","00","00","00","00","00","00","00","00","00","00","00","00","00","00","00","00","00","00","00","00","00","00","00","00","00","00","00","00","00","00","00"]
[null,null,null,null,null,null,null,null,null,null,null,null,null,null,null,null,null,null,null,null,null,null,null,null,null,null,null,null,null,null,null,null,null,null,null,null,null,null,null,null,null,null,null,null,null,null,null,null,null,null,null,null,null,null,null,null,null,null,null,null,null,null,null,null,null,null,null,null,null,null,null,null,null,null,null,null,null,null,null,null,null,null,null,null,null,null,null,null,null,null,null,null,null,null,null,"00","00","00","00","00","00","00","00","00","00","00","00","00","00","00","00","00","00","00","00","00","00","00","00","00","00","00","00","00","00","00","00","00","00","00","00","00","00","00","00","00","00","00","00","00"]
[null,null,null,null,null,null,null,null,null,null,null,null,null,null,null,null,null,null,null,null,null,null,null,null,null,null,null,null,null,null,null,null,null,null,null,null,null,null,null,null,null,null,null,null,null,null,null,null,null,null,null,null,null,null,null,null,null,null,null,null,null,null,null,null,null,null,null,null,null,null,null,null,null,null,null,null,null,null,null,null,null,null,null,null,null,null,null,null,null,null,null,null,null,null,null,"00","21","21","00","21","21","00","21","21","00","21","21","00","21","21","00","21","21","00","00","00","00","00","00","00","00","00","00","00","00","00","00","00","00","00","00","00","00","00","00","00","00","00","00","00"]
[null,null,null,null,null,null,null,null,null,null,null,null,null,null,null,null,null,null,null,null,null,null,null,null,null,null,null,null,null,null,null,null,null,null,null,null,null,null,null,null,null,null,null,null,null,null,null,null,null,null,null,null,null,null,null,null,null,null,null,null,null,null,null,null,null,null,null,null,null,null,null,null,null,null,null,null,null,null,null,null,null,null,null,null,null,null,null,null,null,null,null,null,null,null,null,"00","21","21","00","21","21","00","21","21","00","21","21","00","21","21","00","21","21","00","00","00","00","00","00","00","00","00","00","00","00","00","00","00","00","00","00","00","00","00","00","00","00","00","00","00"]
[null,null,null,null,null,null,null,null,null,null,null,null,null,null,null,null,null,null,null,null,null,null,null,null,null,null,null,null,null,null,null,null,null,null,null,null,null,null,null,null,null,null,null,null,null,null,null,null,null,null,null,null,null,null,null,null,null,null,null,null,null,null,null,null,null,null,null,null,null,null,null,null,null,null,null,null,null,null,null,null,null,null,null,null,null,null,null,null,null,null,null,null,null,null,null,"00","21","21","00","21","21","00","21","21","00","21","21","00","21","21","00","21","21","00","00","00","00","00","00","00","00","00","00","00","00","00","00","00","00","00","00","00","00","00","00","00","00","00","00","00"]
[null,null,null,null,null,null,null,null,null,null,null,null,null,null,null,null,null,null,null,null,null,null,null,null,null,null,null,null,null,null,null,null,null,null,null,null,null,null,null,null,null,null,null,null,null,null,null,null,null,null,null,null,null,null,null,null,null,null,null,null,null,null,null,null,null,null,null,null,null,null,null,null,null,null,null,null,null,null,null,null,null,null,null,null,null,null,null,null,null,null,null,null,null,null,null,"00","21","21","00","21","21","00","00","00","00","21","21","00","21","21","00","21","21","00","00","00","00","00","00","00","00","00","00","00","00","00","00","00","00","00","00","00","00","00","00","00","00","00","00","00"]
[null,null,null,null,null,null,null,null,null,null,null,null,null,null,null,null,null,null,null,null,null,null,null,null,null,null,null,null,null,null,null,null,null,null,null,null,null,null,null,null,null,null,null,null,null,null,null,null,null,null,null,null,null,null,null,null,null,null,null,null,null,null,null,null,null,null,null,null,null,null,null,null,null,null,null,null,null,null,null,null,null,null,null,null,null,null,null,null,null,null,null,null,null,null,null,"00","00","00","00","21","21","00","00","00","00","00","00","00","21","21","00","21","21","00","00","00","00","00","00","00","00","00","00","00","00","00","00","00","00","00","00","00","00","00","00","00","00","00","00","00"]
[null,null,null,null,null,null,null,null,null,null,null,null,null,null,null,null,null,null,null,null,null,null,null,null,null,null,null,null,null,null,null,null,null,null,null,null,null,null,null,null,null,null,null,null,null,null,null,null,null,null,null,null,null,null,null,null,null,null,null,null,null,null,null,null,null,null,null,null,null,null,null,null,null,null,null,null,null,null,null,null,null,null,null,null,null,null,null,null,null,null,null,null,null,null,null,"00","00","00","00","00","00","00","00","00","00","00","00","00","00","00","00","00","00","00","00","00","00","00","00","00","00","00","00","00","00","00","00","00","00","00","00","00","00","00","00","00","00","00","00","00"]
[null,null,null,null,null,null,null,null,null,null,null,null,null,null,null,null,null,null,null,null,null,null,null,null,null,null,null,null,null,null,null,null,null,null,null,null,null,null,null,null,null,null,null,null,null,null,null,null,null,null,null,null,null,null,null,null,null,null,null,null,null,null,null,null,null,null,null,null,null,null,null,null,null,null,null,null,null,null,null,null,null,null,null,null,null,null,null,null,null,null,null,null,null,null,null,"00","00","00","00","00","00","00","00","00","00","00","00","00","00","00","00","00","00","00","00","00","00","00","00","00","00","00","00","00","00","00","00","00","00","00","00","00","00","00","00","00","00","00","00","00"]
[null,null,null,null,null,null,null,null,null,null,null,null,null,null,null,null,null,null,null,null,null,null,null,null,null,null,null,null,null,null,null,null,null,null,null,null,null,null,null,null,null,null,null,null,null,null,null,null,null,null,null,null,null,null,null,null,null,null,null,null,null,null,null,null,null,null,null,null,null,null,null,null,null,null,null,null,null,null,null,null,null,null,null,null,null,null,null,null,null,null,null,null,null,null,null,"00","00","00","00","00","00","00","00","00","00","00","00","00","00","00","00","00","00","00","00","00","00","00","00","00","00","00","00","00","00","00","00","00","00","00","00","00","00","00","00","00","00","00","00","00"]
[null,null,null,null,null,null,null,null,null,null,null,null,null,null,null,null,null,null,null,null,null,null,null,null,null,null,null,null,null,null,null,null,null,null,null,null,null,null,null,null,null,null,null,null,null,null,null,null,null,null,null,null,null,null,null,null,null,null,null,null,null,null,null,null,null,null,null,null,null,null,null,null,null,null,null,null,null,null,null,null,null,null,null,null,null,null,null,null,null,null,null,null,null,null,null,"00","00","00","00","00","00","00","00","00","00","00","00","00","00","00","00","00","00","00","00","00","00","00","00","00","00","00","00","00","00","00","00","00","00","00","00","00","00","00","00","00","00","00","00","00"]
[null,null,null,null,null,null,null,null,null,null,null,null,null,null,null,null,null,null,null,null,null,null,null,null,null,null,null,null,null,null,null,null,null,null,null,null,null,null,null,null,null,null,null,null,null,null,null,null,null,null,null,null,null,null,null,null,null,null,null,null,null,null,null,null,null,null,null,null,null,null,null,null,null,null,null,null,null,null,null,null,null,null,null,null,null,null,null,null,null,null,null,null,null,null,null,"00","00","00","00","00","00","00","00","00","00","00","00","00","00","00","00","00","00","00","00","00","00","00","00","00","00","00","00","00","00","00","00","00","00","00","00","00","00","00","00","00","00","00","00","00"]
[null,null,null,null,null,null,null,null,null,null,null,null,null,null,null,null,null,null,null,null,null,null,null,null,null,null,null,null,null,null,null,null,null,null,null,null,null,null,null,null,null,null,null,null,null,null,null,null,null,null,null,null,null,null,null,null,null,null,null,null,null,null,null,null,null,null,null,null,null,null,null,null,null,null,null,null,null,null,null,null,null,null,null,null,null,null,null,null,null,null,null,null,null,null,null,"00","21","21","00","21","21","00","21","21","00","21","21","00","21","21","00","21","21","00","00","00","00","00","00","00","00","00","00","00","00","00","00","00","00","00","00","00","00","00","00","00","00","00","00","00"]
[null,null,null,null,null,null,null,null,null,null,null,null,null,null,null,null,null,null,null,null,null,null,null,null,null,null,null,null,null,null,null,null,null,null,null,null,null,null,null,null,null,null,null,null,null,null,null,null,null,null,null,null,null,null,null,null,null,null,null,null,null,null,null,null,null,null,null,null,null,null,null,null,null,null,null,null,null,null,null,null,null,null,null,null,null,null,null,null,null,null,null,null,null,null,null,"00","21","21","00","21","21","00","21","21","00","21","21","00","21","21","00","21","21","00","00","00","00","00","00","00","00","00","00","00","00","00","00","00","00","00","00","00","00","00","00","00","00","00","00","00"]
[null,null,null,null,null,null,null,null,null,null,null,null,null,null,null,null,null,null,null,null,null,null,null,null,null,null,null,null,null,null,null,null,null,null,null,null,null,null,null,null,null,null,null,null,null,null,null,null,null,null,null,null,null,null,null,null,null,null,null,null,null,null,null,null,null,null,null,null,null,null,null,null,null,null,null,null,null,null,null,null,null,null,null,null,null,null,null,null,null,null,null,null,null,null,null,"00","21","21","00","21","21","00","21","21","00","21","21","00","21","21","00","21","21","00","00","00","00","00","00","00","00","00","00","00","00","00","00","00","00","00","00","00","00","00","00","00","00","00","00","00"]
[null,null,null,null,null,null,null,null,null,null,null,null,null,null,null,null,null,null,null,null,null,null,null,null,null,null,null,null,null,null,null,null,null,null,null,null,null,null,null,null,null,null,null,null,null,null,null,null,null,null,null,null,null,null,null,null,null,null,null,null,null,null,null,null,null,null,null,null,null,null,null,null,null,null,null,null,null,null,null,null,null,null,null,null,null,null,null,null,null,null,null,null,null,null,null,"00","21","21","00","21","21","00","00","00","00","21","21","00","21","21","00","21","21","00","00","00","00","00","00","00","00","00","00","00","00","00","00","00","00","00","00","00","00","00","00","00","00","00","00","00"]
[null,null,null,null,null,null,null,null,null,null,null,null,null,null,null,null,null,null,null,null,null,null,null,null,null,null,null,null,null,null,null,null,null,null,null,null,null,null,null,null,null,null,null,null,null,null,null,null,null,null,null,null,null,null,null,null,null,null,null,null,null,null,null,null,null,null,null,null,null,null,null,null,null,null,null,null,null,null,null,null,null,null,null,null,null,null,null,null,null,null,null,null,null,null,null,"00","00","00","00","21","21","00","00","00","00","00","00","00","21","21","00","21","21","00","00","00","00","00","00","00","00","00","00","00","00","00","00","00","00","00","00","00","00","00","00","00","00","00","00","00"]
[null,null,null,null,null,null,null,null,null,null,null,null,null,null,null,null,null,null,null,null,null,null,null,null,null,null,null,null,null,null,null,null,null,null,null,null,null,null,null,null,null,null,null,null,null,null,null,null,null,null,null,null,null,null,null,null,null,null,null,null,null,null,null,null,null,null,null,null,null,null,null,null,null,null,null,null,null,null,null,null,null,null,null,null,null,null,null,null,null,null,null,null,null,null,null,"00","00","00","00","00","00","00","00","00","00","00","00","00","00","00","00","00","00","00","00","00","00","00","00","00","00","00","00","00","00","00","00","00","00","00","00","00","00","00","00","00","00","00","00","00"]
[null,null,null,null,null,null,null,null,null,null,null,null,null,null,null,null,null,null,null,null,null,null,null,null,null,null,null,null,null,null,null,null,null,null,null,null,null,null,null,null,null,null,null,null,null,null,null,null,null,null,null,null,null,null,null,null,null,null,null,null,null,null,null,null,null,null,null,null,null,null,null,null,null,null,null,null,null,null,null,null,null,null,null,null,null,null,null,null,null,null,null,null,null,null,null,"00","00","00","00","00","00","00","00","00","00","00","00","00","00","00","00","00","00","00","00","00","00","00","00","00","00","00","00","00","00","00","00","00","00","00","00","00","00","00","00","00","00","00","00","00"]
[null,null,null,null,null,null,null,null,null,null,null,null,null,null,null,null,null,null,null,null,null,null,null,null,null,null,null,null,null,null,null,null,null,null,null,null,null,null,null,null,null,null,null,null,null,null,null,null,null,null,null,null,null,null,null,null,null,null,null,null,null,null,null,null,null,null,null,null,null,null,null,null,null,null,null,null,null,null,null,null,null,null,null,null,null,null,null,null,null,null,null,null,null,null,null,"00","00","00","00","00","00","00","00","00","00","00","00","00","00","00","00","00","00","00","00","00","00","00","00","00","00","00","00","00","00","00","00","00","00","00","00","00","00","00","00","00","00","00","00","00"]
[null,null,null,null,null,null,null,null,null,null,null,null,null,null,null,null,null,null,null,null,null,null,null,null,null,null,null,null,null,null,null,null,null,null,null,null,null,null,null,null,null,null,null,null,null,null,null,null,null,null,null,null,null,null,null,null,null,null,null,null,null,null,null,null,null,null,null,null,null,null,null,null,null,null,null,null,null,null,null,null,null,null,null,null,null,null,null,null,null,null,null,null,null,null,null,"00","00","00","00","00","00","00","00","00","00","00","00","00","00","00","00","00","00","00","00","00","00","00","00","00","00","00","00","00","00","00","00","00","00","00","00","00","00","00","00","00","00","00","00","00"]
[null,null,null,null,null,null,null,null,null,null,null,null,null,null,null,null,null,null,null,null,null,null,null,null,null,null,null,null,null,null,null,null,null,null,null,null,null,null,null,null,null,null,null,null,null,null,null,null,null,null,null,null,null,null,null,null,null,null,null,null,null,null,null,null,null,null,null,null,null,null,null,null,null,null,null,null,null,null,null,null,null,null,null,null,null,null,null,null,null,null,null,null,null,null,null,"00","00","00","00","00","00","00","00","00","00","00","00","00","00","00","00","00","00","00","00","00","00","00","00","00","00","00","00","00","00","00","00","00","00","00","00","00","00","00","00","00","00","00","00","00"]
[null,null,null,null,null,null,null,null,null,null,null,null,null,null,null,null,null,null,null,null,null,null,null,null,null,null,null,null,null,null,null,null,null,null,null,null,null,null,null,null,null,null,null,null,null,null,null,null,null,null,null,null,null,null,null,null,null,null,null,null,null,null,null,null,null,null,null,null,null,null,null,null,null,null,null,null,null,null,null,null,null,null,null,null,null,null,null,null,null,null,null,null,null,null,null,"00","21","21","00","21","21","00","21","21","00","21","21","00","21","21","00","21","21","00","00","00","00","00","00","00","00","00","00","00","00","00","00","00","00","00","00","00","00","00","00","00","00","00","00","00"]
[null,null,null,null,null,null,null,null,null,null,null,null,null,null,null,null,null,null,null,null,null,null,null,null,null,null,null,null,null,null,null,null,null,null,null,null,null,null,null,null,null,null,null,null,null,null,null,null,null,null,null,null,null,null,null,null,null,null,null,null,null,null,null,null,null,null,null,null,null,null,null,null,null,null,null,null,null,null,null,null,null,null,null,null,null,null,null,null,null,null,null,null,null,null,null,"00","21","21","00","21","21","00","21","21","00","21","21","00","21","21","00","21","21","00","00","00","00","00","00","00","00","00","00","00","00","00","00","00","00","00","00","00","00","00","00","00","00","00","00","00"]
[null,null,null,null,null,null,null,null,null,null,null,null,null,null,null,null,null,null,null,null,null,null,null,null,null,null,null,null,null,null,null,null,null,null,null,null,null,null,null,null,null,null,null,null,null,null,null,null,null,null,null,null,null,null,null,null,null,null,null,null,null,null,null,null,null,null,null,null,null,null,null,null,null,null,null,null,null,null,null,null,null,null,null,null,null,null,null,null,null,null,null,null,null,null,null,"00","21","21","00","21","21","00","21","21","00","21","21","00","21","21","00","21","21","00","00","00","00","00","00","00","00","00","00","00","00","00","00","00","00","00","00","00","00","00","00","00","00","00","00","00"]
[null,null,null,null,null,null,null,null,null,null,null,null,null,null,null,null,null,null,null,null,null,null,null,null,null,null,null,null,null,null,null,null,null,null,null,null,null,null,null,null,null,null,null,null,null,null,null,null,null,null,null,null,null,null,null,null,null,null,null,null,null,null,null,null,null,null,null,null,null,null,null,null,null,null,null,null,null,null,null,null,null,null,null,null,null,null,null,null,null,null,null,null,null,null,null,"00","21","21","00","21","21","00","00","00","00","21","21","00","21","21","00","21","21","00","00","00","00","00","00","00","00","00","00","00","00","00","00","00","00","00","00","00","00","00","00","00","00","00","00","00"]
[null,null,null,null,null,null,null,null,null,null,null,null,null,null,null,null,null,null,null,null,null,null,null,null,null,null,null,null,null,null,null,null,null,null,null,null,null,null,null,null,null,null,null,null,null,null,null,null,null,null,null,null,null,null,null,null,null,null,null,null,null,null,null,null,null,null,null,null,null,null,null,null,null,null,null,null,null,null,null,null,null,null,null,null,null,null,null,null,null,null,null,null,null,null,null,"00","00","00","00","21","21","00","00","00","00","00","00","00","21","21","00","21","21","00","00","00","00","00","00","00","00","00","00","00","00","00","00","00","00","00","00","00","00","00","00","00","00","00","00","00"]
[null,null,null,null,null,null,null,null,null,null,null,null,null,null,null,null,null,null,null,null,null,null,null,null,null,null,null,null,null,null,null,null,null,null,null,null,null,null,null,null,null,null,null,null,null,null,null,null,null,null,null,null,null,null,null,null,null,null,null,null,null,null,null,null,null,null,null,null,null,null,null,null,null,null,null,null,null,null,null,null,null,null,null,null,null,null,null,null,null,null,null,null,null,null,null,"00","00","00","00","00","00","00","00","00","00","00","00","00","00","00","00","00","00","00","00","00","00","00","00","00","00","00","00","00","00","00","00","00","00","00","00","00","00","00","00","00","00","00","00","00"]
[null,null,null,null,null,null,null,null,null,null,null,null,null,null,null,null,null,null,null,null,null,null,null,null,null,null,null,null,null,null,null,null,null,null,null,null,null,null,null,null,null,null,null,null,null,null,null,null,null,null,null,null,null,null,null,null,null,null,null,null,null,null,null,null,null,null,null,null,null,null,null,null,null,null,null,null,null,null,null,null,null,null,null,null,null,null,null,null,null,null,null,null,null,null,null,"00","00","00","00","00","00","00","00","00","00","00","00","00","00","00","00","00","00","00","00","00","00","00","00","00","00","00","00","00","00","00","00","00","00","00","00","00","00","00","00","00","00","00","00","00"]
[null,null,null,null,null,null,null,null,null,null,null,null,null,null,null,null,null,null,null,null,null,null,null,null,null,null,null,null,null,null,null,null,null,null,null,null,null,null,null,null,null,null,null,null,null,null,null,null,null,null,null,null,null,null,null,null,null,null,null,null,null,null,null,null,null,null,null,null,null,null,null,null,null,null,null,null,null,null,null,null,null,null,null,null,null,null,null,null,null,null,null,null,null,null,null,"00","00","00","00","00","00","00","00","00","00","00","00","00","00","00","00","00","00","00","00","00","00","00","00","00","00","00","00","00","00","00","00","00","00","00","00","00","00","00","00","00","00","00","00","00"]
[null,null,null,null,null,null,null,null,null,null,null,null,null,null,null,null,null,null,null,null,null,null,null,null,null,null,null,null,null,null,null,null,null,null,null,null,null,null,null,null,null,null,null,null,null,null,null,null,null,null,null,null,null,null,null,null,null,null,null,null,null,null,null,null,null,null,null,null,null,null,null,null,null,null,null,null,null,null,null,null,null,null,null,null,null,null,null,null,null,null,null,null,null,null,null,"00","00","00","00","00","00","00","00","00","00","00","00","00","00","00","00","00","00","00","00","00","00","00","00","00","00","00","00","00","00","00","00","00","00","00","00","00","00","00","00","00","00","00","00","00"]
[null,null,null,null,null,null,null,null,null,null,null,null,null,null,null,null,null,null,null,null,null,null,null,null,null,null,null,null,null,null,null,null,null,null,null,null,null,null,null,null,null,null,null,null,null,null,null,null,null,null,null,null,null,null,null,null,null,null,null,null,null,null,null,null,null,null,null,null,null,null,null,null,null,null,null,null,null,null,null,null,null,null,null,null,null,null,null,null,null,null,null,null,null,null,null,"00","00","00","00","00","00","00","00","00","00","00","00","00","00","00","00","00","00","00","00","00","00","00","00","00","00","00","00","00","00","00","00","00","00","00","00","00","00","00","00","00","00","00","00","00"]
[null,null,null,null,null,null,null,null,null,null,null,null,null,null,null,null,null,null,null,null,null,null,null,null,null,null,null,null,null,null,null,null,null,null,null,null,null,null,null,null,null,null,null,null,null,null,null,null,null,null,null,null,null,null,null,null,null,null,null,null,null,null,null,null,null,null,null,null,null,null,null,null,null,null,null,null,null,null,null,null,null,null,null,null,null,null,null,null,null,null,null,null,null,null,null,"00","21","21","00","21","21","00","21","21","00","21","21","00","21","21","00","21","21","00","00","00","00","00","00","00","00","00","00","00","00","00","00","00","00","00","00","00","00","00","00","00","00","00","00","00"]
[null,null,null,null,null,null,null,null,null,null,null,null,null,null,null,null,null,null,null,null,null,null,null,null,null,null,null,null,null,null,null,null,null,null,null,null,null,null,null,null,null,null,null,null,null,null,null,null,null,null,null,null,null,null,null,null,null,null,null,null,null,null,null,null,null,null,null,null,null,null,null,null,null,null,null,null,null,null,null,null,null,null,null,null,null,null,null,null,null,null,null,null,null,null,null,"00","21","21","00","21","21","00","21","21","00","21","21","00","21","21","00","21","21","00","00","00","00","00","00","00","00","00","00","00","00","00","00","00","00","00","00","00","00","00","00","00","00","00","00","00"]
[null,null,null,null,null,null,null,null,null,null,null,null,null,null,null,null,null,null,null,null,null,null,null,null,null,null,null,null,null,null,null,null,null,null,null,null,null,null,null,null,null,null,null,null,null,null,null,null,null,null,null,null,null,null,null,null,null,null,null,null,null,null,null,null,null,null,null,null,null,null,null,null,null,null,null,null,null,null,null,null,null,null,null,null,null,null,null,null,null,null,null,null,null,null,null,"00","21","21","00","21","21","00","21","21","00","21","21","00","21","21","00","21","21","00","00","00","00","00","00","00","00","00","00","00","00","00","00","00","00","00","00","00","00","00","00","00","00","00","00","00"]
[null,null,null,null,null,null,null,null,null,null,null,null,null,null,null,null,null,null,null,null,null,null,null,null,null,null,null,null,null,null,null,null,null,null,null,null,null,null,null,null,null,null,null,null,null,null,null,null,null,null,null,null,null,null,null,null,null,null,null,null,null,null,null,null,null,null,null,null,null,null,null,null,null,null,null,null,null,null,null,null,null,null,null,null,null,null,null,null,null,null,null,null,null,null,null,"00","21","21","00","21","21","00","00","00","00","21","21","00","21","21","00","21","21","00","00","00","00","00","00","00","00","00","00","00","00","00","00","00","00","00","00","00","00","00","00","00","00","00","00","00"]
[null,null,null,null,null,null,null,null,null,null,null,null,null,null,null,null,null,null,null,null,null,null,null,null,null,null,null,null,null,null,null,null,null,null,null,null,null,null,null,null,null,null,null,null,null,null,null,null,null,null,null,null,null,null,null,null,null,null,null,null,null,null,null,null,null,null,null,null,null,null,null,null,null,null,null,null,null,null,null,null,null,null,null,null,null,null,null,null,null,null,null,null,null,null,null,"00","00","00","00","21","21","00","00","00","00","00","00","00","21","21","00","21","21","00","00","00","00","00","00","00","00","00","00","00","00","00","00","00","00","00","00","00","00","00","00","00","00","00","00","00"]
[null,null,null,null,null,null,null,null,null,null,null,null,null,null,null,null,null,null,null,null,null,null,null,null,null,null,null,null,null,null,null,null,null,null,null,null,null,null,null,null,null,null,null,null,null,null,null,null,null,null,null,null,null,null,null,null,null,null,null,null,null,null,null,null,null,null,null,null,null,null,null,null,null,null,null,null,null,null,null,null,null,null,null,null,null,null,null,null,null,null,null,null,null,null,null,"00","00","00","00","00","00","00","00","00","00","00","00","00","00","00","00","00","00","00","00","00","00","00","00","00","00","00","00","00","00","00","00","00","00","00","00","00","00","00","00","00","00","00","00","00"]
[null,null,null,null,null,null,null,null,null,null,null,null,null,null,null,null,null,null,null,null,null,null,null,null,null,null,null,null,null,null,null,null,null,null,null,null,null,null,null,null,null,null,null,null,null,null,null,null,null,null,null,null,null,null,null,null,null,null,null,null,null,null,null,null,null,null,null,null,null,null,null,null,null,null,null,null,null,null,null,null,null,null,null,null,null,null,null,null,null,null,null,null,null,null,null,"00","00","00","00","00","00","00","00","00","00","00","00","00","00","00","00","00","00","00","00","00","00","00","00","00","00","00","00","00","00","00","00","00","00","00","00","00","00","00","00","00","00","00","00","00"]
[null,null,null,null,null,null,null,null,null,null,null,null,null,null,null,null,null,null,null,null,null,null,null,null,null,null,null,null,null,null,null,null,null,null,null,null,null,null,null,null,null,null,null,null,null,null,null,null,null,null,null,null,null,null,null,null,null,null,null,null,null,null,null,null,null,null,null,null,null,null,null,null,null,null,null,null,null,null,null,null,null,null,null,null,null,null,null,null,null,null,null,null,null,null,null,"00","00","00","00","00","00","00","00","00","00","00","00","00","00","00","00","00","00","00","00","00","00","00","00","00","00","00","00","00","00","00","00","00","00","00","00","00","00","00","00","00","00","00","00","00"]
[null,null,null,null,null,null,null,null,null,null,null,null,null,null,null,null,null,null,null,null,null,null,null,null,null,null,null,null,null,null,null,null,null,null,null,null,null,null,null,null,null,null,null,null,null,null,null,null,null,null,null,null,null,null,null,null,null,null,null,null,null,null,null,null,null,null,null,null,null,null,null,null,null,null,null,null,null,null,null,null,null,null,null,null,null,null,null,null,null,null,null,null,null,null,null,"00","00","00","00","00","00","00","00","00","00","00","00","00","00","00","00","00","00","00","00","00","00","00","00","00","00","00","00","00","00","00","00","00","00","00","00","00","00","00","00","00","00","00","00","00"]
[null,null,null,null,null,null,null,null,null,null,null,null,null,null,null,null,null,null,null,null,null,null,null,null,null,null,null,null,null,null,null,null,null,null,null,null,null,null,null,null,null,null,null,null,null,null,null,null,null,null,null,null,null,null,null,null,null,null,null,null,null,null,null,null,null,null,null,null,null,null,null,null,null,null,null,null,null,null,null,null,null,null,null,null,null,null,null,null,null,null,null,null,null,null,null,"00","00","00","00","00","00","00","00","00","00","00","00","00","00","00","00","00","00","00","00","00","00","00","00","00","00","00","00","00","00","00","00","00","00","00","00","00","00","00","00","00","00","00","00","00"]
[null,null,null,null,null,null,null,null,null,null,null,null,null,null,null,null,null,null,null,null,null,null,null,null,null,null,null,null,null,null,null,null,null,null,null,null,null,null,null,null,null,null,null,null,null,null,null,null,null,null,null,null,null,null,null,null,null,null,null,null,null,null,null,null,null,null,null,null,null,null,null,null,null,null,null,null,null,null,null,null,null,null,null,null,null,null,null,null,null,null,null,null,null,null,null,"00","21","21","00","21","21","00","21","21","00","21","21","00","21","21","00","21","21","00","00","00","00","00","00","00","00","00","00","00","00","00","00","00","00","00","00","00","00","00","00","00","00","00","00","00"]
[null,null,null,null,null,null,null,null,null,null,null,null,null,null,null,null,null,null,null,null,null,null,null,null,null,null,null,null,null,null,null,null,null,null,null,null,null,null,null,null,null,null,null,null,null,null,null,null,null,null,null,null,null,null,null,null,null,null,null,null,null,null,null,null,null,null,null,null,null,null,null,null,null,null,null,null,null,null,null,null,null,null,null,null,null,null,null,null,null,null,null,null,null,null,null,"00","21","21","00","21","21","00","21","21","00","21","21","00","21","21","00","21","21","00","00","00","00","00","00","00","00","00","00","00","00","00","00","00","00","00","00","00","00","00","00","00","00","00","00","00"]
[null,null,null,null,null,null,null,null,null,null,null,null,null,null,null,null,null,null,null,null,null,null,null,null,null,null,null,null,null,null,null,null,null,null,null,null,null,null,null,null,null,null,null,null,null,null,null,null,null,null,null,null,null,null,null,null,null,null,null,null,null,null,null,null,null,null,null,null,null,null,null,null,null,null,null,null,null,null,null,null,null,null,null,null,null,null,null,null,null,null,null,null,null,null,null,"00","21","21","00","21","21","00","21","21","00","21","21","00","21","21","00","21","21","00","00","00","00","00","00","00","00","00","00","00","00","00","00","00","00","00","00","00","00","00","00","00","00","00","00","00"]
[null,null,null,null,null,null,null,null,null,null,null,null,null,null,null,null,null,null,null,null,null,null,null,null,null,null,null,null,null,null,null,null,null,null,null,null,null,null,null,null,null,null,null,null,null,null,null,null,null,null,null,null,null,null,null,null,null,null,null,null,null,null,null,null,null,null,null,null,null,null,null,null,null,null,null,null,null,null,null,null,null,null,null,null,null,null,null,null,null,null,null,null,null,null,null,"00","21","21","00","21","21","00","00","00","00","21","21","00","21","21","00","21","21","00","00","00","00","00","00","00","00","00","00","00","00","00","00","00","00","00","00","00","00","00","00","00","00","00","00","00"]
[null,null,null,null,null,null,null,null,null,null,null,null,null,null,null,null,null,null,null,null,null,null,null,null,null,null,null,null,null,null,null,null,null,null,null,null,null,null,null,null,null,null,null,null,null,null,null,null,null,null,null,null,null,null,null,null,null,null,null,null,null,null,null,null,null,null,null,null,null,null,null,null,null,null,null,null,null,null,null,null,null,null,null,null,null,null,null,null,null,null,null,null,null,null,null,"00","00","00","00","21","21","00","00","00","00","00","00","00","21","21","00","21","21","00","00","00","00","00","00","00","00","00","00","00","00","00","00","00","00","00","00","00","00","00","00","00","00","00","00","00"]
[null,null,null,null,null,null,null,null,null,null,null,null,null,null,null,null,null,null,null,null,null,null,null,null,null,null,null,null,null,null,null,null,null,null,null,null,null,null,null,null,null,null,null,null,null,null,null,null,null,null,null,null,null,null,null,null,null,null,null,null,null,null,null,null,null,null,null,null,null,null,null,null,null,null,null,null,null,null,null,null,null,null,null,null,null,null,null,null,null,null,null,null,null,null,null,"00","00","00","00","00","00","00","00","00","00","00","00","00","00","00","00","00","00","00","00","00","00","00","00","00","00","00","00","00","00","00","00","00","00","00","00","00","00","00","00","00","00","00","00","00"]
[null,null,null,null,null,null,null,null,null,null,null,null,null,null,null,null,null,null,null,null,null,null,null,null,null,null,null,null,null,null,null,null,null,null,null,null,null,null,null,null,null,null,null,null,null,null,null,null,null,null,null,null,null,null,null,null,null,null,null,null,null,null,null,null,null,null,null,null,null,null,null,null,null,null,null,null,null,null,null,null,null,null,null,null,null,null,null,null,null,null,null,null,null,null,null,"00","00","00","00","00","00","00","00","00","00","00","00","00","00","00","00","00","00","00","00","00","00","00","00","00","00","00","00","00","00","00","00","00","00","00","00","00","00","00","00","00","00","00","00","00"]
[null,null,null,null,null,null,null,null,null,null,null,null,null,null,null,null,null,null,null,null,null,null,null,null,null,null,null,null,null,null,null,null,null,null,null,null,null,null,null,null,null,null,null,null,null,null,null,null,null,null,null,null,null,null,null,null,null,null,null,null,null,null,null,null,null,null,null,null,null,null,null,null,null,null,null,null,null,null,null,null,null,null,null,null,null,null,null,null,null,null,null,null,null,null,null,"00","00","00","00","00","00","00","00","00","00","00","00","00","00","00","00","00","00","00","00","00","00","00","00","00","00","00","00","00","00","00","00","00","00","00","00","00","00","00","00","00","00","00","00","00"]
[null,null,null,null,null,null,null,null,null,null,null,null,null,null,null,null,null,null,null,null,null,null,null,null,null,null,null,null,null,null,null,null,null,null,null,null,null,null,null,null,null,null,null,null,null,null,null,null,null,null,null,null,null,null,null,null,null,null,null,null,null,null,null,null,null,null,null,null,null,null,null,null,null,null,null,null,null,null,null,null,null,null,null,null,null,null,null,null,null,null,null,null,null,null,null,"00","00","00","00","00","00","00","00","00","00","00","00","00","00","00","00","00","00","00","00","00","00","00","00","00","00","00","00","00","00","00","00","00","00","00","00","00","00","00","00","00","00","00","00","00"]
[null,null,null,null,null,null,null,null,null,null,null,null,null,null,null,null,null,null,null,null,null,null,null,null,null,null,null,null,null,null,null,null,null,null,null,null,null,null,null,null,null,null,null,null,null,null,null,null,null,null,null,null,null,null,null,null,null,null,null,null,null,null,null,null,null,null,null,null,null,null,null,null,null,null,null,null,null,null,null,null,null,null,null,null,null,null,null,null,null,null,null,null,null,null,null,"00","00","00","00","00","00","00","00","00","00","00","00","00","00","00","00","00","00","00","00","00","00","00","00","00","00","00","00","00","00","00","00","00","00","00","00","00","00","00","00","00","00","00","00","00"]
[null,null,null,null,null,null,null,null,null,null,null,null,null,null,null,null,null,null,null,null,null,null,null,null,null,null,null,null,null,null,null,null,null,null,null,null,null,null,null,null,null,null,null,null,null,null,null,null,null,null,null,null,null,null,null,null,null,null,null,null,null,null,null,null,null,null,null,null,null,null,null,null,null,null,null,null,null,null,null,null,null,null,null,null,null,null,null,null,null,null,null,null,null,null,null,"00","21","21","00","21","21","00","21","21","00","21","21","00","21","21","00","21","21","00","00","00","00","00","00","00","00","00","00","00","00","00","00","00","00","00","00","00","00","00","00","00","00","00","00","00"]
[null,null,null,null,null,null,null,null,null,null,null,null,null,null,null,null,null,null,null,null,null,null,null,null,null,null,null,null,null,null,null,null,null,null,null,null,null,null,null,null,null,null,null,null,null,null,null,null,null,null,null,null,null,null,null,null,null,null,null,null,null,null,null,null,null,null,null,null,null,null,null,null,null,null,null,null,null,null,null,null,null,null,null,null,null,null,null,null,null,null,null,null,null,null,null,"00","21","21","00","21","21","00","21","21","00","21","21","00","21","21","00","21","21","00","00","00","00","00","00","00","00","00","00","00","00","00","00","00","00","00","00","00","00","00","00","00","00","00","00","00"]
[null,null,null,null,null,null,null,null,null,null,null,null,null,null,null,null,null,null,null,null,null,null,null,null,null,null,null,null,null,null,null,null,null,null,null,null,null,null,null,null,null,null,null,null,null,null,null,null,null,null,null,null,null,null,null,null,null,null,null,null,null,null,null,null,null,null,null,null,null,null,null,null,null,null,null,null,null,null,null,null,null,null,null,null,null,null,null,null,null,null,null,null,null,null,null,"00","21","21","00","21","21","00","21","21","00","21","21","00","21","21","00","21","21","00","00","00","00","00","00","00","00","00","00","00","00","00","00","00","00","00","00","00","00","00","00","00","00","00","00","00"]
[null,null,null,null,null,null,null,null,null,null,null,null,null,null,null,null,null,null,null,null,null,null,null,null,null,null,null,null,null,null,null,null,null,null,null,null,null,null,null,null,null,null,null,null,null,null,null,null,null,null,null,null,null,null,null,null,null,null,null,null,null,null,null,null,null,null,null,null,null,null,null,null,null,null,null,null,null,null,null,null,null,null,null,null,null,null,null,null,null,null,null,null,null,null,null,"00","21","21","00","21","21","00","00","00","00","21","21","00","21","21","00","21","21","00","00","00","00","00","00","00","00","00","00","00","00","00","00","00","00","00","00","00","00","00","00","00","00","00","00","00"]
[null,null,null,null,null,null,null,null,null,null,null,null,null,null,null,null,null,null,null,null,null,null,null,null,null,null,null,null,null,null,null,null,null,null,null,null,null,null,null,null,null,null,null,null,null,null,null,null,null,null,null,null,null,null,null,null,null,null,null,null,null,null,null,null,null,null,null,null,null,null,null,null,null,null,null,null,null,null,null,null,null,null,null,null,null,null,null,null,null,null,null,null,null,null,null,"00","00","00","00","21","21","00","00","00","00","00","00","00","21","21","00","21","21","00","00","00","00","00","00","00","00","00","00","00","00","00","00","00","00","00","00","00","00","00","00","00","00","00","00","00"]
[null,null,null,null,null,null,null,null,null,null,null,null,null,null,null,null,null,null,null,null,null,null,null,null,null,null,null,null,null,null,null,null,null,null,null,null,null,null,null,null,null,null,null,null,null,null,null,null,null,null,null,null,null,null,null,null,null,null,null,null,null,null,null,null,null,null,null,null,null,null,null,null,null,null,null,null,null,null,null,null,null,null,null,null,null,null,null,null,null,null,null,null,null,null,null,"00","00","00","00","00","00","00","00","00","00","00","00","00","00","00","00","00","00","00","00","00","00","00","00","00","00","00","00","00","00","00","00","00","00","00","00","00","00","00","00","00","00","00","00","00"]
[null,null,null,null,null,null,null,null,null,null,null,null,null,null,null,null,null,null,null,null,null,null,null,null,null,null,null,null,null,null,null,null,null,null,null,null,null,null,null,null,null,null,null,null,null,null,null,null,null,null,null,null,null,null,null,null,null,null,null,null,null,null,null,null,null,null,null,null,null,null,null,null,null,null,null,null,null,null,null,null,null,null,null,null,null,null,null,null,null,null,null,null,null,null,null,"00","00","00","00","00","00","00","00","00","00","00","00","00","00","00","00","00","00","00","00","00","00","00","00","00","00","00","00","00","00","00","00","00","00","00","00","00","00","00","00","00","00","00","00","00"]
[null,null,null,null,null,null,null,null,null,null,null,null,null,null,null,null,null,null,null,null,null,null,null,null,null,null,null,null,null,null,null,null,null,null,null,null,null,null,null,null,null,null,null,null,null,null,null,null,null,null,null,null,null,null,null,null,null,null,null,null,null,null,null,null,null,null,null,null,null,null,null,null,null,null,null,null,null,null,null,null,null,null,null,null,null,null,null,null,null,null,null,null,null,null,null,"00","00","00","00","00","00","00","00","00","00","00","00","00","00","00","00","00","00","00","00","00","00","00","00","00","00","00","00","00","00","00","00","00","00","00","00","00","00","00","00","00","00","00","00","00"]
[null,null,null,null,null,null,null,null,null,null,null,null,null,null,null,null,null,null,null,null,null,null,null,null,null,null,null,null,null,null,null,null,null,null,null,null,null,null,null,null,null,null,null,null,null,null,null,null,null,null,null,null,null,null,null,null,null,null,null,null,null,null,null,null,null,null,null,null,null,null,null,null,null,null,null,null,null,null,null,null,null,null,null,null,null,null,null,null,null,null,null,null,null,null,null,"00","00","00","00","00","00","00","00","00","00","00","00","00","00","00","00","00","00","00","00","00","00","00","00","00","00","00","00","00","00","00","00","00","00","00","00","00","00","00","00","00","00","00","00","00"]
[null,null,null,null,null,null,null,null,null,null,null,null,null,null,null,null,null,null,null,null,null,null,null,null,null,null,null,null,null,null,null,null,null,null,null,null,null,null,null,null,null,null,null,null,null,null,null,null,null,null,null,null,null,null,null,null,null,null,null,null,null,null,null,null,null,null,null,null,null,null,null,null,null,null,null,null,null,null,null,null,null,null,null,null,null,null,null,null,null,null,null,null,null,null,null,"00","00","00","00","00","00","00","00","00","00","00","00","00","00","00","00","00","00","00","00","00","00","00","00","00","00","00","00","00","00","00","00","00","00","00","00","00","00","00","00","00","00","00","00","00"]
[null,null,null,null,null,null,null,null,null,null,null,null,null,null,null,null,null,null,null,null,null,null,null,null,null,null,null,null,null,null,null,null,null,null,null,null,null,null,null,null,null,null,null,null,null,null,null,null,null,null,null,null,null,null,null,null,null,null,null,null,null,null,null,null,null,null,null,null,null,null,null,null,null,null,null,null,null,null,null,null,null,null,null,null,null,null,null,null,null,null,null,null,null,null,null,"00","21","21","00","21","21","00","21","21","00","21","21","00","21","21","00","21","21","00","00","00","00","00","00","00","00","00","00","00","00","00","00","00","00","00","00","00","00","00","00","00","00","00","00","00"]
[null,null,null,null,null,null,null,null,null,null,null,null,null,null,null,null,null,null,null,null,null,null,null,null,null,null,null,null,null,null,null,null,null,null,null,null,null,null,null,null,null,null,null,null,null,null,null,null,null,null,null,null,null,null,null,null,null,null,null,null,null,null,null,null,null,null,null,null,null,null,null,null,null,null,null,null,null,null,null,null,null,null,null,null,null,null,null,null,null,null,null,null,null,null,null,"00","21","21","00","21","21","00","21","21","00","21","21","00","21","21","00","21","21","00","00","00","00","00","00","00","00","00","00","00","00","00","00","00","00","00","00","00","00","00","00","00","00","00","00","00"]
[null,null,null,null,null,null,null,null,null,null,null,null,null,null,null,null,null,null,null,null,null,null,null,null,null,null,null,null,null,null,null,null,null,null,null,null,null,null,null,null,null,null,null,null,null,null,null,null,null,null,null,null,null,null,null,null,null,null,null,null,null,null,null,null,null,null,null,null,null,null,null,null,null,null,null,null,null,null,null,null,null,null,null,null,null,null,null,null,null,null,null,null,null,null,null,"00","21","21","00","21","21","00","21","21","00","21","21","00","21","21","00","21","21","00","00","00","00","00","00","00","00","00","00","00","00","00","00","00","00","00","00","00","00","00","00","00","00","00","00","00"]
[null,null,null,null,null,null,null,null,null,null,null,null,null,null,null,null,null,null,null,null,null,null,null,null,null,null,null,null,null,null,null,null,null,null,null,null,null,null,null,null,null,null,null,null,null,null,null,null,null,null,null,null,null,null,null,null,null,null,null,null,null,null,null,null,null,null,null,null,null,null,null,null,null,null,null,null,null,null,null,null,null,null,null,null,null,null,null,null,null,null,null,null,null,null,null,"00","21","21","00","21","21","00","00","00","00","21","21","00","21","21","00","21","21","00","00","00","00","00","00","00","00","00","00","00","00","00","00","00","00","00","00","00","00","00","00","00","00","00","00","00"]
[null,null,null,null,null,null,null,null,null,null,null,null,null,null,null,null,null,null,null,null,null,null,null,null,null,null,null,null,null,null,null,null,null,null,null,null,null,null,null,null,null,null,null,null,null,null,null,null,null,null,null,null,null,null,null,null,null,null,null,null,null,null,null,null,null,null,null,null,null,null,null,null,null,null,null,null,null,null,null,null,null,null,null,null,null,null,null,null,null,null,null,null,null,null,null,"00","00","00","00","21","21","00","00","00","00","00","00","00","21","21","00","21","21","00","00","00","00","00","00","00","00","00","00","00","00","00","00","00","00","00","00","00","00","00","00","00","00","00","00","00"]
[null,null,null,null,null,null,null,null,null,null,null,null,null,null,null,null,null,null,null,null,null,null,null,null,null,null,null,null,null,null,null,null,null,null,null,null,null,null,null,null,null,null,null,null,null,null,null,null,null,null,null,null,null,null,null,null,null,null,null,null,null,null,null,null,null,null,null,null,null,null,null,null,null,null,null,null,null,null,null,null,null,null,null,null,null,null,null,null,null,null,null,null,null,null,null,"00","00","00","00","00","00","00","00","00","00","00","00","00","00","00","00","00","00","00","00","00","00","00","00","00","00","00","00","00","00","00","00","00","00","00","00","00","00","00","00","00","00","00","00","00"]
[null,null,null,null,null,null,null,null,null,null,null,null,null,null,null,null,null,null,null,null,null,null,null,null,null,null,null,null,null,null,null,null,null,null,null,null,null,null,null,null,null,null,null,null,null,null,null,null,null,null,null,null,null,null,null,null,null,null,null,null,null,null,null,null,null,null,null,null,null,null,null,null,null,null,null,null,null,null,null,null,null,null,null,null,null,null,null,null,null,null,null,null,null,null,null,"00","00","00","00","00","00","00","00","00","00","00","00","00","00","00","00","00","00","00","00","00","00","00","00","00","00","00","00","00","00","00","00","00","00","00","00","00","00","00","00","00","00","00","00","00"]
[null,null,null,null,null,null,null,null,null,null,null,null,null,null,null,null,null,null,null,null,null,null,null,null,null,null,null,null,null,null,null,null,null,null,null,null,null,null,null,null,null,null,null,null,null,null,null,null,null,null,null,null,null,null,null,null,null,null,null,null,null,null,null,null,null,null,null,null,null,null,null,null,null,null,null,null,null,null,null,null,null,null,null,null,null,null,null,null,null,null,null,null,null,null,null,"00","00","00","00","00","00","00","00","00","00","00","00","00","00","00","00","00","00","00","00","00","00","00","00","00","00","00","00","00","00","00","00","00","00","00","00","00","00","00","00","00","00","00","00","00"]
[null,null,null,null,null,null,null,null,null,null,null,null,null,null,null,null,null,null,null,null,null,null,null,null,null,null,null,null,null,null,null,null,null,null,null,null,null,null,null,null,null,null,null,null,null,null,null,null,null,null,null,null,null,null,null,null,null,null,null,null,null,null,null,null,null,null,null,null,null,null,null,null,null,null,null,null,null,null,null,null,null,null,null,null,null,null,null,null,null,null,null,null,null,null,null,"00","00","00","00","00","00","00","00","00","00","00","00","00","00","00","00","00","00","00","00","00","00","00","00","00","00","00","00","00","00","00","00","00","00","00","00","00","00","00","00","00","00","00","00","00"]
[null,null,null,null,null,null,null,null,null,null,null,null,null,null,null,null,null,null,null,null,null,null,null,null,null,null,null,null,null,null,null,null,null,null,null,null,null,null,null,null,null,null,null,null,null,null,null,null,null,null,null,null,null,null,null,null,null,null,null,null,null,null,null,null,null,null,null,null,null,null,null,null,null,null,null,null,null,null,null,null,null,null,null,null,null,null,null,null,null,null,null,null,null,null,null,"00","00","00","00","00","00","00","00","00","00","00","00","00","00","00","00","00","00","00","00","00","00","00","00","00","00","00","00","00","00","00","00","00","00","00","00","00","00","00","00","00","00","00","00","00"]
[null,null,null,null,null,null,null,null,null,null,null,null,null,null,null,null,null,null,null,null,null,null,null,null,null,null,null,null,null,null,null,null,null,null,null,null,null,null,null,null,null,null,null,null,null,null,null,null,null,null,null,null,null,null,null,null,null,null,null,null,null,null,null,null,null,null,null,null,null,null,null,null,null,null,null,null,null,null,null,null,null,null,null,null,null,null,null,null,null,null,null,null,null,null,null,"00","21","21","00","21","21","00","21","21","00","21","21","00","21","21","00","21","21","00","00","00","00","00","00","00","00","00","00","00","00","00","00","00","00","00","00","00","00","00","00","00","00","00","00","00"]
[null,null,null,null,null,null,null,null,null,null,null,null,null,null,null,null,null,null,null,null,null,null,null,null,null,null,null,null,null,null,null,null,null,null,null,null,null,null,null,null,null,null,null,null,null,null,null,null,null,null,null,null,null,null,null,null,null,null,null,null,null,null,null,null,null,null,null,null,null,null,null,null,null,null,null,null,null,null,null,null,null,null,null,null,null,null,null,null,null,null,null,null,null,null,null,"00","21","21","00","21","21","00","21","21","00","21","21","00","21","21","00","21","21","00","00","00","00","00","00","00","00","00","00","00","00","00","00","00","00","00","00","00","00","00","00","00","00","00","00","00"]
[null,null,null,null,null,null,null,null,null,null,null,null,null,null,null,null,null,null,null,null,null,null,null,null,null,null,null,null,null,null,null,null,null,null,null,null,null,null,null,null,null,null,null,null,null,null,null,null,null,null,null,null,null,null,null,null,null,null,null,null,null,null,null,null,null,null,null,null,null,null,null,null,null,null,null,null,null,null,null,null,null,null,null,null,null,null,null,null,null,null,null,null,null,null,null,"00","21","21","00","21","21","00","21","21","00","21","21","00","21","21","00","21","21","00","00","00","00","00","00","00","00","00","00","00","00","00","00","00","00","00","00","00","00","00","00","00","00","00","00","00"]
[null,null,null,null,null,null,null,null,null,null,null,null,null,null,null,null,null,null,null,null,null,null,null,null,null,null,null,null,null,null,null,null,null,null,null,null,null,null,null,null,null,null,null,null,null,null,null,null,null,null,null,null,null,null,null,null,null,null,null,null,null,null,null,null,null,null,null,null,null,null,null,null,null,null,null,null,null,null,null,null,null,null,null,null,null,null,null,null,null,null,null,null,null,null,null,"00","21","21","00","21","21","00","00","00","00","21","21","00","21","21","00","21","21","00","00","00","00","00","00","00","00","00","00","00","00","00","00","00","00","00","00","00","00","00","00","00","00","00","00","00"]
[null,null,null,null,null,null,null,null,null,null,null,null,null,null,null,null,null,null,null,null,null,null,null,null,null,null,null,null,null,null,null,null,null,null,null,null,null,null,null,null,null,null,null,null,null,null,null,null,null,null,null,null,null,null,null,null,null,null,null,null,null,null,null,null,null,null,null,null,null,null,null,null,null,null,null,null,null,null,null,null,null,null,null,null,null,null,null,null,null,null,null,null,null,null,null,"00","00","00","00","21","21","00","00","00","00","00","00","00","21","21","00","21","21","00","00","00","00","00","00","00","00","00","00","00","00","00","00","00","00","00","00","00","00","00","00","00","00","00","00","00"]
[null,null,null,null,null,null,null,null,null,null,null,null,null,null,null,null,null,null,null,null,null,null,null,null,null,null,null,null,null,null,null,null,null,null,null,null,null,null,null,null,null,null,null,null,null,null,null,null,null,null,null,null,null,null,null,null,null,null,null,null,null,null,null,null,null,null,null,null,null,null,null,null,null,null,null,null,null,null,null,null,null,null,null,null,null,null,null,null,null,null,null,null,null,null,null,"00","00","00","00","00","00","00","00","00","00","00","00","00","00","00","00","00","00","00","00","00","00","00","00","00","00","00","00","00","00","00","00","00","00","00","00","00","00","00","00","00","00","00","00","00"]
[null,null,null,null,null,null,null,null,null,null,null,null,null,null,null,null,null,null,null,null,null,null,null,null,null,null,null,null,null,null,null,null,null,null,null,null,null,null,null,null,null,null,null,null,null,null,null,null,null,null,null,null,null,null,null,null,null,null,null,null,null,null,null,null,null,null,null,null,null,null,null,null,null,null,null,null,null,null,null,null,null,null,null,null,null,null,null,null,null,null,null,null,null,null,null,"00","00","00","00","00","00","00","00","00","00","00","00","00","00","00","00","00","00","00","00","00","00","00","00","00","00","00","00","00","00","00","00","00","00","00","00","00","00","00","00","00","00","00","00","00"]
[null,null,null,null,null,null,null,null,null,null,null,null,null,null,null,null,null,null,null,null,null,null,null,null,null,null,null,null,null,null,null,null,null,null,null,null,null,null,null,null,null,null,null,null,null,null,null,null,null,null,null,null,null,null,null,null,null,null,null,null,null,null,null,null,null,null,null,null,null,null,null,null,null,null,null,null,null,null,null,null,null,null,null,null,null,null,null,null,null,null,null,null,null,null,null,"00","00","00","00","00","00","00","00","00","00","00","00","00","00","00","00","00","00","00","00","00","00","00","00","00","00","00","00","00","00","00","00","00","00","00","00","00","00","00","00","00","00","00","00","00"]
[null,null,null,null,null,null,null,null,null,null,null,null,null,null,null,null,null,null,null,null,null,null,null,null,null,null,null,null,null,null,null,null,null,null,null,null,null,null,null,null,null,null,null,null,null,null,null,null,null,null,null,null,null,null,null,null,null,null,null,null,null,null,null,null,null,null,null,null,null,null,null,null,null,null,null,null,null,null,null,null,null,null,null,null,null,null,null,null,null,null,null,null,null,null,null,"00","00","00","00","00","00","00","00","00","00","00","00","00","00","00","00","00","00","00","00","00","00","00","00","00","00","00","00","00","00","00","00","00","00","00","00","00","00","00","00","00","00","00","00","00"]
[null,null,null,null,null,null,null,null,null,null,null,null,null,null,null,null,null,null,null,null,null,null,null,null,null,null,null,null,null,null,null,null,null,null,null,null,null,null,null,null,null,null,null,null,null,null,null,null,null,null,null,null,null,null,null,null,null,null,null,null,null,null,null,null,null,null,null,null,null,null,null,null,null,null,null,null,null,null,null,null,null,null,null,null,null,null,null,null,null,null,null,null,null,null,null,"00","00","00","00","00","00","00","00","00","00","00","00","00","00","00","00","00","00","00","00","00","00","00","00","00","00","00","00","00","00","00","00","00","00","00","00","00","00","00","00","00","00","00","00","00"]
[null,null,null,null,null,null,null,null,null,null,null,null,null,null,null,null,null,null,null,null,null,null,null,null,null,null,null,null,null,null,null,null,null,null,null,null,null,null,null,null,null,null,null,null,null,null,null,null,null,null,null,null,null,null,null,null,null,null,null,null,null,null,null,null,null,null,null,null,null,null,null,null,null,null,null,null,null,null,null,null,null,null,null,null,null,null,null,null,null,null,null,null,null,null,null,"00","21","21","00","21","21","00","21","21","00","21","21","00","21","21","00","21","21","00","00","00","00","00","00","00","00","00","00","00","00","00","00","00","00","00","00","00","00","00","00","00","00","00","00","00"]
[null,null,null,null,null,null,null,null,null,null,null,null,null,null,null,null,null,null,null,null,null,null,null,null,null,null,null,null,null,null,null,null,null,null,null,null,null,null,null,null,null,null,null,null,null,null,null,null,null,null,null,null,null,null,null,null,null,null,null,null,null,null,null,null,null,null,null,null,null,null,null,null,null,null,null,null,null,null,null,null,null,null,null,null,null,null,null,null,null,null,null,null,null,null,null,"00","21","21","00","21","21","00","21","21","00","21","21","00","21","21","00","21","21","00","00","00","00","00","00","00","00","00","00","00","00","00","00","00","00","00","00","00","00","00","00","00","00","00","00","00"]
[null,null,null,null,null,null,null,null,null,null,null,null,null,null,null,null,null,null,null,null,null,null,null,null,null,null,null,null,null,null,null,null,null,null,null,null,null,null,null,null,null,null,null,null,null,null,null,null,null,null,null,null,null,null,null,null,null,null,null,null,null,null,null,null,null,null,null,null,null,null,null,null,null,null,null,null,null,null,null,null,null,null,null,null,null,null,null,null,null,null,null,null,null,null,null,"00","21","21","00","21","21","00","21","21","00","21","21","00","21","21","00","21","21","00","00","00","00","00","00","00","00","00","00","00","00","00","00","00","00","00","00","00","00","00","00","00","00","00","00","00"]
[null,null,null,null,null,null,null,null,null,null,null,null,null,null,null,null,null,null,null,null,null,null,null,null,null,null,null,null,null,null,null,null,null,null,null,null,null,null,null,null,null,null,null,null,null,null,null,null,null,null,null,null,null,null,null,null,null,null,null,null,null,null,null,null,null,null,null,null,null,null,null,null,null,null,null,null,null,null,null,null,null,null,null,null,null,null,null,null,null,null,null,null,null,null,null,"00","21","21","00","21","21","00","00","00","00","21","21","00","21","21","00","21","21","00","00","00","00","00","00","00","00","00","00","00","00","00","00","00","00","00","00","00","00","00","00","00","00","00","00","00"]
[null,null,null,null,null,null,null,null,null,null,null,null,null,null,null,null,null,null,null,null,null,null,null,null,null,null,null,null,null,null,null,null,null,null,null,null,null,null,null,null,null,null,null,null,null,null,null,null,null,null,null,null,null,null,null,null,null,null,null,null,null,null,null,null,null,null,null,null,null,null,null,null,null,null,null,null,null,null,null,null,null,null,null,null,null,null,null,null,null,null,null,null,null,null,null,"00","00","00","00","21","21","00","00","00","00","00","00","00","21","21","00","21","21","00","00","00","00","00","00","00","00","00","00","00","00","00","00","00","00","00","00","00","00","00","00","00","00","00","00","00"]
[null,null,null,null,null,null,null,null,null,null,null,null,null,null,null,null,null,null,null,null,null,null,null,null,null,null,null,null,null,null,null,null,null,null,null,null,null,null,null,null,null,null,null,null,null,null,null,null,null,null,null,null,null,null,null,null,null,null,null,null,null,null,null,null,null,null,null,null,null,null,null,null,null,null,null,null,null,null,null,null,null,null,null,null,null,null,null,null,null,null,null,null,null,null,null,"00","00","00","00","00","00","00","00","00","00","00","00","00","00","00","00","00","00","00","00","00","00","00","00","00","00","00","00","00","00","00","00","00","00","00","00","00","00","00","00","00","00","00","00","00"]
[null,null,null,null,null,null,null,null,null,null,null,null,null,null,null,null,null,null,null,null,null,null,null,null,null,null,null,null,null,null,null,null,null,null,null,null,null,null,null,null,null,null,null,null,null,null,null,null,null,null,null,null,null,null,null,null,null,null,null,null,null,null,null,null,null,null,null,null,null,null,null,null,null,null,null,null,null,null,null,null,null,null,null,null,null,null,null,null,null,null,null,null,null,null,null,"00","00","00","00","00","00","00","00","00","00","00","00","00","00","00","00","00","00","00","00","00","00","00","00","00","00","00","00","00","00","00","00","00","00","00","00","00","00","00","00","00","00","00","00","00"]
[null,null,null,null,null,null,null,null,null,null,null,null,null,null,null,null,null,null,null,null,null,null,null,null,null,null,null,null,null,null,null,null,null,null,null,null,null,null,null,null,null,null,null,null,null,null,null,null,null,null,null,null,null,null,null,null,null,null,null,null,null,null,null,null,null,null,null,null,null,null,null,null,null,null,null,null,null,null,null,null,null,null,null,null,null,null,null,null,null,null,null,null,null,null,null,"00","00","00","00","00","00","00","00","00","00","00","00","00","00","00","00","00","00","00","00","00","00","00","00","00","00","00","00","00","00","00","00","00","00","00","00","00","00","00","00","00","00","00","00","00"]
[null,null,null,null,null,null,null,null,null,null,null,null,null,null,null,null,null,null,null,null,null,null,null,null,null,null,null,null,null,null,null,null,null,null,null,null,null,null,null,null,null,null,null,null,null,null,null,null,null,null,null,null,null,null,null,null,null,null,null,null,null,null,null,null,null,null,null,null,null,null,null,null,null,null,null,null,null,null,null,null,null,null,null,null,null,null,null,null,null,null,null,null,null,null,null,"00","00","00","00","00","00","00","00","00","00","00","00","00","00","00","00","00","00","00","00","00","00","00","00","00","00","00","00","00","00","00","00","00","00","00","00","00","00","00","00","00","00","00","00","00"]
[null,null,null,null,null,null,null,null,null,null,null,null,null,null,null,null,null,null,null,null,null,null,null,null,null,null,null,null,null,null,null,null,null,null,null,null,null,null,null,null,null,null,null,null,null,null,null,null,null,null,null,null,null,null,null,null,null,null,null,null,null,null,null,null,null,null,null,null,null,null,null,null,null,null,null,null,null,null,null,null,null,null,null,null,null,null,null,null,null,null,null,null,null,null,null,"00","00","00","00","00","00","00","00","00","00","00","00","00","00","00","00","00","00","00","00","00","00","00","00","00","00","00","00","00","00","00","00","00","00","00","00","00","00","00","00","00","00","00","00","00"]
[]
[]
[]
[]
[]
[]
[]
[]
[]
[]
[]
[]
[]
[]
[]
[]
[]
[]
[]
[]
[]
[]
[]
[]
[]
[]
[]
[]
[]
[]
[]
[]
[]
[]
[]
[]
[]
[]
[]
[]
[]
[]
[]
[]
[]
[]
[]
[]
[]
[]
[]
[]
[]
[]
[]
[]
[]
[]
[]
[]
[]
[]
[]
[]
[]
[]
[]
[]
[]
[]
[]
[]
[]
[]
[]
[]
[]
[]
[]
[]
[]
[]
[]
[]
[]
[]
[]
[]
[]
[]
[]
[]
[]
[]
[]
[]
[]
[]
[]
[]
[]
[]
[]
[]
[]
[]
[]
[]
[]
[]
[]
[]
[]
[]
[]
[]
[]
[]
[]
[]
[null,null,null,null,null,null,null,null,null,null,null,null,null,null,null,null,null,null,null,null,null,null,null,null,null,null,null,null,null,null,null,null,null,null,null,null,null,null,null,null,null,null,null,null,null,null,null,null,null,null,"X",null,null,null,"X",null,null,null,null,"X","X",null,null,null,null,"X","X",null,null,null,null,null,null,null,null,null,null,null,null,null,null,null,null,null,null,null,null,null,null,null,null,null,null,null,null,"00","10","20","00","20","11","00","20","20","00","12","12","00","20","20","00","11","12","00","20","20","00","00","00","00","00","00","00","00","00","00","00","00","00","00","00","00","00","00","00","00","00","00","00","00"]
[null,null,null,null,null,null,null,null,null,null,null,null,null,null,null,null,null,null,null,null,null,null,null,null,null,null,null,null,null,null,null,null,null,null,null,null,null,null,null,null,null,null,null,null,null,null,null,null,null,null,"X",null,null,null,"X",null,null,null,null,"X","X",null,null,null,null,"X","X",null,null,null,null,null,null,null,null,null,null,null,null,null,null,null,null,null,null,null,null,null,null,null,null,null,null,null,null,"00","10","20","00","20","11","00","20","20","00","12","12","00","20","20","00","11","12","00","20","20","00","00","00","00","00","00","00","00","00","00","00","00","00","00","00","00","00","00","00","00","00","00","00","00"]
[null,null,null,null,null,null,null,null,null,null,null,null,null,null,null,null,null,null,null,null,null,null,null,null,null,null,null,null,null,null,null,null,null,null,null,null,null,null,null,null,null,null,null,null,null,null,null,null,null,null,"X",null,null,null,"X",null,null,null,null,"X","X",null,null,null,null,"X","X",null,null,null,null,null,null,null,null,null,null,null,null,null,null,null,null,null,null,null,null,null,null,null,null,null,null,null,null,"00","10","20","00","20","11","00","20","20","00","12","12","00","20","20","00","11","12","00","20","20","00","00","00","00","00","00","00","00","00","00","00","00","00","00","00","00","00","00","00","00","00","00","00","00"]
[null,null,null,null,null,null,null,null,null,null,null,null,null,null,null,null,null,null,null,null,null,null,null,null,null,null,null,null,null,null,null,null,null,null,null,null,null,null,null,null,null,null,null,null,null,null,null,null,null,null,"X",null,null,null,"X",null,null,null,null,"X","X",null,null,null,null,"X","X",null,null,null,null,null,null,null,null,null,null,null,null,null,null,null,null,null,null,null,null,null,null,null,null,null,null,null,null,"00","10","20","00","20","11","00","20","20","00","12","12","00","00","00","00","11","12","00","20","20","00","00","00","00","00","00","00","00","00","00","00","00","00","00","00","00","00","00","00","00","00","00","00","00"]
[null,null,null,null,null,null,null,null,null,null,null,null,null,null,null,null,null,null,null,null,null,null,null,null,null,null,null,null,null,null,null,null,null,null,null,null,null,null,null,null,null,null,null,null,null,null,null,null,null,null,"X",null,null,null,"X",null,null,null,null,"X","X",null,null,null,null,"X","X",null,null,null,null,null,null,null,null,null,null,null,null,null,null,null,null,null,null,null,null,null,null,null,null,null,null,null,null,"00","00","00","00","00","00","00","00","00","00","12","12","00","00","00","00","00","00","00","00","00","00","00","00","00","00","00","00","00","00","00","00","00","00","00","00","00","00","00","00","00","00","00","00","00"]
[null,null,null,null,null,null,null,null,null,null,null,null,null,null,null,null,null,null,null,null,null,null,null,null,null,null,null,null,null,null,null,null,null,null,null,null,null,null,null,null,null,null,null,null,null,null,null,null,null,null,"X",null,null,null,"X",null,null,null,null,"X","X",null,null,null,null,"X","X",null,null,null,null,null,null,null,null,null,null,null,null,null,null,null,null,null,null,null,null,null,null,null,null,null,null,null,null,"00","00","00","00","00","00","00","00","00","00","00","00","00","00","00","00","00","00","00","00","00","00","00","00","00","00","00","00","00","00","00","00","00","00","00","00","00","00","00","00","00","00","00","00","00"]
[null,null,null,null,null,null,null,null,null,null,null,null,null,null,null,null,null,null,null,null,null,null,null,null,null,null,null,null,null,null,null,null,null,null,null,null,null,null,null,null,null,null,null,null,null,null,null,null,null,null,"X",null,null,null,"X",null,null,null,null,"X","X",null,null,null,null,"X","X",null,null,null,null,null,null,null,null,null,null,null,null,null,null,null,null,null,null,null,null,null,null,null,null,null,null,null,null,"00","00","00","00","00","00","00","00","00","00","00","00","00","00","00","00","00","00","00","00","00","00","00","00","00","00","00","00","00","00","00","00","00","00","00","00","00","00","00","00","00","00","00","00","00"]
[null,null,null,null,null,null,null,null,null,null,null,null,null,null,null,null,null,null,null,null,null,null,null,null,null,null,null,null,null,null,null,null,null,null,null,null,null,null,null,null,null,null,null,null,null,null,null,null,null,null,"X",null,null,null,"X",null,null,null,null,"X","X",null,null,null,null,"X","X",null,null,null,null,null,null,null,null,null,null,null,null,null,null,null,null,null,null,null,null,null,null,null,null,null,null,null,null,"00","00","00","00","00","00","00","00","00","00","00","00","00","00","00","00","00","00","00","00","00","00","00","00","00","00","00","00","00","00","00","00","00","00","00","00","00","00","00","00","00","00","00","00","00"]
[null,null,null,null,null,null,null,null,null,null,null,null,null,null,null,null,null,null,null,null,null,null,null,null,null,null,null,null,null,null,null,null,null,null,null,null,null,null,null,null,null,null,null,null,null,null,null,null,null,null,"X",null,null,null,"X",null,null,null,null,"X","X",null,null,null,null,"X","X",null,null,null,null,null,null,null,null,null,null,null,null,null,null,null,null,null,null,null,null,null,null,null,null,null,null,null,null,"00","00","00","00","00","00","00","00","00","00","00","00","00","00","00","00","00","00","00","00","00","00","00","00","00","00","00","00","00","00","00","00","00","00","00","00","00","00","00","00","00","00","00","00","00"]
[null,null,null,null,null,null,null,null,null,null,null,null,null,null,null,null,null,null,null,null,null,null,null,null,null,null,null,null,null,null,null,null,null,null,null,null,null,null,null,null,null,null,null,null,null,null,null,null,null,null,"X",null,null,null,"X",null,null,null,null,"X","X",null,null,null,null,"X","X",null,null,null,null,null,null,null,null,null,null,null,null,null,null,null,null,null,null,null,null,null,null,null,null,null,null,null,null,"00","00","00","00","00","00","00","00","00","00","00","00","00","00","00","00","00","00","00","00","00","00","00","00","00","00","00","00","00","00","00","00","00","00","00","00","00","00","00","00","00","00","00","00","00"]
[null,null,null,null,null,null,null,null,null,null,null,null,null,null,null,null,null,null,null,null,null,null,null,null,null,null,null,null,null,null,null,null,null,null,null,null,null,null,null,null,null,null,null,null,null,null,null,null,null,null,null,null,null,null,null,null,null,null,null,null,null,null,null,null,null,null,null,null,null,null,null,null,null,null,null,null,null,null,null,null,null,null,null,null,null,null,null,null,null,null,null,null,null,null,null,"00","20","20","00","22","20","00","20","20","00","22","22","00","20","20","00","20","20","00","20","20","00","00","00","00","00","00","00","00","00","00","00","00","00","00","00","00","00","00","00","00","00","00","00","00"]
[null,null,null,null,null,null,null,null,null,null,null,null,null,null,null,null,null,null,null,null,null,null,null,null,null,null,null,null,null,null,null,null,null,null,null,null,null,null,null,null,null,null,null,null,null,null,null,null,null,null,null,null,null,null,null,null,null,null,null,null,null,null,null,null,null,null,null,null,null,null,null,null,null,null,null,null,null,null,null,null,null,null,null,null,null,null,null,null,null,null,null,null,null,null,null,"00","20","20","00","20","20","00","20","20","00","22","22","00","20","20","00","20","20","00","20","20","00","00","00","00","00","00","00","00","00","00","00","00","00","00","00","00","00","00","00","00","00","00","00","00"]
[null,null,null,null,null,null,null,null,null,null,null,null,null,null,null,null,null,null,null,null,null,null,null,null,null,null,null,null,null,null,null,null,null,null,null,null,null,null,null,null,null,null,null,null,null,null,null,null,null,null,null,null,null,null,null,null,null,null,null,null,null,null,null,null,null,null,null,null,null,null,null,null,null,null,null,null,null,null,null,null,null,null,null,null,null,null,null,null,null,null,null,null,null,null,null,"00","20","20","00","22","20","00","22","20","00","20","20","00","20","20","00","20","20","00","20","20","00","00","00","00","00","00","00","00","00","00","00","00","00","00","00","00","00","00","00","00","00","00","00","00"]
[null,null,null,null,null,null,null,null,null,null,null,null,null,null,null,null,null,null,null,null,null,null,null,null,null,null,null,null,null,null,null,null,null,null,null,null,null,null,null,null,null,null,null,null,null,null,null,null,null,null,null,null,null,null,null,null,null,null,null,null,null,null,null,null,null,null,null,null,null,null,null,null,null,null,null,null,null,null,null,null,null,null,null,null,null,null,null,null,null,null,null,null,null,null,null,"00","20","20","00","22","20","00","22","20","00","22","22","00","00","00","00","20","20","00","20","20","00","00","00","00","00","00","00","00","00","00","00","00","00","00","00","00","00","00","00","00","00","00","00","00"]
[null,null,null,null,null,null,null,null,null,null,null,null,null,null,null,null,null,null,null,null,null,null,null,null,null,null,null,null,null,null,null,null,null,null,null,null,null,null,null,null,null,null,null,null,null,null,null,null,null,null,null,null,null,null,null,null,null,null,null,null,null,null,null,null,null,null,null,null,null,null,null,null,null,null,null,null,null,null,null,null,null,null,null,null,null,null,null,null,null,null,null,null,null,null,null,"00","00","00","00","00","00","00","00","00","00","22","22","00","00","00","00","00","00","00","00","00","00","00","00","00","00","00","00","00","00","00","00","00","00","00","00","00","00","00","00","00","00","00","00","00"]
[null,null,null,null,null,null,null,null,null,null,null,null,null,null,null,null,null,null,null,null,null,null,null,null,null,null,null,null,null,null,null,null,null,null,null,null,null,null,null,null,null,null,null,null,null,null,null,null,null,null,null,null,null,null,null,null,null,null,null,null,null,null,null,null,null,null,null,null,null,null,null,null,null,null,null,null,null,null,null,null,null,null,null,null,null,null,null,null,null,null,null,null,null,null,null,"00","00","00","00","00","00","00","00","00","00","00","00","00","00","00","00","00","00","00","00","00","00","00","00","00","00","00","00","00","00","00","00","00","00","00","00","00","00","00","00","00","00","00","00","00"]
[null,null,null,null,null,null,null,null,null,null,null,null,null,null,null,null,null,null,null,null,null,null,null,null,null,null,null,null,null,null,null,null,null,null,null,null,null,null,null,null,null,null,null,null,null,null,null,null,null,null,null,null,null,null,null,null,null,null,null,null,null,null,null,null,null,null,null,null,null,null,null,null,null,null,null,null,null,null,null,null,null,null,null,null,null,null,null,null,null,null,null,null,null,null,null,"00","00","00","00","00","00","00","00","00","00","00","00","00","00","00","00","00","00","00","00","00","00","00","00","00","00","00","00","00","00","00","00","00","00","00","00","00","00","00","00","00","00","00","00","00"]
[null,null,null,null,null,null,null,null,null,null,null,null,null,null,null,null,null,null,null,null,null,null,null,null,null,null,null,null,null,null,null,null,null,null,null,null,null,null,null,null,null,null,null,null,null,null,null,null,null,null,null,null,null,null,null,null,null,null,null,null,null,null,null,null,null,null,null,null,null,null,null,null,null,null,null,null,null,null,null,null,null,null,null,null,null,null,null,null,null,null,null,null,null,null,null,"00","00","00","00","00","00","00","00","00","00","00","00","00","00","00","00","00","00","00","00","00","00","00","00","00","00","00","00","00","00","00","00","00","00","00","00","00","00","00","00","00","00","00","00","00"]
[null,null,null,null,null,null,null,null,null,null,null,null,null,null,null,null,null,null,null,null,null,null,null,null,null,null,null,null,null,null,null,null,null,null,null,null,null,null,null,null,null,null,null,null,null,null,null,null,null,null,null,null,null,null,null,null,null,null,null,null,null,null,null,null,null,null,null,null,null,null,null,null,null,null,null,null,null,null,null,null,null,null,null,null,null,null,null,null,null,null,null,null,null,null,null,"00","00","00","00","00","00","00","00","00","00","00","00","00","00","00","00","00","00","00","00","00","00","00","00","00","00","00","00","00","00","00","00","00","00","00","00","00","00","00","00","00","00","00","00","00"]
[null,null,null,null,null,null,null,null,null,null,null,null,null,null,null,null,null,null,null,null,null,null,null,null,null,null,null,null,null,null,null,null,null,null,null,null,null,null,null,null,null,null,null,null,null,null,null,null,null,null,null,null,null,null,null,null,null,null,null,null,null,null,null,null,null,null,null,null,null,null,null,null,null,null,null,null,null,null,null,null,null,null,null,null,null,null,null,null,null,null,null,null,null,null,null,"00","00","00","00","00","00","00","00","00","00","00","00","00","00","00","00","00","00","00","00","00","00","00","00","00","00","00","00","00","00","00","00","00","00","00","00","00","00","00","00","00","00","00","00","00"]
["Specialanlæg",null,null,null,null,null,null,null,null,null,null,null,null,null,null,null,null,null,null,null,null,null,null,null,null,null,null,null,null,null,null,null,null,null,null,null,null,null,null,null,null,null,null,null,null,null,null,null,null,null,null,null,null,null,null,null,null,null,null,null,null,null,null,null,null,null,null,null,null,null,null,null,null,null,null,null,null,null,null,null,null,null,null,null,null,null,null,null,null,null,null,null,null,null,null,"00","00","00","00","00","00","00","00","00","00","00","00","00","00","00","00","00","00","00","00","00","00","00","00","00","00","00","00","00","00","00","00","00","00","00","00","00","00","00","00","00","00","00","00","00"]
[null,null,null,null,null,null,null,null,null,null,null,null,null,null,null,null,null,null,null,null,null,null,null,null,null,null,null,null,null,null,null,null,null,null,null,null,null,null,null,null,null,null,null,null,null,null,null,null,null,null,null,null,null,null,null,null,null,null,null,null,null,null,null,null,null,null,null,null,null,null,null,null,null,null,null,null,null,null,null,null,null,null,null,null,null,null,null,null,null,null,null,null,null,null,null,"00","00","00","00","00","00","00","00","00","00","00","00","00","00","00","00","00","00","00","00","00","00","00","00","00","00","00","00","00","00","00","00","00","00","00","00","00","00","00","00","00","00","00","00","00"]
[null,null,null,null,null,null,null,null,null,null,null,null,null,null,null,null,null,null,null,null,null,null,null,null,null,null,null,null,null,null,null,null,null,null,null,null,null,null,null,null,null,null,null,null,null,null,null,null,null,null,null,null,null,null,null,null,null,null,null,null,null,null,null,null,null,null,null,null,null,null,null,null,null,null,null,null,null,null,null,null,null,null,null,null,null,null,null,null,null,null,null,null,null,null,null,"00","00","00","00","00","00","00","00","00","00","00","00","00","00","00","00","00","00","00","00","00","00","00","00","00","00","00","00","00","00","00","00","00","00","00","00","00","00","00","00","00","00","00","00","00"]
[null,null,null,null,null,null,null,null,null,null,null,null,null,null,null,null,null,null,null,null,null,null,null,null,null,null,null,null,null,null,null,null,null,null,null,null,null,null,null,null,null,null,null,null,null,null,null,null,null,null,null,null,null,null,null,null,null,null,null,null,null,null,null,null,null,null,null,null,null,null,null,null,null,null,null,null,null,null,null,null,null,null,null,null,null,null,null,null,null,null,null,null,null,null,null,"00","00","00","00","00","00","00","00","00","00","00","00","00","00","00","00","00","00","00","00","00","00","00","00","00","00","00","00","00","00","00","00","00","00","00","00","00","00","00","00","00","00","00","00","00"]
[null,null,null,null,null,null,null,null,null,null,null,null,null,null,null,null,null,null,null,null,null,null,null,null,null,null,null,null,null,null,null,null,null,null,null,null,null,null,null,null,null,null,null,null,null,null,null,null,null,null,null,null,null,null,null,null,null,null,null,null,null,null,null,null,null,null,null,null,null,null,null,null,null,null,null,null,null,null,null,null,null,null,null,null,null,null,null,null,null,null,null,null,null,null,null,"00","00","00","00","00","00","00","00","00","00","00","00","00","00","00","00","00","00","00","00","00","00","00","00","00","00","00","00","00","00","00","00","00","00","00","00","00","00","00","00","00","00","00","00","00"]
[null,null,null,null,null,null,null,null,null,null,null,null,null,null,null,null,null,null,null,null,null,null,null,null,null,null,null,null,null,null,null,null,null,null,null,null,null,null,null,null,null,null,null,null,null,null,null,null,null,null,null,null,null,null,null,null,null,null,null,null,null,null,null,null,null,null,null,null,null,null,null,null,null,null,null,null,null,null,null,null,null,null,null,null,null,null,null,null,null,null,null,null,null,null,null,"00","00","00","00","00","00","00","00","00","00","00","00","00","00","00","00","00","00","00","00","00","00","00","00","00","00","00","00","00","00","00","00","00","00","00","00","00","00","00","00","00","00","00","00","00"]
[null,null,null,null,null,null,null,null,null,null,null,null,null,null,null,null,null,null,null,null,null,null,null,null,null,null,null,null,null,null,null,null,null,null,null,null,null,null,null,null,null,null,null,null,null,null,null,null,null,null,null,null,null,null,null,null,null,null,null,null,null,null,null,null,null,null,null,null,null,null,null,null,null,null,null,null,null,null,null,null,null,null,null,null,null,null,null,null,null,null,null,null,null,null,null,"00","00","00","00","00","00","00","00","00","00","00","00","00","00","00","00","00","00","00","00","00","00","00","00","00","00","00","00","00","00","00","00","00","00","00","00","00","00","00","00","00","00","00","00","00"]
[null,null,null,null,null,null,null,null,null,null,null,null,null,null,null,null,null,null,null,null,null,null,null,null,null,null,null,null,null,null,null,null,null,null,null,null,null,null,null,null,null,null,null,null,null,null,null,null,null,null,null,null,null,null,null,null,null,null,null,null,null,null,null,null,null,null,null,null,null,null,null,null,null,null,null,null,null,null,null,null,null,null,null,null,null,null,null,null,null,null,null,null,null,null,null,"00","00","00","00","00","00","00","00","00","00","00","00","00","00","00","00","00","00","00","00","00","00","00","00","00","00","00","00","00","00","00","00","00","00","00","00","00","00","00","00","00","00","00","00","00"]
[null,null,null,null,null,null,null,null,null,null,null,null,null,null,null,null,null,null,null,null,null,null,null,null,null,null,null,null,null,null,null,null,null,null,null,null,null,null,null,null,null,null,null,null,null,null,null,null,null,null,null,null,null,null,null,null,null,null,null,null,null,null,null,null,null,null,null,null,null,null,null,null,null,null,null,null,null,null,null,null,null,null,null,null,null,null,null,null,null,null,null,null,null,null,null,"00","00","00","00","00","00","00","00","00","00","00","00","00","00","00","00","00","00","00","00","00","00","00","00","00","00","00","00","00","00","00","00","00","00","00","00","00","00","00","00","00","00","00","00","00"]
[null,null,null,null,null,null,null,null,null,null,null,null,null,null,null,null,null,null,null,null,null,null,null,null,null,null,null,null,null,null,null,null,null,null,null,null,null,null,null,null,null,null,null,null,null,null,null,null,null,null,null,null,null,null,null,null,null,null,null,null,null,null,null,null,null,null,null,null,null,null,null,null,null,null,null,null,null,null,null,null,null,null,null,null,null,null,null,null,null,null,null,null,null,null,null,"00","00","00","00","00","00","00","00","00","00","00","00","00","00","00","00","00","00","00","00","00","00","00","00","00","00","00","00","00","00","00","00","00","00","00","00","00","00","00","00","00","00","00","00","00"]
[null,null,null,null,null,null,null,null,null,null,null,null,null,null,null,null,null,null,null,null,null,null,null,null,null,null,null,null,null,null,null,null,null,null,null,null,null,null,null,null,null,null,null,null,null,null,null,null,null,null,null,null,null,null,null,null,null,null,null,null,null,null,null,null,null,null,null,null,null,null,null,null,null,null,null,null,null,null,null,null,null,null,null,null,null,null,null,null,null,null,null,null,null,null,null,"00","00","00","00","00","00","00","00","00","00","00","00","00","00","00","00","00","00","00","00","00","00","00","00","00","00","00","00","00","00","00","00","00","00","00","00","00","00","00","00","00","00","00","00","00"]
[null,null,null,null,null,null,null,null,null,null,null,null,null,null,null,null,null,null,null,null,null,null,null,null,null,null,null,null,null,null,null,null,null,null,null,null,null,null,null,null,null,null,null,null,null,null,null,null,null,null,null,null,null,null,null,null,null,null,null,null,null,null,null,null,null,null,null,null,null,null,null,null,null,null,null,null,null,null,null,null,null,null,null,null,null,null,null,null,null,null,null,null,null,null,null,"00","00","00","00","00","00","00","00","00","00","00","00","00","00","00","00","00","00","00","00","00","00","00","00","00","00","00","00","00","00","00","00","00","00","00","00","00","00","00","00","00","00","00","00","00"]
[null,null,null,null,null,null,null,null,null,null,null,null,null,null,null,null,null,null,null,null,null,null,null,null,null,null,null,null,null,null,null,null,null,null,null,null,null,null,null,null,null,null,null,null,null,null,null,null,null,null,null,null,null,null,null,null,null,null,null,null,null,null,null,null,null,null,null,null,null,null,null,null,null,null,null,null,null,null,null,null,null,null,null,null,null,null,null,null,null,null,null,null,null,null,null,"00","00","00","00","00","00","00","00","00","00","00","00","00","00","00","00","00","00","00","00","00","00","00","00","00","00","00","00","00","00","00","00","00","00","00","00","00","00","00","00","00","00","00","00","00"]
[null,null,null,null,null,null,null,null,null,null,null,null,null,null,null,null,null,null,null,null,null,null,null,null,null,null,null,null,null,null,null,null,null,null,null,null,null,null,null,null,null,null,null,null,null,null,null,null,null,null,null,null,null,null,null,null,null,null,null,null,null,null,null,null,null,null,null,null,null,null,null,null,null,null,null,null,null,null,null,null,null,null,null,null,null,null,null,null,null,null,null,null,null,null,null,"00","00","00","00","00","00","00","00","00","00","00","00","00","00","00","00","00","00","00","00","00","00","00","00","00","00","00","00","00","00","00","00","00","00","00","00","00","00","00","00","00","00","00","00","00"]
[null,null,null,null,null,null,null,null,null,null,null,null,null,null,null,null,null,null,null,null,null,null,null,null,null,null,null,null,null,null,null,null,null,null,null,null,null,null,null,null,null,null,null,null,null,null,null,null,null,null,null,null,null,null,null,null,null,null,null,null,null,null,null,null,null,null,null,null,null,null,null,null,null,null,null,null,null,null,null,null,null,null,null,null,null,null,null,null,null,null,null,null,null,null,null,"00","00","00","00","00","00","00","00","00","00","00","00","00","00","00","00","00","00","00","00","00","00","00","00","00","00","00","00","00","00","00","00","00","00","00","00","00","00","00","00","00","00","00","00","00"]
[null,null,null,null,null,null,null,null,null,null,null,null,null,null,null,null,null,null,null,null,null,null,null,null,null,null,null,null,null,null,null,null,null,null,null,null,null,null,null,null,null,null,null,null,null,null,null,null,null,null,null,null,null,null,null,null,null,null,null,null,null,null,null,null,null,null,null,null,null,null,null,null,null,null,null,null,null,null,null,null,null,null,null,null,null,null,null,null,null,null,null,null,null,null,null,"00","00","00","00","00","00","00","00","00","00","00","00","00","00","00","00","00","00","00","00","00","00","00","00","00","00","00","00","00","00","00","00","00","00","00","00","00","00","00","00","00","00","00","00","00"]
[null,null,null,null,null,null,null,null,null,null,null,null,null,null,null,null,null,null,null,null,null,null,null,null,null,null,null,null,null,null,null,null,null,null,null,null,null,null,null,null,null,null,null,null,null,null,null,null,null,null,null,null,null,null,null,null,null,null,null,null,null,null,null,null,null,null,null,null,null,null,null,null,null,null,null,null,null,null,null,null,null,null,null,null,null,null,null,null,null,null,null,null,null,null,null,"00","00","00","00","00","00","00","00","00","00","00","00","00","00","00","00","00","00","00","00","00","00","00","00","00","00","00","00","00","00","00","00","00","00","00","00","00","00","00","00","00","00","00","00","00"]
[null,null,null,null,null,null,null,null,null,null,null,null,null,null,null,null,null,null,null,null,null,null,null,null,null,null,null,null,null,null,null,null,null,null,null,null,null,null,null,null,null,null,null,null,null,null,null,null,null,null,null,null,null,null,null,null,null,null,null,null,null,null,null,null,null,null,null,null,null,null,null,null,null,null,null,null,null,null,null,null,null,null,null,null,null,null,null,null,null,null,null,null,null,null,null,"00","00","00","00","00","00","00","00","00","00","00","00","00","00","00","00","00","00","00","00","00","00","00","00","00","00","00","00","00","00","00","00","00","00","00","00","00","00","00","00","00","00","00","00","00"]
[null,null,null,null,null,null,null,null,null,null,null,null,null,null,null,null,null,null,null,null,null,null,null,null,null,null,null,null,null,null,null,null,null,null,null,null,null,null,null,null,null,null,null,null,null,null,null,null,null,null,null,null,null,null,null,null,null,null,null,null,null,null,null,null,null,null,null,null,null,null,null,null,null,null,null,null,null,null,null,null,null,null,null,null,null,null,null,null,null,null,null,null,null,null,null,"00","00","00","00","00","00","00","00","00","00","00","00","00","00","00","00","00","00","00","00","00","00","00","00","00","00","00","00","00","00","00","00","00","00","00","00","00","00","00","00","00","00","00","00","00"]
[null,null,null,null,null,null,null,null,null,null,null,null,null,null,null,null,null,null,null,null,null,null,null,null,null,null,null,null,null,null,null,null,null,null,null,null,null,null,null,null,null,null,null,null,null,null,null,null,null,null,null,null,null,null,null,null,null,null,null,null,null,null,null,null,null,null,null,null,null,null,null,null,null,null,null,null,null,null,null,null,null,null,null,null,null,null,null,null,null,null,null,null,null,null,null,"00","00","00","00","00","00","00","00","00","00","00","00","00","00","00","00","00","00","00","00","00","00","00","00","00","00","00","00","00","00","00","00","00","00","00","00","00","00","00","00","00","00","00","00","00"]
[null,null,null,null,null,null,null,null,null,null,null,null,null,null,null,null,null,null,null,null,null,null,null,null,null,null,null,null,null,null,null,null,null,null,null,null,null,null,null,null,null,null,null,null,null,null,null,null,null,null,null,null,null,null,null,null,null,null,null,null,null,null,null,null,null,null,null,null,null,null,null,null,null,null,null,null,null,null,null,null,null,null,null,null,null,null,null,null,null,null,null,null,null,null,null,"00","00","00","00","00","00","00","00","00","00","00","00","00","00","00","00","00","00","00","00","00","00","00","00","00","00","00","00","00","00","00","00","00","00","00","00","00","00","00","00","00","00","00","00","00"]
[null,null,null,null,null,null,null,null,null,null,null,null,null,null,null,null,null,null,null,null,null,null,null,null,null,null,null,null,null,null,null,null,null,null,null,null,null,null,null,null,null,null,null,null,null,null,null,null,null,null,null,null,null,null,null,null,null,null,null,null,null,null,null,null,null,null,null,null,null,null,null,null,null,null,null,null,null,null,null,null,null,null,null,null,null,null,null,null,null,null,null,null,null,null,null,"00","00","00","00","00","00","00","00","00","00","00","00","00","00","00","00","00","00","00","00","00","00","00","00","00","00","00","00","00","00","00","00","00","00","00","00","00","00","00","00","00","00","00","00","00"]
[null,null,null,null,null,null,null,null,null,null,null,null,null,null,null,null,null,null,null,null,null,null,null,null,null,null,null,null,null,null,null,null,null,null,null,null,null,null,null,null,null,null,null,null,null,null,null,null,null,null,null,null,null,null,null,null,null,null,null,null,null,null,null,null,null,null,null,null,null,null,null,null,null,null,null,null,null,null,null,null,null,null,null,null,null,null,null,null,null,null,null,null,null,null,null,"00","00","00","00","00","00","00","00","00","00","00","00","00","00","00","00","00","00","00","00","00","00","00","00","00","00","00","00","00","00","00","00","00","00","00","00","00","00","00","00","00","00","00","00","00"]
[null,null,null,null,null,null,null,null,null,null,null,null,null,null,null,null,null,null,null,null,null,null,null,null,null,null,null,null,null,null,null,null,null,null,null,null,null,null,null,null,null,null,null,null,null,null,null,null,null,null,null,null,null,null,null,null,null,null,null,null,null,null,null,null,null,null,null,null,null,null,null,null,null,null,null,null,null,null,null,null,null,null,null,null,null,null,null,null,null,null,null,null,null,null,null,"00","00","00","00","00","00","00","00","00","00","00","00","00","00","00","00","00","00","00","00","00","00","00","00","00","00","00","00","00","00","00","00","00","00","00","00","00","00","00","00","00","00","00","00","00"]
[null,null,null,null,null,null,null,null,null,null,null,null,null,null,null,null,null,null,null,null,null,null,null,null,null,null,null,null,null,null,null,null,null,null,null,null,null,null,null,null,null,null,null,null,null,null,null,null,null,null,null,null,null,null,null,null,null,null,null,null,null,null,null,null,null,null,null,null,null,null,null,null,null,null,null,null,null,null,null,null,null,null,null,null,null,null,null,null,null,null,null,null,null,null,null,"00","00","00","00","00","00","00","00","00","00","00","00","00","00","00","00","00","00","00","00","00","00","00","00","00","00","00","00","00","00","00","00","00","00","00","00","00","00","00","00","00","00","00","00","00"]
[null,null,null,null,null,null,null,null,null,null,null,null,null,null,null,null,null,null,null,null,null,null,null,null,null,null,null,null,null,null,null,null,null,null,null,null,null,null,null,null,null,null,null,null,null,null,null,null,null,null,null,null,null,null,null,null,null,null,null,null,null,null,null,null,null,null,null,null,null,null,null,null,null,null,null,null,null,null,null,null,null,null,null,null,null,null,null,null,null,null,null,null,null,null,null,"00","00","00","00","00","00","00","00","00","00","00","00","00","00","00","00","00","00","00","00","00","00","00","00","00","00","00","00","00","00","00","00","00","00","00","00","00","00","00","00","00","00","00","00","00"]
[null,null,null,null,null,null,null,null,null,null,null,null,null,null,null,null,null,null,null,null,null,null,null,null,null,null,null,null,null,null,null,null,null,null,null,null,null,null,null,null,null,null,null,null,null,null,null,null,null,null,null,null,null,null,null,null,null,null,null,null,null,null,null,null,null,null,null,null,null,null,null,null,null,null,null,null,null,null,null,null,null,null,null,null,null,null,null,null,null,null,null,null,null,null,null,"00","00","00","00","00","00","00","00","00","00","00","00","00","00","00","00","00","00","00","00","00","00","00","00","00","00","00","00","00","00","00","00","00","00","00","00","00","00","00","00","00","00","00","00","00"]
[null,null,null,null,null,null,null,null,null,null,null,null,null,null,null,null,null,null,null,null,null,null,null,null,null,null,null,null,null,null,null,null,null,null,null,null,null,null,null,null,null,null,null,null,null,null,null,null,null,null,null,null,null,null,null,null,null,null,null,null,null,null,null,null,null,null,null,null,null,null,null,null,null,null,null,null,null,null,null,null,null,null,null,null,null,null,null,null,null,null,null,null,null,null,null,"00","00","00","00","00","00","00","00","00","00","00","00","00","00","00","00","00","00","00","00","00","00","00","00","00","00","00","00","00","00","00","00","00","00","00","00","00","00","00","00","00","00","00","00","00"]
[null,null,null,null,null,null,null,null,null,null,null,null,null,null,null,null,null,null,null,null,null,null,null,null,null,null,null,null,null,null,null,null,null,null,null,null,null,null,null,null,null,null,null,null,null,null,null,null,null,null,null,null,null,null,null,null,null,null,null,null,null,null,null,null,null,null,null,null,null,null,null,null,null,null,null,null,null,null,null,null,null,null,null,null,null,null,null,null,null,null,null,null,null,null,null,"00","00","00","00","00","00","00","00","00","00","00","00","00","00","00","00","00","00","00","00","00","00","00","00","00","00","00","00","00","00","00","00","00","00","00","00","00","00","00","00","00","00","00","00","00"]
[null,null,null,null,null,null,null,null,null,null,null,null,null,null,null,null,null,null,null,null,null,null,null,null,null,null,null,null,null,null,null,null,null,null,null,null,null,null,null,null,null,null,null,null,null,null,null,null,null,null,null,null,null,null,null,null,null,null,null,null,null,null,null,null,null,null,null,null,null,null,null,null,null,null,null,null,null,null,null,null,null,null,null,null,null,null,null,null,null,null,null,null,null,null,null,"00","00","00","00","00","00","00","00","00","00","00","00","00","00","00","00","00","00","00","00","00","00","00","00","00","00","00","00","00","00","00","00","00","00","00","00","00","00","00","00","00","00","00","00","00"]
[null,null,null,null,null,null,null,null,null,null,null,null,null,null,null,null,null,null,null,null,null,null,null,null,null,null,null,null,null,null,null,null,null,null,null,null,null,null,null,null,null,null,null,null,null,null,null,null,null,null,null,null,null,null,null,null,null,null,null,null,null,null,null,null,null,null,null,null,null,null,null,null,null,null,null,null,null,null,null,null,null,null,null,null,null,null,null,null,null,null,null,null,null,null,null,"00","00","00","00","00","00","00","00","00","00","00","00","00","00","00","00","00","00","00","00","00","00","00","00","00","00","00","00","00","00","00","00","00","00","00","00","00","00","00","00","00","00","00","00","00"]
[null,null,null,null,null,null,null,null,null,null,null,null,null,null,null,null,null,null,null,null,null,null,null,null,null,null,null,null,null,null,null,null,null,null,null,null,null,null,null,null,null,null,null,null,null,null,null,null,null,null,null,null,null,null,null,null,null,null,null,null,null,null,null,null,null,null,null,null,null,null,null,null,null,null,null,null,null,null,null,null,null,null,null,null,null,null,null,null,null,null,null,null,null,null,null,"00","00","00","00","00","00","00","00","00","00","00","00","00","00","00","00","00","00","00","00","00","00","00","00","00","00","00","00","00","00","00","00","00","00","00","00","00","00","00","00","00","00","00","00","00"]
[null,null,null,null,null,null,null,null,null,null,null,null,null,null,null,null,null,null,null,null,null,null,null,null,null,null,null,null,null,null,null,null,null,null,null,null,null,null,null,null,null,null,null,null,null,null,null,null,null,null,null,null,null,null,null,null,null,null,null,null,null,null,null,null,null,null,null,null,null,null,null,null,null,null,null,null,null,null,null,null,null,null,null,null,null,null,null,null,null,null,null,null,null,null,null,"00","00","00","00","00","00","00","00","00","00","00","00","00","00","00","00","00","00","00","00","00","00","00","00","00","00","00","00","00","00","00","00","00","00","00","00","00","00","00","00","00","00","00","00","00"]
[null,null,null,null,null,null,null,null,null,null,null,null,null,null,null,null,null,null,null,null,null,null,null,null,null,null,null,null,null,null,null,null,null,null,null,null,null,null,null,null,null,null,null,null,null,null,null,null,null,null,null,null,null,null,null,null,null,null,null,null,null,null,null,null,null,null,null,null,null,null,null,null,null,null,null,null,null,null,null,null,null,null,null,null,null,null,null,null,null,null,null,null,null,null,null,"00","00","00","00","00","00","00","00","00","00","00","00","00","00","00","00","00","00","00","00","00","00","00","00","00","00","00","00","00","00","00","00","00","00","00","00","00","00","00","00","00","00","00","00","00"]
[null,null,null,null,null,null,null,null,null,null,null,null,null,null,null,null,null,null,null,null,null,null,null,null,null,null,null,null,null,null,null,null,null,null,null,null,null,null,null,null,null,null,null,null,null,null,null,null,null,null,null,null,null,null,null,null,null,null,null,null,null,null,null,null,null,null,null,null,null,null,null,null,null,null,null,null,null,null,null,null,null,null,null,null,null,null,null,null,null,null,null,null,null,null,null,"00","00","00","00","00","00","00","00","00","00","00","00","00","00","00","00","00","00","00","00","00","00","00","00","00","00","00","00","00","00","00","00","00","00","00","00","00","00","00","00","00","00","00","00","00"]
[null,null,null,null,null,null,null,null,null,null,null,null,null,null,null,null,null,null,null,null,null,null,null,null,null,null,null,null,null,null,null,null,null,null,null,null,null,null,null,null,null,null,null,null,null,null,null,null,null,null,null,null,null,null,null,null,null,null,null,null,null,null,null,null,null,null,null,null,null,null,null,null,null,null,null,null,null,null,null,null,null,null,null,null,null,null,null,null,null,null,null,null,null,null,null,"00","00","00","00","00","00","00","00","00","00","00","00","00","00","00","00","00","00","00","00","00","00","00","00","00","00","00","00","00","00","00","00","00","00","00","00","00","00","00","00","00","00","00","00","00"]
[null,null,null,null,null,null,null,null,null,null,null,null,null,null,null,null,null,null,null,null,null,null,null,null,null,null,null,null,null,null,null,null,null,null,null,null,null,null,null,null,null,null,null,null,null,null,null,null,null,null,null,null,null,null,null,null,null,null,null,null,null,null,null,null,null,null,null,null,null,null,null,null,null,null,null,null,null,null,null,null,null,null,null,null,null,null,null,null,null,null,null,null,null,null,null,"00","00","00","00","00","00","00","00","00","00","00","00","00","00","00","00","00","00","00","00","00","00","00","00","00","00","00","00","00","00","00","00","00","00","00","00","00","00","00","00","00","00","00","00","00"]
[null,null,null,null,null,null,null,null,null,null,null,null,null,null,null,null,null,null,null,null,null,null,null,null,null,null,null,null,null,null,null,null,null,null,null,null,null,null,null,null,null,null,null,null,null,null,null,null,null,null,null,null,null,null,null,null,null,null,null,null,null,null,null,null,null,null,null,null,null,null,null,null,null,null,null,null,null,null,null,null,null,null,null,null,null,null,null,null,null,null,null,null,null,null,null,"00","00","00","00","00","00","00","00","00","00","00","00","00","00","00","00","00","00","00","00","00","00","00","00","00","00","00","00","00","00","00","00","00","00","00","00","00","00","00","00","00","00","00","00","00"]
[null,null,null,null,null,null,null,null,null,null,null,null,null,null,null,null,null,null,null,null,null,null,null,null,null,null,null,null,null,null,null,null,null,null,null,null,null,null,null,null,null,null,null,null,null,null,null,null,null,null,null,null,null,null,null,null,null,null,null,null,null,null,null,null,null,null,null,null,null,null,null,null,null,null,null,null,null,null,null,null,null,null,null,null,null,null,null,null,null,null,null,null,null,null,null,"00","00","00","00","00","00","00","00","00","00","00","00","00","00","00","00","00","00","00","00","00","00","00","00","00","00","00","00","00","00","00","00","00","00","00","00","00","00","00","00","00","00","00","00","00"]
[null,null,null,null,null,null,null,null,null,null,null,null,null,null,null,null,null,null,null,null,null,null,null,null,null,null,null,null,null,null,null,null,null,null,null,null,null,null,null,null,null,null,null,null,null,null,null,null,null,null,null,null,null,null,null,null,null,null,null,null,null,null,null,null,null,null,null,null,null,null,null,null,null,null,null,null,null,null,null,null,null,null,null,null,null,null,null,null,null,null,null,null,null,null,null,"00","00","00","00","00","00","00","00","00","00","00","00","00","00","00","00","00","00","00","00","00","00","00","00","00","00","00","00","00","00","00","00","00","00","00","00","00","00","00","00","00","00","00","00","00"]
[null,null,null,null,null,null,null,null,null,null,null,null,null,null,null,null,null,null,null,null,null,null,null,null,null,null,null,null,null,null,null,null,null,null,null,null,null,null,null,null,null,null,null,null,null,null,null,null,null,null,null,null,null,null,null,null,null,null,null,null,null,null,null,null,null,null,null,null,null,null,null,null,null,null,null,null,null,null,null,null,null,null,null,null,null,null,null,null,null,null,null,null,null,null,null,"00","00","00","00","00","00","00","00","00","00","00","00","00","00","00","00","00","00","00","00","00","00","00","00","00","00","00","00","00","00","00","00","00","00","00","00","00","00","00","00","00","00","00","00","00"]
[null,null,null,null,null,null,null,null,null,null,null,null,null,null,null,null,null,null,null,null,null,null,null,null,null,null,null,null,null,null,null,null,null,null,null,null,null,null,null,null,null,null,null,null,null,null,null,null,null,null,null,null,null,null,null,null,null,null,null,null,null,null,null,null,null,null,null,null,null,null,null,null,null,null,null,null,null,null,null,null,null,null,null,null,null,null,null,null,null,null,null,null,null,null,null,"00","00","00","00","00","00","00","00","00","00","00","00","00","00","00","00","00","00","00","00","00","00","00","00","00","00","00","00","00","00","00","00","00","00","00","00","00","00","00","00","00","00","00","00","00"]
[null,null,null,null,null,null,null,null,null,null,null,null,null,null,null,null,null,null,null,null,null,null,null,null,null,null,null,null,null,null,null,null,null,null,null,null,null,null,null,null,null,null,null,null,null,null,null,null,null,null,null,null,null,null,null,null,null,null,null,null,null,null,null,null,null,null,null,null,null,null,null,null,null,null,null,null,null,null,null,null,null,null,null,null,null,null,null,null,null,null,null,null,null,null,null,"00","00","00","00","00","00","00","00","00","00","00","00","00","00","00","00","00","00","00","00","00","00","00","00","00","00","00","00","00","00","00","00","00","00","00","00","00","00","00","00","00","00","00","00","00"]
[null,null,null,null,null,null,null,null,null,null,null,null,null,null,null,null,null,null,null,null,null,null,null,null,null,null,null,null,null,null,null,null,null,null,null,null,null,null,null,null,null,null,null,null,null,null,null,null,null,null,null,null,null,null,null,null,null,null,null,null,null,null,null,null,null,null,null,null,null,null,null,null,null,null,null,null,null,null,null,null,null,null,null,null,null,null,null,null,null,null,null,null,null,null,null,"00","00","00","00","00","00","00","00","00","00","00","00","00","00","00","00","00","00","00","00","00","00","00","00","00","00","00","00","00","00","00","00","00","00","00","00","00","00","00","00","00","00","00","00","00"]
[null,null,null,null,null,null,null,null,null,null,null,null,null,null,null,null,null,null,null,null,null,null,null,null,null,null,null,null,null,null,null,null,null,null,null,null,null,null,null,null,null,null,null,null,null,null,null,null,null,null,null,null,null,null,null,null,null,null,null,null,null,null,null,null,null,null,null,null,null,null,null,null,null,null,null,null,null,null,null,null,null,null,null,null,null,null,null,null,null,null,null,null,null,null,null,"00","00","00","00","00","00","00","00","00","00","00","00","00","00","00","00","00","00","00","00","00","00","00","00","00","00","00","00","00","00","00","00","00","00","00","00","00","00","00","00","00","00","00","00","00"]
[null,null,null,null,null,null,null,null,null,null,null,null,null,null,null,null,null,null,null,null,null,null,null,null,null,null,null,null,null,null,null,null,null,null,null,null,null,null,null,null,null,null,null,null,null,null,null,null,null,null,null,null,null,null,null,null,null,null,null,null,null,null,null,null,null,null,null,null,null,null,null,null,null,null,null,null,null,null,null,null,null,null,null,null,null,null,null,null,null,null,null,null,null,null,null,"00","00","00","00","00","00","00","00","00","00","00","00","00","00","00","00","00","00","00","00","00","00","00","00","00","00","00","00","00","00","00","00","00","00","00","00","00","00","00","00","00","00","00","00","00"]
[null,null,null,null,null,null,null,null,null,null,null,null,null,null,null,null,null,null,null,null,null,null,null,null,null,null,null,null,null,null,null,null,null,null,null,null,null,null,null,null,null,null,null,null,null,null,null,null,null,null,null,null,null,null,null,null,null,null,null,null,null,null,null,null,null,null,null,null,null,null,null,null,null,null,null,null,null,null,null,null,null,null,null,null,null,null,null,null,null,null,null,null,null,null,null,"00","00","00","00","00","00","00","00","00","00","00","00","00","00","00","00","00","00","00","00","00","00","00","00","00","00","00","00","00","00","00","00","00","00","00","00","00","00","00","00","00","00","00","00","00"]
[null,null,null,null,null,null,null,null,null,null,null,null,null,null,null,null,null,null,null,null,null,null,null,null,null,null,null,null,null,null,null,null,null,null,null,null,null,null,null,null,null,null,null,null,null,null,null,null,null,null,null,null,null,null,null,null,null,null,null,null,null,null,null,null,null,null,null,null,null,null,null,null,null,null,null,null,null,null,null,null,null,null,null,null,null,null,null,null,null,null,null,null,null,null,null,"00","00","00","00","00","00","00","00","00","00","00","00","00","00","00","00","00","00","00","00","00","00","00","00","00","00","00","00","00","00","00","00","00","00","00","00","00","00","00","00","00","00","00","00","00"]
[null,null,null,null,null,null,null,null,null,null,null,null,null,null,null,null,null,null,null,null,null,null,null,null,null,null,null,null,null,null,null,null,null,null,null,null,null,null,null,null,null,null,null,null,null,null,null,null,null,null,null,null,null,null,null,null,null,null,null,null,null,null,null,null,null,null,null,null,null,null,null,null,null,null,null,null,null,null,null,null,null,null,null,null,null,null,null,null,null,null,null,null,null,null,null,"00","00","00","00","00","00","00","00","00","00","00","00","00","00","00","00","00","00","00","00","00","00","00","00","00","00","00","00","00","00","00","00","00","00","00","00","00","00","00","00","00","00","00","00","00"]
[null,null,null,null,null,null,null,null,null,null,null,null,null,null,null,null,null,null,null,null,null,null,null,null,null,null,null,null,null,null,null,null,null,null,null,null,null,null,null,null,null,null,null,null,null,null,null,null,null,null,null,null,null,null,null,null,null,null,null,null,null,null,null,null,null,null,null,null,null,null,null,null,null,null,null,null,null,null,null,null,null,null,null,null,null,null,null,null,null,null,null,null,null,null,null,"00","00","00","00","00","00","00","00","00","00","00","00","00","00","00","00","00","00","00","00","00","00","00","00","00","00","00","00","00","00","00","00","00","00","00","00","00","00","00","00","00","00","00","00","00"]
[null,null,null,null,null,null,null,null,null,null,null,null,null,null,null,null,null,null,null,null,null,null,null,null,null,null,null,null,null,null,null,null,null,null,null,null,null,null,null,null,null,null,null,null,null,null,null,null,null,null,null,null,null,null,null,null,null,null,null,null,null,null,null,null,null,null,null,null,null,null,null,null,null,null,null,null,null,null,null,null,null,null,null,null,null,null,null,null,null,null,null,null,null,null,null,"00","00","00","00","00","00","00","00","00","00","00","00","00","00","00","00","00","00","00","00","00","00","00","00","00","00","00","00","00","00","00","00","00","00","00","00","00","00","00","00","00","00","00","00","00"]
[null,null,null,null,null,null,null,null,null,null,null,null,null,null,null,null,null,null,null,null,null,null,null,null,null,null,null,null,null,null,null,null,null,null,null,null,null,null,null,null,null,null,null,null,null,null,null,null,null,null,null,null,null,null,null,null,null,null,null,null,null,null,null,null,null,null,null,null,null,null,null,null,null,null,null,null,null,null,null,null,null,null,null,null,null,null,null,null,null,null,null,null,null,null,null,"00","00","00","00","00","00","00","00","00","00","00","00","00","00","00","00","00","00","00","00","00","00","00","00","00","00","00","00","00","00","00","00","00","00","00","00","00","00","00","00","00","00","00","00","00"]
[null,null,null,null,null,null,null,null,null,null,null,null,null,null,null,null,null,null,null,null,null,null,null,null,null,null,null,null,null,null,null,null,null,null,null,null,null,null,null,null,null,null,null,null,null,null,null,null,null,null,null,null,null,null,null,null,null,null,null,null,null,null,null,null,null,null,null,null,null,null,null,null,null,null,null,null,null,null,null,null,null,null,null,null,null,null,null,null,null,null,null,null,null,null,null,"00","00","00","00","00","00","00","00","00","00","00","00","00","00","00","00","00","00","00","00","00","00","00","00","00","00","00","00","00","00","00","00","00","00","00","00","00","00","00","00","00","00","00","00","00"]
[null,null,null,null,null,null,null,null,null,null,null,null,null,null,null,null,null,null,null,null,null,null,null,null,null,null,null,null,null,null,null,null,null,null,null,null,null,null,null,null,null,null,null,null,null,null,null,null,null,null,null,null,null,null,null,null,null,null,null,null,null,null,null,null,null,null,null,null,null,null,null,null,null,null,null,null,null,null,null,null,null,null,null,null,null,null,null,null,null,null,null,null,null,null,null,"00","00","00","00","00","00","00","00","00","00","00","00","00","00","00","00","00","00","00","00","00","00","00","00","00","00","00","00","00","00","00","00","00","00","00","00","00","00","00","00","00","00","00","00","00"]
[null,null,null,null,null,null,null,null,null,null,null,null,null,null,null,null,null,null,null,null,null,null,null,null,null,null,null,null,null,null,null,null,null,null,null,null,null,null,null,null,null,null,null,null,null,null,null,null,null,null,null,null,null,null,null,null,null,null,null,null,null,null,null,null,null,null,null,null,null,null,null,null,null,null,null,null,null,null,null,null,null,null,null,null,null,null,null,null,null,null,null,null,null,null,null,"00","00","00","00","00","00","00","00","00","00","00","00","00","00","00","00","00","00","00","00","00","00","00","00","00","00","00","00","00","00","00","00","00","00","00","00","00","00","00","00","00","00","00","00","00"]
[null,null,null,null,null,null,null,null,null,null,null,null,null,null,null,null,null,null,null,null,null,null,null,null,null,null,null,null,null,null,null,null,null,null,null,null,null,null,null,null,null,null,null,null,null,null,null,null,null,null,null,null,null,null,null,null,null,null,null,null,null,null,null,null,null,null,null,null,null,null,null,null,null,null,null,null,null,null,null,null,null,null,null,null,null,null,null,null,null,null,null,null,null,null,null,"00","00","00","00","00","00","00","00","00","00","00","00","00","00","00","00","00","00","00","00","00","00","00","00","00","00","00","00","00","00","00","00","00","00","00","00","00","00","00","00","00","00","00","00","00"]
[null,null,null,null,null,null,null,null,null,null,null,null,null,null,null,null,null,null,null,null,null,null,null,null,null,null,null,null,null,null,null,null,null,null,null,null,null,null,null,null,null,null,null,null,null,null,null,null,null,null,null,null,null,null,null,null,null,null,null,null,null,null,null,null,null,null,null,null,null,null,null,null,null,null,null,null,null,null,null,null,null,null,null,null,null,null,null,null,null,null,null,null,null,null,null,"00","00","00","00","00","00","00","00","00","00","00","00","00","00","00","00","00","00","00","00","00","00","00","00","00","00","00","00","00","00","00","00","00","00","00","00","00","00","00","00","00","00","00","00","00"]
[null,null,null,null,null,null,null,null,null,null,null,null,null,null,null,null,null,null,null,null,null,null,null,null,null,null,null,null,null,null,null,null,null,null,null,null,null,null,null,null,null,null,null,null,null,null,null,null,null,null,null,null,null,null,null,null,null,null,null,null,null,null,null,null,null,null,null,null,null,null,null,null,null,null,null,null,null,null,null,null,null,null,null,null,null,null,null,null,null,null,null,null,null,null,null,"00","00","00","00","00","00","00","00","00","00","00","00","00","00","00","00","00","00","00","00","00","00","00","00","00","00","00","00","00","00","00","00","00","00","00","00","00","00","00","00","00","00","00","00","00"]
[null,null,null,null,null,null,null,null,null,null,null,null,null,null,null,null,null,null,null,null,null,null,null,null,null,null,null,null,null,null,null,null,null,null,null,null,null,null,null,null,null,null,null,null,null,null,null,null,null,null,null,null,null,null,null,null,null,null,null,null,null,null,null,null,null,null,null,null,null,null,null,null,null,null,null,null,null,null,null,null,null,null,null,null,null,null,null,null,null,null,null,null,null,null,null,"00","00","00","00","00","00","00","00","00","00","00","00","00","00","00","00","00","00","00","00","00","00","00","00","00","00","00","00","00","00","00","00","00","00","00","00","00","00","00","00","00","00","00","00","00"]
[null,null,null,null,null,null,null,null,null,null,null,null,null,null,null,null,null,null,null,null,null,null,null,null,null,null,null,null,null,null,null,null,null,null,null,null,null,null,null,null,null,null,null,null,null,null,null,null,null,null,null,null,null,null,null,null,null,null,null,null,null,null,null,null,null,null,null,null,null,null,null,null,null,null,null,null,null,null,null,null,null,null,null,null,null,null,null,null,null,null,null,null,null,null,null,"00","00","00","00","00","00","00","00","00","00","00","00","00","00","00","00","00","00","00","00","00","00","00","00","00","00","00","00","00","00","00","00","00","00","00","00","00","00","00","00","00","00","00","00","00"]
[null,null,null,null,null,null,null,null,null,null,null,null,null,null,null,null,null,null,null,null,null,null,null,null,null,null,null,null,null,null,null,null,null,null,null,null,null,null,null,null,null,null,null,null,null,null,null,null,null,null,null,null,null,null,null,null,null,null,null,null,null,null,null,null,null,null,null,null,null,null,null,null,null,null,null,null,null,null,null,null,null,null,null,null,null,null,null,null,null,null,null,null,null,null,null,"00","00","00","00","00","00","00","00","00","00","00","00","00","00","00","00","00","00","00","00","00","00","00","00","00","00","00","00","00","00","00","00","00","00","00","00","00","00","00","00","00","00","00","00","00"]
[null,null,null,null,null,null,null,null,null,null,null,null,null,null,null,null,null,null,null,null,null,null,null,null,null,null,null,null,null,null,null,null,null,null,null,null,null,null,null,null,null,null,null,null,null,null,null,null,null,null,null,null,null,null,null,null,null,null,null,null,null,null,null,null,null,null,null,null,null,null,null,null,null,null,null,null,null,null,null,null,null,null,null,null,null,null,null,null,null,null,null,null,null,null,null,"00","00","00","00","00","00","00","00","00","00","00","00","00","00","00","00","00","00","00","00","00","00","00","00","00","00","00","00","00","00","00","00","00","00","00","00","00","00","00","00","00","00","00","00","00"]
[null,null,null,null,null,null,null,null,null,null,null,null,null,null,null,null,null,null,null,null,null,null,null,null,null,null,null,null,null,null,null,null,null,null,null,null,null,null,null,null,null,null,null,null,null,null,null,null,null,null,null,null,null,null,null,null,null,null,null,null,null,null,null,null,null,null,null,null,null,null,null,null,null,null,null,null,null,null,null,null,null,null,null,null,null,null,null,null,null,null,null,null,null,null,null,"00","00","00","00","00","00","00","00","00","00","00","00","00","00","00","00","00","00","00","00","00","00","00","00","00","00","00","00","00","00","00","00","00","00","00","00","00","00","00","00","00","00","00","00","00"]
[null,null,null,null,null,null,null,null,null,null,null,null,null,null,null,null,null,null,null,null,null,null,null,null,null,null,null,null,null,null,null,null,null,null,null,null,null,null,null,null,null,null,null,null,null,null,null,null,null,null,null,null,null,null,null,null,null,null,null,null,null,null,null,null,null,null,null,null,null,null,null,null,null,null,null,null,null,null,null,null,null,null,null,null,null,null,null,null,null,null,null,null,null,null,null,"00","00","00","00","00","00","00","00","00","00","00","00","00","00","00","00","00","00","00","00","00","00","00","00","00","00","00","00","00","00","00","00","00","00","00","00","00","00","00","00","00","00","00","00","00"]
[null,null,null,null,null,null,null,null,null,null,null,null,null,null,null,null,null,null,null,null,null,null,null,null,null,null,null,null,null,null,null,null,null,null,null,null,null,null,null,null,null,null,null,null,null,null,null,null,null,null,null,null,null,null,null,null,null,null,null,null,null,null,null,null,null,null,null,null,null,null,null,null,null,null,null,null,null,null,null,null,null,null,null,null,null,null,null,null,null,null,null,null,null,null,null,"00","00","00","00","00","00","00","00","00","00","00","00","00","00","00","00","00","00","00","00","00","00","00","00","00","00","00","00","00","00","00","00","00","00","00","00","00","00","00","00","00","00","00","00","00"]
[null,null,null,null,null,null,null,null,null,null,null,null,null,null,null,null,null,null,null,null,null,null,null,null,null,null,null,null,null,null,null,null,null,null,null,null,null,null,null,null,null,null,null,null,null,null,null,null,null,null,null,null,null,null,null,null,null,null,null,null,null,null,null,null,null,null,null,null,null,null,null,null,null,null,null,null,null,null,null,null,null,null,null,null,null,null,null,null,null,null,null,null,null,null,null,"00","00","00","00","00","00","00","00","00","00","00","00","00","00","00","00","00","00","00","00","00","00","00","00","00","00","00","00","00","00","00","00","00","00","00","00","00","00","00","00","00","00","00","00","00"]
[null,null,null,null,null,null,null,null,null,null,null,null,null,null,null,null,null,null,null,null,null,null,null,null,null,null,null,null,null,null,null,null,null,null,null,null,null,null,null,null,null,null,null,null,null,null,null,null,null,null,null,null,null,null,null,null,null,null,null,null,null,null,null,null,null,null,null,null,null,null,null,null,null,null,null,null,null,null,null,null,null,null,null,null,null,null,null,null,null,null,null,null,null,null,null,"00","00","00","00","00","00","00","00","00","00","00","00","00","00","00","00","00","00","00","00","00","00","00","00","00","00","00","00","00","00","00","00","00","00","00","00","00","00","00","00","00","00","00","00","00"]
[null,null,null,null,null,null,null,null,null,null,null,null,null,null,null,null,null,null,null,null,null,null,null,null,null,null,null,null,null,null,null,null,null,null,null,null,null,null,null,null,null,null,null,null,null,null,null,null,null,null,null,null,null,null,null,null,null,null,null,null,null,null,null,null,null,null,null,null,null,null,null,null,null,null,null,null,null,null,null,null,null,null,null,null,null,null,null,null,null,null,null,null,null,null,null,"00","00","00","00","00","00","00","00","00","00","00","00","00","00","00","00","00","00","00","00","00","00","00","00","00","00","00","00","00","00","00","00","00","00","00","00","00","00","00","00","00","00","00","00","00"]
[null,null,null,null,null,null,null,null,null,null,null,null,null,null,null,null,null,null,null,null,null,null,null,null,null,null,null,null,null,null,null,null,null,null,null,null,null,null,null,null,null,null,null,null,null,null,null,null,null,null,null,null,null,null,null,null,null,null,null,null,null,null,null,null,null,null,null,null,null,null,null,null,null,null,null,null,null,null,null,null,null,null,null,null,null,null,null,null,null,null,null,null,null,null,null,"00","00","00","00","00","00","00","00","00","00","00","00","00","00","00","00","00","00","00","00","00","00","00","00","00","00","00","00","00","00","00","00","00","00","00","00","00","00","00","00","00","00","00","00","00"]
[null,null,null,null,null,null,null,null,null,null,null,null,null,null,null,null,null,null,null,null,null,null,null,null,null,null,null,null,null,null,null,null,null,null,null,null,null,null,null,null,null,null,null,null,null,null,null,null,null,null,null,null,null,null,null,null,null,null,null,null,null,null,null,null,null,null,null,null,null,null,null,null,null,null,null,null,null,null,null,null,null,null,null,null,null,null,null,null,null,null,null,null,null,null,null,"00","00","00","00","00","00","00","00","00","00","00","00","00","00","00","00","00","00","00","00","00","00","00","00","00","00","00","00","00","00","00","00","00","00","00","00","00","00","00","00","00","00","00","00","00"]
[null,null,null,null,null,null,null,null,null,null,null,null,null,null,null,null,null,null,null,null,null,null,null,null,null,null,null,null,null,null,null,null,null,null,null,null,null,null,null,null,null,null,null,null,null,null,null,null,null,null,null,null,null,null,null,null,null,null,null,null,null,null,null,null,null,null,null,null,null,null,null,null,null,null,null,null,null,null,null,null,null,null,null,null,null,null,null,null,null,null,null,null,null,null,null,"00","00","00","00","00","00","00","00","00","00","00","00","00","00","00","00","00","00","00","00","00","00","00","00","00","00","00","00","00","00","00","00","00","00","00","00","00","00","00","00","00","00","00","00","00"]
[null,null,null,null,null,null,null,null,null,null,null,null,null,null,null,null,null,null,null,null,null,null,null,null,null,null,null,null,null,null,null,null,null,null,null,null,null,null,null,null,null,null,null,null,null,null,null,null,null,null,null,null,null,null,null,null,null,null,null,null,null,null,null,null,null,null,null,null,null,null,null,null,null,null,null,null,null,null,null,null,null,null,null,null,null,null,null,null,null,null,null,null,null,null,null,"00","00","00","00","00","00","00","00","00","00","00","00","00","00","00","00","00","00","00","00","00","00","00","00","00","00","00","00","00","00","00","00","00","00","00","00","00","00","00","00","00","00","00","00","00"]
[null,null,null,null,null,null,null,null,null,null,null,null,null,null,null,null,null,null,null,null,null,null,null,null,null,null,null,null,null,null,null,null,null,null,null,null,null,null,null,null,null,null,null,null,null,null,null,null,null,null,null,null,null,null,null,null,null,null,null,null,null,null,null,null,null,null,null,null,null,null,null,null,null,null,null,null,null,null,null,null,null,null,null,null,null,null,null,null,null,null,null,null,null,null,null,"00","00","00","00","00","00","00","00","00","00","00","00","00","00","00","00","00","00","00","00","00","00","00","00","00","00","00","00","00","00","00","00","00","00","00","00","00","00","00","00","00","00","00","00","00"]
[null,null,null,null,null,null,null,null,null,null,null,null,null,null,null,null,null,null,null,null,null,null,null,null,null,null,null,null,null,null,null,null,null,null,null,null,null,null,null,null,null,null,null,null,null,null,null,null,null,null,null,null,null,null,null,null,null,null,null,null,null,null,null,null,null,null,null,null,null,null,null,null,null,null,null,null,null,null,null,null,null,null,null,null,null,null,null,null,null,null,null,null,null,null,null,"00","00","00","00","00","00","00","00","00","00","00","00","00","00","00","00","00","00","00","00","00","00","00","00","00","00","00","00","00","00","00","00","00","00","00","00","00","00","00","00","00","00","00","00","00"]
[null,null,null,null,null,null,null,null,null,null,null,null,null,null,null,null,null,null,null,null,null,null,null,null,null,null,null,null,null,null,null,null,null,null,null,null,null,null,null,null,null,null,null,null,null,null,null,null,null,null,null,null,null,null,null,null,null,null,null,null,null,null,null,null,null,null,null,null,null,null,null,null,null,null,null,null,null,null,null,null,null,null,null,null,null,null,null,null,null,null,null,null,null,null,null,"00","00","00","00","00","00","00","00","00","00","00","00","00","00","00","00","00","00","00","00","00","00","00","00","00","00","00","00","00","00","00","00","00","00","00","00","00","00","00","00","00","00","00","00","00"]
[null,null,null,null,null,null,null,null,null,null,null,null,null,null,null,null,null,null,null,null,null,null,null,null,null,null,null,null,null,null,null,null,null,null,null,null,null,null,null,null,null,null,null,null,null,null,null,null,null,null,null,null,null,null,null,null,null,null,null,null,null,null,null,null,null,null,null,null,null,null,null,null,null,null,null,null,null,null,null,null,null,null,null,null,null,null,null,null,null,null,null,null,null,null,null,"00","00","00","00","00","00","00","00","00","00","00","00","00","00","00","00","00","00","00","00","00","00","00","00","00","00","00","00","00","00","00","00","00","00","00","00","00","00","00","00","00","00","00","00","00"]
[null,null,null,null,null,null,null,null,null,null,null,null,null,null,null,null,null,null,null,null,null,null,null,null,null,null,null,null,null,null,null,null,null,null,null,null,null,null,null,null,null,null,null,null,null,null,null,null,null,null,null,null,null,null,null,null,null,null,null,null,null,null,null,null,null,null,null,null,null,null,null,null,null,null,null,null,null,null,null,null,null,null,null,null,null,null,null,null,null,null,null,null,null,null,null,"00","00","00","00","00","00","00","00","00","00","00","00","00","00","00","00","00","00","00","00","00","00","00","00","00","00","00","00","00","00","00","00","00","00","00","00","00","00","00","00","00","00","00","00","00"]
[null,null,null,null,null,null,null,null,null,null,null,null,null,null,null,null,null,null,null,null,null,null,null,null,null,null,null,null,null,null,null,null,null,null,null,null,null,null,null,null,null,null,null,null,null,null,null,null,null,null,null,null,null,null,null,null,null,null,null,null,null,null,null,null,null,null,null,null,null,null,null,null,null,null,null,null,null,null,null,null,null,null,null,null,null,null,null,null,null,null,null,null,null,null,null,"00","00","00","00","00","00","00","00","00","00","00","00","00","00","00","00","00","00","00","00","00","00","00","00","00","00","00","00","00","00","00","00","00","00","00","00","00","00","00","00","00","00","00","00","00"]
[null,null,null,null,null,null,null,null,null,null,null,null,null,null,null,null,null,null,null,null,null,null,null,null,null,null,null,null,null,null,null,null,null,null,null,null,null,null,null,null,null,null,null,null,null,null,null,null,null,null,null,null,null,null,null,null,null,null,null,null,null,null,null,null,null,null,null,null,null,null,null,null,null,null,null,null,null,null,null,null,null,null,null,null,null,null,null,null,null,null,null,null,null,null,null,"00","00","00","00","00","00","00","00","00","00","00","00","00","00","00","00","00","00","00","00","00","00","00","00","00","00","00","00","00","00","00","00","00","00","00","00","00","00","00","00","00","00","00","00","00"]
[null,null,null,null,null,null,null,null,null,null,null,null,null,null,null,null,null,null,null,null,null,null,null,null,null,null,null,null,null,null,null,null,null,null,null,null,null,null,null,null,null,null,null,null,null,null,null,null,null,null,null,null,null,null,null,null,null,null,null,null,null,null,null,null,null,null,null,null,null,null,null,null,null,null,null,null,null,null,null,null,null,null,null,null,null,null,null,null,null,null,null,null,null,null,null,"00","00","00","00","00","00","00","00","00","00","00","00","00","00","00","00","00","00","00","00","00","00","00","00","00","00","00","00","00","00","00","00","00","00","00","00","00","00","00","00","00","00","00","00","00"]
[null,null,null,null,null,null,null,null,null,null,null,null,null,null,null,null,null,null,null,null,null,null,null,null,null,null,null,null,null,null,null,null,null,null,null,null,null,null,null,null,null,null,null,null,null,null,null,null,null,null,null,null,null,null,null,null,null,null,null,null,null,null,null,null,null,null,null,null,null,null,null,null,null,null,null,null,null,null,null,null,null,null,null,null,null,null,null,null,null,null,null,null,null,null,null,"00","00","00","00","00","00","00","00","00","00","00","00","00","00","00","00","00","00","00","00","00","00","00","00","00","00","00","00","00","00","00","00","00","00","00","00","00","00","00","00","00","00","00","00","00"]
[null,null,null,null,null,null,null,null,null,null,null,null,null,null,null,null,null,null,null,null,null,null,null,null,null,null,null,null,null,null,null,null,null,null,null,null,null,null,null,null,null,null,null,null,null,null,null,null,null,null,null,null,null,null,null,null,null,null,null,null,null,null,null,null,null,null,null,null,null,null,null,null,null,null,null,null,null,null,null,null,null,null,null,null,null,null,null,null,null,null,null,null,null,null,null,"00","00","00","00","00","00","00","00","00","00","00","00","00","00","00","00","00","00","00","00","00","00","00","00","00","00","00","00","00","00","00","00","00","00","00","00","00","00","00","00","00","00","00","00","00"]
[null,null,null,null,null,null,null,null,null,null,null,null,null,null,null,null,null,null,null,null,null,null,null,null,null,null,null,null,null,null,null,null,null,null,null,null,null,null,null,null,null,null,null,null,null,null,null,null,null,null,null,null,null,null,null,null,null,null,null,null,null,null,null,null,null,null,null,null,null,null,null,null,null,null,null,null,null,null,null,null,null,null,null,null,null,null,null,null,null,null,null,null,null,null,null,"00","00","00","00","00","00","00","00","00","00","00","00","00","00","00","00","00","00","00","00","00","00","00","00","00","00","00","00","00","00","00","00","00","00","00","00","00","00","00","00","00","00","00","00","00"]
[null,null,null,null,null,null,null,null,null,null,null,null,null,null,null,null,null,null,null,null,null,null,null,null,null,null,null,null,null,null,null,null,null,null,null,null,null,null,null,null,null,null,null,null,null,null,null,null,null,null,null,null,null,null,null,null,null,null,null,null,null,null,null,null,null,null,null,null,null,null,null,null,null,null,null,null,null,null,null,null,null,null,null,null,null,null,null,null,null,null,null,null,null,null,null,"00","00","00","00","00","00","00","00","00","00","00","00","00","00","00","00","00","00","00","00","00","00","00","00","00","00","00","00","00","00","00","00","00","00","00","00","00","00","00","00","00","00","00","00","00"]
[null,null,null,null,null,null,null,null,null,null,null,null,null,null,null,null,null,null,null,null,null,null,null,null,null,null,null,null,null,null,null,null,null,null,null,null,null,null,null,null,null,null,null,null,null,null,null,null,null,null,null,null,null,null,null,null,null,null,null,null,null,null,null,null,null,null,null,null,null,null,null,null,null,null,null,null,null,null,null,null,null,null,null,null,null,null,null,null,null,null,null,null,null,null,null,"00","00","00","00","00","00","00","00","00","00","00","00","00","00","00","00","00","00","00","00","00","00","00","00","00","00","00","00","00","00","00","00","00","00","00","00","00","00","00","00","00","00","00","00","00"]
[null,null,null,null,null,null,null,null,null,null,null,null,null,null,null,null,null,null,null,null,null,null,null,null,null,null,null,null,null,null,null,null,null,null,null,null,null,null,null,null,null,null,null,null,null,null,null,null,null,null,null,null,null,null,null,null,null,null,null,null,null,null,null,null,null,null,null,null,null,null,null,null,null,null,null,null,null,null,null,null,null,null,null,null,null,null,null,null,null,null,null,null,null,null,null,"00","00","00","00","00","00","00","00","00","00","00","00","00","00","00","00","00","00","00","00","00","00","00","00","00","00","00","00","00","00","00","00","00","00","00","00","00","00","00","00","00","00","00","00","00"]
[null,null,null,null,null,null,null,null,null,null,null,null,null,null,null,null,null,null,null,null,null,null,null,null,null,null,null,null,null,null,null,null,null,null,null,null,null,null,null,null,null,null,null,null,null,null,null,null,null,null,null,null,null,null,null,null,null,null,null,null,null,null,null,null,null,null,null,null,null,null,null,null,null,null,null,null,null,null,null,null,null,null,null,null,null,null,null,null,null,null,null,null,null,null,null,"00","00","00","00","00","00","00","00","00","00","00","00","00","00","00","00","00","00","00","00","00","00","00","00","00","00","00","00","00","00","00","00","00","00","00","00","00","00","00","00","00","00","00","00","00"]
[null,null,null,null,null,null,null,null,null,null,null,null,null,null,null,null,null,null,null,null,null,null,null,null,null,null,null,null,null,null,null,null,null,null,null,null,null,null,null,null,null,null,null,null,null,null,null,null,null,null,null,null,null,null,null,null,null,null,null,null,null,null,null,null,null,null,null,null,null,null,null,null,null,null,null,null,null,null,null,null,null,null,null,null,null,null,null,null,null,null,null,null,null,null,null,"00","00","00","00","00","00","00","00","00","00","00","00","00","00","00","00","00","00","00","00","00","00","00","00","00","00","00","00","00","00","00","00","00","00","00","00","00","00","00","00","00","00","00","00","00"]
[null,null,null,null,null,null,null,null,null,null,null,null,null,null,null,null,null,null,null,null,null,null,null,null,null,null,null,null,null,null,null,null,null,null,null,null,null,null,null,null,null,null,null,null,null,null,null,null,null,null,null,null,null,null,null,null,null,null,null,null,null,null,null,null,null,null,null,null,null,null,null,null,null,null,null,null,null,null,null,null,null,null,null,null,null,null,null,null,null,null,null,null,null,null,null,"00","00","00","00","00","00","00","00","00","00","00","00","00","00","00","00","00","00","00","00","00","00","00","00","00","00","00","00","00","00","00","00","00","00","00","00","00","00","00","00","00","00","00","00","00"]
[null,null,null,null,null,null,null,null,null,null,null,null,null,null,null,null,null,null,null,null,null,null,null,null,null,null,null,null,null,null,null,null,null,null,null,null,null,null,null,null,null,null,null,null,null,null,null,null,null,null,null,null,null,null,null,null,null,null,null,null,null,null,null,null,null,null,null,null,null,null,null,null,null,null,null,null,null,null,null,null,null,null,null,null,null,null,null,null,null,null,null,null,null,null,null,"00","00","00","00","00","00","00","00","00","00","00","00","00","00","00","00","00","00","00","00","00","00","00","00","00","00","00","00","00","00","00","00","00","00","00","00","00","00","00","00","00","00","00","00","00"]
[null,null,null,null,null,null,null,null,null,null,null,null,null,null,null,null,null,null,null,null,null,null,null,null,null,null,null,null,null,null,null,null,null,null,null,null,null,null,null,null,null,null,null,null,null,null,null,null,null,null,null,null,null,null,null,null,null,null,null,null,null,null,null,null,null,null,null,null,null,null,null,null,null,null,null,null,null,null,null,null,null,null,null,null,null,null,null,null,null,null,null,null,null,null,null,"00","00","00","00","00","00","00","00","00","00","00","00","00","00","00","00","00","00","00","00","00","00","00","00","00","00","00","00","00","00","00","00","00","00","00","00","00","00","00","00","00","00","00","00","00"]
[null,null,null,null,null,null,null,null,null,null,null,null,null,null,null,null,null,null,null,null,null,null,null,null,null,null,null,null,null,null,null,null,null,null,null,null,null,null,null,null,null,null,null,null,null,null,null,null,null,null,null,null,null,null,null,null,null,null,null,null,null,null,null,null,null,null,null,null,null,null,null,null,null,null,null,null,null,null,null,null,null,null,null,null,null,null,null,null,null,null,null,null,null,null,null,"00","00","00","00","00","00","00","00","00","00","00","00","00","00","00","00","00","00","00","00","00","00","00","00","00","00","00","00","00","00","00","00","00","00","00","00","00","00","00","00","00","00","00","00","00"]
[null,null,null,null,null,null,null,null,null,null,null,null,null,null,null,null,null,null,null,null,null,null,null,null,null,null,null,null,null,null,null,null,null,null,null,null,null,null,null,null,null,null,null,null,null,null,null,null,null,null,null,null,null,null,null,null,null,null,null,null,null,null,null,null,null,null,null,null,null,null,null,null,null,null,null,null,null,null,null,null,null,null,null,null,null,null,null,null,null,null,null,null,null,null,null,"00","00","00","00","00","00","00","00","00","00","00","00","00","00","00","00","00","00","00","00","00","00","00","00","00","00","00","00","00","00","00","00","00","00","00","00","00","00","00","00","00","00","00","00","00"]
[null,null,null,null,null,null,null,null,null,null,null,null,null,null,null,null,null,null,null,null,null,null,null,null,null,null,null,null,null,null,null,null,null,null,null,null,null,null,null,null,null,null,null,null,null,null,null,null,null,null,null,null,null,null,null,null,null,null,null,null,null,null,null,null,null,null,null,null,null,null,null,null,null,null,null,null,null,null,null,null,null,null,null,null,null,null,null,null,null,null,null,null,null,null,null,"00","00","00","00","00","00","00","00","00","00","00","00","00","00","00","00","00","00","00","00","00","00","00","00","00","00","00","00","00","00","00","00","00","00","00","00","00","00","00","00","00","00","00","00","00"]
[null,null,null,null,null,null,null,null,null,null,null,null,null,null,null,null,null,null,null,null,null,null,null,null,null,null,null,null,null,null,null,null,null,null,null,null,null,null,null,null,null,null,null,null,null,null,null,null,null,null,null,null,null,null,null,null,null,null,null,null,null,null,null,null,null,null,null,null,null,null,null,null,null,null,null,null,null,null,null,null,null,null,null,null,null,null,null,null,null,null,null,null,null,null,null,"00","00","00","00","00","00","00","00","00","00","00","00","00","00","00","00","00","00","00","00","00","00","00","00","00","00","00","00","00","00","00","00","00","00","00","00","00","00","00","00","00","00","00","00","00"]
[null,null,null,null,null,null,null,null,null,null,null,null,null,null,null,null,null,null,null,null,null,null,null,null,null,null,null,null,null,null,null,null,null,null,null,null,null,null,null,null,null,null,null,null,null,null,null,null,null,null,null,null,null,null,null,null,null,null,null,null,null,null,null,null,null,null,null,null,null,null,null,null,null,null,null,null,null,null,null,null,null,null,null,null,null,null,null,null,null,null,null,null,null,null,null,"00","00","00","00","00","00","00","00","00","00","00","00","00","00","00","00","00","00","00","00","00","00","00","00","00","00","00","00","00","00","00","00","00","00","00","00","00","00","00","00","00","00","00","00","00"]
[null,null,null,null,null,null,null,null,null,null,null,null,null,null,null,null,null,null,null,null,null,null,null,null,null,null,null,null,null,null,null,null,null,null,null,null,null,null,null,null,null,null,null,null,null,null,null,null,null,null,null,null,null,null,null,null,null,null,null,null,null,null,null,null,null,null,null,null,null,null,null,null,null,null,null,null,null,null,null,null,null,null,null,null,null,null,null,null,null,null,null,null,null,null,null,"00","00","00","00","00","00","00","00","00","00","00","00","00","00","00","00","00","00","00","00","00","00","00","00","00","00","00","00","00","00","00","00","00","00","00","00","00","00","00","00","00","00","00","00","00"]
[null,null,null,null,null,null,null,null,null,null,null,null,null,null,null,null,null,null,null,null,null,null,null,null,null,null,null,null,null,null,null,null,null,null,null,null,null,null,null,null,null,null,null,null,null,null,null,null,null,null,null,null,null,null,null,null,null,null,null,null,null,null,null,null,null,null,null,null,null,null,null,null,null,null,null,null,null,null,null,null,null,null,null,null,null,null,null,null,null,null,null,null,null,null,null,"00","00","00","00","00","00","00","00","00","00","00","00","00","00","00","00","00","00","00","00","00","00","00","00","00","00","00","00","00","00","00","00","00","00","00","00","00","00","00","00","00","00","00","00","00"]
[null,null,null,null,null,null,null,null,null,null,null,null,null,null,null,null,null,null,null,null,null,null,null,null,null,null,null,null,null,null,null,null,null,null,null,null,null,null,null,null,null,null,null,null,null,null,null,null,null,null,null,null,null,null,null,null,null,null,null,null,null,null,null,null,null,null,null,null,null,null,null,null,null,null,null,null,null,null,null,null,null,null,null,null,null,null,null,null,null,null,null,null,null,null,null,"00","00","00","00","00","00","00","00","00","00","00","00","00","00","00","00","00","00","00","00","00","00","00","00","00","00","00","00","00","00","00","00","00","00","00","00","00","00","00","00","00","00","00","00","00"]
[null,null,null,null,null,null,null,null,null,null,null,null,null,null,null,null,null,null,null,null,null,null,null,null,null,null,null,null,null,null,null,null,null,null,null,null,null,null,null,null,null,null,null,null,null,null,null,null,null,null,null,null,null,null,null,null,null,null,null,null,null,null,null,null,null,null,null,null,null,null,null,null,null,null,null,null,null,null,null,null,null,null,null,null,null,null,null,null,null,null,null,null,null,null,null,"00","00","00","00","00","00","00","00","00","00","00","00","00","00","00","00","00","00","00","00","00","00","00","00","00","00","00","00","00","00","00","00","00","00","00","00","00","00","00","00","00","00","00","00","00"]
[null,null,null,null,null,null,null,null,null,null,null,null,null,null,null,null,null,null,null,null,null,null,null,null,null,null,null,null,null,null,null,null,null,null,null,null,null,null,null,null,null,null,null,null,null,null,null,null,null,null,null,null,null,null,null,null,null,null,null,null,null,null,null,null,null,null,null,null,null,null,null,null,null,null,null,null,null,null,null,null,null,null,null,null,null,null,null,null,null,null,null,null,null,null,null,"00","00","00","00","00","00","00","00","00","00","00","00","00","00","00","00","00","00","00","00","00","00","00","00","00","00","00","00","00","00","00","00","00","00","00","00","00","00","00","00","00","00","00","00","00"]
[null,null,null,null,null,null,null,null,null,null,null,null,null,null,null,null,null,null,null,null,null,null,null,null,null,null,null,null,null,null,null,null,null,null,null,null,null,null,null,null,null,null,null,null,null,null,null,null,null,null,null,null,null,null,null,null,null,null,null,null,null,null,null,null,null,null,null,null,null,null,null,null,null,null,null,null,null,null,null,null,null,null,null,null,null,null,null,null,null,null,null,null,null,null,null,"00","00","00","00","00","00","00","00","00","00","00","00","00","00","00","00","00","00","00","00","00","00","00","00","00","00","00","00","00","00","00","00","00","00","00","00","00","00","00","00","00","00","00","00","00"]
[null,null,null,null,null,null,null,null,null,null,null,null,null,null,null,null,null,null,null,null,null,null,null,null,null,null,null,null,null,null,null,null,null,null,null,null,null,null,null,null,null,null,null,null,null,null,null,null,null,null,null,null,null,null,null,null,null,null,null,null,null,null,null,null,null,null,null,null,null,null,null,null,null,null,null,null,null,null,null,null,null,null,null,null,null,null,null,null,null,null,null,null,null,null,null,"00","00","00","00","00","00","00","00","00","00","00","00","00","00","00","00","00","00","00","00","00","00","00","00","00","00","00","00","00","00","00","00","00","00","00","00","00","00","00","00","00","00","00","00","00"]
[null,null,null,null,null,null,null,null,null,null,null,null,null,null,null,null,null,null,null,null,null,null,null,null,null,null,null,null,null,null,null,null,null,null,null,null,null,null,null,null,null,null,null,null,null,null,null,null,null,null,null,null,null,null,null,null,null,null,null,null,null,null,null,null,null,null,null,null,null,null,null,null,null,null,null,null,null,null,null,null,null,null,null,null,null,null,null,null,null,null,null,null,null,null,null,"00","00","00","00","00","00","00","00","00","00","00","00","00","00","00","00","00","00","00","00","00","00","00","00","00","00","00","00","00","00","00","00","00","00","00","00","00","00","00","00","00","00","00","00","00"]
[null,null,null,null,null,null,null,null,null,null,null,null,null,null,null,null,null,null,null,null,null,null,null,null,null,null,null,null,null,null,null,null,null,null,null,null,null,null,null,null,null,null,null,null,null,null,null,null,null,null,null,null,null,null,null,null,null,null,null,null,null,null,null,null,null,null,null,null,null,null,null,null,null,null,null,null,null,null,null,null,null,null,null,null,null,null,null,null,null,null,null,null,null,null,null,"00","00","00","00","00","00","00","00","00","00","00","00","00","00","00","00","00","00","00","00","00","00","00","00","00","00","00","00","00","00","00","00","00","00","00","00","00","00","00","00","00","00","00","00","00"]
[null,null,null,null,null,null,null,null,null,null,null,null,null,null,null,null,null,null,null,null,null,null,null,null,null,null,null,null,null,null,null,null,null,null,null,null,null,null,null,null,null,null,null,null,null,null,null,null,null,null,null,null,null,null,null,null,null,null,null,null,null,null,null,null,null,null,null,null,null,null,null,null,null,null,null,null,null,null,null,null,null,null,null,null,null,null,null,null,null,null,null,null,null,null,null,"00","00","00","00","00","00","00","00","00","00","00","00","00","00","00","00","00","00","00","00","00","00","00","00","00","00","00","00","00","00","00","00","00","00","00","00","00","00","00","00","00","00","00","00","00"]
[null,null,null,null,null,null,null,null,null,null,null,null,null,null,null,null,null,null,null,null,null,null,null,null,null,null,null,null,null,null,null,null,null,null,null,null,null,null,null,null,null,null,null,null,null,null,null,null,null,null,null,null,null,null,null,null,null,null,null,null,null,null,null,null,null,null,null,null,null,null,null,null,null,null,null,null,null,null,null,null,null,null,null,null,null,null,null,null,null,null,null,null,null,null,null,"00","00","00","00","00","00","00","00","00","00","00","00","00","00","00","00","00","00","00","00","00","00","00","00","00","00","00","00","00","00","00","00","00","00","00","00","00","00","00","00","00","00","00","00","00"]
[null,null,null,null,null,null,null,null,null,null,null,null,null,null,null,null,null,null,null,null,null,null,null,null,null,null,null,null,null,null,null,null,null,null,null,null,null,null,null,null,null,null,null,null,null,null,null,null,null,null,null,null,null,null,null,null,null,null,null,null,null,null,null,null,null,null,null,null,null,null,null,null,null,null,null,null,null,null,null,null,null,null,null,null,null,null,null,null,null,null,null,null,null,null,null,"00","00","00","00","00","00","00","00","00","00","00","00","00","00","00","00","00","00","00","00","00","00","00","00","00","00","00","00","00","00","00","00","00","00","00","00","00","00","00","00","00","00","00","00","00"]
[null,null,null,null,null,null,null,null,null,null,null,null,null,null,null,null,null,null,null,null,null,null,null,null,null,null,null,null,null,null,null,null,null,null,null,null,null,null,null,null,null,null,null,null,null,null,null,null,null,null,null,null,null,null,null,null,null,null,null,null,null,null,null,null,null,null,null,null,null,null,null,null,null,null,null,null,null,null,null,null,null,null,null,null,null,null,null,null,null,null,null,null,null,null,null,"00","00","00","00","00","00","00","00","00","00","00","00","00","00","00","00","00","00","00","00","00","00","00","00","00","00","00","00","00","00","00","00","00","00","00","00","00","00","00","00","00","00","00","00","00"]
[null,null,null,null,null,null,null,null,null,null,null,null,null,null,null,null,null,null,null,null,null,null,null,null,null,null,null,null,null,null,null,null,null,null,null,null,null,null,null,null,null,null,null,null,null,null,null,null,null,null,null,null,null,null,null,null,null,null,null,null,null,null,null,null,null,null,null,null,null,null,null,null,null,null,null,null,null,null,null,null,null,null,null,null,null,null,null,null,null,null,null,null,null,null,null,"00","00","00","00","00","00","00","00","00","00","00","00","00","00","00","00","00","00","00","00","00","00","00","00","00","00","00","00","00","00","00","00","00","00","00","00","00","00","00","00","00","00","00","00","00"]
[null,null,null,null,null,null,null,null,null,null,null,null,null,null,null,null,null,null,null,null,null,null,null,null,null,null,null,null,null,null,null,null,null,null,null,null,null,null,null,null,null,null,null,null,null,null,null,null,null,null,null,null,null,null,null,null,null,null,null,null,null,null,null,null,null,null,null,null,null,null,null,null,null,null,null,null,null,null,null,null,null,null,null,null,null,null,null,null,null,null,null,null,null,null,null,"00","00","00","00","00","00","00","00","00","00","00","00","00","00","00","00","00","00","00","00","00","00","00","00","00","00","00","00","00","00","00","00","00","00","00","00","00","00","00","00","00","00","00","00","00"]
[null,null,null,null,null,null,null,null,null,null,null,null,null,null,null,null,null,null,null,null,null,null,null,null,null,null,null,null,null,null,null,null,null,null,null,null,null,null,null,null,null,null,null,null,null,null,null,null,null,null,null,null,null,null,null,null,null,null,null,null,null,null,null,null,null,null,null,null,null,null,null,null,null,null,null,null,null,null,null,null,null,null,null,null,null,null,null,null,null,null,null,null,null,null,null,"00","00","00","00","00","00","00","00","00","00","00","00","00","00","00","00","00","00","00","00","00","00","00","00","00","00","00","00","00","00","00","00","00","00","00","00","00","00","00","00","00","00","00","00","00"]
[null,null,null,null,null,null,null,null,null,null,null,null,null,null,null,null,null,null,null,null,null,null,null,null,null,null,null,null,null,null,null,null,null,null,null,null,null,null,null,null,null,null,null,null,null,null,null,null,null,null,null,null,null,null,null,null,null,null,null,null,null,null,null,null,null,null,null,null,null,null,null,null,null,null,null,null,null,null,null,null,null,null,null,null,null,null,null,null,null,null,null,null,null,null,null,"00","00","00","00","00","00","00","00","00","00","00","00","00","00","00","00","00","00","00","00","00","00","00","00","00","00","00","00","00","00","00","00","00","00","00","00","00","00","00","00","00","00","00","00","00"]
[null,null,null,null,null,null,null,null,null,null,null,null,null,null,null,null,null,null,null,null,null,null,null,null,null,null,null,null,null,null,null,null,null,null,null,null,null,null,null,null,null,null,null,null,null,null,null,null,null,null,null,null,null,null,null,null,null,null,null,null,null,null,null,null,null,null,null,null,null,null,null,null,null,null,null,null,null,null,null,null,null,null,null,null,null,null,null,null,null,null,null,null,null,null,null,"00","00","00","00","00","00","00","00","00","00","00","00","00","00","00","00","00","00","00","00","00","00","00","00","00","00","00","00","00","00","00","00","00","00","00","00","00","00","00","00","00","00","00","00","00"]
[null,null,null,null,null,null,null,null,null,null,null,null,null,null,null,null,null,null,null,null,null,null,null,null,null,null,null,null,null,null,null,null,null,null,null,null,null,null,null,null,null,null,null,null,null,null,null,null,null,null,null,null,null,null,null,null,null,null,null,null,null,null,null,null,null,null,null,null,null,null,null,null,null,null,null,null,null,null,null,null,null,null,null,null,null,null,null,null,null,null,null,null,null,null,null,"00","00","00","00","00","00","00","00","00","00","00","00","00","00","00","00","00","00","00","00","00","00","00","00","00","00","00","00","00","00","00","00","00","00","00","00","00","00","00","00","00","00","00","00","00"]
[null,null,null,null,null,null,null,null,null,null,null,null,null,null,null,null,null,null,null,null,null,null,null,null,null,null,null,null,null,null,null,null,null,null,null,null,null,null,null,null,null,null,null,null,null,null,null,null,null,null,null,null,null,null,null,null,null,null,null,null,null,null,null,null,null,null,null,null,null,null,null,null,null,null,null,null,null,null,null,null,null,null,null,null,null,null,null,null,null,null,null,null,null,null,null,"00","00","00","00","00","00","00","00","00","00","00","00","00","00","00","00","00","00","00","00","00","00","00","00","00","00","00","00","00","00","00","00","00","00","00","00","00","00","00","00","00","00","00","00","00"]
[null,null,null,null,null,null,null,null,null,null,null,null,null,null,null,null,null,null,null,null,null,null,null,null,null,null,null,null,null,null,null,null,null,null,null,null,null,null,null,null,null,null,null,null,null,null,null,null,null,null,null,null,null,null,null,null,null,null,null,null,null,null,null,null,null,null,null,null,null,null,null,null,null,null,null,null,null,null,null,null,null,null,null,null,null,null,null,null,null,null,null,null,null,null,null,"00","00","00","00","00","00","00","00","00","00","00","00","00","00","00","00","00","00","00","00","00","00","00","00","00","00","00","00","00","00","00","00","00","00","00","00","00","00","00","00","00","00","00","00","00"]
[null,null,null,null,null,null,null,null,null,null,null,null,null,null,null,null,null,null,null,null,null,null,null,null,null,null,null,null,null,null,null,null,null,null,null,null,null,null,null,null,null,null,null,null,null,null,null,null,null,null,null,null,null,null,null,null,null,null,null,null,null,null,null,null,null,null,null,null,null,null,null,null,null,null,null,null,null,null,null,null,null,null,null,null,null,null,null,null,null,null,null,null,null,null,null,"00","00","00","00","00","00","00","00","00","00","00","00","00","00","00","00","00","00","00","00","00","00","00","00","00","00","00","00","00","00","00","00","00","00","00","00","00","00","00","00","00","00","00","00","00"]
[null,null,null,null,null,null,null,null,null,null,null,null,null,null,null,null,null,null,null,null,null,null,null,null,null,null,null,null,null,null,null,null,null,null,null,null,null,null,null,null,null,null,null,null,null,null,null,null,null,null,null,null,null,null,null,null,null,null,null,null,null,null,null,null,null,null,null,null,null,null,null,null,null,null,null,null,null,null,null,null,null,null,null,null,null,null,null,null,null,null,null,null,null,null,null,"00","00","00","00","00","00","00","00","00","00","00","00","00","00","00","00","00","00","00","00","00","00","00","00","00","00","00","00","00","00","00","00","00","00","00","00","00","00","00","00","00","00","00","00","00"]
[null,null,null,null,null,null,null,null,null,null,null,null,null,null,null,null,null,null,null,null,null,null,null,null,null,null,null,null,null,null,null,null,null,null,null,null,null,null,null,null,null,null,null,null,null,null,null,null,null,null,null,null,null,null,null,null,null,null,null,null,null,null,null,null,null,null,null,null,null,null,null,null,null,null,null,null,null,null,null,null,null,null,null,null,null,null,null,null,null,null,null,null,null,null,null,"00","00","00","00","00","00","00","00","00","00","00","00","00","00","00","00","00","00","00","00","00","00","00","00","00","00","00","00","00","00","00","00","00","00","00","00","00","00","00","00","00","00","00","00","00"]
[null,null,null,null,null,null,null,null,null,null,null,null,null,null,null,null,null,null,null,null,null,null,null,null,null,null,null,null,null,null,null,null,null,null,null,null,null,null,null,null,null,null,null,null,null,null,null,null,null,null,null,null,null,null,null,null,null,null,null,null,null,null,null,null,null,null,null,null,null,null,null,null,null,null,null,null,null,null,null,null,null,null,null,null,null,null,null,null,null,null,null,null,null,null,null,"00","00","00","00","00","00","00","00","00","00","00","00","00","00","00","00","00","00","00","00","00","00","00","00","00","00","00","00","00","00","00","00","00","00","00","00","00","00","00","00","00","00","00","00","00"]
[null,null,null,null,null,null,null,null,null,null,null,null,null,null,null,null,null,null,null,null,null,null,null,null,null,null,null,null,null,null,null,null,null,null,null,null,null,null,null,null,null,null,null,null,null,null,null,null,null,null,null,null,null,null,null,null,null,null,null,null,null,null,null,null,null,null,null,null,null,null,null,null,null,null,null,null,null,null,null,null,null,null,null,null,null,null,null,null,null,null,null,null,null,null,null,"00","00","00","00","00","00","00","00","00","00","00","00","00","00","00","00","00","00","00","00","00","00","00","00","00","00","00","00","00","00","00","00","00","00","00","00","00","00","00","00","00","00","00","00","00"]
[null,null,null,null,null,null,null,null,null,null,null,null,null,null,null,null,null,null,null,null,null,null,null,null,null,null,null,null,null,null,null,null,null,null,null,null,null,null,null,null,null,null,null,null,null,null,null,null,null,null,null,null,null,null,null,null,null,null,null,null,null,null,null,null,null,null,null,null,null,null,null,null,null,null,null,null,null,null,null,null,null,null,null,null,null,null,null,null,null,null,null,null,null,null,null,"00","00","00","00","00","00","00","00","00","00","00","00","00","00","00","00","00","00","00","00","00","00","00","00","00","00","00","00","00","00","00","00","00","00","00","00","00","00","00","00","00","00","00","00","00"]
[null,null,null,null,null,null,null,null,null,null,null,null,null,null,null,null,null,null,null,null,null,null,null,null,null,null,null,null,null,null,null,null,null,null,null,null,null,null,null,null,null,null,null,null,null,null,null,null,null,null,null,null,null,null,null,null,null,null,null,null,null,null,null,null,null,null,null,null,null,null,null,null,null,null,null,null,null,null,null,null,null,null,null,null,null,null,null,null,null,null,null,null,null,null,null,"00","00","00","00","00","00","00","00","00","00","00","00","00","00","00","00","00","00","00","00","00","00","00","00","00","00","00","00","00","00","00","00","00","00","00","00","00","00","00","00","00","00","00","00","00"]
[null,null,null,null,null,null,null,null,null,null,null,null,null,null,null,null,null,null,null,null,null,null,null,null,null,null,null,null,null,null,null,null,null,null,null,null,null,null,null,null,null,null,null,null,null,null,null,null,null,null,null,null,null,null,null,null,null,null,null,null,null,null,null,null,null,null,null,null,null,null,null,null,null,null,null,null,null,null,null,null,null,null,null,null,null,null,null,null,null,null,null,null,null,null,null,"00","00","00","00","00","00","00","00","00","00","00","00","00","00","00","00","00","00","00","00","00","00","00","00","00","00","00","00","00","00","00","00","00","00","00","00","00","00","00","00","00","00","00","00","00"]
[null,null,null,null,null,null,null,null,null,null,null,null,null,null,null,null,null,null,null,null,null,null,null,null,null,null,null,null,null,null,null,null,null,null,null,null,null,null,null,null,null,null,null,null,null,null,null,null,null,null,null,null,null,null,null,null,null,null,null,null,null,null,null,null,null,null,null,null,null,null,null,null,null,null,null,null,null,null,null,null,null,null,null,null,null,null,null,null,null,null,null,null,null,null,null,"00","00","00","00","00","00","00","00","00","00","00","00","00","00","00","00","00","00","00","00","00","00","00","00","00","00","00","00","00","00","00","00","00","00","00","00","00","00","00","00","00","00","00","00","00"]
[null,null,null,null,null,null,null,null,null,null,null,null,null,null,null,null,null,null,null,null,null,null,null,null,null,null,null,null,null,null,null,null,null,null,null,null,null,null,null,null,null,null,null,null,null,null,null,null,null,null,null,null,null,null,null,null,null,null,null,null,null,null,null,null,null,null,null,null,null,null,null,null,null,null,null,null,null,null,null,null,null,null,null,null,null,null,null,null,null,null,null,null,null,null,null,"00","00","00","00","00","00","00","00","00","00","00","00","00","00","00","00","00","00","00","00","00","00","00","00","00","00","00","00","00","00","00","00","00","00","00","00","00","00","00","00","00","00","00","00","00"]
[null,null,null,null,null,null,null,null,null,null,null,null,null,null,null,null,null,null,null,null,null,null,null,null,null,null,null,null,null,null,null,null,null,null,null,null,null,null,null,null,null,null,null,null,null,null,null,null,null,null,null,null,null,null,null,null,null,null,null,null,null,null,null,null,null,null,null,null,null,null,null,null,null,null,null,null,null,null,null,null,null,null,null,null,null,null,null,null,null,null,null,null,null,null,null,"00","00","00","00","00","00","00","00","00","00","00","00","00","00","00","00","00","00","00","00","00","00","00","00","00","00","00","00","00","00","00","00","00","00","00","00","00","00","00","00","00","00","00","00","00"]
[null,null,null,null,null,null,null,null,null,null,null,null,null,null,null,null,null,null,null,null,null,null,null,null,null,null,null,null,null,null,null,null,null,null,null,null,null,null,null,null,null,null,null,null,null,null,null,null,null,null,null,null,null,null,null,null,null,null,null,null,null,null,null,null,null,null,null,null,null,null,null,null,null,null,null,null,null,null,null,null,null,null,null,null,null,null,null,null,null,null,null,null,null,null,null,"00","00","00","00","00","00","00","00","00","00","00","00","00","00","00","00","00","00","00","00","00","00","00","00","00","00","00","00","00","00","00","00","00","00","00","00","00","00","00","00","00","00","00","00","00"]
[null,null,null,null,null,null,null,null,null,null,null,null,null,null,null,null,null,null,null,null,null,null,null,null,null,null,null,null,null,null,null,null,null,null,null,null,null,null,null,null,null,null,null,null,null,null,null,null,null,null,null,null,null,null,null,null,null,null,null,null,null,null,null,null,null,null,null,null,null,null,null,null,null,null,null,null,null,null,null,null,null,null,null,null,null,null,null,null,null,null,null,null,null,null,null,"00","00","00","00","00","00","00","00","00","00","00","00","00","00","00","00","00","00","00","00","00","00","00","00","00","00","00","00","00","00","00","00","00","00","00","00","00","00","00","00","00","00","00","00","00"]
[null,null,null,null,null,null,null,null,null,null,null,null,null,null,null,null,null,null,null,null,null,null,null,null,null,null,null,null,null,null,null,null,null,null,null,null,null,null,null,null,null,null,null,null,null,null,null,null,null,null,null,null,null,null,null,null,null,null,null,null,null,null,null,null,null,null,null,null,null,null,null,null,null,null,null,null,null,null,null,null,null,null,null,null,null,null,null,null,null,null,null,null,null,null,null,"00","00","00","00","00","00","00","00","00","00","00","00","00","00","00","00","00","00","00","00","00","00","00","00","00","00","00","00","00","00","00","00","00","00","00","00","00","00","00","00","00","00","00","00","00"]
[null,null,null,null,null,null,null,null,null,null,null,null,null,null,null,null,null,null,null,null,null,null,null,null,null,null,null,null,null,null,null,null,null,null,null,null,null,null,null,null,null,null,null,null,null,null,null,null,null,null,null,null,null,null,null,null,null,null,null,null,null,null,null,null,null,null,null,null,null,null,null,null,null,null,null,null,null,null,null,null,null,null,null,null,null,null,null,null,null,null,null,null,null,null,null,"00","00","00","00","00","00","00","00","00","00","00","00","00","00","00","00","00","00","00","00","00","00","00","00","00","00","00","00","00","00","00","00","00","00","00","00","00","00","00","00","00","00","00","00","00"]
[null,null,null,null,null,null,null,null,null,null,null,null,null,null,null,null,null,null,null,null,null,null,null,null,null,null,null,null,null,null,null,null,null,null,null,null,null,null,null,null,null,null,null,null,null,null,null,null,null,null,null,null,null,null,null,null,null,null,null,null,null,null,null,null,null,null,null,null,null,null,null,null,null,null,null,null,null,null,null,null,null,null,null,null,null,null,null,null,null,null,null,null,null,null,null,"00","00","00","00","00","00","00","00","00","00","00","00","00","00","00","00","00","00","00","00","00","00","00","00","00","00","00","00","00","00","00","00","00","00","00","00","00","00","00","00","00","00","00","00","00"]
[null,null,null,null,null,null,null,null,null,null,null,null,null,null,null,null,null,null,null,null,null,null,null,null,null,null,null,null,null,null,null,null,null,null,null,null,null,null,null,null,null,null,null,null,null,null,null,null,null,null,null,null,null,null,null,null,null,null,null,null,null,null,null,null,null,null,null,null,null,null,null,null,null,null,null,null,null,null,null,null,null,null,null,null,null,null,null,null,null,null,null,null,null,null,null,"00","00","00","00","00","00","00","00","00","00","00","00","00","00","00","00","00","00","00","00","00","00","00","00","00","00","00","00","00","00","00","00","00","00","00","00","00","00","00","00","00","00","00","00","00"]
[null,null,null,null,null,null,null,null,null,null,null,null,null,null,null,null,null,null,null,null,null,null,null,null,null,null,null,null,null,null,null,null,null,null,null,null,null,null,null,null,null,null,null,null,null,null,null,null,null,null,null,null,null,null,null,null,null,null,null,null,null,null,null,null,null,null,null,null,null,null,null,null,null,null,null,null,null,null,null,null,null,null,null,null,null,null,null,null,null,null,null,null,null,null,null,"00","00","00","00","00","00","00","00","00","00","00","00","00","00","00","00","00","00","00","00","00","00","00","00","00","00","00","00","00","00","00","00","00","00","00","00","00","00","00","00","00","00","00","00","00"]
[null,null,null,null,null,null,null,null,null,null,null,null,null,null,null,null,null,null,null,null,null,null,null,null,null,null,null,null,null,null,null,null,null,null,null,null,null,null,null,null,null,null,null,null,null,null,null,null,null,null,null,null,null,null,null,null,null,null,null,null,null,null,null,null,null,null,null,null,null,null,null,null,null,null,null,null,null,null,null,null,null,null,null,null,null,null,null,null,null,null,null,null,null,null,null,"00","00","00","00","00","00","00","00","00","00","00","00","00","00","00","00","00","00","00","00","00","00","00","00","00","00","00","00","00","00","00","00","00","00","00","00","00","00","00","00","00","00","00","00","00"]
[null,null,null,null,null,null,null,null,null,null,null,null,null,null,null,null,null,null,null,null,null,null,null,null,null,null,null,null,null,null,null,null,null,null,null,null,null,null,null,null,null,null,null,null,null,null,null,null,null,null,null,null,null,null,null,null,null,null,null,null,null,null,null,null,null,null,null,null,null,null,null,null,null,null,null,null,null,null,null,null,null,null,null,null,null,null,null,null,null,null,null,null,null,null,null,"00","00","00","00","00","00","00","00","00","00","00","00","00","00","00","00","00","00","00","00","00","00","00","00","00","00","00","00","00","00","00","00","00","00","00","00","00","00","00","00","00","00","00","00","00"]
[null,null,null,null,null,null,null,null,null,null,null,null,null,null,null,null,null,null,null,null,null,null,null,null,null,null,null,null,null,null,null,null,null,null,null,null,null,null,null,null,null,null,null,null,null,null,null,null,null,null,null,null,null,null,null,null,null,null,null,null,null,null,null,null,null,null,null,null,null,null,null,null,null,null,null,null,null,null,null,null,null,null,null,null,null,null,null,null,null,null,null,null,null,null,null,"00","00","00","00","00","00","00","00","00","00","00","00","00","00","00","00","00","00","00","00","00","00","00","00","00","00","00","00","00","00","00","00","00","00","00","00","00","00","00","00","00","00","00","00","00"]
[null,null,null,null,null,null,null,null,null,null,null,null,null,null,null,null,null,null,null,null,null,null,null,null,null,null,null,null,null,null,null,null,null,null,null,null,null,null,null,null,null,null,null,null,null,null,null,null,null,null,null,null,null,null,null,null,null,null,null,null,null,null,null,null,null,null,null,null,null,null,null,null,null,null,null,null,null,null,null,null,null,null,null,null,null,null,null,null,null,null,null,null,null,null,null,"00","00","00","00","00","00","00","00","00","00","00","00","00","00","00","00","00","00","00","00","00","00","00","00","00","00","00","00","00","00","00","00","00","00","00","00","00","00","00","00","00","00","00","00","00"]
[null,null,null,null,null,null,null,null,null,null,null,null,null,null,null,null,null,null,null,null,null,null,null,null,null,null,null,null,null,null,null,null,null,null,null,null,null,null,null,null,null,null,null,null,null,null,null,null,null,null,null,null,null,null,null,null,null,null,null,null,null,null,null,null,null,null,null,null,null,null,null,null,null,null,null,null,null,null,null,null,null,null,null,null,null,null,null,null,null,null,null,null,null,null,null,"00","00","00","00","00","00","00","00","00","00","00","00","00","00","00","00","00","00","00","00","00","00","00","00","00","00","00","00","00","00","00","00","00","00","00","00","00","00","00","00","00","00","00","00","00"]
[null,null,null,null,null,null,null,null,null,null,null,null,null,null,null,null,null,null,null,null,null,null,null,null,null,null,null,null,null,null,null,null,null,null,null,null,null,null,null,null,null,null,null,null,null,null,null,null,null,null,null,null,null,null,null,null,null,null,null,null,null,null,null,null,null,null,null,null,null,null,null,null,null,null,null,null,null,null,null,null,null,null,null,null,null,null,null,null,null,null,null,null,null,null,null,"00","00","00","00","00","00","00","00","00","00","00","00","00","00","00","00","00","00","00","00","00","00","00","00","00","00","00","00","00","00","00","00","00","00","00","00","00","00","00","00","00","00","00","00","00"]
[null,null,null,null,null,null,null,null,null,null,null,null,null,null,null,null,null,null,null,null,null,null,null,null,null,null,null,null,null,null,null,null,null,null,null,null,null,null,null,null,null,null,null,null,null,null,null,null,null,null,null,null,null,null,null,null,null,null,null,null,null,null,null,null,null,null,null,null,null,null,null,null,null,null,null,null,null,null,null,null,null,null,null,null,null,null,null,null,null,null,null,null,null,null,null,"00","00","00","00","00","00","00","00","00","00","00","00","00","00","00","00","00","00","00","00","00","00","00","00","00","00","00","00","00","00","00","00","00","00","00","00","00","00","00","00","00","00","00","00","00"]
[null,null,null,null,null,null,null,null,null,null,null,null,null,null,null,null,null,null,null,null,null,null,null,null,null,null,null,null,null,null,null,null,null,null,null,null,null,null,null,null,null,null,null,null,null,null,null,null,null,null,null,null,null,null,null,null,null,null,null,null,null,null,null,null,null,null,null,null,null,null,null,null,null,null,null,null,null,null,null,null,null,null,null,null,null,null,null,null,null,null,null,null,null,null,null,"00","00","00","00","00","00","00","00","00","00","00","00","00","00","00","00","00","00","00","00","00","00","00","00","00","00","00","00","00","00","00","00","00","00","00","00","00","00","00","00","00","00","00","00","00"]
[null,null,null,null,null,null,null,null,null,null,null,null,null,null,null,null,null,null,null,null,null,null,null,null,null,null,null,null,null,null,null,null,null,null,null,null,null,null,null,null,null,null,null,null,null,null,null,null,null,null,null,null,null,null,null,null,null,null,null,null,null,null,null,null,null,null,null,null,null,null,null,null,null,null,null,null,null,null,null,null,null,null,null,null,null,null,null,null,null,null,null,null,null,null,null,"00","00","00","00","00","00","00","00","00","00","00","00","00","00","00","00","00","00","00","00","00","00","00","00","00","00","00","00","00","00","00","00","00","00","00","00","00","00","00","00","00","00","00","00","00"]
[null,null,null,null,null,null,null,null,null,null,null,null,null,null,null,null,null,null,null,null,null,null,null,null,null,null,null,null,null,null,null,null,null,null,null,null,null,null,null,null,null,null,null,null,null,null,null,null,null,null,null,null,null,null,null,null,null,null,null,null,null,null,null,null,null,null,null,null,null,null,null,null,null,null,null,null,null,null,null,null,null,null,null,null,null,null,null,null,null,null,null,null,null,null,null,"00","00","00","00","00","00","00","00","00","00","00","00","00","00","00","00","00","00","00","00","00","00","00","00","00","00","00","00","00","00","00","00","00","00","00","00","00","00","00","00","00","00","00","00","00"]
[null,null,null,null,null,null,null,null,null,null,null,null,null,null,null,null,null,null,null,null,null,null,null,null,null,null,null,null,null,null,null,null,null,null,null,null,null,null,null,null,null,null,null,null,null,null,null,null,null,null,null,null,null,null,null,null,null,null,null,null,null,null,null,null,null,null,null,null,null,null,null,null,null,null,null,null,null,null,null,null,null,null,null,null,null,null,null,null,null,null,null,null,null,null,null,"00","00","00","00","00","00","00","00","00","00","00","00","00","00","00","00","00","00","00","00","00","00","00","00","00","00","00","00","00","00","00","00","00","00","00","00","00","00","00","00","00","00","00","00","00"]
[null,null,null,null,null,null,null,null,null,null,null,null,null,null,null,null,null,null,null,null,null,null,null,null,null,null,null,null,null,null,null,null,null,null,null,null,null,null,null,null,null,null,null,null,null,null,null,null,null,null,null,null,null,null,null,null,null,null,null,null,null,null,null,null,null,null,null,null,null,null,null,null,null,null,null,null,null,null,null,null,null,null,null,null,null,null,null,null,null,null,null,null,null,null,null,"00","00","00","00","00","00","00","00","00","00","00","00","00","00","00","00","00","00","00","00","00","00","00","00","00","00","00","00","00","00","00","00","00","00","00","00","00","00","00","00","00","00","00","00","00"]
[null,null,null,null,null,null,null,null,null,null,null,null,null,null,null,null,null,null,null,null,null,null,null,null,null,null,null,null,null,null,null,null,null,null,null,null,null,null,null,null,null,null,null,null,null,null,null,null,null,null,null,null,null,null,null,null,null,null,null,null,null,null,null,null,null,null,null,null,null,null,null,null,null,null,null,null,null,null,null,null,null,null,null,null,null,null,null,null,null,null,null,null,null,null,null,"00","00","00","00","00","00","00","00","00","00","00","00","00","00","00","00","00","00","00","00","00","00","00","00","00","00","00","00","00","00","00","00","00","00","00","00","00","00","00","00","00","00","00","00","00"]
[null,null,null,null,null,null,null,null,null,null,null,null,null,null,null,null,null,null,null,null,null,null,null,null,null,null,null,null,null,null,null,null,null,null,null,null,null,null,null,null,null,null,null,null,null,null,null,null,null,null,null,null,null,null,null,null,null,null,null,null,null,null,null,null,null,null,null,null,null,null,null,null,null,null,null,null,null,null,null,null,null,null,null,null,null,null,null,null,null,null,null,null,null,null,null,"00","00","00","00","00","00","00","00","00","00","00","00","00","00","00","00","00","00","00","00","00","00","00","00","00","00","00","00","00","00","00","00","00","00","00","00","00","00","00","00","00","00","00","00","00"]
[null,null,null,null,null,null,null,null,null,null,null,null,null,null,null,null,null,null,null,null,null,null,null,null,null,null,null,null,null,null,null,null,null,null,null,null,null,null,null,null,null,null,null,null,null,null,null,null,null,null,null,null,null,null,null,null,null,null,null,null,null,null,null,null,null,null,null,null,null,null,null,null,null,null,null,null,null,null,null,null,null,null,null,null,null,null,null,null,null,null,null,null,null,null,null,"00","00","00","00","00","00","00","00","00","00","00","00","00","00","00","00","00","00","00","00","00","00","00","00","00","00","00","00","00","00","00","00","00","00","00","00","00","00","00","00","00","00","00","00","00"]
[null,null,null,null,null,null,null,null,null,null,null,null,null,null,null,null,null,null,null,null,null,null,null,null,null,null,null,null,null,null,null,null,null,null,null,null,null,null,null,null,null,null,null,null,null,null,null,null,null,null,null,null,null,null,null,null,null,null,null,null,null,null,null,null,null,null,null,null,null,null,null,null,null,null,null,null,null,null,null,null,null,null,null,null,null,null,null,null,null,null,null,null,null,null,null,"00","00","00","00","00","00","00","00","00","00","00","00","00","00","00","00","00","00","00","00","00","00","00","00","00","00","00","00","00","00","00","00","00","00","00","00","00","00","00","00","00","00","00","00","00"]
[null,null,null,null,null,null,null,null,null,null,null,null,null,null,null,null,null,null,null,null,null,null,null,null,null,null,null,null,null,null,null,null,null,null,null,null,null,null,null,null,null,null,null,null,null,null,null,null,null,null,null,null,null,null,null,null,null,null,null,null,null,null,null,null,null,null,null,null,null,null,null,null,null,null,null,null,null,null,null,null,null,null,null,null,null,null,null,null,null,null,null,null,null,null,null,"00","00","00","00","00","00","00","00","00","00","00","00","00","00","00","00","00","00","00","00","00","00","00","00","00","00","00","00","00","00","00","00","00","00","00","00","00","00","00","00","00","00","00","00","00"]
[null,null,null,null,null,null,null,null,null,null,null,null,null,null,null,null,null,null,null,null,null,null,null,null,null,null,null,null,null,null,null,null,null,null,null,null,null,null,null,null,null,null,null,null,null,null,null,null,null,null,null,null,null,null,null,null,null,null,null,null,null,null,null,null,null,null,null,null,null,null,null,null,null,null,null,null,null,null,null,null,null,null,null,null,null,null,null,null,null,null,null,null,null,null,null,"00","00","00","00","00","00","00","00","00","00","00","00","00","00","00","00","00","00","00","00","00","00","00","00","00","00","00","00","00","00","00","00","00","00","00","00","00","00","00","00","00","00","00","00","00"]
[null,null,null,null,null,null,null,null,null,null,null,null,null,null,null,null,null,null,null,null,null,null,null,null,null,null,null,null,null,null,null,null,null,null,null,null,null,null,null,null,null,null,null,null,null,null,null,null,null,null,null,null,null,null,null,null,null,null,null,null,null,null,null,null,null,null,null,null,null,null,null,null,null,null,null,null,null,null,null,null,null,null,null,null,null,null,null,null,null,null,null,null,null,null,null,"00","00","00","00","00","00","00","00","00","00","00","00","00","00","00","00","00","00","00","00","00","00","00","00","00","00","00","00","00","00","00","00","00","00","00","00","00","00","00","00","00","00","00","00","00"]
[null,null,null,null,null,null,null,null,null,null,null,null,null,null,null,null,null,null,null,null,null,null,null,null,null,null,null,null,null,null,null,null,null,null,null,null,null,null,null,null,null,null,null,null,null,null,null,null,null,null,null,null,null,null,null,null,null,null,null,null,null,null,null,null,null,null,null,null,null,null,null,null,null,null,null,null,null,null,null,null,null,null,null,null,null,null,null,null,null,null,null,null,null,null,null,"00","00","00","00","00","00","00","00","00","00","00","00","00","00","00","00","00","00","00","00","00","00","00","00","00","00","00","00","00","00","00","00","00","00","00","00","00","00","00","00","00","00","00","00","00"]
[null,null,null,null,null,null,null,null,null,null,null,null,null,null,null,null,null,null,null,null,null,null,null,null,null,null,null,null,null,null,null,null,null,null,null,null,null,null,null,null,null,null,null,null,null,null,null,null,null,null,null,null,null,null,null,null,null,null,null,null,null,null,null,null,null,null,null,null,null,null,null,null,null,null,null,null,null,null,null,null,null,null,null,null,null,null,null,null,null,null,null,null,null,null,null,"00","00","00","00","00","00","00","00","00","00","00","00","00","00","00","00","00","00","00","00","00","00","00","00","00","00","00","00","00","00","00","00","00","00","00","00","00","00","00","00","00","00","00","00","00"]
[null,null,null,null,null,null,null,null,null,null,null,null,null,null,null,null,null,null,null,null,null,null,null,null,null,null,null,null,null,null,null,null,null,null,null,null,null,null,null,null,null,null,null,null,null,null,null,null,null,null,null,null,null,null,null,null,null,null,null,null,null,null,null,null,null,null,null,null,null,null,null,null,null,null,null,null,null,null,null,null,null,null,null,null,null,null,null,null,null,null,null,null,null,null,null,"00","00","00","00","00","00","00","00","00","00","00","00","00","00","00","00","00","00","00","00","00","00","00","00","00","00","00","00","00","00","00","00","00","00","00","00","00","00","00","00","00","00","00","00","00"]
[null,null,null,null,null,null,null,null,null,null,null,null,null,null,null,null,null,null,null,null,null,null,null,null,null,null,null,null,null,null,null,null,null,null,null,null,null,null,null,null,null,null,null,null,null,null,null,null,null,null,null,null,null,null,null,null,null,null,null,null,null,null,null,null,null,null,null,null,null,null,null,null,null,null,null,null,null,null,null,null,null,null,null,null,null,null,null,null,null,null,null,null,null,null,null,"00","00","00","00","00","00","00","00","00","00","00","00","00","00","00","00","00","00","00","00","00","00","00","00","00","00","00","00","00","00","00","00","00","00","00","00","00","00","00","00","00","00","00","00","00"]
[null,null,null,null,null,null,null,null,null,null,null,null,null,null,null,null,null,null,null,null,null,null,null,null,null,null,null,null,null,null,null,null,null,null,null,null,null,null,null,null,null,null,null,null,null,null,null,null,null,null,null,null,null,null,null,null,null,null,null,null,null,null,null,null,null,null,null,null,null,null,null,null,null,null,null,null,null,null,null,null,null,null,null,null,null,null,null,null,null,null,null,null,null,null,null,"00","00","00","00","00","00","00","00","00","00","00","00","00","00","00","00","00","00","00","00","00","00","00","00","00","00","00","00","00","00","00","00","00","00","00","00","00","00","00","00","00","00","00","00","00"]
[null,null,null,null,null,null,null,null,null,null,null,null,null,null,null,null,null,null,null,null,null,null,null,null,null,null,null,null,null,null,null,null,null,null,null,null,null,null,null,null,null,null,null,null,null,null,null,null,null,null,null,null,null,null,null,null,null,null,null,null,null,null,null,null,null,null,null,null,null,null,null,null,null,null,null,null,null,null,null,null,null,null,null,null,null,null,null,null,null,null,null,null,null,null,null,"00","00","00","00","00","00","00","00","00","00","00","00","00","00","00","00","00","00","00","00","00","00","00","00","00","00","00","00","00","00","00","00","00","00","00","00","00","00","00","00","00","00","00","00","00"]
[null,null,null,null,null,null,null,null,null,null,null,null,null,null,null,null,null,null,null,null,null,null,null,null,null,null,null,null,null,null,null,null,null,null,null,null,null,null,null,null,null,null,null,null,null,null,null,null,null,null,null,null,null,null,null,null,null,null,null,null,null,null,null,null,null,null,null,null,null,null,null,null,null,null,null,null,null,null,null,null,null,null,null,null,null,null,null,null,null,null,null,null,null,null,null,"00","00","00","00","00","00","00","00","00","00","00","00","00","00","00","00","00","00","00","00","00","00","00","00","00","00","00","00","00","00","00","00","00","00","00","00","00","00","00","00","00","00","00","00","00"]
[null,null,null,null,null,null,null,null,null,null,null,null,null,null,null,null,null,null,null,null,null,null,null,null,null,null,null,null,null,null,null,null,null,null,null,null,null,null,null,null,null,null,null,null,null,null,null,null,null,null,null,null,null,null,null,null,null,null,null,null,null,null,null,null,null,null,null,null,null,null,null,null,null,null,null,null,null,null,null,null,null,null,null,null,null,null,null,null,null,null,null,null,null,null,null,"00","00","00","00","00","00","00","00","00","00","00","00","00","00","00","00","00","00","00","00","00","00","00","00","00","00","00","00","00","00","00","00","00","00","00","00","00","00","00","00","00","00","00","00","00"]
[null,null,null,null,null,null,null,null,null,null,null,null,null,null,null,null,null,null,null,null,null,null,null,null,null,null,null,null,null,null,null,null,null,null,null,null,null,null,null,null,null,null,null,null,null,null,null,null,null,null,null,null,null,null,null,null,null,null,null,null,null,null,null,null,null,null,null,null,null,null,null,null,null,null,null,null,null,null,null,null,null,null,null,null,null,null,null,null,null,null,null,null,null,null,null,"00","00","00","00","00","00","00","00","00","00","00","00","00","00","00","00","00","00","00","00","00","00","00","00","00","00","00","00","00","00","00","00","00","00","00","00","00","00","00","00","00","00","00","00","00"]
[null,null,null,null,null,null,null,null,null,null,null,null,null,null,null,null,null,null,null,null,null,null,null,null,null,null,null,null,null,null,null,null,null,null,null,null,null,null,null,null,null,null,null,null,null,null,null,null,null,null,null,null,null,null,null,null,null,null,null,null,null,null,null,null,null,null,null,null,null,null,null,null,null,null,null,null,null,null,null,null,null,null,null,null,null,null,null,null,null,null,null,null,null,null,null,"00","00","00","00","00","00","00","00","00","00","00","00","00","00","00","00","00","00","00","00","00","00","00","00","00","00","00","00","00","00","00","00","00","00","00","00","00","00","00","00","00","00","00","00","00"]
[null,null,null,null,null,null,null,null,null,null,null,null,null,null,null,null,null,null,null,null,null,null,null,null,null,null,null,null,null,null,null,null,null,null,null,null,null,null,null,null,null,null,null,null,null,null,null,null,null,null,null,null,null,null,null,null,null,null,null,null,null,null,null,null,null,null,null,null,null,null,null,null,null,null,null,null,null,null,null,null,null,null,null,null,null,null,null,null,null,null,null,null,null,null,null,"00","00","00","00","00","00","00","00","00","00","00","00","00","00","00","00","00","00","00","00","00","00","00","00","00","00","00","00","00","00","00","00","00","00","00","00","00","00","00","00","00","00","00","00","00"]
[null,null,null,null,null,null,null,null,null,null,null,null,null,null,null,null,null,null,null,null,null,null,null,null,null,null,null,null,null,null,null,null,null,null,null,null,null,null,null,null,null,null,null,null,null,null,null,null,null,null,null,null,null,null,null,null,null,null,null,null,null,null,null,null,null,null,null,null,null,null,null,null,null,null,null,null,null,null,null,null,null,null,null,null,null,null,null,null,null,null,null,null,null,null,null,"00","00","00","00","00","00","00","00","00","00","00","00","00","00","00","00","00","00","00","00","00","00","00","00","00","00","00","00","00","00","00","00","00","00","00","00","00","00","00","00","00","00","00","00","00"]
[null,null,null,null,null,null,null,null,null,null,null,null,null,null,null,null,null,null,null,null,null,null,null,null,null,null,null,null,null,null,null,null,null,null,null,null,null,null,null,null,null,null,null,null,null,null,null,null,null,null,null,null,null,null,null,null,null,null,null,null,null,null,null,null,null,null,null,null,null,null,null,null,null,null,null,null,null,null,null,null,null,null,null,null,null,null,null,null,null,null,null,null,null,null,null,"00","00","00","00","00","00","00","00","00","00","00","00","00","00","00","00","00","00","00","00","00","00","00","00","00","00","00","00","00","00","00","00","00","00","00","00","00","00","00","00","00","00","00","00","00"]
[null,null,null,null,null,null,null,null,null,null,null,null,null,null,null,null,null,null,null,null,null,null,null,null,null,null,null,null,null,null,null,null,null,null,null,null,null,null,null,null,null,null,null,null,null,null,null,null,null,null,null,null,null,null,null,null,null,null,null,null,null,null,null,null,null,null,null,null,null,null,null,null,null,null,null,null,null,null,null,null,null,null,null,null,null,null,null,null,null,null,null,null,null,null,null,"00","00","00","00","00","00","00","00","00","00","00","00","00","00","00","00","00","00","00","00","00","00","00","00","00","00","00","00","00","00","00","00","00","00","00","00","00","00","00","00","00","00","00","00","00"]
[null,null,null,null,null,null,null,null,null,null,null,null,null,null,null,null,null,null,null,null,null,null,null,null,null,null,null,null,null,null,null,null,null,null,null,null,null,null,null,null,null,null,null,null,null,null,null,null,null,null,null,null,null,null,null,null,null,null,null,null,null,null,null,null,null,null,null,null,null,null,null,null,null,null,null,null,null,null,null,null,null,null,null,null,null,null,null,null,null,null,null,null,null,null,null,"00","00","00","00","00","00","00","00","00","00","00","00","00","00","00","00","00","00","00","00","00","00","00","00","00","00","00","00","00","00","00","00","00","00","00","00","00","00","00","00","00","00","00","00","00"]
[null,null,null,null,null,null,null,null,null,null,null,null,null,null,null,null,null,null,null,null,null,null,null,null,null,null,null,null,null,null,null,null,null,null,null,null,null,null,null,null,null,null,null,null,null,null,null,null,null,null,null,null,null,null,null,null,null,null,null,null,null,null,null,null,null,null,null,null,null,null,null,null,null,null,null,null,null,null,null,null,null,null,null,null,null,null,null,null,null,null,null,null,null,null,null,"00","00","00","00","00","00","00","00","00","00","00","00","00","00","00","00","00","00","00","00","00","00","00","00","00","00","00","00","00","00","00","00","00","00","00","00","00","00","00","00","00","00","00","00","00"]
[null,null,null,null,null,null,null,null,null,null,null,null,null,null,null,null,null,null,null,null,null,null,null,null,null,null,null,null,null,null,null,null,null,null,null,null,null,null,null,null,null,null,null,null,null,null,null,null,null,null,null,null,null,null,null,null,null,null,null,null,null,null,null,null,null,null,null,null,null,null,null,null,null,null,null,null,null,null,null,null,null,null,null,null,null,null,null,null,null,null,null,null,null,null,null,"00","00","00","00","00","00","00","00","00","00","00","00","00","00","00","00","00","00","00","00","00","00","00","00","00","00","00","00","00","00","00","00","00","00","00","00","00","00","00","00","00","00","00","00","00"]
[null,null,null,null,null,null,null,null,null,null,null,null,null,null,null,null,null,null,null,null,null,null,null,null,null,null,null,null,null,null,null,null,null,null,null,null,null,null,null,null,null,null,null,null,null,null,null,null,null,null,null,null,null,null,null,null,null,null,null,null,null,null,null,null,null,null,null,null,null,null,null,null,null,null,null,null,null,null,null,null,null,null,null,null,null,null,null,null,null,null,null,null,null,null,null,"00","00","00","00","00","00","00","00","00","00","00","00","00","00","00","00","00","00","00","00","00","00","00","00","00","00","00","00","00","00","00","00","00","00","00","00","00","00","00","00","00","00","00","00","00"]
[null,null,null,null,null,null,null,null,null,null,null,null,null,null,null,null,null,null,null,null,null,null,null,null,null,null,null,null,null,null,null,null,null,null,null,null,null,null,null,null,null,null,null,null,null,null,null,null,null,null,null,null,null,null,null,null,null,null,null,null,null,null,null,null,null,null,null,null,null,null,null,null,null,null,null,null,null,null,null,null,null,null,null,null,null,null,null,null,null,null,null,null,null,null,null,"00","00","00","00","00","00","00","00","00","00","00","00","00","00","00","00","00","00","00","00","00","00","00","00","00","00","00","00","00","00","00","00","00","00","00","00","00","00","00","00","00","00","00","00","00"]
[null,null,null,null,null,null,null,null,null,null,null,null,null,null,null,null,null,null,null,null,null,null,null,null,null,null,null,null,null,null,null,null,null,null,null,null,null,null,null,null,null,null,null,null,null,null,null,null,null,null,null,null,null,null,null,null,null,null,null,null,null,null,null,null,null,null,null,null,null,null,null,null,null,null,null,null,null,null,null,null,null,null,null,null,null,null,null,null,null,null,null,null,null,null,null,"00","00","00","00","00","00","00","00","00","00","00","00","00","00","00","00","00","00","00","00","00","00","00","00","00","00","00","00","00","00","00","00","00","00","00","00","00","00","00","00","00","00","00","00","00"]
[null,null,null,null,null,null,null,null,null,null,null,null,null,null,null,null,null,null,null,null,null,null,null,null,null,null,null,null,null,null,null,null,null,null,null,null,null,null,null,null,null,null,null,null,null,null,null,null,null,null,null,null,null,null,null,null,null,null,null,null,null,null,null,null,null,null,null,null,null,null,null,null,null,null,null,null,null,null,null,null,null,null,null,null,null,null,null,null,null,null,null,null,null,null,null,"00","00","00","00","00","00","00","00","00","00","00","00","00","00","00","00","00","00","00","00","00","00","00","00","00","00","00","00","00","00","00","00","00","00","00","00","00","00","00","00","00","00","00","00","00"]
[null,null,null,null,null,null,null,null,null,null,null,null,null,null,null,null,null,null,null,null,null,null,null,null,null,null,null,null,null,null,null,null,null,null,null,null,null,null,null,null,null,null,null,null,null,null,null,null,null,null,null,null,null,null,null,null,null,null,null,null,null,null,null,null,null,null,null,null,null,null,null,null,null,null,null,null,null,null,null,null,null,null,null,null,null,null,null,null,null,null,null,null,null,null,null,"00","00","00","00","00","00","00","00","00","00","00","00","00","00","00","00","00","00","00","00","00","00","00","00","00","00","00","00","00","00","00","00","00","00","00","00","00","00","00","00","00","00","00","00","00"]
[null,null,null,null,null,null,null,null,null,null,null,null,null,null,null,null,null,null,null,null,null,null,null,null,null,null,null,null,null,null,null,null,null,null,null,null,null,null,null,null,null,null,null,null,null,null,null,null,null,null,null,null,null,null,null,null,null,null,null,null,null,null,null,null,null,null,null,null,null,null,null,null,null,null,null,null,null,null,null,null,null,null,null,null,null,null,null,null,null,null,null,null,null,null,null,"00","00","00","00","00","00","00","00","00","00","00","00","00","00","00","00","00","00","00","00","00","00","00","00","00","00","00","00","00","00","00","00","00","00","00","00","00","00","00","00","00","00","00","00","00"]
[null,null,null,null,null,null,null,null,null,null,null,null,null,null,null,null,null,null,null,null,null,null,null,null,null,null,null,null,null,null,null,null,null,null,null,null,null,null,null,null,null,null,null,null,null,null,null,null,null,null,null,null,null,null,null,null,null,null,null,null,null,null,null,null,null,null,null,null,null,null,null,null,null,null,null,null,null,null,null,null,null,null,null,null,null,null,null,null,null,null,null,null,null,null,null,"00","00","00","00","00","00","00","00","00","00","00","00","00","00","00","00","00","00","00","00","00","00","00","00","00","00","00","00","00","00","00","00","00","00","00","00","00","00","00","00","00","00","00","00","00"]
[null,null,null,null,null,null,null,null,null,null,null,null,null,null,null,null,null,null,null,null,null,null,null,null,null,null,null,null,null,null,null,null,null,null,null,null,null,null,null,null,null,null,null,null,null,null,null,null,null,null,null,null,null,null,null,null,null,null,null,null,null,null,null,null,null,null,null,null,null,null,null,null,null,null,null,null,null,null,null,null,null,null,null,null,null,null,null,null,null,null,null,null,null,null,null,"00","00","00","00","00","00","00","00","00","00","00","00","00","00","00","00","00","00","00","00","00","00","00","00","00","00","00","00","00","00","00","00","00","00","00","00","00","00","00","00","00","00","00","00","00"]
[null,null,null,null,null,null,null,null,null,null,null,null,null,null,null,null,null,null,null,null,null,null,null,null,null,null,null,null,null,null,null,null,null,null,null,null,null,null,null,null,null,null,null,null,null,null,null,null,null,null,null,null,null,null,null,null,null,null,null,null,null,null,null,null,null,null,null,null,null,null,null,null,null,null,null,null,null,null,null,null,null,null,null,null,null,null,null,null,null,null,null,null,null,null,null,"00","00","00","00","00","00","00","00","00","00","00","00","00","00","00","00","00","00","00","00","00","00","00","00","00","00","00","00","00","00","00","00","00","00","00","00","00","00","00","00","00","00","00","00","00"]
[null,null,null,null,null,null,null,null,null,null,null,null,null,null,null,null,null,null,null,null,null,null,null,null,null,null,null,null,null,null,null,null,null,null,null,null,null,null,null,null,null,null,null,null,null,null,null,null,null,null,null,null,null,null,null,null,null,null,null,null,null,null,null,null,null,null,null,null,null,null,null,null,null,null,null,null,null,null,null,null,null,null,null,null,null,null,null,null,null,null,null,null,null,null,null,"00","00","00","00","00","00","00","00","00","00","00","00","00","00","00","00","00","00","00","00","00","00","00","00","00","00","00","00","00","00","00","00","00","00","00","00","00","00","00","00","00","00","00","00","00"]
[null,null,null,null,null,null,null,null,null,null,null,null,null,null,null,null,null,null,null,null,null,null,null,null,null,null,null,null,null,null,null,null,null,null,null,null,null,null,null,null,null,null,null,null,null,null,null,null,null,null,null,null,null,null,null,null,null,null,null,null,null,null,null,null,null,null,null,null,null,null,null,null,null,null,null,null,null,null,null,null,null,null,null,null,null,null,null,null,null,null,null,null,null,null,null,"00","00","00","00","00","00","00","00","00","00","00","00","00","00","00","00","00","00","00","00","00","00","00","00","00","00","00","00","00","00","00","00","00","00","00","00","00","00","00","00","00","00","00","00","00"]
[null,null,null,null,null,null,null,null,null,null,null,null,null,null,null,null,null,null,null,null,null,null,null,null,null,null,null,null,null,null,null,null,null,null,null,null,null,null,null,null,null,null,null,null,null,null,null,null,null,null,null,null,null,null,null,null,null,null,null,null,null,null,null,null,null,null,null,null,null,null,null,null,null,null,null,null,null,null,null,null,null,null,null,null,null,null,null,null,null,null,null,null,null,null,null,"00","00","00","00","00","00","00","00","00","00","00","00","00","00","00","00","00","00","00","00","00","00","00","00","00","00","00","00","00","00","00","00","00","00","00","00","00","00","00","00","00","00","00","00","00"]
[null,null,null,null,null,null,null,null,null,null,null,null,null,null,null,null,null,null,null,null,null,null,null,null,null,null,null,null,null,null,null,null,null,null,null,null,null,null,null,null,null,null,null,null,null,null,null,null,null,null,null,null,null,null,null,null,null,null,null,null,null,null,null,null,null,null,null,null,null,null,null,null,null,null,null,null,null,null,null,null,null,null,null,null,null,null,null,null,null,null,null,null,null,null,null,"00","00","00","00","00","00","00","00","00","00","00","00","00","00","00","00","00","00","00","00","00","00","00","00","00","00","00","00","00","00","00","00","00","00","00","00","00","00","00","00","00","00","00","00","00"]
[null,null,null,null,null,null,null,null,null,null,null,null,null,null,null,null,null,null,null,null,null,null,null,null,null,null,null,null,null,null,null,null,null,null,null,null,null,null,null,null,null,null,null,null,null,null,null,null,null,null,null,null,null,null,null,null,null,null,null,null,null,null,null,null,null,null,null,null,null,null,null,null,null,null,null,null,null,null,null,null,null,null,null,null,null,null,null,null,null,null,null,null,null,null,null,"00","00","00","00","00","00","00","00","00","00","00","00","00","00","00","00","00","00","00","00","00","00","00","00","00","00","00","00","00","00","00","00","00","00","00","00","00","00","00","00","00","00","00","00","00"]
[null,null,null,null,null,null,null,null,null,null,null,null,null,null,null,null,null,null,null,null,null,null,null,null,null,null,null,null,null,null,null,null,null,null,null,null,null,null,null,null,null,null,null,null,null,null,null,null,null,null,null,null,null,null,null,null,null,null,null,null,null,null,null,null,null,null,null,null,null,null,null,null,null,null,null,null,null,null,null,null,null,null,null,null,null,null,null,null,null,null,null,null,null,null,null,"00","00","00","00","00","00","00","00","00","00","00","00","00","00","00","00","00","00","00","00","00","00","00","00","00","00","00","00","00","00","00","00","00","00","00","00","00","00","00","00","00","00","00","00","00"]
[null,null,null,null,null,null,null,null,null,null,null,null,null,null,null,null,null,null,null,null,null,null,null,null,null,null,null,null,null,null,null,null,null,null,null,null,null,null,null,null,null,null,null,null,null,null,null,null,null,null,null,null,null,null,null,null,null,null,null,null,null,null,null,null,null,null,null,null,null,null,null,null,null,null,null,null,null,null,null,null,null,null,null,null,null,null,null,null,null,null,null,null,null,null,null,"00","00","00","00","00","00","00","00","00","00","00","00","00","00","00","00","00","00","00","00","00","00","00","00","00","00","00","00","00","00","00","00","00","00","00","00","00","00","00","00","00","00","00","00","00"]
[null,null,null,null,null,null,null,null,null,null,null,null,null,null,null,null,null,null,null,null,null,null,null,null,null,null,null,null,null,null,null,null,null,null,null,null,null,null,null,null,null,null,null,null,null,null,null,null,null,null,null,null,null,null,null,null,null,null,null,null,null,null,null,null,null,null,null,null,null,null,null,null,null,null,null,null,null,null,null,null,null,null,null,null,null,null,null,null,null,null,null,null,null,null,null,"00","00","00","00","00","00","00","00","00","00","00","00","00","00","00","00","00","00","00","00","00","00","00","00","00","00","00","00","00","00","00","00","00","00","00","00","00","00","00","00","00","00","00","00","00"]
[null,null,null,null,null,null,null,null,null,null,null,null,null,null,null,null,null,null,null,null,null,null,null,null,null,null,null,null,null,null,null,null,null,null,null,null,null,null,null,null,null,null,null,null,null,null,null,null,null,null,null,null,null,null,null,null,null,null,null,null,null,null,null,null,null,null,null,null,null,null,null,null,null,null,null,null,null,null,null,null,null,null,null,null,null,null,null,null,null,null,null,null,null,null,null,"00","00","00","00","00","00","00","00","00","00","00","00","00","00","00","00","00","00","00","00","00","00","00","00","00","00","00","00","00","00","00","00","00","00","00","00","00","00","00","00","00","00","00","00","00"]
[null,null,null,null,null,null,null,null,null,null,null,null,null,null,null,null,null,null,null,null,null,null,null,null,null,null,null,null,null,null,null,null,null,null,null,null,null,null,null,null,null,null,null,null,null,null,null,null,null,null,null,null,null,null,null,null,null,null,null,null,null,null,null,null,null,null,null,null,null,null,null,null,null,null,null,null,null,null,null,null,null,null,null,null,null,null,null,null,null,null,null,null,null,null,null,"00","00","00","00","00","00","00","00","00","00","00","00","00","00","00","00","00","00","00","00","00","00","00","00","00","00","00","00","00","00","00","00","00","00","00","00","00","00","00","00","00","00","00","00","00"]
[null,null,null,null,null,null,null,null,null,null,null,null,null,null,null,null,null,null,null,null,null,null,null,null,null,null,null,null,null,null,null,null,null,null,null,null,null,null,null,null,null,null,null,null,null,null,null,null,null,null,null,null,null,null,null,null,null,null,null,null,null,null,null,null,null,null,null,null,null,null,null,null,null,null,null,null,null,null,null,null,null,null,null,null,null,null,null,null,null,null,null,null,null,null,null,"00","00","00","00","00","00","00","00","00","00","00","00","00","00","00","00","00","00","00","00","00","00","00","00","00","00","00","00","00","00","00","00","00","00","00","00","00","00","00","00","00","00","00","00","00"]
[null,null,null,null,null,null,null,null,null,null,null,null,null,null,null,null,null,null,null,null,null,null,null,null,null,null,null,null,null,null,null,null,null,null,null,null,null,null,null,null,null,null,null,null,null,null,null,null,null,null,null,null,null,null,null,null,null,null,null,null,null,null,null,null,null,null,null,null,null,null,null,null,null,null,null,null,null,null,null,null,null,null,null,null,null,null,null,null,null,null,null,null,null,null,null,"00","00","00","00","00","00","00","00","00","00","00","00","00","00","00","00","00","00","00","00","00","00","00","00","00","00","00","00","00","00","00","00","00","00","00","00","00","00","00","00","00","00","00","00","00"]
[null,null,null,null,null,null,null,null,null,null,null,null,null,null,null,null,null,null,null,null,null,null,null,null,null,null,null,null,null,null,null,null,null,null,null,null,null,null,null,null,null,null,null,null,null,null,null,null,null,null,null,null,null,null,null,null,null,null,null,null,null,null,null,null,null,null,null,null,null,null,null,null,null,null,null,null,null,null,null,null,null,null,null,null,null,null,null,null,null,null,null,null,null,null,null,"00","00","00","00","00","00","00","00","00","00","00","00","00","00","00","00","00","00","00","00","00","00","00","00","00","00","00","00","00","00","00","00","00","00","00","00","00","00","00","00","00","00","00","00","00"]
[null,null,null,null,null,null,null,null,null,null,null,null,null,null,null,null,null,null,null,null,null,null,null,null,null,null,null,null,null,null,null,null,null,null,null,null,null,null,null,null,null,null,null,null,null,null,null,null,null,null,null,null,null,null,null,null,null,null,null,null,null,null,null,null,null,null,null,null,null,null,null,null,null,null,null,null,null,null,null,null,null,null,null,null,null,null,null,null,null,null,null,null,null,null,null,"00","00","00","00","00","00","00","00","00","00","00","00","00","00","00","00","00","00","00","00","00","00","00","00","00","00","00","00","00","00","00","00","00","00","00","00","00","00","00","00","00","00","00","00","00"]
[null,null,null,null,null,null,null,null,null,null,null,null,null,null,null,null,null,null,null,null,null,null,null,null,null,null,null,null,null,null,null,null,null,null,null,null,null,null,null,null,null,null,null,null,null,null,null,null,null,null,null,null,null,null,null,null,null,null,null,null,null,null,null,null,null,null,null,null,null,null,null,null,null,null,null,null,null,null,null,null,null,null,null,null,null,null,null,null,null,null,null,null,null,null,null,"00","00","00","00","00","00","00","00","00","00","00","00","00","00","00","00","00","00","00","00","00","00","00","00","00","00","00","00","00","00","00","00","00","00","00","00","00","00","00","00","00","00","00","00","00"]
[null,null,null,null,null,null,null,null,null,null,null,null,null,null,null,null,null,null,null,null,null,null,null,null,null,null,null,null,null,null,null,null,null,null,null,null,null,null,null,null,null,null,null,null,null,null,null,null,null,null,null,null,null,null,null,null,null,null,null,null,null,null,null,null,null,null,null,null,null,null,null,null,null,null,null,null,null,null,null,null,null,null,null,null,null,null,null,null,null,null,null,null,null,null,null,"00","00","00","00","00","00","00","00","00","00","00","00","00","00","00","00","00","00","00","00","00","00","00","00","00","00","00","00","00","00","00","00","00","00","00","00","00","00","00","00","00","00","00","00","00"]
[null,null,null,null,null,null,null,null,null,null,null,null,null,null,null,null,null,null,null,null,null,null,null,null,null,null,null,null,null,null,null,null,null,null,null,null,null,null,null,null,null,null,null,null,null,null,null,null,null,null,null,null,null,null,null,null,null,null,null,null,null,null,null,null,null,null,null,null,null,null,null,null,null,null,null,null,null,null,null,null,null,null,null,null,null,null,null,null,null,null,null,null,null,null,null,"00","00","00","00","00","00","00","00","00","00","00","00","00","00","00","00","00","00","00","00","00","00","00","00","00","00","00","00","00","00","00","00","00","00","00","00","00","00","00","00","00","00","00","00","00"]
[null,null,null,null,null,null,null,null,null,null,null,null,null,null,null,null,null,null,null,null,null,null,null,null,null,null,null,null,null,null,null,null,null,null,null,null,null,null,null,null,null,null,null,null,null,null,null,null,null,null,null,null,null,null,null,null,null,null,null,null,null,null,null,null,null,null,null,null,null,null,null,null,null,null,null,null,null,null,null,null,null,null,null,null,null,null,null,null,null,null,null,null,null,null,null,"00","00","00","00","00","00","00","00","00","00","00","00","00","00","00","00","00","00","00","00","00","00","00","00","00","00","00","00","00","00","00","00","00","00","00","00","00","00","00","00","00","00","00","00","00"]
[null,null,null,null,null,null,null,null,null,null,null,null,null,null,null,null,null,null,null,null,null,null,null,null,null,null,null,null,null,null,null,null,null,null,null,null,null,null,null,null,null,null,null,null,null,null,null,null,null,null,null,null,null,null,null,null,null,null,null,null,null,null,null,null,null,null,null,null,null,null,null,null,null,null,null,null,null,null,null,null,null,null,null,null,null,null,null,null,null,null,null,null,null,null,null,"00","00","00","00","00","00","00","00","00","00","00","00","00","00","00","00","00","00","00","00","00","00","00","00","00","00","00","00","00","00","00","00","00","00","00","00","00","00","00","00","00","00","00","00","00"]
[null,null,null,null,null,null,null,null,null,null,null,null,null,null,null,null,null,null,null,null,null,null,null,null,null,null,null,null,null,null,null,null,null,null,null,null,null,null,null,null,null,null,null,null,null,null,null,null,null,null,null,null,null,null,null,null,null,null,null,null,null,null,null,null,null,null,null,null,null,null,null,null,null,null,null,null,null,null,null,null,null,null,null,null,null,null,null,null,null,null,null,null,null,null,null,"00","00","00","00","00","00","00","00","00","00","00","00","00","00","00","00","00","00","00","00","00","00","00","00","00","00","00","00","00","00","00","00","00","00","00","00","00","00","00","00","00","00","00","00","00"]

{"sheet":"SETUP","index":3,"n_rows":11,"n_cols":6,"rows_kept":11,"cut":false,"hidden":false,"merged":[]}
[]
[]
["KILDE",null,"FEJLKODER (PF-ARK)"]
[null,null,"00",null,null,"Der skal ikke angives en min/max, og der er korrekt ingen angivet"]
["Prishåndbogen",null,"01",1,null,"Der skal ikke angives en min/max, men der er angivet en værdi"]
["Polka",null,"10",1,null,"TG'en er vurderet påvirket af RB'en, og min/max er angivet korrekt"]
["Molio",null,"11",null,null,"TG'en er vurderet påvirket af RB'en, men ingen min/max-værdi er angivet"]
["Erfaringstal",null,"12",1,null,"TG'en er vurderet påvirket af RB - alle min/max i TG er angivet til 1,0"]
[null,null,"20",1,null,"TG'en er vurderet upåvirket af RB'en, min/max er angivet korrekt"]
[null,null,"21",null,null,"TG'en er vurderet upåvirket af RB'en, men ingen min/max-værdi er angivet"]
[null,null,"22",0.95,null,"TG'en er vurderet upåvirket af RB'en, men der er angivet en forkert min/max (<>1,0)"]

{"sheet":"Sheet1","index":4,"n_rows":20,"n_cols":10,"rows_kept":20,"cut":false,"hidden":true,"merged":[]}
[]
[]
[]
[]
[null,null,"tPFmatrice"]
[null,null,null,"HF(1 to 3) as tHFmatrix"]
[null,null,null,"RBs() as string"]
[]
[null,null,null,null,"tHFmatrix"]
[null,null,null,null,null,"Hfnavn as string"]
[null,null,null,null,null,"Tgrække() as tTGrække"]
[]
[null,null,null,null,null,null,"tTGrække"]
[null,null,null,null,null,null,null,"RB() as tFaktorGrp"]
[null,null,null,null,null,null,null,"Tgnavn as string"]
[]
[null,null,null,null,null,null,null,null,"tFaktorGrp"]
[null,null,null,null,null,null,null,null,null,"FaktorIndex() as string"]
[null,null,null,null,null,null,null,null,null,"Rbnavn as string"]
[null,null,null,null,null,null,null,null,null,"Tgnavn as string"]

{"sheet":"FAQ_TL","index":5,"n_rows":31,"n_cols":12,"rows_kept":31,"cut":false,"hidden":true,"merged":[]}
["Vejledning til Teknologi-ark"]
[]
[null,"Teknologier og Teknologi-grupper"]
[null,"Teknologier knyttes til en hovedfunktion (HF)og inddeles i teknologi-grupper (TG) "]
[null,"TG'erne opstilles i en rækkefølge, som er fornuftig (der kan evt. tildeles en sorterings-kode, som gør, at der kan sorteres uden at anvende gruppens navn til dette)"]
[null,"Hver teknologi tilskrives en levetid (år) og et teknologi-niveau (STD/BAT/STOA)."]
[null,"Alle teknologier i en TG kan prismæssigt skaleres ens."]
[null,"Hvis der er teknologier i en gruppe, som IKKE kan skaleres som resten, skal der oprettes en ny TG"]
[]
[null,"Prissætning"]
[null,"Alle teknologier tildeles basispriser for anlæg (kr),  drift (kr/år) og vedligehold (kr/år), samt enheden for prisen (f.eks. lbm, stk, o.l.)"]
[null,"De faktiske anlægs- og drifts-priser for en teknologi påvirkes af faktorer, som fastsættes på teknologigruppeniveau. Vedligeholdsprisen påvirkes af samme faktor som anlægsprisen."]
[null,"Kilden til de angivne basis- og driftspriser angives (f.eks. prishåndbog, erfaringspris, e.l.)"]
[null,"Afskrivning beregnes automatisk og angives i output (kr/år) og skal ikke angives (Afskrivningspris = Faktisk anlægspris / Levetid)"]
[]
[null,"Min- og maks-anvendelse"]
[null,"Min- og maks-anvendelse knytter sig til den enkelte teknologi, og er en mulighed for at kunne fravælge en teknologi, som ikke giver mening at anvende pga. en RB."]
[null,"Min- og maks anvendes derfor IKKE til at skalere priser, men udelukkende til at fra-vælge specifikke teknologier ved specifikke RB'er."]
[null,"Min- og maks-intervaller knytter sig til de mulige valg, som for en RB er defineret i RB-arket."]
[null,"Min/max sættes kun, hvis det ønskes at fravælge en teknologi ved bestemte RB'er."]
[null,"Der SKAL vælges BÅDE en min- eller max-værdi - hvis ikke bliver den enlige værdi rød"]
[null,"Min-værdi skal stå højere (eller på samme niveau) som max-værdi  - ellers bliver værdierne røde"]
[null,"Hvis der er angivet en værdi for en min/max, som ikke findes på listen, bliver værdien rød"]
[null,"Hvis en/flere af teknologierne indenfor en RB har fejl i min/max, bliver RB-headeren farvet rød"]
[]
[null,null,"Her bliver værdien rød, fordi der ikke er angivet en max-værdi:",null,null,null,null,null,null,null,null,"Her bliver værdien rød, fordi den ikke findes på listen: "]
[]
[]
[]
[]
[null,null,"Her bliver værdierne røde, fordi min-værdien står længere nede på listen end max-værdien:"]

{"sheet":"LHT-noter","index":6,"n_rows":22,"n_cols":3,"rows_kept":22,"cut":false,"hidden":true,"merged":[]}
[]
[]
[]
["Finn lægger op til at en teknologisk basispris udregnes på baggrund af bl.a. \"makstime\"! \nDenne metode dur ikke, da MAKSTIME er en rammebetingelse - med sine valgmuligheder (0 - 30, 30 - 60, 60 - 90 m3/time) med hver sine faktorer."]
[]
[]
[]
[]
[]
[]
[]
["Hver teknologi tilknyttes en teknologi-gruppe, som igen tilknyttes en hovedfunktion"]
["Hver teknologi tildeles en basis-pris, som udgør en \"typisk\" anlægs-pris for teknologien.\n     Er det f.eks. et filter, kan basisprisen derfor være prisen ved/omkring en minimums-indvinding (30m3/t),\n     mens prisen for en større indvinding reguleres vha. faktorerne vedr. TIMEMAKS og/eller DØGNMAKS"]
["Prisen for en teknologi fastsættes ved valg af forhold (parametre) vedrørende defienrede rammebetingelser. \n     Parametrene tilknyttes hver især en faktor, som anvendes til at påvirke teknologiens pris (ud fra basisprisen)."]
["Hver teknologi tilknyttes et teknologi-niveau (STD/BAT/STOA), som ikke påvirker prisen, men kun er en egenskab for teknologien"]
[]
["For hver rammebetingelse opstilles 1-10 (måske kun 5) forskellige valg (tilknyttet hver sin faktor) for hver teknologi-gruppe. \n     Valgene vil igennem deres tilknyttede faktor påvirke teknologiens anlægspris ved det givne (valgte) forhold vedr. rammebetingelsen.\n     Hvis det vurderes, at en teknologi-gruppe ikke påvirkes af en bestemt rammebetingelse, angives der kun 1 valgmulighed (Uden Betydning), som tildeles en faktor=1\n     Hvis det vurderes, at rammebetingelsen har indflydelse på prisen for teknologien, defineres der et antal mulige valg - hver med sin faktor. \n     Der angives altid valget \"Uden Betydning\" med faktor=1, således at det kan vælges at holde rammebetingelsen udenfor indflydelse."]
[]
[]
["Det foreslås at levere data som indikeret i OUTPUT-ark"]
["At levere den fulde matrice af alle valg indenfor alle rammebetingelser for alle teknologier vil ikke være en mulighed.\n     Med 15 rammebetingelser, hver med 5 valg (parametre) vil give output på 5^15 = flere end 30 mia linier pr teknologi"]
[null,null,{"$f":"5^15","v":30517578125}]

{"sheet":"OUTPUT-OLD","index":7,"n_rows":27,"n_cols":10,"rows_kept":27,"cut":false,"hidden":true,"merged":[]}
["Hovedfunktion","Teknologi-gruppe","Teknologi","TekNiveau","RB_Nr","RB_tekst","RB_valg","ANL_pris","DRI_pris","VLH_pris"]
["Kildeplads","Pumpe","SP4","STD",1,"Årlig produktion","Uden Betydning",20000,5000,2000]
["Kildeplads","Pumpe","SP4","STD",1,"Årlig produktion","0 - 10",20000,5000,2000]
["Kildeplads","Pumpe","SP4","STD",1,"Årlig produktion","10 - 25",{"$f":"20000*1.1","v":22000},5000,2000]
["Kildeplads","Pumpe","SP4","STD",1,"Årlig produktion","25 - 50",{"$f":"20000*1.2","v":24000},{"$f":"5000*1.1","v":5500},{"$f":"2000*1.1","v":2200}]
["Kildeplads","Pumpe","SP4","STD",1,"Årlig produktion","50 - 250",{"$f":"20000*1.3","v":26000},{"$f":"5000*1.2","v":6000},{"$f":"2000*1.2","v":2400}]
["Kildeplads","Pumpe","SP4","STD",1,"Årlig produktion","250 - 1000",{"$f":"20000*1.4","v":28000},{"$f":"5000*1.2","v":6000},{"$f":"2000*1.2","v":2400}]
["Kildeplads","Pumpe","SP4","STD",1,"Årlig produktion",">1000",{"$f":"20000*1.6","v":32000},{"$f":"5000*1.3","v":6500},2400]
["Kildeplads","Pumpe","SP4","STD",2,"Maksdøgn","Uden Betydning"]
["Kildeplads","Pumpe","SP4","STD",2,"Maksdøgn","valg 1"]
["Kildeplads","Pumpe","SP4","STD",2,"Maksdøgn","valg 2"]
["Kildeplads","Pumpe","SP4","STD",2,"Maksdøgn","valg 2"]
["Kildeplads","Pumpe","SP4","STD",3,"Makstime","Uden Betydning"]
["Kildeplads","Pumpe","SP4","STD",3,"Makstime","valg 1"]
["Kildeplads","Pumpe","SP4","STD",3,"Makstime","valg 2"]
["Kildeplads","Pumpe","SP4","STD",3,"Makstime","valg 3"]
["Kildeplads","Pumpe","SP4","STD",3,"Makstime","valg 4"]
[null,"- - - "]
["Kildeplads","Pumpe","SP10","STOA"]
[]
[]
[]
[]
[]
[]
[]
[null,null,null,null,null,null,{"$f":"1100000/5^5","v":352},{"$f":"18*5^5","v":56250}]

{"sheet":"OUTPUT","index":8,"n_rows":74,"n_cols":22,"rows_kept":74,"cut":false,"hidden":true,"merged":[]}
[1,2,3,4,5,6,7,8,9,10,11,12,13,14,15,16,17,18]
["Hovedfunktion","Teknologi-gruppe","Teknologi","TekNiveau","Levetid","BASIS_pris","KILDE_anlæg","Kilde_levTid","ANLÆG_pris","REL","BEMÆRK","AFSKR_pris","Driftspris","VLH_pris","Enhed","RB1_Makstime (m3)","RB2_Geografisk placering","RB3_Lokalitet (land/by)",null,"RB1","RB2","RB3"]
["Kildeplads","Boringsudførelse","Tørboring_Ø250mm_0-30m","STD",null,1257,null,null,{"$f":"IFERROR(T3*U3*V3*F3,\"IR\")","v":"IR"},null,null,null,null,null,"lbm","0 - 25","København","Land",null,1,{"$f":"VLOOKUP(Q3,PrisFaktorer!$G$11:$H$14,2,FALSE)","v":{"$error":"#N/A"}},"IR"]
["Kildeplads","Boringsudførelse","Tørboring_Ø250mm_0-30m","STD",null,1257,null,null,{"$f":"IFERROR(T4*U4*V4*F4,\"IR\")","v":"IR"},null,null,null,null,null,"lbm","0 - 25","København","By",null,1,{"$f":"VLOOKUP(Q4,PrisFaktorer!$G$11:$H$14,2,FALSE)","v":{"$error":"#N/A"}},1.2]
["Kildeplads","Boringsudførelse","Tørboring_Ø250mm_0-30m","STD",null,1257,null,null,"IR",null,null,null,null,null,"lbm","0 - 25","København","Centrum",null,1,{"$f":"VLOOKUP(Q5,PrisFaktorer!$G$11:$H$14,2,FALSE)","v":{"$error":"#N/A"}},1.5]
["Kildeplads","Boringsudførelse","Tørboring_Ø250mm_0-30m","STD",null,1257,null,null,"IR",null,null,null,null,null,"lbm","0 - 25","Sjælland","Land",null,1,{"$f":"VLOOKUP(Q6,PrisFaktorer!$G$11:$H$14,2,FALSE)","v":{"$error":"#N/A"}},1]
["Kildeplads","Boringsudførelse","Tørboring_Ø250mm_0-30m","STD",null,1257,null,null,"IR",null,null,null,null,null,"lbm","0 - 25","Sjælland","By",null,1,{"$f":"VLOOKUP(Q7,PrisFaktorer!$G$11:$H$14,2,FALSE)","v":{"$error":"#N/A"}},1.2]
["Kildeplads","Boringsudførelse","Tørboring_Ø250mm_0-30m","STD",null,1257,null,null,"IR",null,null,null,null,null,"lbm","0 - 25","Sjælland","Centrum",null,1,{"$f":"VLOOKUP(Q8,PrisFaktorer!$G$11:$H$14,2,FALSE)","v":{"$error":"#N/A"}},1.5]
["Kildeplads","Boringsudførelse","Tørboring_Ø250mm_0-30m","STD",null,1257,null,null,"IR",null,null,null,null,null,"lbm","0 - 25","Øerne","Land",null,1,{"$f":"VLOOKUP(Q9,PrisFaktorer!$G$11:$H$14,2,FALSE)","v":{"$error":"#N/A"}},1]
["Kildeplads","Boringsudførelse","Tørboring_Ø250mm_0-30m","STD",null,1257,null,null,"IR",null,null,null,null,null,"lbm","0 - 25","Øerne","By",null,1,{"$f":"VLOOKUP(Q10,PrisFaktorer!$G$11:$H$14,2,FALSE)","v":{"$error":"#N/A"}},1.2]
["Kildeplads","Boringsudførelse","Tørboring_Ø250mm_0-30m","STD",null,1257,null,null,"IR",null,null,null,null,null,"lbm","0 - 25","Øerne","Centrum",null,1,{"$f":"VLOOKUP(Q11,PrisFaktorer!$G$11:$H$14,2,FALSE)","v":{"$error":"#N/A"}},1.5]
["Kildeplads","Boringsudførelse","Tørboring_Ø250mm_0-30m","STD",null,1257,null,null,"IR",null,null,null,null,null,"lbm","0 - 25","Jylland","Land",null,1,{"$f":"VLOOKUP(Q12,PrisFaktorer!$G$11:$H$14,2,FALSE)","v":{"$error":"#N/A"}},1]
["Kildeplads","Boringsudførelse","Tørboring_Ø250mm_0-30m","STD",null,1257,null,null,"IR",null,null,null,null,null,"lbm","0 - 25","Jylland","By",null,1,{"$f":"VLOOKUP(Q13,PrisFaktorer!$G$11:$H$14,2,FALSE)","v":{"$error":"#N/A"}},1.2]
["Kildeplads","Boringsudførelse","Tørboring_Ø250mm_0-30m","STD",null,1257,null,null,"IR",null,null,null,null,null,"lbm","0 - 25","Jylland","Centrum",null,1,{"$f":"VLOOKUP(Q14,PrisFaktorer!$G$11:$H$14,2,FALSE)","v":{"$error":"#N/A"}},1.5]
["Kildeplads","Boringsudførelse","Tørboring_Ø250mm_0-30m","STD",null,1257,null,null,"IR",null,null,null,null,null,"lbm","25 - 50","København","Land",null,"IR",{"$f":"VLOOKUP(Q15,PrisFaktorer!$G$11:$H$14,2,FALSE)","v":{"$error":"#N/A"}},"IR"]
["Kildeplads","Boringsudførelse","Tørboring_Ø250mm_0-30m","STD",null,1257,null,null,"IR",null,null,null,null,null,"lbm","25 - 50","København","By",null,"IR",{"$f":"VLOOKUP(Q16,PrisFaktorer!$G$11:$H$14,2,FALSE)","v":{"$error":"#N/A"}},1.2]
["Kildeplads","Boringsudførelse","Tørboring_Ø250mm_0-30m","STD",null,1257,null,null,"IR",null,null,null,null,null,"lbm","25 - 50","København","Centrum",null,"IR",{"$f":"VLOOKUP(Q17,PrisFaktorer!$G$11:$H$14,2,FALSE)","v":{"$error":"#N/A"}},1.5]
["Kildeplads","Boringsudførelse","Tørboring_Ø250mm_0-30m","STD",null,1257,null,null,"IR",null,null,null,null,null,"lbm","25 - 50","Sjælland","Land",null,"IR",{"$f":"VLOOKUP(Q18,PrisFaktorer!$G$11:$H$14,2,FALSE)","v":{"$error":"#N/A"}},1]
["Kildeplads","Boringsudførelse","Tørboring_Ø250mm_0-30m","STD",null,1257,null,null,"IR",null,null,null,null,null,"lbm","25 - 50","Sjælland","By",null,"IR",{"$f":"VLOOKUP(Q19,PrisFaktorer!$G$11:$H$14,2,FALSE)","v":{"$error":"#N/A"}},1.2]
["Kildeplads","Boringsudførelse","Tørboring_Ø250mm_0-30m","STD",null,1257,null,null,"IR",null,null,null,null,null,"lbm","25 - 50","Sjælland","Centrum",null,"IR",{"$f":"VLOOKUP(Q20,PrisFaktorer!$G$11:$H$14,2,FALSE)","v":{"$error":"#N/A"}},1.5]
["Kildeplads","Boringsudførelse","Tørboring_Ø250mm_0-30m","STD",null,1257,null,null,"IR",null,null,null,null,null,"lbm","25 - 50","Øerne","Land",null,"IR",{"$f":"VLOOKUP(Q21,PrisFaktorer!$G$11:$H$14,2,FALSE)","v":{"$error":"#N/A"}},1]
["Kildeplads","Boringsudførelse","Tørboring_Ø250mm_0-30m","STD",null,1257,null,null,"IR",null,null,null,null,null,"lbm","25 - 50","Øerne","By",null,"IR",{"$f":"VLOOKUP(Q22,PrisFaktorer!$G$11:$H$14,2,FALSE)","v":{"$error":"#N/A"}},1.2]
["Kildeplads","Boringsudførelse","Tørboring_Ø250mm_0-30m","STD",null,1257,null,null,"IR",null,null,null,null,null,"lbm","25 - 50","Øerne","Centrum",null,"IR",{"$f":"VLOOKUP(Q23,PrisFaktorer!$G$11:$H$14,2,FALSE)","v":{"$error":"#N/A"}},1.5]
["Kildeplads","Boringsudførelse","Tørboring_Ø250mm_0-30m","STD",null,1257,null,null,"IR",null,null,null,null,null,"lbm","25 - 50","Jylland","Land",null,"IR",{"$f":"VLOOKUP(Q24,PrisFaktorer!$G$11:$H$14,2,FALSE)","v":{"$error":"#N/A"}},1]
["Kildeplads","Boringsudførelse","Tørboring_Ø250mm_0-30m","STD",null,1257,null,null,"IR",null,null,null,null,null,"lbm","25 - 50","Jylland","By",null,"IR",{"$f":"VLOOKUP(Q25,PrisFaktorer!$G$11:$H$14,2,FALSE)","v":{"$error":"#N/A"}},1.2]
["Kildeplads","Boringsudførelse","Tørboring_Ø250mm_0-30m","STD",null,1257,null,null,"IR",null,null,null,null,null,"lbm","25 - 50","Jylland","Centrum",null,"IR",{"$f":"VLOOKUP(Q26,PrisFaktorer!$G$11:$H$14,2,FALSE)","v":{"$error":"#N/A"}},1.5]
["Kildeplads","Boringsudførelse","Tørboring_Ø250mm_0-30m","STD",null,1257,null,null,"IR",null,null,null,null,null,"lbm","> 50","København","Land",null,"IR",{"$f":"VLOOKUP(Q27,PrisFaktorer!$G$11:$H$14,2,FALSE)","v":{"$error":"#N/A"}},"IR"]
["Kildeplads","Boringsudførelse","Tørboring_Ø250mm_0-30m","STD",null,1257,null,null,"IR",null,null,null,null,null,"lbm","> 50","København","By",null,"IR",{"$f":"VLOOKUP(Q28,PrisFaktorer!$G$11:$H$14,2,FALSE)","v":{"$error":"#N/A"}},1.2]
["Kildeplads","Boringsudførelse","Tørboring_Ø250mm_0-30m","STD",null,1257,null,null,"IR",null,null,null,null,null,"lbm","> 50","København","Centrum",null,"IR",{"$f":"VLOOKUP(Q29,PrisFaktorer!$G$11:$H$14,2,FALSE)","v":{"$error":"#N/A"}},1.5]
["Kildeplads","Boringsudførelse","Tørboring_Ø250mm_0-30m","STD",null,1257,null,null,"IR",null,null,null,null,null,"lbm","> 50","Sjælland","Land",null,"IR",{"$f":"VLOOKUP(Q30,PrisFaktorer!$G$11:$H$14,2,FALSE)","v":{"$error":"#N/A"}},1]
["Kildeplads","Boringsudførelse","Tørboring_Ø250mm_0-30m","STD",null,1257,null,null,"IR",null,null,null,null,null,"lbm","> 50","Sjælland","By",null,"IR",{"$f":"VLOOKUP(Q31,PrisFaktorer!$G$11:$H$14,2,FALSE)","v":{"$error":"#N/A"}},1.2]
["Kildeplads","Boringsudførelse","Tørboring_Ø250mm_0-30m","STD",null,1257,null,null,"IR",null,null,null,null,null,"lbm","> 50","Sjælland","Centrum",null,"IR",{"$f":"VLOOKUP(Q32,PrisFaktorer!$G$11:$H$14,2,FALSE)","v":{"$error":"#N/A"}},1.5]
["Kildeplads","Boringsudførelse","Tørboring_Ø250mm_0-30m","STD",null,1257,null,null,"IR",null,null,null,null,null,"lbm","> 50","Øerne","Land",null,"IR",{"$f":"VLOOKUP(Q33,PrisFaktorer!$G$11:$H$14,2,FALSE)","v":{"$error":"#N/A"}},1]
["Kildeplads","Boringsudførelse","Tørboring_Ø250mm_0-30m","STD",null,1257,null,null,"IR",null,null,null,null,null,"lbm","> 50","Øerne","By",null,"IR",{"$f":"VLOOKUP(Q34,PrisFaktorer!$G$11:$H$14,2,FALSE)","v":{"$error":"#N/A"}},1.2]
["Kildeplads","Boringsudførelse","Tørboring_Ø250mm_0-30m","STD",null,1257,null,null,"IR",null,null,null,null,null,"lbm","> 50","Øerne","Centrum",null,"IR",{"$f":"VLOOKUP(Q35,PrisFaktorer!$G$11:$H$14,2,FALSE)","v":{"$error":"#N/A"}},1.5]
["Kildeplads","Boringsudførelse","Tørboring_Ø250mm_0-30m","STD",null,1257,null,null,"IR",null,null,null,null,null,"lbm","> 50","Jylland","Land",null,"IR",{"$f":"VLOOKUP(Q36,PrisFaktorer!$G$11:$H$14,2,FALSE)","v":{"$error":"#N/A"}},1]
["Kildeplads","Boringsudførelse","Tørboring_Ø250mm_0-30m","STD",null,1257,null,null,"IR",null,null,null,null,null,"lbm","> 50","Jylland","By",null,"IR",{"$f":"VLOOKUP(Q37,PrisFaktorer!$G$11:$H$14,2,FALSE)","v":{"$error":"#N/A"}},1.2]
["Kildeplads","Boringsudførelse","Tørboring_Ø250mm_0-30m","STD",null,1257,null,null,"IR",null,null,null,null,null,"lbm","> 50","Jylland","Centrum",null,"IR",{"$f":"VLOOKUP(Q38,PrisFaktorer!$G$11:$H$14,2,FALSE)","v":{"$error":"#N/A"}},1.5]
["Kildeplads","Pumpe","60 m3/t","STD",null,85000,null,null,"IR",null,null,null,null,null,"stk","0 - 25","København","Land",null,"IR",1,"IR"]
["Kildeplads","Pumpe","60 m3/t","STD",null,85000,null,null,"IR",null,null,null,null,null,"stk","0 - 25","København","By",null,"IR",1,1]
["Kildeplads","Pumpe","60 m3/t","STD",null,85000,null,null,"IR",null,null,null,null,null,"stk","0 - 25","København","Centrum",null,"IR",1,1]
["Kildeplads","Pumpe","60 m3/t","STD",null,85000,null,null,"IR",null,null,null,null,null,"stk","0 - 25","Sjælland","Land",null,"IR",1,1]
["Kildeplads","Pumpe","60 m3/t","STD",null,85000,null,null,"IR",null,null,null,null,null,"stk","0 - 25","Sjælland","By",null,"IR",1,1]
["Kildeplads","Pumpe","60 m3/t","STD",null,85000,null,null,"IR",null,null,null,null,null,"stk","0 - 25","Sjælland","Centrum",null,"IR",1,1]
["Kildeplads","Pumpe","60 m3/t","STD",null,85000,null,null,"IR",null,null,null,null,null,"stk","0 - 25","Øerne","Land",null,"IR",1,1]
["Kildeplads","Pumpe","60 m3/t","STD",null,85000,null,null,"IR",null,null,null,null,null,"stk","0 - 25","Øerne","By",null,"IR",1,1]
["Kildeplads","Pumpe","60 m3/t","STD",null,85000,null,null,"IR",null,null,null,null,null,"stk","0 - 25","Øerne","Centrum",null,"IR",1,1]
["Kildeplads","Pumpe","60 m3/t","STD",null,85000,null,null,"IR",null,null,null,null,null,"stk","0 - 25","Jylland","Land",null,"IR",1,1]
["Kildeplads","Pumpe","60 m3/t","STD",null,85000,null,null,"IR",null,null,null,null,null,"stk","0 - 25","Jylland","By",null,"IR",1,1]
["Kildeplads","Pumpe","60 m3/t","STD",null,85000,null,null,"IR",null,null,null,null,null,"stk","0 - 25","Jylland","Centrum",null,"IR",1,1]
["Kildeplads","Pumpe","60 m3/t","STD",null,85000,null,null,"IR",null,null,null,null,null,"stk","25 - 50","København","Land",null,1,1,"IR"]
["Kildeplads","Pumpe","60 m3/t","STD",null,85000,null,null,85000,null,null,null,null,null,"stk","25 - 50","København","By",null,1,1,1]
["Kildeplads","Pumpe","60 m3/t","STD",null,85000,null,null,85000,null,null,null,null,null,"stk","25 - 50","København","Centrum",null,1,1,1]
["Kildeplads","Pumpe","60 m3/t","STD",null,85000,null,null,85000,null,null,null,null,null,"stk","25 - 50","Sjælland","Land",null,1,1,1]
["Kildeplads","Pumpe","60 m3/t","STD",null,85000,null,null,85000,null,null,null,null,null,"stk","25 - 50","Sjælland","By",null,1,1,1]
["Kildeplads","Pumpe","60 m3/t","STD",null,85000,null,null,85000,null,null,null,null,null,"stk","25 - 50","Sjælland","Centrum",null,1,1,1]
["Kildeplads","Pumpe","60 m3/t","STD",null,85000,null,null,85000,null,null,null,null,null,"stk","25 - 50","Øerne","Land",null,1,1,1]
["Kildeplads","Pumpe","60 m3/t","STD",null,85000,null,null,85000,null,null,null,null,null,"stk","25 - 50","Øerne","By",null,1,1,1]
["Kildeplads","Pumpe","60 m3/t","STD",null,85000,null,null,85000,null,null,null,null,null,"stk","25 - 50","Øerne","Centrum",null,1,1,1]
["Kildeplads","Pumpe","60 m3/t","STD",null,85000,null,null,85000,null,null,null,null,null,"stk","25 - 50","Jylland","Land",null,1,1,1]
["Kildeplads","Pumpe","60 m3/t","STD",null,85000,null,null,85000,null,null,null,null,null,"stk","25 - 50","Jylland","By",null,1,1,1]
["Kildeplads","Pumpe","60 m3/t","STD",null,85000,null,null,85000,null,null,null,null,null,"stk","25 - 50","Jylland","Centrum",null,1,1,1]
["Kildeplads","Pumpe","60 m3/t","STD",null,85000,null,null,"IR",null,null,null,null,null,"stk","> 50","København","Land",null,1,1,"IR"]
["Kildeplads","Pumpe","60 m3/t","STD",null,85000,null,null,85000,null,null,null,null,null,"stk","> 50","København","By",null,1,1,1]
["Kildeplads","Pumpe","60 m3/t","STD",null,85000,null,null,85000,null,null,null,null,null,"stk","> 50","København","Centrum",null,1,1,1]
["Kildeplads","Pumpe","60 m3/t","STD",null,85000,null,null,85000,null,null,null,null,null,"stk","> 50","Sjælland","Land",null,1,1,1]
["Kildeplads","Pumpe","60 m3/t","STD",null,85000,null,null,85000,null,null,null,null,null,"stk","> 50","Sjælland","By",null,1,1,1]
["Kildeplads","Pumpe","60 m3/t","STD",null,85000,null,null,{"$f":"IFERROR(T68*U68*V68*F68,\"IR\")","v":85000},null,null,null,null,null,"stk","> 50","Sjælland","Centrum",null,1,1,1]
["Kildeplads","Pumpe","60 m3/t","STD",null,85000,null,null,85000,null,null,null,null,null,"stk","> 50","Øerne","Land",null,1,1,1]
["Kildeplads","Pumpe","60 m3/t","STD",null,85000,null,null,85000,null,null,null,null,null,"stk","> 50","Øerne","By",null,1,1,1]
["Kildeplads","Pumpe","60 m3/t","STD",null,85000,null,null,85000,null,null,null,null,null,"stk","> 50","Øerne","Centrum",null,1,1,1]
["Kildeplads","Pumpe","60 m3/t","STD",null,85000,null,null,85000,null,null,null,null,null,"stk","> 50","Jylland","Land",null,1,1,1]
["Kildeplads","Pumpe","60 m3/t","STD",null,85000,null,null,85000,null,null,null,null,null,"stk","> 50","Jylland","By",null,1,1,1]
["Kildeplads","Pumpe","60 m3/t","STD",null,85000,null,null,85000,null,null,null,null,null,"stk","> 50","Jylland","Centrum",null,1,1,1]